Workbook

Sheet MainDisplay
O1: =TODAY() -> 2018-06-18
B2: =MOD(RTD("cqg.rtd", ,"SystemInfo", "Linetime"),1) -> 08:52:54 | F2: CQG CME Globex 10-Day Map | AA2: =RTD("cqg.rtd", ,"SystemInfo", "Linetime") -> 43269.37007
B4: Symbol | D4: Metals | F4: =IF(RTD("cqg.rtd", ,"ContractData",Sheet3!$D$12, "NetLastTradeToday",, "T")>=0,"+",0) -> + | G4: Last | H4: =TEXT(RTD("cqg.rtd", ,"ContractData",Sheet3!$D$12, "LastTradeToday",, "T"),Sheet3!$F$17) -> 1282.80 | J4: Net | K4: =IF(F4="+","+"&TEXT(RTD("cqg.rtd", ,"ContractData",Sheet3!$D$12, "NetLastTradeToday",, "T"),Sheet3!$F$17),TEXT(RTD("cqg.rtd", ,"ContractData",Sheet3!$D$12, "NetLastTradeToday",, "T"),Sheet3!$F$17)) -> +4.30 | M4: Net $ Change | R4: Symbol | T4: Energy | V4: =IF(RTD("cqg.rtd", ,"ContractData",'Sheet3 (2)'!$D$12, "NetLastTradeToday",, "T")>=0,"+",0) -> + | W4: Last | X4: =TEXT(RTD("cqg.rtd", ,"ContractData",'Sheet3 (2)'!$D$12, "LastTradeToday",, "T"),'Sheet3 (2)'!$F$17) -> 65.22 | Z4: Net | AA4: =IF(V4="+","+"&TEXT(RTD("cqg.rtd", ,"ContractData",'Sheet3 (2)'!$D$12, "NetLastTradeToday",, "T"),'Sheet3 (2)'!$F$17),TEXT(RTD("cqg.rtd", ,"ContractData",'Sheet3 (2)'!$D$12, "NetLastTradeToday",, "T"),'Sheet3 (2)'!$F$17)) -> +.37 | AC4: Net $ Change
B5: GCE | C5: =" "&RTD("cqg.rtd", ,"ContractData",Sheet3!$D$12, "LongDescription",, "T")&" " -> Gold (Globex), Aug 18 | G5: Trade | J5: Change | M5: =IFERROR(1/RTD("cqg.rtd",,"ContractData","Tsize("&B5&")","LastQuoteToday",,"T")*RTD("cqg.rtd",,"ContractData","PriceToDollar(Tsize("&B5&"))","LastQuoteToday")*RTD("cqg.rtd", ,"ContractData", B5, "NetLastTrade"),"") -> 430 | R5: CLE | S5: =" "&RTD("cqg.rtd", ,"ContractData",'Sheet3 (2)'!D12, "LongDescription",, "T")&" " -> Crude Light (Globex), Aug 18 | W5: Trade | Z5: Change | AC5: =IFERROR(1/RTD("cqg.rtd",,"ContractData","Tsize("&R5&")","LastQuoteToday",,"T")*RTD("cqg.rtd",,"ContractData","PriceToDollar(Tsize("&R5&"))","LastQuoteToday")*RTD("cqg.rtd", ,"ContractData", R5, "NetLastTrade"),"") -> 370
B6: =2*RTD("cqg.rtd",,"ContractData","Tsize("&B5&")","LastQuoteToday",,"T") -> 0.2 | G6: Open | H6: =TEXT(RTD("cqg.rtd", ,"ContractData",Sheet3!$D$12, "Open",, "T"),Sheet3!$F$17) -> 1281.10 | I6: High | J6: =TEXT(RTD("cqg.rtd", ,"ContractData",Sheet3!$D$12, "High",, "T"),Sheet3!$F$17) -> 1284.90 | K6: Low | L6: =TEXT(RTD("cqg.rtd", ,"ContractData",Sheet3!$D$12, "Low",, "T"),Sheet3!$F$17) -> 1279.90 | R6: =2*RTD("cqg.rtd",,"ContractData","Tsize("&R5&")","LastQuoteToday",,"T") -> 0.02 | W6: Open | X6: =TEXT(RTD("cqg.rtd", ,"ContractData",'Sheet3 (2)'!$D$12, "Open",, "T"),'Sheet3 (2)'!$F$17) -> 64.22 | Y6: High | Z6: =TEXT(RTD("cqg.rtd", ,"ContractData",'Sheet3 (2)'!$D$12, "High",, "T"),'Sheet3 (2)'!$F$17) -> 65.29 | AA6: Low | AB6: =TEXT(RTD("cqg.rtd", ,"ContractData",'Sheet3 (2)'!$D$12, "Low",, "T"),'Sheet3 (2)'!$F$17) -> 63.40
M7: =IF(J6-H4<=B6,1,0) -> 0 | O7: =IF(H4-L6<=B6,1,0) -> 0 | AC7: =IF(Z6-X4<=R6,1,0) -> 0 | AE7: =IF(X4-AB6<=R6,1,0) -> 0
B8: =Sheet4!I113+1 -> 5 | C8: =RTD("cqg.rtd", ,"ContractData",Sheet3!$D$12, "MT_LastBidVolume",, "T") -> 23 | E8: =TEXT(RTD("cqg.rtd", ,"ContractData",Sheet3!$D$12, "Bid",, "T"),Sheet3!$F$17) -> 1282.80 | G8: =TEXT(RTD("cqg.rtd", ,"ContractData",Sheet3!$D$12, "Ask",, "T"),Sheet3!$F$17) -> 1282.90 | I8: =RTD("cqg.rtd", ,"ContractData",Sheet3!$D$12, "MT_LastAskVolume",, "T") -> 35 | K8: Top Correlation to: | M8: Highlight | R8: ='Sheet4 (2)'!I85+1 -> 5 | S8: =RTD("cqg.rtd", ,"ContractData",'Sheet3 (2)'!$D$12, "MT_LastBidVolume",, "T") -> 26 | U8: =TEXT(RTD("cqg.rtd", ,"ContractData",'Sheet3 (2)'!$D$12, "Bid",, "T"),'Sheet3 (2)'!$F$17) -> 65.22 | W8: =TEXT(RTD("cqg.rtd", ,"ContractData",'Sheet3 (2)'!$D$12, "Ask",, "T"),'Sheet3 (2)'!$F$17) -> 65.23 | Y8: =RTD("cqg.rtd", ,"ContractData",'Sheet3 (2)'!$D$12, "MT_LastAskVolume",, "T") -> 39 | AA8: Top Correlation to: | AC8: Highlight
K9: =Sheet4!G113 -> 2018-06-12 | L9: =Sheet4!H113 -> 0.4966105156 | M9: Reset | AA9: ='Sheet4 (2)'!G85 -> 2018-06-12 | AB9: ='Sheet4 (2)'!H85 -> 0.8008586001 | AC9: Reset
A10: =IF(M14=$O$1,1,0) -> 0 | Q10: =IF(AC14=$O$1,1,0) -> 0
A11: =IF(M15=$O$1,1,0) -> 0 | Q11: =IF(AC15=$O$1,1,0) -> 1
A12: 0 | M12: Bar Time | N12: Corr | O12: =IFERROR(IF(TIME(0,5,0)-(MOD(B2,1)-M13)<0,1,TIME(0,5,0)-(MOD(B2,1)-M13)),"") -> 00:02:06 | Q12: 0 | AC12: Bar Time | AD12: Corr | AE12: =IFERROR(IF(TIME(0,5,0)-(MOD(B2,1)-AC13)<0,1,TIME(0,5,0)-(MOD(B2,1)-AC13)),"") -> 00:02:06
A13: 1 | M13: =IFERROR(Sheet3!AC12,"") -> 08:50:00 | N13: Now | O13: % NC | Q13: 0 | AC13: =IFERROR('Sheet3 (2)'!AC12,"") -> 08:50:00 | AD13: Now | AE13: % NC
A14: 0 | M14: =IFERROR(Sheet3!AG1,"") -> 2018-06-06 | N14: =IFERROR(VLOOKUP(M14,Sheet4!$G$113:$H$121,2,FALSE),"") -> 0.4209894703 | O14: =IFERROR(Sheet3!AH1,"") -> 0.0034604737 | Q14: 0 | AC14: =IFERROR('Sheet3 (2)'!AG1,"") -> 2018-06-07 | AD14: =IFERROR(VLOOKUP(AC14,'Sheet4 (2)'!$G$85:$H$93,2,FALSE),"") -> 0.7204988591 | AE14: =IFERROR('Sheet3 (2)'!AH1,"") -> 0.01004636785
A15: 0 | M15: =IFERROR(Sheet3!AG2,"") -> 2018-06-14 | N15: =IFERROR(VLOOKUP(M15,Sheet4!$G$113:$H$121,2,FALSE),"") -> -0.5658932377 | O15: =IFERROR(Sheet3!AH2,"") -> 0.003453833755 | Q15: 0 | AC15: =IFERROR('Sheet3 (2)'!AG2,"") -> 2018-06-18 | AD15: =IFERROR(VLOOKUP(AC15,'Sheet4 (2)'!$G$85:$H$93,2,FALSE),"") ->  | AE15: =IFERROR('Sheet3 (2)'!AH2,"") -> 0.005705474171
A16: 0 | M16: =IFERROR(Sheet3!AG3,"") -> 2018-06-08 | N16: =IFERROR(VLOOKUP(M16,Sheet4!$G$113:$H$121,2,FALSE),"") -> -0.0407508545 | O16: =IFERROR(Sheet3!AH3,"") -> 0.00115269346 | Q16: 0 | AC16: =IFERROR('Sheet3 (2)'!AG3,"") -> 2018-06-14 | AD16: =IFERROR(VLOOKUP(AC16,'Sheet4 (2)'!$G$85:$H$93,2,FALSE),"") -> -0.7014872699 | AE16: =IFERROR('Sheet3 (2)'!AH3,"") -> 0.0043595911
A17: 0 | M17: =IFERROR(Sheet3!AG4,"") -> 2018-06-18 | N17: =IFERROR(VLOOKUP(M17,Sheet4!$G$113:$H$121,2,FALSE),"") ->  | O17: =IFERROR(Sheet3!AH4,"") -> 0.000624024961 | Q17: 0 | AC17: =IFERROR('Sheet3 (2)'!AG4,"") -> 2018-06-12 | AD17: =IFERROR(VLOOKUP(AC17,'Sheet4 (2)'!$G$85:$H$93,2,FALSE),"") -> 0.8008586001 | AE17: =IFERROR('Sheet3 (2)'!AH4,"") -> 0.00196880206
A18: 0 | M18: =IFERROR(Sheet3!AG5,"") -> 2018-06-13 | N18: =IFERROR(VLOOKUP(M18,Sheet4!$G$113:$H$121,2,FALSE),"") -> 0.4841497862 | O18: =IFERROR(Sheet3!AH5,"") -> 0.0004616805171 | Q18: 0 | AC18: =IFERROR('Sheet3 (2)'!AG5,"") -> 2018-06-08 | AD18: =IFERROR(VLOOKUP(AC18,'Sheet4 (2)'!$G$85:$H$93,2,FALSE),"") -> -0.1707529016 | AE18: =IFERROR('Sheet3 (2)'!AH5,"") -> -0.00182121718
A19: =IF(M23=$O$1,1,0) -> 0 | M19: =IFERROR(Sheet3!AG6,"") -> 2018-06-11 | N19: =IFERROR(VLOOKUP(M19,Sheet4!$G$113:$H$121,2,FALSE),"") -> 0.3627475386 | O19: =IFERROR(Sheet3!AH6,"") -> 0.0002301495972 | Q19: 0 | AC19: =IFERROR('Sheet3 (2)'!AG6,"") -> 2018-06-05 | AD19: =IFERROR(VLOOKUP(AC19,'Sheet4 (2)'!$G$85:$H$93,2,FALSE),"") -> -0.06515455587 | AE19: =IFERROR('Sheet3 (2)'!AH6,"") -> -0.003401360544
M20: =IFERROR(Sheet3!AG7,"") -> 2018-06-05 | N20: =IFERROR(VLOOKUP(M20,Sheet4!$G$113:$H$121,2,FALSE),"") -> 0.1322260059 | O20: =IFERROR(Sheet3!AH7,"") -> 0 | AC20: =IFERROR('Sheet3 (2)'!AG7,"") -> 2018-06-06 | AD20: =IFERROR(VLOOKUP(AC20,'Sheet4 (2)'!$G$85:$H$93,2,FALSE),"") -> 0.4913764987 | AE20: =IFERROR('Sheet3 (2)'!AH7,"") -> -0.003513596089
M21: =IFERROR(Sheet3!AG8,"") -> 2018-06-07 | N21: =IFERROR(VLOOKUP(M21,Sheet4!$G$113:$H$121,2,FALSE),"") -> -0.5334432712 | O21: =IFERROR(Sheet3!AH8,"") -> -0.0001537751807 | AC21: =IFERROR('Sheet3 (2)'!AG8,"") -> 2018-06-13 | AD21: =IFERROR(VLOOKUP(AC21,'Sheet4 (2)'!$G$85:$H$93,2,FALSE),"") -> 0.04464610167 | AE21: =IFERROR('Sheet3 (2)'!AH8,"") -> -0.005884127942
M22: =IFERROR(Sheet3!AG9,"") -> 2018-06-12 | N22: =IFERROR(VLOOKUP(M22,Sheet4!$G$113:$H$121,2,FALSE),"") -> 0.4966105156 | O22: =IFERROR(Sheet3!AH9,"") -> -0.002069917203 | AC22: =IFERROR('Sheet3 (2)'!AG9,"") -> 2018-06-11 | AD22: =IFERROR(VLOOKUP(AC22,'Sheet4 (2)'!$G$85:$H$93,2,FALSE),"") -> 0.1556652175 | AE22: =IFERROR('Sheet3 (2)'!AH9,"") -> -0.01005025126
M23: =IFERROR(Sheet3!AG10,"") -> 2018-06-15 | N23: =IFERROR(VLOOKUP(M23,Sheet4!$G$113:$H$121,2,FALSE),"") -> -0.3997501855 | O23: =IFERROR(Sheet3!AH10,"") -> -0.01401332414 | AC23: =IFERROR('Sheet3 (2)'!AG10,"") -> 2018-06-15 | AD23: =IFERROR(VLOOKUP(AC23,'Sheet4 (2)'!$G$85:$H$93,2,FALSE),"") -> -0.7868339742 | AE23: =IFERROR('Sheet3 (2)'!AH10,"") -> -0.0130454341
B28: Session: 7:00 - 16:00 | R28: Primary Session 8:00 - 13:30
B30: Symbol | D30: Grains & Products | F30: =IF(RTD("cqg.rtd", ,"ContractData",'Sheet3 (3)'!$D$12, "NetLastTradeToday",, "T")="","",IF(RTD("cqg.rtd", ,"ContractData",'Sheet3 (3)'!$D$12, "NetLastTradeToday",, "T")>=0,"+",0)) -> 0 | G30: Last | H30: =TEXT(RTD("cqg.rtd", ,"ContractData",'Sheet3 (3)'!$D$12, "LastTradeToday",, "T"),'Sheet3 (3)'!$F$17) -> 904.75 | J30: Net | K30: =IF(F30="","",IF(F30="+","+"&TEXT(RTD("cqg.rtd", ,"ContractData",'Sheet3 (3)'!$D$12, "NetLastTradeToday",, "T"),'Sheet3 (3)'!$F$17),TEXT(RTD("cqg.rtd", ,"ContractData",'Sheet3 (3)'!$D$12, "NetLastTradeToday",, "T"),'Sheet3 (3)'!$F$17))) -> -.75 | M30: Net $ Change | R30: Symbol | T30: Meats | V30: =IF(RTD("cqg.rtd", ,"ContractData",'Sheet3 (4)'!$D$12, "NetLastTradeToday",, "T")>=0,"+",0) -> 0 | W30: Last | X30: =IF('Sheet3 (4)'!F16="B",RTD("cqg.rtd", ,"ContractData",'Sheet3 (4)'!$D$12, "LastTradeToday",, "B"),TEXT(RTD("cqg.rtd", ,"ContractData",'Sheet3 (4)'!$D$12, "LastTradeToday",, "T"),'Sheet3 (4)'!$F$16)) -> 104.400 | Z30: Net | AA30: =IF(V30="+",""&(IF('Sheet3 (4)'!F16="B",RTD("cqg.rtd",,"ContractData",'Sheet3 (4)'!$D$12,"NetLastTradeToday",,"B"),TEXT(RTD("cqg.rtd",,"ContractData",'Sheet3 (4)'!$D$12,"NetLastTradeToday",,"T"),'Sheet3 (4)'!$F$16))),IF('Sheet3 (4)'!F16="B",RTD("cqg.rtd",,"ContractData",'Sheet3 (4)'!$D$12,"NetLastTradeToday",,"B"),TEXT(RTD("cqg.rtd",,"ContractData",'Sheet3 (4)'!$D$12,"NetLastTradeToday",,"T"),'Sheet3 (4)'!$F$16))) -> -.375 | AC30: Net $ Change
B31: ZSE | C31: =" "&RTD("cqg.rtd", ,"ContractData",'Sheet3 (3)'!$D$12, "LongDescription",, "T")&" " -> Soybeans (Globex), Jul 18 | G31: Trade | J31: Change | M31: =IFERROR(1/RTD("cqg.rtd",,"ContractData","Tsize("&B31&")","LastQuoteToday",,"T")*RTD("cqg.rtd",,"ContractData","PriceToDollar(Tsize("&B31&"))","LastQuoteToday")*RTD("cqg.rtd", ,"ContractData", B31, "NetLastTrade",,"T"),"") -> -37.5 | R31: GLE | S31: =" "&RTD("cqg.rtd", ,"ContractData",'Sheet3 (4)'!D12, "LongDescription",, "T")&" " -> Live Cattle (Globex), Aug 18 | W31: Trade | Z31: Change | AC31: =IFERROR(1/RTD("cqg.rtd",,"ContractData","Tsize("&R31&")","LastQuoteToday",,"T")*RTD("cqg.rtd",,"ContractData","PriceToDollar(Tsize("&R31&"))","LastQuoteToday")*RTD("cqg.rtd", ,"ContractData", R31, "NetLastTrade",,"T"),"") -> -150
B32: =2*RTD("cqg.rtd",,"ContractData","Tsize("&B31&")","LastQuoteToday",,"T") -> 0.5 | G32: Open | H32: =TEXT(RTD("cqg.rtd", ,"ContractData",'Sheet3 (3)'!$D$12, "Open",, "T"),'Sheet3 (3)'!$F$17) -> 905.50 | I32: High | J32: =TEXT(RTD("cqg.rtd", ,"ContractData",'Sheet3 (3)'!$D$12, "High",, "T"),'Sheet3 (3)'!$F$17) -> 914.00 | K32: Low | L32: =TEXT(RTD("cqg.rtd", ,"ContractData",'Sheet3 (3)'!$D$12, "Low",, "T"),'Sheet3 (3)'!$F$17) -> 897.25 | R32: =2*RTD("cqg.rtd",,"ContractData","Tsize("&R31&")","LastQuoteToday",,"T") -> 0.05 | W32: Open | X32: =IF('Sheet3 (4)'!F16="B",RTD("cqg.rtd", ,"ContractData",'Sheet3 (4)'!$D$12, "Open",, "B"),TEXT(RTD("cqg.rtd", ,"ContractData",'Sheet3 (4)'!$D$12, "Open",, "T"),'Sheet3 (4)'!$F$16)) -> 104.950 | Y32: High | Z32: =IF('Sheet3 (4)'!F16="B",RTD("cqg.rtd", ,"ContractData",'Sheet3 (4)'!$D$12, "High",, "B"),TEXT(RTD("cqg.rtd", ,"ContractData",'Sheet3 (4)'!$D$12, "High",, "T"),'Sheet3 (4)'!$F$16)) -> 105.400 | AA32: Low | AB32: =IF('Sheet3 (4)'!F16="B",RTD("cqg.rtd", ,"ContractData",'Sheet3 (4)'!$D$12, "Low",, "B"),TEXT(RTD("cqg.rtd", ,"ContractData",'Sheet3 (4)'!$D$12, "Low",, "T"),'Sheet3 (4)'!$F$16)) -> 103.975
M33: =IF(J32-H30<=B32,1,0) -> 0 | O33: =IF(H30-L32<=B32,1,0) -> 0 | AC33: =IF(RTD("cqg.rtd", ,"ContractData",'Sheet3 (4)'!$D$12, "High",, "T")-RTD("cqg.rtd", ,"ContractData",'Sheet3 (4)'!$D$12, "LastTrade",, "T")<=R32,1,0) -> 0 | AE33: =IF(RTD("cqg.rtd", ,"ContractData",'Sheet3 (4)'!$D$12, "LastTrade",, "T")-RTD("cqg.rtd", ,"ContractData",'Sheet3 (4)'!$D$12, "Low",, "T")<=R32,1,0) -> 0
B34: ='Sheet4 (3)'!I73+1 -> 5 | C34: =RTD("cqg.rtd", ,"ContractData",'Sheet3 (3)'!$D$12, "MT_LastBidVolume",, "T") -> 7 | E34: =TEXT(RTD("cqg.rtd", ,"ContractData",'Sheet3 (3)'!$D$12, "Bid",, "T"),'Sheet3 (3)'!$F$17) -> 905.00 | G34: =TEXT(RTD("cqg.rtd", ,"ContractData",'Sheet3 (3)'!$D$12, "Ask",, "T"),'Sheet3 (3)'!$F$17) -> 905.25 | I34: =RTD("cqg.rtd", ,"ContractData",'Sheet3 (3)'!$D$12, "MT_LastAskVolume",, "T") -> 27 | K34: Top Correlation to: | M34: Highlight | R34: ='Sheet4 (4)'!I60+1 -> 6 | S34: =RTD("cqg.rtd", ,"ContractData",'Sheet3 (4)'!$D$12, "MT_LastBidVolume",, "T") -> 11 | U34: =IF('Sheet3 (4)'!F16="B",RTD("cqg.rtd", ,"ContractData",'Sheet3 (4)'!$D$12, "Bid",, "B"),TEXT(RTD("cqg.rtd", ,"ContractData",'Sheet3 (4)'!$D$12, "Bid",, "T"),'Sheet3 (4)'!$F$16)) -> 104.375 | W34: =IF('Sheet3 (4)'!F16="B",RTD("cqg.rtd", ,"ContractData",'Sheet3 (4)'!$D$12, "Ask",, "B"),TEXT(RTD("cqg.rtd", ,"ContractData",'Sheet3 (4)'!$D$12, "Ask",, "T"),'Sheet3 (4)'!$F$16)) -> 104.425 | Y34: =RTD("cqg.rtd", ,"ContractData",'Sheet3 (4)'!$D$12, "MT_LastAskVolume",, "T") -> 5 | AA34: Top Correlation to: | AC34: Highlight
K35: ='Sheet4 (3)'!G73 -> 2018-06-12 | L35: ='Sheet4 (3)'!H73 -> 0.1325620512 | M35: Reset | AA35: ='Sheet4 (4)'!G60 -> 2018-06-11 | AB35: ='Sheet4 (4)'!H60 -> 0.8502497749 | AC35: Reset
A36: =IF(M40=$O$1,1,0) -> 0 | Q36: =IF(AC40=$O$1,1,0) -> 0
A37: =IF(M41=$O$1,1,0) -> 0 | Q37: =IF(AC41=$O$1,1,0) -> 0
A38: 0 | M38: Bar Time | N38: Corr | O38: =IFERROR(IF(TIME(0,5,0)-(MOD(B2,1)-M39)<0,1,TIME(0,5,0)-(MOD(B2,1)-M39)),"") -> 00:02:06 | Q38: 0 | AC38: Bar Time | AD38: Corr | AE38: =IFERROR(IF(TIME(0,5,0)-(MOD(B2,1)-AC39)<0,1,TIME(0,5,0)-(MOD(B2,1)-AC39)),"") -> 00:02:06
A39: 1 | M39: =IFERROR('Sheet3 (3)'!AC12,"") -> 08:50:00 | N39: Now | O39: % NC | Q39: 0 | AC39: =IFERROR('Sheet3 (4)'!AC12,"") -> 08:50:00 | AD39: Now | AE39: % NC
A40: 0 | M40: =IFERROR('Sheet3 (3)'!AG1,"") -> 2018-06-06 | N40: =IFERROR(VLOOKUP(M40,'Sheet4 (3)'!$G$73:$H$81,2,FALSE),"") -> -0.02493383031 | O40: =IFERROR('Sheet3 (3)'!AH1,"") -> 0.0007490636704 | Q40: 0 | AC40: =IFERROR('Sheet3 (4)'!AG1,"") -> 2018-06-08 | AD40: =IFERROR(VLOOKUP(AC40,'Sheet4 (4)'!$G$60:$H$68,2,FALSE),"") -> -0.8177952462 | AE40: =IFERROR('Sheet3 (4)'!AH1,"") -> 0.007681228997
A41: 0 | M41: =IFERROR('Sheet3 (3)'!AG2,"") -> 2018-06-12 | N41: =IFERROR(VLOOKUP(M41,'Sheet4 (3)'!$G$73:$H$81,2,FALSE),"") -> 0.1325620512 | O41: =IFERROR('Sheet3 (3)'!AH2,"") -> 0 | Q41: 0 | AC41: =IFERROR('Sheet3 (4)'!AG2,"") -> 2018-06-06 | AD41: =IFERROR(VLOOKUP(AC41,'Sheet4 (4)'!$G$60:$H$68,2,FALSE),"") -> 0.6607511749 | AE41: =IFERROR('Sheet3 (4)'!AH2,"") -> 0.004805382028
A42: 0 | M42: =IFERROR('Sheet3 (3)'!AG3,"") -> 2018-06-08 | N42: =IFERROR(VLOOKUP(M42,'Sheet4 (3)'!$G$73:$H$81,2,FALSE),"") -> -0.004795242615 | O42: =IFERROR('Sheet3 (3)'!AH3,"") -> -0.0002566076469 | Q42: 0 | AC42: =IFERROR('Sheet3 (4)'!AG3,"") -> 2018-06-05 | AD42: =IFERROR(VLOOKUP(AC42,'Sheet4 (4)'!$G$60:$H$68,2,FALSE),"") -> -0.1082763083 | AE42: =IFERROR('Sheet3 (4)'!AH3,"") -> 0.0004880429478
A43: 0 | M43: =IFERROR('Sheet3 (3)'!AG4,"") -> 2018-06-18 | N43: =IFERROR(VLOOKUP(M43,'Sheet4 (3)'!$G$73:$H$81,2,FALSE),"") ->  | O43: =IFERROR('Sheet3 (3)'!AH4,"") -> -0.0008282716731 | Q43: 1 | AC43: =IFERROR('Sheet3 (4)'!AG4,"") -> 2018-06-07 | AD43: =IFERROR(VLOOKUP(AC43,'Sheet4 (4)'!$G$60:$H$68,2,FALSE),"") -> 0.5901400411 | AE43: =IFERROR('Sheet3 (4)'!AH4,"") -> 0.0002390628735
A44: 0 | M44: =IFERROR('Sheet3 (3)'!AG5,"") -> 2018-06-05 | N44: =IFERROR(VLOOKUP(M44,'Sheet4 (3)'!$G$73:$H$81,2,FALSE),"") -> -0.01674438476 | O44: =IFERROR('Sheet3 (3)'!AH5,"") -> -0.001996506114 | Q44: 0 | AC44: =IFERROR('Sheet3 (4)'!AG5,"") -> 2018-06-13 | AD44: =IFERROR(VLOOKUP(AC44,'Sheet4 (4)'!$G$60:$H$68,2,FALSE),"") -> 0.7527465433 | AE44: =IFERROR('Sheet3 (4)'!AH5,"") -> -0.0009587727709
A45: 0 | M45: =IFERROR('Sheet3 (3)'!AG6,"") -> 2018-06-07 | N45: =IFERROR(VLOOKUP(M45,'Sheet4 (3)'!$G$73:$H$81,2,FALSE),"") -> 0.04480457813 | O45: =IFERROR('Sheet3 (3)'!AH6,"") -> -0.004777470455 | Q45: 0 | AC45: =IFERROR('Sheet3 (4)'!AG6,"") -> 2018-06-11 | AD45: =IFERROR(VLOOKUP(AC45,'Sheet4 (4)'!$G$60:$H$68,2,FALSE),"") -> 0.8502497749 | AE45: =IFERROR('Sheet3 (4)'!AH6,"") -> -0.001890805956
M46: =IFERROR('Sheet3 (3)'!AG7,"") -> 2018-06-14 | N46: =IFERROR(VLOOKUP(M46,'Sheet4 (3)'!$G$73:$H$81,2,FALSE),"") -> -0.08394872248 | O46: =IFERROR('Sheet3 (3)'!AH7,"") -> -0.007745726496 | AC46: =IFERROR('Sheet3 (4)'!AG7,"") -> 2018-06-12 | AD46: =IFERROR(VLOOKUP(AC46,'Sheet4 (4)'!$G$60:$H$68,2,FALSE),"") -> -0.2519661128 | AE46: =IFERROR('Sheet3 (4)'!AH7,"") -> -0.002159827214
M47: =IFERROR('Sheet3 (3)'!AG8,"") -> 2018-06-11 | N47: =IFERROR(VLOOKUP(M47,'Sheet4 (3)'!$G$73:$H$81,2,FALSE),"") -> -0.1866895408 | O47: =IFERROR('Sheet3 (3)'!AH8,"") -> -0.01134898117 | AC47: =IFERROR('Sheet3 (4)'!AG8,"") -> 2018-06-18 | AD47: =IFERROR(VLOOKUP(AC47,'Sheet4 (4)'!$G$60:$H$68,2,FALSE),"") ->  | AE47: =IFERROR('Sheet3 (4)'!AH8,"") -> -0.003579098067
M48: =IFERROR('Sheet3 (3)'!AG9,"") -> 2018-06-15 | N48: =IFERROR(VLOOKUP(M48,'Sheet4 (3)'!$G$73:$H$81,2,FALSE),"") -> 0.04211774866 | O48: =IFERROR('Sheet3 (3)'!AH9,"") -> -0.01186303586 | AC48: =IFERROR('Sheet3 (4)'!AG9,"") -> 2018-06-15 | AD48: =IFERROR(VLOOKUP(AC48,'Sheet4 (4)'!$G$60:$H$68,2,FALSE),"") -> -0.4400581761 | AE48: =IFERROR('Sheet3 (4)'!AH9,"") -> -0.003680981595
M49: =IFERROR('Sheet3 (3)'!AG10,"") -> 2018-06-13 | N49: =IFERROR(VLOOKUP(M49,'Sheet4 (3)'!$G$73:$H$81,2,FALSE),"") -> 0.02949251693 | O49: =IFERROR('Sheet3 (3)'!AH10,"") -> -0.01703354298 | AC49: =IFERROR('Sheet3 (4)'!AG10,"") -> 2018-06-14 | AD49: =IFERROR(VLOOKUP(AC49,'Sheet4 (4)'!$G$60:$H$68,2,FALSE),"") -> 0.4813869102 | AE49: =IFERROR('Sheet3 (4)'!AH10,"") -> -0.005534167469
B54: Session: 7:00 - 13:15 | R54: Session: 8:00 - 14:00
D55: Copyright © 2018 | J55: Designed by Thom Hartle

Sheet Sheet3 (hidden)
A1: 168 | B1: 07:00:00 | C1: =IF(WEEKDAY(TODAY())=7,TODAY()-1,IF(WEEKDAY(TODAY())=1,TODAY()-2,TODAY())) -> 2018-06-18 | D1: =YEAR(C1) -> 2018 | E1: =MONTH(C1) -> 6 | F1: =DAY(C1) -> 18 | H1: =RTD("cqg.rtd",,"StudyData", "Close("&$D$12&") when LocalYear("&$D$12&")="&$D$1&" and localMonth("&$D$12&") ="&$E$1&" and LocalDay("&$D$12&")="&$F$1&" and Barix("&$D$12&",reference:=StartOfDay)="&A1&"", "Bar", "", "Close","5","0","",,,"False","T","EveryTick") -> 1282.3 | I1: =IFERROR((H1-$G$2)/$G$2,NA()) -> 0.0002340093604 | J1: =RTD("cqg.rtd",,"StudyData", "Close("&$D$12&") when LocalYear("&$D$12&")="&$D$2&" and localMonth("&$D$12&") ="&$E$2&" and LocalDay("&$D$12&")="&$F$2&" and Barix("&$D$12&",reference:=StartOfDay)="&A1&"", "Bar", "", "Close","5","0","",,,"False","T","EveryTick") -> 1302.3 | K1: =IFERROR((J1-$G$3)/$G$3,NA()) -> -0.002756719504 | L1: =RTD("cqg.rtd",,"StudyData", "Close("&$D$12&") when LocalYear("&$D$12&")="&$D$3&" and localMonth("&$D$12&") ="&$E$3&" and LocalDay("&$D$12&")="&$F$3&" and Barix("&$D$12&",reference:=StartOfDay)="&A1&"", "Bar", "", "Close","5","0","",,,"False","T","EveryTick") -> 1307.4 | M1: =IFERROR((L1-$G$4)/$G$4,NA()) -> 0.003453833755 | N1: =RTD("cqg.rtd",,"StudyData", "Close("&$D$12&") when LocalYear("&$D$12&")="&$D$4&" and localMonth("&$D$12&") ="&$E$4&" and LocalDay("&$D$12&")="&$F$4&" and Barix("&$D$12&",reference:=StartOfDay)="&A1&"", "Bar", "", "Close","5","0","",,,"False","T","EveryTick") -> 1297.9 | O1: =IFERROR((N1-$G$5)/$G$5,NA()) -> -0.001308094798 | P1: =RTD("cqg.rtd",,"StudyData", "Close("&$D$12&") when LocalYear("&$D$12&")="&$D$5&" and localMonth("&$D$12&") ="&$E$5&" and LocalDay("&$D$12&")="&$F$5&" and Barix("&$D$12&",reference:=StartOfDay)="&A1&"", "Bar", "", "Close","5","0","",,,"False","T","EveryTick") -> 1301.6 | Q1: =IFERROR((P1-$G$6)/$G$6,NA()) -> -0.002146580803 | R1: =RTD("cqg.rtd",,"StudyData", "Close("&$D$12&") when LocalYear("&$D$12&")="&$D$6&" and localMonth("&$D$12&") ="&$E$6&" and LocalDay("&$D$12&")="&$F$6&" and Barix("&$D$12&",reference:=StartOfDay)="&A1&"", "Bar", "", "Close","5","0","",,,"False","T","EveryTick") -> 1300.9 | S1: =IFERROR((R1-$G$7)/$G$7,NA()) -> -0.001994629843 | T1: =RTD("cqg.rtd",,"StudyData", "Close("&$D$12&") when LocalYear("&$D$12&")="&$D$7&" and localMonth("&$D$12&") ="&$E$7&" and LocalDay("&$D$12&")="&$F$7&" and Barix("&$D$12&",reference:=StartOfDay)="&A1&"", "Bar", "", "Close","5","0","",,,"False","T","EveryTick") -> 1301.9 | U1: =IFERROR((T1-$G$8)/$G$8,NA()) -> 0.0004610773842 | V1: =RTD("cqg.rtd",,"StudyData", "Close("&$D$12&") when LocalYear("&$D$12&")="&$D$8&" and localMonth("&$D$12&") ="&$E$8&" and LocalDay("&$D$12&")="&$F$8&" and Barix("&$D$12&",reference:=StartOfDay)="&A1&"", "Bar", "", "Close","5","0","",,,"False","T","EveryTick") -> 1303.4 | W1: =IFERROR((V1-$G$9)/$G$9,NA()) -> 0.00215285253 | X1: =RTD("cqg.rtd",,"StudyData", "Close("&$D$12&") when LocalYear("&$D$12&")="&$D$9&" and localMonth("&$D$12&") ="&$E$9&" and LocalDay("&$D$12&")="&$F$9&" and Barix("&$D$12&",reference:=StartOfDay)="&A1&"", "Bar", "", "Close","5","0","",,,"False","T","EveryTick") -> 1300.1 | Y1: =IFERROR((X1-$G$10)/$G$10,NA()) -> -0.0002306982467 | Z1: =RTD("cqg.rtd",,"StudyData", "Close("&$D$12&") when LocalYear("&$D$12&")="&$D$10&" and localMonth("&$D$12&") ="&$E$10&" and LocalDay("&$D$12&")="&$F$10&" and Barix("&$D$12&",reference:=StartOfDay)="&A1&"", "Bar", "", "Close","5","0","",,,"False","T","EveryTick") -> 1295.7 | AA1: =IFERROR((Z1-$G$11)/$G$11,NA()) -> -0.0001543328961 | AB1: =RANK(AD1,$AD$1:$AD$10)+COUNTIF($AD$1:AD1,AD1)-1 -> 4 | AC1: =DATE(D1,E1,F1) -> 2018-06-18 | AD1: =VLOOKUP(MAX(AE2:AE108),A1:I108,9,FALSE) -> 0.000624024961 | AF1: 1 | AG1: =VLOOKUP(AF1,$AB$1:$AD$10,2,FALSE) -> 2018-06-06 | AH1: =VLOOKUP(AF1,$AB$1:$AD$10,3,FALSE) -> 0.0034604737 | AK1: =AG1 -> 2018-06-06 | AL1: =AC1 -> 2018-06-18 | AM1: 0 | AN1: =VLOOKUP(AK1,$AL$1:$AM$10,2,FALSE) -> 8
A2: =A1+1 -> 169 | B2: =B1+0.00347222222222227 -> 07:05:00 | C2: =WORKDAY(C1,-G27) -> 2018-06-15 | D2: =YEAR(C2) -> 2018 | E2: =MONTH(C2) -> 6 | F2: =DAY(C2) -> 15 | G2: =RTD("cqg.rtd",,"StudyData", "Close("&$D$12&") when LocalYear("&$D$12&")="&D2&" and localMonth("&$D$12&") ="&E2&" and LocalDay("&$D$12&")="&F2&" and Barix("&$D$12&",reference:=StartOfDay)=275", "Bar", "", "Close","5","0","",,,"False","T","EveryTick") -> 1282 | H2: =RTD("cqg.rtd",,"StudyData", "Close("&$D$12&") when LocalYear("&$D$12&")="&$D$1&" and localMonth("&$D$12&") ="&$E$1&" and LocalDay("&$D$12&")="&$F$1&" and Barix("&$D$12&",reference:=StartOfDay)="&A2&"", "Bar", "", "Close","5","0","",,,"False","T","EveryTick") -> 1282.3 | I2: =IFERROR((H2-$G$2)/$G$2,NA()) -> 0.0002340093604 | J2: =RTD("cqg.rtd",,"StudyData", "Close("&$D$12&") when LocalYear("&$D$12&")="&$D$2&" and localMonth("&$D$12&") ="&$E$2&" and LocalDay("&$D$12&")="&$F$2&" and Barix("&$D$12&",reference:=StartOfDay)="&A2&"", "Bar", "", "Close","5","0","",,,"False","T","EveryTick") -> 1302 | K2: =IFERROR((J2-$G$3)/$G$3,NA()) -> -0.002986446129 | L2: =RTD("cqg.rtd",,"StudyData", "Close("&$D$12&") when LocalYear("&$D$12&")="&$D$3&" and localMonth("&$D$12&") ="&$E$3&" and LocalDay("&$D$12&")="&$F$3&" and Barix("&$D$12&",reference:=StartOfDay)="&A2&"", "Bar", "", "Close","5","0","",,,"False","T","EveryTick") -> 1307.5 | M2: =IFERROR((L2-$G$4)/$G$4,NA()) -> 0.003530585617 | N2: =RTD("cqg.rtd",,"StudyData", "Close("&$D$12&") when LocalYear("&$D$12&")="&$D$4&" and localMonth("&$D$12&") ="&$E$4&" and LocalDay("&$D$12&")="&$F$4&" and Barix("&$D$12&",reference:=StartOfDay)="&A2&"", "Bar", "", "Close","5","0","",,,"False","T","EveryTick") -> 1297.7 | O2: =IFERROR((N2-$G$5)/$G$5,NA()) -> -0.001461988304 | P2: =RTD("cqg.rtd",,"StudyData", "Close("&$D$12&") when LocalYear("&$D$12&")="&$D$5&" and localMonth("&$D$12&") ="&$E$5&" and LocalDay("&$D$12&")="&$F$5&" and Barix("&$D$12&",reference:=StartOfDay)="&A2&"", "Bar", "", "Close","5","0","",,,"False","T","EveryTick") -> 1301 | Q2: =IFERROR((P2-$G$6)/$G$6,NA()) -> -0.002606562404 | R2: =RTD("cqg.rtd",,"StudyData", "Close("&$D$12&") when LocalYear("&$D$12&")="&$D$6&" and localMonth("&$D$12&") ="&$E$6&" and LocalDay("&$D$12&")="&$F$6&" and Barix("&$D$12&",reference:=StartOfDay)="&A2&"", "Bar", "", "Close","5","0","",,,"False","T","EveryTick") -> 1301.3 | S2: =IFERROR((R2-$G$7)/$G$7,NA()) -> -0.001687763713 | T2: =RTD("cqg.rtd",,"StudyData", "Close("&$D$12&") when LocalYear("&$D$12&")="&$D$7&" and localMonth("&$D$12&") ="&$E$7&" and LocalDay("&$D$12&")="&$F$7&" and Barix("&$D$12&",reference:=StartOfDay)="&A2&"", "Bar", "", "Close","5","0","",,,"False","T","EveryTick") -> 1302.5 | U2: =IFERROR((T2-$G$8)/$G$8,NA()) -> 0.0009221547683 | V2: =RTD("cqg.rtd",,"StudyData", "Close("&$D$12&") when LocalYear("&$D$12&")="&$D$8&" and localMonth("&$D$12&") ="&$E$8&" and LocalDay("&$D$12&")="&$F$8&" and Barix("&$D$12&",reference:=StartOfDay)="&A2&"", "Bar", "", "Close","5","0","",,,"False","T","EveryTick") -> 1304 | W2: =IFERROR((V2-$G$9)/$G$9,NA()) -> 0.002614178072 | X2: =RTD("cqg.rtd",,"StudyData", "Close("&$D$12&") when LocalYear("&$D$12&")="&$D$9&" and localMonth("&$D$12&") ="&$E$9&" and LocalDay("&$D$12&")="&$F$9&" and Barix("&$D$12&",reference:=StartOfDay)="&A2&"", "Bar", "", "Close","5","0","",,,"False","T","EveryTick") -> 1299.9 | Y2: =IFERROR((X2-$G$10)/$G$10,NA()) -> -0.0003844970778 | Z2: =RTD("cqg.rtd",,"StudyData", "Close("&$D$12&") when LocalYear("&$D$12&")="&$D$10&" and localMonth("&$D$12&") ="&$E$10&" and LocalDay("&$D$12&")="&$F$10&" and Barix("&$D$12&",reference:=StartOfDay)="&A2&"", "Bar", "", "Close","5","0","",,,"False","T","EveryTick") -> 1296 | AA2: =IFERROR((Z2-$G$11)/$G$11,NA()) -> 7.716644803e-05 | AB2: =RANK(AD2,$AD$1:$AD$10)+COUNTIF($AD$1:AD2,AD2)-1 -> 10 | AC2: =DATE(D2,E2,F2) -> 2018-06-15 | AD2: =VLOOKUP(MAX(AE2:AE108),A1:K108,11,FALSE) -> -0.01401332414 | AE2: =IF(AND(H1<>"",H2<>"",H3=""),A2,"") ->  | AF2: 2 | AG2: =VLOOKUP(AF2,$AB$1:$AD$10,2,FALSE) -> 2018-06-14 | AH2: =VLOOKUP(AF2,$AB$1:$AD$10,3,FALSE) -> 0.003453833755 | AK2: =AG2 -> 2018-06-14 | AL2: =AC2 -> 2018-06-15 | AM2: 1 | AN2: =VLOOKUP(AK2,$AL$1:$AM$10,2,FALSE) -> 2
A3: =A2+1 -> 170 | B3: =B2+0.00347222222222227 -> 07:10:00 | C3: =WORKDAY(C2,-G28) -> 2018-06-14 | D3: 2018 | E3: 6 | F3: 14 | G3: =RTD("cqg.rtd",,"StudyData", "Close("&$D$12&") when LocalYear("&$D$12&")="&D3&" and localMonth("&$D$12&") ="&E3&" and LocalDay("&$D$12&")="&F3&" and Barix("&$D$12&",reference:=StartOfDay)=275", "Bar", "", "Close","5","0","",,,"False","T","EveryTick") -> 1305.9 | H3: =RTD("cqg.rtd",,"StudyData", "Close("&$D$12&") when LocalYear("&$D$12&")="&$D$1&" and localMonth("&$D$12&") ="&$E$1&" and LocalDay("&$D$12&")="&$F$1&" and Barix("&$D$12&",reference:=StartOfDay)="&A3&"", "Bar", "", "Close","5","0","",,,"False","T","EveryTick") -> 1282.4 | I3: =IFERROR((H3-$G$2)/$G$2,NA()) -> 0.0003120124805 | J3: =RTD("cqg.rtd",,"StudyData", "Close("&$D$12&") when LocalYear("&$D$12&")="&$D$2&" and localMonth("&$D$12&") ="&$E$2&" and LocalDay("&$D$12&")="&$F$2&" and Barix("&$D$12&",reference:=StartOfDay)="&A3&"", "Bar", "", "Close","5","0","",,,"False","T","EveryTick") -> 1301.5 | K3: -0.003369323838 | L3: =RTD("cqg.rtd",,"StudyData", "Close("&$D$12&") when LocalYear("&$D$12&")="&$D$3&" and localMonth("&$D$12&") ="&$E$3&" and LocalDay("&$D$12&")="&$F$3&" and Barix("&$D$12&",reference:=StartOfDay)="&A3&"", "Bar", "", "Close","5","0","",,,"False","T","EveryTick") -> 1308.6 | M3: 0.00437485609 | N3: =RTD("cqg.rtd",,"StudyData", "Close("&$D$12&") when LocalYear("&$D$12&")="&$D$4&" and localMonth("&$D$12&") ="&$E$4&" and LocalDay("&$D$12&")="&$F$4&" and Barix("&$D$12&",reference:=StartOfDay)="&A3&"", "Bar", "", "Close","5","0","",,,"False","T","EveryTick") -> 1298.2 | O3: -0.00107725454 | P3: =RTD("cqg.rtd",,"StudyData", "Close("&$D$12&") when LocalYear("&$D$12&")="&$D$5&" and localMonth("&$D$12&") ="&$E$5&" and LocalDay("&$D$12&")="&$F$5&" and Barix("&$D$12&",reference:=StartOfDay)="&A3&"", "Bar", "", "Close","5","0","",,,"False","T","EveryTick") -> 1300.6 | Q3: -0.002913216805 | R3: =RTD("cqg.rtd",,"StudyData", "Close("&$D$12&") when LocalYear("&$D$12&")="&$D$6&" and localMonth("&$D$12&") ="&$E$6&" and LocalDay("&$D$12&")="&$F$6&" and Barix("&$D$12&",reference:=StartOfDay)="&A3&"", "Bar", "", "Close","5","0","",,,"False","T","EveryTick") -> 1301.5 | S3: -0.001534330648 | T3: =RTD("cqg.rtd",,"StudyData", "Close("&$D$12&") when LocalYear("&$D$12&")="&$D$7&" and localMonth("&$D$12&") ="&$E$7&" and LocalDay("&$D$12&")="&$F$7&" and Barix("&$D$12&",reference:=StartOfDay)="&A3&"", "Bar", "", "Close","5","0","",,,"False","T","EveryTick") -> 1302.3 | U3: 0.0007684623069 | V3: =RTD("cqg.rtd",,"StudyData", "Close("&$D$12&") when LocalYear("&$D$12&")="&$D$8&" and localMonth("&$D$12&") ="&$E$8&" and LocalDay("&$D$12&")="&$F$8&" and Barix("&$D$12&",reference:=StartOfDay)="&A3&"", "Bar", "", "Close","5","0","",,,"False","T","EveryTick") -> 1304 | W3: 0.002614178072 | X3: =RTD("cqg.rtd",,"StudyData", "Close("&$D$12&") when LocalYear("&$D$12&")="&$D$9&" and localMonth("&$D$12&") ="&$E$9&" and LocalDay("&$D$12&")="&$F$9&" and Barix("&$D$12&",reference:=StartOfDay)="&A3&"", "Bar", "", "Close","5","0","",,,"False","T","EveryTick") -> 1299.8 | Y3: -0.0004613964934 | Z3: =RTD("cqg.rtd",,"StudyData", "Close("&$D$12&") when LocalYear("&$D$12&")="&$D$10&" and localMonth("&$D$12&") ="&$E$10&" and LocalDay("&$D$12&")="&$F$10&" and Barix("&$D$12&",reference:=StartOfDay)="&A3&"", "Bar", "", "Close","5","0","",,,"False","T","EveryTick") -> 1296.8 | AA3: 0.0006944980323 | AB3: =RANK(AD3,$AD$1:$AD$10)+COUNTIF($AD$1:AD3,AD3)-1 -> 2 | AC3: 2018-06-14 | AD3: =VLOOKUP(MAX(AE2:AE108),A1:M108,13,FALSE) -> 0.003453833755 | AE3: =IF(AND(H2<>"",H3<>"",H4=""),A3,"") ->  | AF3: 3 | AG3: 2018-06-08 | AH3: 0.00115269346 | AK3: 2018-06-08 | AL3: 2018-06-14 | AM3: 2 | AN3: 6
A4: 171 | B4: 07:15:00 | C4: 2018-06-13 | D4: 2018 | E4: 6 | F4: 13 | G4: =RTD("cqg.rtd",,"StudyData", "Close("&$D$12&") when LocalYear("&$D$12&")="&D4&" and localMonth("&$D$12&") ="&E4&" and LocalDay("&$D$12&")="&F4&" and Barix("&$D$12&",reference:=StartOfDay)=275", "Bar", "", "Close","5","0","",,,"False","T","EveryTick") -> 1302.9 | H4: =RTD("cqg.rtd",,"StudyData", "Close("&$D$12&") when LocalYear("&$D$12&")="&$D$1&" and localMonth("&$D$12&") ="&$E$1&" and LocalDay("&$D$12&")="&$F$1&" and Barix("&$D$12&",reference:=StartOfDay)="&A4&"", "Bar", "", "Close","5","0","",,,"False","T","EveryTick") -> 1282.9 | I4: 0.0007020280811 | J4: =RTD("cqg.rtd",,"StudyData", "Close("&$D$12&") when LocalYear("&$D$12&")="&$D$2&" and localMonth("&$D$12&") ="&$E$2&" and LocalDay("&$D$12&")="&$F$2&" and Barix("&$D$12&",reference:=StartOfDay)="&A4&"", "Bar", "", "Close","5","0","",,,"False","T","EveryTick") -> 1301.2 | K4: -0.003599050463 | L4: =RTD("cqg.rtd",,"StudyData", "Close("&$D$12&") when LocalYear("&$D$12&")="&$D$3&" and localMonth("&$D$12&") ="&$E$3&" and LocalDay("&$D$12&")="&$F$3&" and Barix("&$D$12&",reference:=StartOfDay)="&A4&"", "Bar", "", "Close","5","0","",,,"False","T","EveryTick") -> 1309.1 | M4: 0.004758615396 | N4: =RTD("cqg.rtd",,"StudyData", "Close("&$D$12&") when LocalYear("&$D$12&")="&$D$4&" and localMonth("&$D$12&") ="&$E$4&" and LocalDay("&$D$12&")="&$F$4&" and Barix("&$D$12&",reference:=StartOfDay)="&A4&"", "Bar", "", "Close","5","0","",,,"False","T","EveryTick") -> 1298.3 | O4: -0.001000307787 | P4: =RTD("cqg.rtd",,"StudyData", "Close("&$D$12&") when LocalYear("&$D$12&")="&$D$5&" and localMonth("&$D$12&") ="&$E$5&" and LocalDay("&$D$12&")="&$F$5&" and Barix("&$D$12&",reference:=StartOfDay)="&A4&"", "Bar", "", "Close","5","0","",,,"False","T","EveryTick") -> 1300.2 | Q4: -0.003219871205 | R4: =RTD("cqg.rtd",,"StudyData", "Close("&$D$12&") when LocalYear("&$D$12&")="&$D$6&" and localMonth("&$D$12&") ="&$E$6&" and LocalDay("&$D$12&")="&$F$6&" and Barix("&$D$12&",reference:=StartOfDay)="&A4&"", "Bar", "", "Close","5","0","",,,"False","T","EveryTick") -> 1301.6 | S4: -0.001457614116 | T4: =RTD("cqg.rtd",,"StudyData", "Close("&$D$12&") when LocalYear("&$D$12&")="&$D$7&" and localMonth("&$D$12&") ="&$E$7&" and LocalDay("&$D$12&")="&$F$7&" and Barix("&$D$12&",reference:=StartOfDay)="&A4&"", "Bar", "", "Close","5","0","",,,"False","T","EveryTick") -> 1302.5 | U4: 0.0009221547683 | V4: =RTD("cqg.rtd",,"StudyData", "Close("&$D$12&") when LocalYear("&$D$12&")="&$D$8&" and localMonth("&$D$12&") ="&$E$8&" and LocalDay("&$D$12&")="&$F$8&" and Barix("&$D$12&",reference:=StartOfDay)="&A4&"", "Bar", "", "Close","5","0","",,,"False","T","EveryTick") -> 1303.8 | W4: 0.002460402891 | X4: =RTD("cqg.rtd",,"StudyData", "Close("&$D$12&") when LocalYear("&$D$12&")="&$D$9&" and localMonth("&$D$12&") ="&$E$9&" and LocalDay("&$D$12&")="&$F$9&" and Barix("&$D$12&",reference:=StartOfDay)="&A4&"", "Bar", "", "Close","5","0","",,,"False","T","EveryTick") -> 1299.5 | Y4: -0.0006920947401 | Z4: =RTD("cqg.rtd",,"StudyData", "Close("&$D$12&") when LocalYear("&$D$12&")="&$D$10&" and localMonth("&$D$12&") ="&$E$10&" and LocalDay("&$D$12&")="&$F$10&" and Barix("&$D$12&",reference:=StartOfDay)="&A4&"", "Bar", "", "Close","5","0","",,,"False","T","EveryTick") -> 1296.6 | AA4: 0.0005401651362 | AB4: =RANK(AD4,$AD$1:$AD$10)+COUNTIF($AD$1:AD4,AD4)-1 -> 5 | AC4: 2018-06-13 | AD4: =VLOOKUP(MAX(AE2:AE108),A1:O108,15,FALSE) -> 0.0004616805171 | AF4: 4 | AG4: 2018-06-18 | AH4: 0.000624024961 | AK4: 2018-06-18 | AL4: 2018-06-13 | AM4: 3 | AN4: 0
A5: 172 | B5: 07:20:00 | C5: 2018-06-12 | D5: 2018 | E5: 6 | F5: 12 | G5: =RTD("cqg.rtd",,"StudyData", "Close("&$D$12&") when LocalYear("&$D$12&")="&D5&" and localMonth("&$D$12&") ="&E5&" and LocalDay("&$D$12&")="&F5&" and Barix("&$D$12&",reference:=StartOfDay)=275", "Bar", "", "Close","5","0","",,,"False","T","EveryTick") -> 1299.6 | H5: =RTD("cqg.rtd",,"StudyData", "Close("&$D$12&") when LocalYear("&$D$12&")="&$D$1&" and localMonth("&$D$12&") ="&$E$1&" and LocalDay("&$D$12&")="&$F$1&" and Barix("&$D$12&",reference:=StartOfDay)="&A5&"", "Bar", "", "Close","5","0","",,,"False","T","EveryTick") -> 1282.2 | I5: 0.0001560062402 | J5: =RTD("cqg.rtd",,"StudyData", "Close("&$D$12&") when LocalYear("&$D$12&")="&$D$2&" and localMonth("&$D$12&") ="&$E$2&" and LocalDay("&$D$12&")="&$F$2&" and Barix("&$D$12&",reference:=StartOfDay)="&A5&"", "Bar", "", "Close","5","0","",,,"False","T","EveryTick") -> 1297.5 | K5: -0.006432345509 | L5: =RTD("cqg.rtd",,"StudyData", "Close("&$D$12&") when LocalYear("&$D$12&")="&$D$3&" and localMonth("&$D$12&") ="&$E$3&" and LocalDay("&$D$12&")="&$F$3&" and Barix("&$D$12&",reference:=StartOfDay)="&A5&"", "Bar", "", "Close","5","0","",,,"False","T","EveryTick") -> 1312.2 | M5: 0.007137923095 | N5: =RTD("cqg.rtd",,"StudyData", "Close("&$D$12&") when LocalYear("&$D$12&")="&$D$4&" and localMonth("&$D$12&") ="&$E$4&" and LocalDay("&$D$12&")="&$F$4&" and Barix("&$D$12&",reference:=StartOfDay)="&A5&"", "Bar", "", "Close","5","0","",,,"False","T","EveryTick") -> 1298.1 | O5: -0.001154201293 | P5: =RTD("cqg.rtd",,"StudyData", "Close("&$D$12&") when LocalYear("&$D$12&")="&$D$5&" and localMonth("&$D$12&") ="&$E$5&" and LocalDay("&$D$12&")="&$F$5&" and Barix("&$D$12&",reference:=StartOfDay)="&A5&"", "Bar", "", "Close","5","0","",,,"False","T","EveryTick") -> 1296.8 | Q5: -0.005826433609 | R5: =RTD("cqg.rtd",,"StudyData", "Close("&$D$12&") when LocalYear("&$D$12&")="&$D$6&" and localMonth("&$D$12&") ="&$E$6&" and LocalDay("&$D$12&")="&$F$6&" and Barix("&$D$12&",reference:=StartOfDay)="&A5&"", "Bar", "", "Close","5","0","",,,"False","T","EveryTick") -> 1302.4 | S5: -0.0008438818565 | T5: =RTD("cqg.rtd",,"StudyData", "Close("&$D$12&") when LocalYear("&$D$12&")="&$D$7&" and localMonth("&$D$12&") ="&$E$7&" and LocalDay("&$D$12&")="&$F$7&" and Barix("&$D$12&",reference:=StartOfDay)="&A5&"", "Bar", "", "Close","5","0","",,,"False","T","EveryTick") -> 1302.1 | U5: 0.0006147698455 | V5: =RTD("cqg.rtd",,"StudyData", "Close("&$D$12&") when LocalYear("&$D$12&")="&$D$8&" and localMonth("&$D$12&") ="&$E$8&" and LocalDay("&$D$12&")="&$F$8&" and Barix("&$D$12&",reference:=StartOfDay)="&A5&"", "Bar", "", "Close","5","0","",,,"False","T","EveryTick") -> 1304.5 | W5: 0.002998616023 | X5: =RTD("cqg.rtd",,"StudyData", "Close("&$D$12&") when LocalYear("&$D$12&")="&$D$9&" and localMonth("&$D$12&") ="&$E$9&" and LocalDay("&$D$12&")="&$F$9&" and Barix("&$D$12&",reference:=StartOfDay)="&A5&"", "Bar", "", "Close","5","0","",,,"False","T","EveryTick") -> 1299.7 | Y5: -0.000538295909 | Z5: =RTD("cqg.rtd",,"StudyData", "Close("&$D$12&") when LocalYear("&$D$12&")="&$D$10&" and localMonth("&$D$12&") ="&$E$10&" and LocalDay("&$D$12&")="&$F$10&" and Barix("&$D$12&",reference:=StartOfDay)="&A5&"", "Bar", "", "Close","5","0","",,,"False","T","EveryTick") -> 1297.2 | AA5: 0.001003163824 | AB5: =RANK(AD5,$AD$1:$AD$10)+COUNTIF($AD$1:AD5,AD5)-1 -> 9 | AC5: 2018-06-12 | AD5: =VLOOKUP(MAX(AE2:AE108),A1:Q108,17,FALSE) -> -0.002069917203 | AF5: 5 | AG5: 2018-06-13 | AH5: 0.0004616805171 | AK5: 2018-06-13 | AL5: 2018-06-12 | AM5: 4 | AN5: 3
A6: 173 | B6: 07:25:00 | C6: 2018-06-11 | D6: 2018 | E6: 6 | F6: 11 | G6: =RTD("cqg.rtd",,"StudyData", "Close("&$D$12&") when LocalYear("&$D$12&")="&D6&" and localMonth("&$D$12&") ="&E6&" and LocalDay("&$D$12&")="&F6&" and Barix("&$D$12&",reference:=StartOfDay)=275", "Bar", "", "Close","5","0","",,,"False","T","EveryTick") -> 1304.4 | H6: =RTD("cqg.rtd",,"StudyData", "Close("&$D$12&") when LocalYear("&$D$12&")="&$D$1&" and localMonth("&$D$12&") ="&$E$1&" and LocalDay("&$D$12&")="&$F$1&" and Barix("&$D$12&",reference:=StartOfDay)="&A6&"", "Bar", "", "Close","5","0","",,,"False","T","EveryTick") -> 1281.8 | I6: -0.0001560062402 | J6: =RTD("cqg.rtd",,"StudyData", "Close("&$D$12&") when LocalYear("&$D$12&")="&$D$2&" and localMonth("&$D$12&") ="&$E$2&" and LocalDay("&$D$12&")="&$F$2&" and Barix("&$D$12&",reference:=StartOfDay)="&A6&"", "Bar", "", "Close","5","0","",,,"False","T","EveryTick") -> 1297.7 | K6: -0.006279194425 | L6: =RTD("cqg.rtd",,"StudyData", "Close("&$D$12&") when LocalYear("&$D$12&")="&$D$3&" and localMonth("&$D$12&") ="&$E$3&" and LocalDay("&$D$12&")="&$F$3&" and Barix("&$D$12&",reference:=StartOfDay)="&A6&"", "Bar", "", "Close","5","0","",,,"False","T","EveryTick") -> 1312 | M6: 0.006984419372 | N6: =RTD("cqg.rtd",,"StudyData", "Close("&$D$12&") when LocalYear("&$D$12&")="&$D$4&" and localMonth("&$D$12&") ="&$E$4&" and LocalDay("&$D$12&")="&$F$4&" and Barix("&$D$12&",reference:=StartOfDay)="&A6&"", "Bar", "", "Close","5","0","",,,"False","T","EveryTick") -> 1298.9 | O6: -0.0005386272699 | P6: =RTD("cqg.rtd",,"StudyData", "Close("&$D$12&") when LocalYear("&$D$12&")="&$D$5&" and localMonth("&$D$12&") ="&$E$5&" and LocalDay("&$D$12&")="&$F$5&" and Barix("&$D$12&",reference:=StartOfDay)="&A6&"", "Bar", "", "Close","5","0","",,,"False","T","EveryTick") -> 1297.5 | Q6: -0.005289788408 | R6: =RTD("cqg.rtd",,"StudyData", "Close("&$D$12&") when LocalYear("&$D$12&")="&$D$6&" and localMonth("&$D$12&") ="&$E$6&" and LocalDay("&$D$12&")="&$F$6&" and Barix("&$D$12&",reference:=StartOfDay)="&A6&"", "Bar", "", "Close","5","0","",,,"False","T","EveryTick") -> 1302.3 | S6: -0.000920598389 | T6: =RTD("cqg.rtd",,"StudyData", "Close("&$D$12&") when LocalYear("&$D$12&")="&$D$7&" and localMonth("&$D$12&") ="&$E$7&" and LocalDay("&$D$12&")="&$F$7&" and Barix("&$D$12&",reference:=StartOfDay)="&A6&"", "Bar", "", "Close","5","0","",,,"False","T","EveryTick") -> 1303.2 | U6: 0.001460078383 | V6: =RTD("cqg.rtd",,"StudyData", "Close("&$D$12&") when LocalYear("&$D$12&")="&$D$8&" and localMonth("&$D$12&") ="&$E$8&" and LocalDay("&$D$12&")="&$F$8&" and Barix("&$D$12&",reference:=StartOfDay)="&A6&"", "Bar", "", "Close","5","0","",,,"False","T","EveryTick") -> 1306.9 | W6: 0.004843918192 | X6: =RTD("cqg.rtd",,"StudyData", "Close("&$D$12&") when LocalYear("&$D$12&")="&$D$9&" and localMonth("&$D$12&") ="&$E$9&" and LocalDay("&$D$12&")="&$F$9&" and Barix("&$D$12&",reference:=StartOfDay)="&A6&"", "Bar", "", "Close","5","0","",,,"False","T","EveryTick") -> 1300.9 | Y6: 0.0003844970778 | Z6: =RTD("cqg.rtd",,"StudyData", "Close("&$D$12&") when LocalYear("&$D$12&")="&$D$10&" and localMonth("&$D$12&") ="&$E$10&" and LocalDay("&$D$12&")="&$F$10&" and Barix("&$D$12&",reference:=StartOfDay)="&A6&"", "Bar", "", "Close","5","0","",,,"False","T","EveryTick") -> 1297.2 | AA6: 0.001003163824 | AB6: =RANK(AD6,$AD$1:$AD$10)+COUNTIF($AD$1:AD6,AD6)-1 -> 6 | AC6: 2018-06-11 | AD6: =VLOOKUP(MAX(AE2:AE108),A1:S108,19,FALSE) -> 0.0002301495972 | AF6: 6 | AG6: 2018-06-11 | AH6: 0.0002301495972 | AK6: 2018-06-11 | AL6: 2018-06-11 | AM6: 5 | AN6: 5
A7: 174 | B7: 07:30:00 | C7: 2018-06-08 | D7: 2018 | E7: 6 | F7: 8 | G7: =RTD("cqg.rtd",,"StudyData", "Close("&$D$12&") when LocalYear("&$D$12&")="&D7&" and localMonth("&$D$12&") ="&E7&" and LocalDay("&$D$12&")="&F7&" and Barix("&$D$12&",reference:=StartOfDay)=275", "Bar", "", "Close","5","0","",,,"False","T","EveryTick") -> 1303.5 | H7: =RTD("cqg.rtd",,"StudyData", "Close("&$D$12&") when LocalYear("&$D$12&")="&$D$1&" and localMonth("&$D$12&") ="&$E$1&" and LocalDay("&$D$12&")="&$F$1&" and Barix("&$D$12&",reference:=StartOfDay)="&A7&"", "Bar", "", "Close","5","0","",,,"False","T","EveryTick") -> 1282 | I7: 0 | J7: =RTD("cqg.rtd",,"StudyData", "Close("&$D$12&") when LocalYear("&$D$12&")="&$D$2&" and localMonth("&$D$12&") ="&$E$2&" and LocalDay("&$D$12&")="&$F$2&" and Barix("&$D$12&",reference:=StartOfDay)="&A7&"", "Bar", "", "Close","5","0","",,,"False","T","EveryTick") -> 1297.2 | K7: -0.006662072134 | L7: =RTD("cqg.rtd",,"StudyData", "Close("&$D$12&") when LocalYear("&$D$12&")="&$D$3&" and localMonth("&$D$12&") ="&$E$3&" and LocalDay("&$D$12&")="&$F$3&" and Barix("&$D$12&",reference:=StartOfDay)="&A7&"", "Bar", "", "Close","5","0","",,,"False","T","EveryTick") -> 1311.4 | M7: 0.006523908205 | N7: =RTD("cqg.rtd",,"StudyData", "Close("&$D$12&") when LocalYear("&$D$12&")="&$D$4&" and localMonth("&$D$12&") ="&$E$4&" and LocalDay("&$D$12&")="&$F$4&" and Barix("&$D$12&",reference:=StartOfDay)="&A7&"", "Bar", "", "Close","5","0","",,,"False","T","EveryTick") -> 1298.8 | O7: -0.0006155740228 | P7: =RTD("cqg.rtd",,"StudyData", "Close("&$D$12&") when LocalYear("&$D$12&")="&$D$5&" and localMonth("&$D$12&") ="&$E$5&" and LocalDay("&$D$12&")="&$F$5&" and Barix("&$D$12&",reference:=StartOfDay)="&A7&"", "Bar", "", "Close","5","0","",,,"False","T","EveryTick") -> 1298.6 | Q7: -0.004446488807 | R7: =RTD("cqg.rtd",,"StudyData", "Close("&$D$12&") when LocalYear("&$D$12&")="&$D$6&" and localMonth("&$D$12&") ="&$E$6&" and LocalDay("&$D$12&")="&$F$6&" and Barix("&$D$12&",reference:=StartOfDay)="&A7&"", "Bar", "", "Close","5","0","",,,"False","T","EveryTick") -> 1302.3 | S7: -0.000920598389 | T7: =RTD("cqg.rtd",,"StudyData", "Close("&$D$12&") when LocalYear("&$D$12&")="&$D$7&" and localMonth("&$D$12&") ="&$E$7&" and LocalDay("&$D$12&")="&$F$7&" and Barix("&$D$12&",reference:=StartOfDay)="&A7&"", "Bar", "", "Close","5","0","",,,"False","T","EveryTick") -> 1302.8 | U7: 0.00115269346 | V7: =RTD("cqg.rtd",,"StudyData", "Close("&$D$12&") when LocalYear("&$D$12&")="&$D$8&" and localMonth("&$D$12&") ="&$E$8&" and LocalDay("&$D$12&")="&$F$8&" and Barix("&$D$12&",reference:=StartOfDay)="&A7&"", "Bar", "", "Close","5","0","",,,"False","T","EveryTick") -> 1305.8 | W7: 0.003998154698 | X7: =RTD("cqg.rtd",,"StudyData", "Close("&$D$12&") when LocalYear("&$D$12&")="&$D$9&" and localMonth("&$D$12&") ="&$E$9&" and LocalDay("&$D$12&")="&$F$9&" and Barix("&$D$12&",reference:=StartOfDay)="&A7&"", "Bar", "", "Close","5","0","",,,"False","T","EveryTick") -> 1301.1 | Y7: 0.000538295909 | Z7: =RTD("cqg.rtd",,"StudyData", "Close("&$D$12&") when LocalYear("&$D$12&")="&$D$10&" and localMonth("&$D$12&") ="&$E$10&" and LocalDay("&$D$12&")="&$F$10&" and Barix("&$D$12&",reference:=StartOfDay)="&A7&"", "Bar", "", "Close","5","0","",,,"False","T","EveryTick") -> 1297 | AA7: 0.0008488309283 | AB7: =RANK(AD7,$AD$1:$AD$10)+COUNTIF($AD$1:AD7,AD7)-1 -> 3 | AC7: 2018-06-08 | AD7: =VLOOKUP(MAX(AE2:AE108),A1:U108,21,FALSE) -> 0.00115269346 | AF7: 7 | AG7: 2018-06-05 | AH7: 0 | AK7: 2018-06-05 | AL7: 2018-06-08 | AM7: 6 | AN7: 9
A8: 175 | B8: 07:35:00 | C8: 2018-06-07 | D8: 2018 | E8: 6 | F8: 7 | G8: =RTD("cqg.rtd",,"StudyData", "Close("&$D$12&") when LocalYear("&$D$12&")="&D8&" and localMonth("&$D$12&") ="&E8&" and LocalDay("&$D$12&")="&F8&" and Barix("&$D$12&",reference:=StartOfDay)=275", "Bar", "", "Close","5","0","",,,"False","T","EveryTick") -> 1301.3 | H8: =RTD("cqg.rtd",,"StudyData", "Close("&$D$12&") when LocalYear("&$D$12&")="&$D$1&" and localMonth("&$D$12&") ="&$E$1&" and LocalDay("&$D$12&")="&$F$1&" and Barix("&$D$12&",reference:=StartOfDay)="&A8&"", "Bar", "", "Close","5","0","",,,"False","T","EveryTick") -> 1282.5 | I8: 0.0003900156006 | J8: =RTD("cqg.rtd",,"StudyData", "Close("&$D$12&") when LocalYear("&$D$12&")="&$D$2&" and localMonth("&$D$12&") ="&$E$2&" and LocalDay("&$D$12&")="&$F$2&" and Barix("&$D$12&",reference:=StartOfDay)="&A8&"", "Bar", "", "Close","5","0","",,,"False","T","EveryTick") -> 1296.8 | K8: -0.006968374301 | L8: =RTD("cqg.rtd",,"StudyData", "Close("&$D$12&") when LocalYear("&$D$12&")="&$D$3&" and localMonth("&$D$12&") ="&$E$3&" and LocalDay("&$D$12&")="&$F$3&" and Barix("&$D$12&",reference:=StartOfDay)="&A8&"", "Bar", "", "Close","5","0","",,,"False","T","EveryTick") -> 1311.5 | M8: 0.006600660066 | N8: =RTD("cqg.rtd",,"StudyData", "Close("&$D$12&") when LocalYear("&$D$12&")="&$D$4&" and localMonth("&$D$12&") ="&$E$4&" and LocalDay("&$D$12&")="&$F$4&" and Barix("&$D$12&",reference:=StartOfDay)="&A8&"", "Bar", "", "Close","5","0","",,,"False","T","EveryTick") -> 1298.6 | O8: -0.0007694675285 | P8: =RTD("cqg.rtd",,"StudyData", "Close("&$D$12&") when LocalYear("&$D$12&")="&$D$5&" and localMonth("&$D$12&") ="&$E$5&" and LocalDay("&$D$12&")="&$F$5&" and Barix("&$D$12&",reference:=StartOfDay)="&A8&"", "Bar", "", "Close","5","0","",,,"False","T","EveryTick") -> 1298.7 | Q8: -0.004369825207 | R8: =RTD("cqg.rtd",,"StudyData", "Close("&$D$12&") when LocalYear("&$D$12&")="&$D$6&" and localMonth("&$D$12&") ="&$E$6&" and LocalDay("&$D$12&")="&$F$6&" and Barix("&$D$12&",reference:=StartOfDay)="&A8&"", "Bar", "", "Close","5","0","",,,"False","T","EveryTick") -> 1302.3 | S8: -0.000920598389 | T8: =RTD("cqg.rtd",,"StudyData", "Close("&$D$12&") when LocalYear("&$D$12&")="&$D$7&" and localMonth("&$D$12&") ="&$E$7&" and LocalDay("&$D$12&")="&$F$7&" and Barix("&$D$12&",reference:=StartOfDay)="&A8&"", "Bar", "", "Close","5","0","",,,"False","T","EveryTick") -> 1302.3 | U8: 0.0007684623069 | V8: =RTD("cqg.rtd",,"StudyData", "Close("&$D$12&") when LocalYear("&$D$12&")="&$D$8&" and localMonth("&$D$12&") ="&$E$8&" and LocalDay("&$D$12&")="&$F$8&" and Barix("&$D$12&",reference:=StartOfDay)="&A8&"", "Bar", "", "Close","5","0","",,,"False","T","EveryTick") -> 1305.6 | W8: 0.003844379517 | X8: =RTD("cqg.rtd",,"StudyData", "Close("&$D$12&") when LocalYear("&$D$12&")="&$D$9&" and localMonth("&$D$12&") ="&$E$9&" and LocalDay("&$D$12&")="&$F$9&" and Barix("&$D$12&",reference:=StartOfDay)="&A8&"", "Bar", "", "Close","5","0","",,,"False","T","EveryTick") -> 1301.5 | Y8: 0.0008458935712 | Z8: =RTD("cqg.rtd",,"StudyData", "Close("&$D$12&") when LocalYear("&$D$12&")="&$D$10&" and localMonth("&$D$12&") ="&$E$10&" and LocalDay("&$D$12&")="&$F$10&" and Barix("&$D$12&",reference:=StartOfDay)="&A8&"", "Bar", "", "Close","5","0","",,,"False","T","EveryTick") -> 1296.7 | AA8: 0.0006173315842 | AB8: =RANK(AD8,$AD$1:$AD$10)+COUNTIF($AD$1:AD8,AD8)-1 -> 8 | AC8: 2018-06-07 | AD8: =VLOOKUP(MAX(AE2:AE108),A1:W108,23,FALSE) -> -0.0001537751807 | AF8: 8 | AG8: 2018-06-07 | AH8: -0.0001537751807 | AK8: 2018-06-07 | AL8: 2018-06-07 | AM8: 7 | AN8: =VLOOKUP(AK8,$AL$1:$AM$10,2,FALSE) -> 7
A9: 176 | B9: 07:40:00 | C9: 2018-06-06 | D9: 2018 | E9: 6 | F9: 6 | G9: =RTD("cqg.rtd",,"StudyData", "Close("&$D$12&") when LocalYear("&$D$12&")="&D9&" and localMonth("&$D$12&") ="&E9&" and LocalDay("&$D$12&")="&F9&" and Barix("&$D$12&",reference:=StartOfDay)=275", "Bar", "", "Close","5","0","",,,"False","T","EveryTick") -> 1300.6 | H9: =RTD("cqg.rtd",,"StudyData", "Close("&$D$12&") when LocalYear("&$D$12&")="&$D$1&" and localMonth("&$D$12&") ="&$E$1&" and LocalDay("&$D$12&")="&$F$1&" and Barix("&$D$12&",reference:=StartOfDay)="&A9&"", "Bar", "", "Close","5","0","",,,"False","T","EveryTick") -> 1282.1 | I9: 7.800312012e-05 | J9: =RTD("cqg.rtd",,"StudyData", "Close("&$D$12&") when LocalYear("&$D$12&")="&$D$2&" and localMonth("&$D$12&") ="&$E$2&" and LocalDay("&$D$12&")="&$F$2&" and Barix("&$D$12&",reference:=StartOfDay)="&A9&"", "Bar", "", "Close","5","0","",,,"False","T","EveryTick") -> 1296.5 | K9: -0.007198100927 | L9: =RTD("cqg.rtd",,"StudyData", "Close("&$D$12&") when LocalYear("&$D$12&")="&$D$3&" and localMonth("&$D$12&") ="&$E$3&" and LocalDay("&$D$12&")="&$F$3&" and Barix("&$D$12&",reference:=StartOfDay)="&A9&"", "Bar", "", "Close","5","0","",,,"False","T","EveryTick") -> 1311.5 | M9: 0.006600660066 | N9: =RTD("cqg.rtd",,"StudyData", "Close("&$D$12&") when LocalYear("&$D$12&")="&$D$4&" and localMonth("&$D$12&") ="&$E$4&" and LocalDay("&$D$12&")="&$F$4&" and Barix("&$D$12&",reference:=StartOfDay)="&A9&"", "Bar", "", "Close","5","0","",,,"False","T","EveryTick") -> 1298.8 | O9: -0.0006155740228 | P9: =RTD("cqg.rtd",,"StudyData", "Close("&$D$12&") when LocalYear("&$D$12&")="&$D$5&" and localMonth("&$D$12&") ="&$E$5&" and LocalDay("&$D$12&")="&$F$5&" and Barix("&$D$12&",reference:=StartOfDay)="&A9&"", "Bar", "", "Close","5","0","",,,"False","T","EveryTick") -> 1299.3 | Q9: -0.003909843606 | R9: =RTD("cqg.rtd",,"StudyData", "Close("&$D$12&") when LocalYear("&$D$12&")="&$D$6&" and localMonth("&$D$12&") ="&$E$6&" and LocalDay("&$D$12&")="&$F$6&" and Barix("&$D$12&",reference:=StartOfDay)="&A9&"", "Bar", "", "Close","5","0","",,,"False","T","EveryTick") -> 1302.4 | S9: -0.0008438818565 | T9: =RTD("cqg.rtd",,"StudyData", "Close("&$D$12&") when LocalYear("&$D$12&")="&$D$7&" and localMonth("&$D$12&") ="&$E$7&" and LocalDay("&$D$12&")="&$F$7&" and Barix("&$D$12&",reference:=StartOfDay)="&A9&"", "Bar", "", "Close","5","0","",,,"False","T","EveryTick") -> 1303.2 | U9: 0.001460078383 | V9: =RTD("cqg.rtd",,"StudyData", "Close("&$D$12&") when LocalYear("&$D$12&")="&$D$8&" and localMonth("&$D$12&") ="&$E$8&" and LocalDay("&$D$12&")="&$F$8&" and Barix("&$D$12&",reference:=StartOfDay)="&A9&"", "Bar", "", "Close","5","0","",,,"False","T","EveryTick") -> 1305.6 | W9: 0.003844379517 | X9: =RTD("cqg.rtd",,"StudyData", "Close("&$D$12&") when LocalYear("&$D$12&")="&$D$9&" and localMonth("&$D$12&") ="&$E$9&" and LocalDay("&$D$12&")="&$F$9&" and Barix("&$D$12&",reference:=StartOfDay)="&A9&"", "Bar", "", "Close","5","0","",,,"False","T","EveryTick") -> 1302 | Y9: 0.001230390649 | Z9: =RTD("cqg.rtd",,"StudyData", "Close("&$D$12&") when LocalYear("&$D$12&")="&$D$10&" and localMonth("&$D$12&") ="&$E$10&" and LocalDay("&$D$12&")="&$F$10&" and Barix("&$D$12&",reference:=StartOfDay)="&A9&"", "Bar", "", "Close","5","0","",,,"False","T","EveryTick") -> 1296.7 | AA9: 0.0006173315842 | AB9: =RANK(AD9,$AD$1:$AD$10)+COUNTIF($AD$1:AD9,AD9)-1 -> 1 | AC9: 2018-06-06 | AD9: =VLOOKUP(MAX(AE2:AE108),A1:Y108,25,FALSE) -> 0.0034604737 | AF9: 9 | AG9: 2018-06-12 | AH9: -0.002069917203 | AK9: 2018-06-12 | AL9: 2018-06-06 | AM9: 8 | AN9: 4
A10: 177 | B10: 07:45:00 | C10: 2018-06-05 | D10: 2018 | E10: 6 | F10: 5 | G10: =RTD("cqg.rtd",,"StudyData", "Close("&$D$12&") when LocalYear("&$D$12&")="&D10&" and localMonth("&$D$12&") ="&E10&" and LocalDay("&$D$12&")="&F10&" and Barix("&$D$12&",reference:=StartOfDay)=275", "Bar", "", "Close","5","0","",,,"False","T","EveryTick") -> 1300.4 | H10: =RTD("cqg.rtd",,"StudyData", "Close("&$D$12&") when LocalYear("&$D$12&")="&$D$1&" and localMonth("&$D$12&") ="&$E$1&" and LocalDay("&$D$12&")="&$F$1&" and Barix("&$D$12&",reference:=StartOfDay)="&A10&"", "Bar", "", "Close","5","0","",,,"False","T","EveryTick") -> 1282.3 | I10: 0.0002340093604 | J10: =RTD("cqg.rtd",,"StudyData", "Close("&$D$12&") when LocalYear("&$D$12&")="&$D$2&" and localMonth("&$D$12&") ="&$E$2&" and LocalDay("&$D$12&")="&$F$2&" and Barix("&$D$12&",reference:=StartOfDay)="&A10&"", "Bar", "", "Close","5","0","",,,"False","T","EveryTick") -> 1296.4 | K10: -0.007274676468 | L10: =RTD("cqg.rtd",,"StudyData", "Close("&$D$12&") when LocalYear("&$D$12&")="&$D$3&" and localMonth("&$D$12&") ="&$E$3&" and LocalDay("&$D$12&")="&$F$3&" and Barix("&$D$12&",reference:=StartOfDay)="&A10&"", "Bar", "", "Close","5","0","",,,"False","T","EveryTick") -> 1311.5 | M10: 0.006600660066 | N10: =RTD("cqg.rtd",,"StudyData", "Close("&$D$12&") when LocalYear("&$D$12&")="&$D$4&" and localMonth("&$D$12&") ="&$E$4&" and LocalDay("&$D$12&")="&$F$4&" and Barix("&$D$12&",reference:=StartOfDay)="&A10&"", "Bar", "", "Close","5","0","",,,"False","T","EveryTick") -> 1299.4 | O10: -0.0001538935057 | P10: =RTD("cqg.rtd",,"StudyData", "Close("&$D$12&") when LocalYear("&$D$12&")="&$D$5&" and localMonth("&$D$12&") ="&$E$5&" and LocalDay("&$D$12&")="&$F$5&" and Barix("&$D$12&",reference:=StartOfDay)="&A10&"", "Bar", "", "Close","5","0","",,,"False","T","EveryTick") -> 1299 | Q10: -0.004139834407 | R10: =RTD("cqg.rtd",,"StudyData", "Close("&$D$12&") when LocalYear("&$D$12&")="&$D$6&" and localMonth("&$D$12&") ="&$E$6&" and LocalDay("&$D$12&")="&$F$6&" and Barix("&$D$12&",reference:=StartOfDay)="&A10&"", "Bar", "", "Close","5","0","",,,"False","T","EveryTick") -> 1302.4 | S10: -0.0008438818565 | T10: =RTD("cqg.rtd",,"StudyData", "Close("&$D$12&") when LocalYear("&$D$12&")="&$D$7&" and localMonth("&$D$12&") ="&$E$7&" and LocalDay("&$D$12&")="&$F$7&" and Barix("&$D$12&",reference:=StartOfDay)="&A10&"", "Bar", "", "Close","5","0","",,,"False","T","EveryTick") -> 1302.6 | U10: 0.000999000999 | V10: =RTD("cqg.rtd",,"StudyData", "Close("&$D$12&") when LocalYear("&$D$12&")="&$D$8&" and localMonth("&$D$12&") ="&$E$8&" and LocalDay("&$D$12&")="&$F$8&" and Barix("&$D$12&",reference:=StartOfDay)="&A10&"", "Bar", "", "Close","5","0","",,,"False","T","EveryTick") -> 1305.4 | W10: 0.003690604336 | X10: =RTD("cqg.rtd",,"StudyData", "Close("&$D$12&") when LocalYear("&$D$12&")="&$D$9&" and localMonth("&$D$12&") ="&$E$9&" and LocalDay("&$D$12&")="&$F$9&" and Barix("&$D$12&",reference:=StartOfDay)="&A10&"", "Bar", "", "Close","5","0","",,,"False","T","EveryTick") -> 1301.8 | Y10: 0.001076591818 | Z10: =RTD("cqg.rtd",,"StudyData", "Close("&$D$12&") when LocalYear("&$D$12&")="&$D$10&" and localMonth("&$D$12&") ="&$E$10&" and LocalDay("&$D$12&")="&$F$10&" and Barix("&$D$12&",reference:=StartOfDay)="&A10&"", "Bar", "", "Close","5","0","",,,"False","T","EveryTick") -> 1296.6 | AA10: 0.0005401651362 | AB10: =RANK(AD10,$AD$1:$AD$10)+COUNTIF($AD$1:AD10,AD10)-1 -> 7 | AC10: 2018-06-05 | AD10: =VLOOKUP(MAX(AE2:AE108),A1:AA108,27,FALSE) -> 0 | AF10: 10 | AG10: 2018-06-15 | AH10: -0.01401332414 | AK10: 2018-06-15 | AL10: 2018-06-05 | AM10: 9 | AN10: 1
A11: 178 | B11: 07:50:00 | C11: 2018-06-04 | D11: 2018 | E11: =MONTH(C11) -> 6 | F11: =DAY(C11) -> 4 | G11: =RTD("cqg.rtd",,"StudyData", "Close("&$D$12&") when LocalYear("&$D$12&")="&D11&" and localMonth("&$D$12&") ="&E11&" and LocalDay("&$D$12&")="&F11&" and Barix("&$D$12&",reference:=StartOfDay)=275", "Bar", "", "Close","5","0","",,,"False","T","EveryTick") -> 1295.9 | H11: =RTD("cqg.rtd",,"StudyData", "Close("&$D$12&") when LocalYear("&$D$12&")="&$D$1&" and localMonth("&$D$12&") ="&$E$1&" and LocalDay("&$D$12&")="&$F$1&" and Barix("&$D$12&",reference:=StartOfDay)="&A11&"", "Bar", "", "Close","5","0","",,,"False","T","EveryTick") -> 1282.3 | I11: 0.0002340093604 | J11: =RTD("cqg.rtd",,"StudyData", "Close("&$D$12&") when LocalYear("&$D$12&")="&$D$2&" and localMonth("&$D$12&") ="&$E$2&" and LocalDay("&$D$12&")="&$F$2&" and Barix("&$D$12&",reference:=StartOfDay)="&A11&"", "Bar", "", "Close","5","0","",,,"False","T","EveryTick") -> 1296.1 | K11: -0.007504403094 | L11: =RTD("cqg.rtd",,"StudyData", "Close("&$D$12&") when LocalYear("&$D$12&")="&$D$3&" and localMonth("&$D$12&") ="&$E$3&" and LocalDay("&$D$12&")="&$F$3&" and Barix("&$D$12&",reference:=StartOfDay)="&A11&"", "Bar", "", "Close","5","0","",,,"False","T","EveryTick") -> 1311.3 | M11: 0.006447156344 | N11: =RTD("cqg.rtd",,"StudyData", "Close("&$D$12&") when LocalYear("&$D$12&")="&$D$4&" and localMonth("&$D$12&") ="&$E$4&" and LocalDay("&$D$12&")="&$F$4&" and Barix("&$D$12&",reference:=StartOfDay)="&A11&"", "Bar", "", "Close","5","0","",,,"False","T","EveryTick") -> 1300.1 | O11: 0.0003847337642 | P11: =RTD("cqg.rtd",,"StudyData", "Close("&$D$12&") when LocalYear("&$D$12&")="&$D$5&" and localMonth("&$D$12&") ="&$E$5&" and LocalDay("&$D$12&")="&$F$5&" and Barix("&$D$12&",reference:=StartOfDay)="&A11&"", "Bar", "", "Close","5","0","",,,"False","T","EveryTick") -> 1299 | Q11: -0.004139834407 | R11: =RTD("cqg.rtd",,"StudyData", "Close("&$D$12&") when LocalYear("&$D$12&")="&$D$6&" and localMonth("&$D$12&") ="&$E$6&" and LocalDay("&$D$12&")="&$F$6&" and Barix("&$D$12&",reference:=StartOfDay)="&A11&"", "Bar", "", "Close","5","0","",,,"False","T","EveryTick") -> 1302.7 | S11: -0.0006137322593 | T11: =RTD("cqg.rtd",,"StudyData", "Close("&$D$12&") when LocalYear("&$D$12&")="&$D$7&" and localMonth("&$D$12&") ="&$E$7&" and LocalDay("&$D$12&")="&$F$7&" and Barix("&$D$12&",reference:=StartOfDay)="&A11&"", "Bar", "", "Close","5","0","",,,"False","T","EveryTick") -> 1302.8 | U11: 0.00115269346 | V11: =RTD("cqg.rtd",,"StudyData", "Close("&$D$12&") when LocalYear("&$D$12&")="&$D$8&" and localMonth("&$D$12&") ="&$E$8&" and LocalDay("&$D$12&")="&$F$8&" and Barix("&$D$12&",reference:=StartOfDay)="&A11&"", "Bar", "", "Close","5","0","",,,"False","T","EveryTick") -> 1305.3 | W11: 0.003613716746 | X11: =RTD("cqg.rtd",,"StudyData", "Close("&$D$12&") when LocalYear("&$D$12&")="&$D$9&" and localMonth("&$D$12&") ="&$E$9&" and LocalDay("&$D$12&")="&$F$9&" and Barix("&$D$12&",reference:=StartOfDay)="&A11&"", "Bar", "", "Close","5","0","",,,"False","T","EveryTick") -> 1302 | Y11: 0.001230390649 | Z11: =RTD("cqg.rtd",,"StudyData", "Close("&$D$12&") when LocalYear("&$D$12&")="&$D$10&" and localMonth("&$D$12&") ="&$E$10&" and LocalDay("&$D$12&")="&$F$10&" and Barix("&$D$12&",reference:=StartOfDay)="&A11&"", "Bar", "", "Close","5","0","",,,"False","T","EveryTick") -> 1297 | AA11: 0.0008488309283
A12: 179 | B12: 07:55:00 | D12: =MainDisplay!B5 -> GCE | H12: =RTD("cqg.rtd",,"StudyData", "Close("&$D$12&") when LocalYear("&$D$12&")="&$D$1&" and localMonth("&$D$12&") ="&$E$1&" and LocalDay("&$D$12&")="&$F$1&" and Barix("&$D$12&",reference:=StartOfDay)="&A12&"", "Bar", "", "Close","5","0","",,,"False","T","EveryTick") -> 1282.1 | I12: 7.800312012e-05 | J12: =RTD("cqg.rtd",,"StudyData", "Close("&$D$12&") when LocalYear("&$D$12&")="&$D$2&" and localMonth("&$D$12&") ="&$E$2&" and LocalDay("&$D$12&")="&$F$2&" and Barix("&$D$12&",reference:=StartOfDay)="&A12&"", "Bar", "", "Close","5","0","",,,"False","T","EveryTick") -> 1295.1 | K12: -0.008270158511 | L12: =RTD("cqg.rtd",,"StudyData", "Close("&$D$12&") when LocalYear("&$D$12&")="&$D$3&" and localMonth("&$D$12&") ="&$E$3&" and LocalDay("&$D$12&")="&$F$3&" and Barix("&$D$12&",reference:=StartOfDay)="&A12&"", "Bar", "", "Close","5","0","",,,"False","T","EveryTick") -> 1311 | M12: 0.00621690076 | N12: =RTD("cqg.rtd",,"StudyData", "Close("&$D$12&") when LocalYear("&$D$12&")="&$D$4&" and localMonth("&$D$12&") ="&$E$4&" and LocalDay("&$D$12&")="&$F$4&" and Barix("&$D$12&",reference:=StartOfDay)="&A12&"", "Bar", "", "Close","5","0","",,,"False","T","EveryTick") -> 1300.1 | O12: 0.0003847337642 | P12: =RTD("cqg.rtd",,"StudyData", "Close("&$D$12&") when LocalYear("&$D$12&")="&$D$5&" and localMonth("&$D$12&") ="&$E$5&" and LocalDay("&$D$12&")="&$F$5&" and Barix("&$D$12&",reference:=StartOfDay)="&A12&"", "Bar", "", "Close","5","0","",,,"False","T","EveryTick") -> 1299.2 | Q12: -0.003986507206 | R12: =RTD("cqg.rtd",,"StudyData", "Close("&$D$12&") when LocalYear("&$D$12&")="&$D$6&" and localMonth("&$D$12&") ="&$E$6&" and LocalDay("&$D$12&")="&$F$6&" and Barix("&$D$12&",reference:=StartOfDay)="&A12&"", "Bar", "", "Close","5","0","",,,"False","T","EveryTick") -> 1302.9 | S12: -0.0004602991945 | T12: =RTD("cqg.rtd",,"StudyData", "Close("&$D$12&") when LocalYear("&$D$12&")="&$D$7&" and localMonth("&$D$12&") ="&$E$7&" and LocalDay("&$D$12&")="&$F$7&" and Barix("&$D$12&",reference:=StartOfDay)="&A12&"", "Bar", "", "Close","5","0","",,,"False","T","EveryTick") -> 1302.3 | U12: 0.0007684623069 | V12: =RTD("cqg.rtd",,"StudyData", "Close("&$D$12&") when LocalYear("&$D$12&")="&$D$8&" and localMonth("&$D$12&") ="&$E$8&" and LocalDay("&$D$12&")="&$F$8&" and Barix("&$D$12&",reference:=StartOfDay)="&A12&"", "Bar", "", "Close","5","0","",,,"False","T","EveryTick") -> 1305.7 | W12: 0.003921267107 | X12: =RTD("cqg.rtd",,"StudyData", "Close("&$D$12&") when LocalYear("&$D$12&")="&$D$9&" and localMonth("&$D$12&") ="&$E$9&" and LocalDay("&$D$12&")="&$F$9&" and Barix("&$D$12&",reference:=StartOfDay)="&A12&"", "Bar", "", "Close","5","0","",,,"False","T","EveryTick") -> 1302.2 | Y12: 0.00138418948 | Z12: =RTD("cqg.rtd",,"StudyData", "Close("&$D$12&") when LocalYear("&$D$12&")="&$D$10&" and localMonth("&$D$12&") ="&$E$10&" and LocalDay("&$D$12&")="&$F$10&" and Barix("&$D$12&",reference:=StartOfDay)="&A12&"", "Bar", "", "Close","5","0","",,,"False","T","EveryTick") -> 1297.3 | AA12: 0.001080330272 | AC12: =VLOOKUP(MAX(AE2:AE108),A1:B108,2,FALSE) -> 08:50:00
A13: 180 | B13: 08:00:00 | D13: =RTD("cqg.rtd", ,"ContractData",D12, "LastQuoteToday",, "T") -> 1282.8 | G13: =C1 -> 2018-06-18 | H13: =RTD("cqg.rtd",,"StudyData", "Close("&$D$12&") when LocalYear("&$D$12&")="&$D$1&" and localMonth("&$D$12&") ="&$E$1&" and LocalDay("&$D$12&")="&$F$1&" and Barix("&$D$12&",reference:=StartOfDay)="&A13&"", "Bar", "", "Close","5","0","",,,"False","T","EveryTick") -> 1282.9 | I13: 0.0007020280811 | J13: =RTD("cqg.rtd",,"StudyData", "Close("&$D$12&") when LocalYear("&$D$12&")="&$D$2&" and localMonth("&$D$12&") ="&$E$2&" and LocalDay("&$D$12&")="&$F$2&" and Barix("&$D$12&",reference:=StartOfDay)="&A13&"", "Bar", "", "Close","5","0","",,,"False","T","EveryTick") -> 1296.2 | K13: -0.007427827552 | L13: =RTD("cqg.rtd",,"StudyData", "Close("&$D$12&") when LocalYear("&$D$12&")="&$D$3&" and localMonth("&$D$12&") ="&$E$3&" and LocalDay("&$D$12&")="&$F$3&" and Barix("&$D$12&",reference:=StartOfDay)="&A13&"", "Bar", "", "Close","5","0","",,,"False","T","EveryTick") -> 1309.4 | M13: 0.00498887098 | N13: =RTD("cqg.rtd",,"StudyData", "Close("&$D$12&") when LocalYear("&$D$12&")="&$D$4&" and localMonth("&$D$12&") ="&$E$4&" and LocalDay("&$D$12&")="&$F$4&" and Barix("&$D$12&",reference:=StartOfDay)="&A13&"", "Bar", "", "Close","5","0","",,,"False","T","EveryTick") -> 1300.7 | O13: 0.0008464142813 | P13: =RTD("cqg.rtd",,"StudyData", "Close("&$D$12&") when LocalYear("&$D$12&")="&$D$5&" and localMonth("&$D$12&") ="&$E$5&" and LocalDay("&$D$12&")="&$F$5&" and Barix("&$D$12&",reference:=StartOfDay)="&A13&"", "Bar", "", "Close","5","0","",,,"False","T","EveryTick") -> 1299.1 | Q13: -0.004063170807 | R13: =RTD("cqg.rtd",,"StudyData", "Close("&$D$12&") when LocalYear("&$D$12&")="&$D$6&" and localMonth("&$D$12&") ="&$E$6&" and LocalDay("&$D$12&")="&$F$6&" and Barix("&$D$12&",reference:=StartOfDay)="&A13&"", "Bar", "", "Close","5","0","",,,"False","T","EveryTick") -> 1302.8 | S13: -0.0005370157269 | T13: =RTD("cqg.rtd",,"StudyData", "Close("&$D$12&") when LocalYear("&$D$12&")="&$D$7&" and localMonth("&$D$12&") ="&$E$7&" and LocalDay("&$D$12&")="&$F$7&" and Barix("&$D$12&",reference:=StartOfDay)="&A13&"", "Bar", "", "Close","5","0","",,,"False","T","EveryTick") -> 1302.1 | U13: 0.0006147698455 | V13: =RTD("cqg.rtd",,"StudyData", "Close("&$D$12&") when LocalYear("&$D$12&")="&$D$8&" and localMonth("&$D$12&") ="&$E$8&" and LocalDay("&$D$12&")="&$F$8&" and Barix("&$D$12&",reference:=StartOfDay)="&A13&"", "Bar", "", "Close","5","0","",,,"False","T","EveryTick") -> 1305.6 | W13: 0.003844379517 | X13: =RTD("cqg.rtd",,"StudyData", "Close("&$D$12&") when LocalYear("&$D$12&")="&$D$9&" and localMonth("&$D$12&") ="&$E$9&" and LocalDay("&$D$12&")="&$F$9&" and Barix("&$D$12&",reference:=StartOfDay)="&A13&"", "Bar", "", "Close","5","0","",,,"False","T","EveryTick") -> 1302.5 | Y13: 0.001614887727 | Z13: =RTD("cqg.rtd",,"StudyData", "Close("&$D$12&") when LocalYear("&$D$12&")="&$D$10&" and localMonth("&$D$12&") ="&$E$10&" and LocalDay("&$D$12&")="&$F$10&" and Barix("&$D$12&",reference:=StartOfDay)="&A13&"", "Bar", "", "Close","5","0","",,,"False","T","EveryTick") -> 1297.7 | AA13: 0.001388996065
A14: 181 | B14: 08:05:00 | D14: =RTD("cqg.rtd", ,"ContractData",D12, "LongDescription",, "T") -> Gold (Globex), Aug 18 | G14: =C2 -> 2018-06-15 | H14: =RTD("cqg.rtd",,"StudyData", "Close("&$D$12&") when LocalYear("&$D$12&")="&$D$1&" and localMonth("&$D$12&") ="&$E$1&" and LocalDay("&$D$12&")="&$F$1&" and Barix("&$D$12&",reference:=StartOfDay)="&A14&"", "Bar", "", "Close","5","0","",,,"False","T","EveryTick") -> 1283 | I14: 0.0007800312012 | J14: =RTD("cqg.rtd",,"StudyData", "Close("&$D$12&") when LocalYear("&$D$12&")="&$D$2&" and localMonth("&$D$12&") ="&$E$2&" and LocalDay("&$D$12&")="&$F$2&" and Barix("&$D$12&",reference:=StartOfDay)="&A14&"", "Bar", "", "Close","5","0","",,,"False","T","EveryTick") -> 1294.2 | K14: -0.008959338387 | L14: =RTD("cqg.rtd",,"StudyData", "Close("&$D$12&") when LocalYear("&$D$12&")="&$D$3&" and localMonth("&$D$12&") ="&$E$3&" and LocalDay("&$D$12&")="&$F$3&" and Barix("&$D$12&",reference:=StartOfDay)="&A14&"", "Bar", "", "Close","5","0","",,,"False","T","EveryTick") -> 1308.6 | M14: 0.00437485609 | N14: =RTD("cqg.rtd",,"StudyData", "Close("&$D$12&") when LocalYear("&$D$12&")="&$D$4&" and localMonth("&$D$12&") ="&$E$4&" and LocalDay("&$D$12&")="&$F$4&" and Barix("&$D$12&",reference:=StartOfDay)="&A14&"", "Bar", "", "Close","5","0","",,,"False","T","EveryTick") -> 1300.7 | O14: 0.0008464142813 | P14: =RTD("cqg.rtd",,"StudyData", "Close("&$D$12&") when LocalYear("&$D$12&")="&$D$5&" and localMonth("&$D$12&") ="&$E$5&" and LocalDay("&$D$12&")="&$F$5&" and Barix("&$D$12&",reference:=StartOfDay)="&A14&"", "Bar", "", "Close","5","0","",,,"False","T","EveryTick") -> 1299.3 | Q14: -0.003909843606 | R14: =RTD("cqg.rtd",,"StudyData", "Close("&$D$12&") when LocalYear("&$D$12&")="&$D$6&" and localMonth("&$D$12&") ="&$E$6&" and LocalDay("&$D$12&")="&$F$6&" and Barix("&$D$12&",reference:=StartOfDay)="&A14&"", "Bar", "", "Close","5","0","",,,"False","T","EveryTick") -> 1302.3 | S14: -0.000920598389 | T14: =RTD("cqg.rtd",,"StudyData", "Close("&$D$12&") when LocalYear("&$D$12&")="&$D$7&" and localMonth("&$D$12&") ="&$E$7&" and LocalDay("&$D$12&")="&$F$7&" and Barix("&$D$12&",reference:=StartOfDay)="&A14&"", "Bar", "", "Close","5","0","",,,"False","T","EveryTick") -> 1301.8 | U14: 0.0003842311535 | V14: =RTD("cqg.rtd",,"StudyData", "Close("&$D$12&") when LocalYear("&$D$12&")="&$D$8&" and localMonth("&$D$12&") ="&$E$8&" and LocalDay("&$D$12&")="&$F$8&" and Barix("&$D$12&",reference:=StartOfDay)="&A14&"", "Bar", "", "Close","5","0","",,,"False","T","EveryTick") -> 1304.7 | W14: 0.003152391204 | X14: =RTD("cqg.rtd",,"StudyData", "Close("&$D$12&") when LocalYear("&$D$12&")="&$D$9&" and localMonth("&$D$12&") ="&$E$9&" and LocalDay("&$D$12&")="&$F$9&" and Barix("&$D$12&",reference:=StartOfDay)="&A14&"", "Bar", "", "Close","5","0","",,,"False","T","EveryTick") -> 1302.6 | Y14: 0.001691787142 | Z14: =RTD("cqg.rtd",,"StudyData", "Close("&$D$12&") when LocalYear("&$D$12&")="&$D$10&" and localMonth("&$D$12&") ="&$E$10&" and LocalDay("&$D$12&")="&$F$10&" and Barix("&$D$12&",reference:=StartOfDay)="&A14&"", "Bar", "", "Close","5","0","",,,"False","T","EveryTick") -> 1297.5 | AA14: 0.001234663168
A15: 182 | B15: 08:10:00 | G15: 2018-06-14 | H15: =RTD("cqg.rtd",,"StudyData", "Close("&$D$12&") when LocalYear("&$D$12&")="&$D$1&" and localMonth("&$D$12&") ="&$E$1&" and LocalDay("&$D$12&")="&$F$1&" and Barix("&$D$12&",reference:=StartOfDay)="&A15&"", "Bar", "", "Close","5","0","",,,"False","T","EveryTick") -> 1282.5 | I15: 0.0003900156006 | J15: =RTD("cqg.rtd",,"StudyData", "Close("&$D$12&") when LocalYear("&$D$12&")="&$D$2&" and localMonth("&$D$12&") ="&$E$2&" and LocalDay("&$D$12&")="&$F$2&" and Barix("&$D$12&",reference:=StartOfDay)="&A15&"", "Bar", "", "Close","5","0","",,,"False","T","EveryTick") -> 1291.1 | K15: -0.01133318018 | L15: =RTD("cqg.rtd",,"StudyData", "Close("&$D$12&") when LocalYear("&$D$12&")="&$D$3&" and localMonth("&$D$12&") ="&$E$3&" and LocalDay("&$D$12&")="&$F$3&" and Barix("&$D$12&",reference:=StartOfDay)="&A15&"", "Bar", "", "Close","5","0","",,,"False","T","EveryTick") -> 1308.2 | M15: 0.004067848645 | N15: =RTD("cqg.rtd",,"StudyData", "Close("&$D$12&") when LocalYear("&$D$12&")="&$D$4&" and localMonth("&$D$12&") ="&$E$4&" and LocalDay("&$D$12&")="&$F$4&" and Barix("&$D$12&",reference:=StartOfDay)="&A15&"", "Bar", "", "Close","5","0","",,,"False","T","EveryTick") -> 1301.1 | O15: 0.001154201293 | P15: =RTD("cqg.rtd",,"StudyData", "Close("&$D$12&") when LocalYear("&$D$12&")="&$D$5&" and localMonth("&$D$12&") ="&$E$5&" and LocalDay("&$D$12&")="&$F$5&" and Barix("&$D$12&",reference:=StartOfDay)="&A15&"", "Bar", "", "Close","5","0","",,,"False","T","EveryTick") -> 1299.4 | Q15: -0.003833180006 | R15: =RTD("cqg.rtd",,"StudyData", "Close("&$D$12&") when LocalYear("&$D$12&")="&$D$6&" and localMonth("&$D$12&") ="&$E$6&" and LocalDay("&$D$12&")="&$F$6&" and Barix("&$D$12&",reference:=StartOfDay)="&A15&"", "Bar", "", "Close","5","0","",,,"False","T","EveryTick") -> 1302.5 | S15: -0.0007671653241 | T15: =RTD("cqg.rtd",,"StudyData", "Close("&$D$12&") when LocalYear("&$D$12&")="&$D$7&" and localMonth("&$D$12&") ="&$E$7&" and LocalDay("&$D$12&")="&$F$7&" and Barix("&$D$12&",reference:=StartOfDay)="&A15&"", "Bar", "", "Close","5","0","",,,"False","T","EveryTick") -> 1302.4 | U15: 0.0008453085376 | V15: =RTD("cqg.rtd",,"StudyData", "Close("&$D$12&") when LocalYear("&$D$12&")="&$D$8&" and localMonth("&$D$12&") ="&$E$8&" and LocalDay("&$D$12&")="&$F$8&" and Barix("&$D$12&",reference:=StartOfDay)="&A15&"", "Bar", "", "Close","5","0","",,,"False","T","EveryTick") -> 1305.1 | W15: 0.003459941565 | X15: =RTD("cqg.rtd",,"StudyData", "Close("&$D$12&") when LocalYear("&$D$12&")="&$D$9&" and localMonth("&$D$12&") ="&$E$9&" and LocalDay("&$D$12&")="&$F$9&" and Barix("&$D$12&",reference:=StartOfDay)="&A15&"", "Bar", "", "Close","5","0","",,,"False","T","EveryTick") -> 1302.7 | Y15: 0.001768686558 | Z15: =RTD("cqg.rtd",,"StudyData", "Close("&$D$12&") when LocalYear("&$D$12&")="&$D$10&" and localMonth("&$D$12&") ="&$E$10&" and LocalDay("&$D$12&")="&$F$10&" and Barix("&$D$12&",reference:=StartOfDay)="&A15&"", "Bar", "", "Close","5","0","",,,"False","T","EveryTick") -> 1297.8 | AA15: 0.001466162513
A16: 183 | B16: 08:15:00 | D16: =RTD("cqg.rtd", ,"ContractData",D12, "Ticksize",, "T") -> 0.1 | G16: 2018-06-13 | H16: =RTD("cqg.rtd",,"StudyData", "Close("&$D$12&") when LocalYear("&$D$12&")="&$D$1&" and localMonth("&$D$12&") ="&$E$1&" and LocalDay("&$D$12&")="&$F$1&" and Barix("&$D$12&",reference:=StartOfDay)="&A16&"", "Bar", "", "Close","5","0","",,,"False","T","EveryTick") -> 1282.5 | I16: 0.0003900156006 | J16: =RTD("cqg.rtd",,"StudyData", "Close("&$D$12&") when LocalYear("&$D$12&")="&$D$2&" and localMonth("&$D$12&") ="&$E$2&" and LocalDay("&$D$12&")="&$F$2&" and Barix("&$D$12&",reference:=StartOfDay)="&A16&"", "Bar", "", "Close","5","0","",,,"False","T","EveryTick") -> 1292.4 | K16: -0.01033769814 | L16: =RTD("cqg.rtd",,"StudyData", "Close("&$D$12&") when LocalYear("&$D$12&")="&$D$3&" and localMonth("&$D$12&") ="&$E$3&" and LocalDay("&$D$12&")="&$F$3&" and Barix("&$D$12&",reference:=StartOfDay)="&A16&"", "Bar", "", "Close","5","0","",,,"False","T","EveryTick") -> 1307.1 | M16: 0.003223578172 | N16: =RTD("cqg.rtd",,"StudyData", "Close("&$D$12&") when LocalYear("&$D$12&")="&$D$4&" and localMonth("&$D$12&") ="&$E$4&" and LocalDay("&$D$12&")="&$F$4&" and Barix("&$D$12&",reference:=StartOfDay)="&A16&"", "Bar", "", "Close","5","0","",,,"False","T","EveryTick") -> 1300.7 | O16: 0.0008464142813 | P16: =RTD("cqg.rtd",,"StudyData", "Close("&$D$12&") when LocalYear("&$D$12&")="&$D$5&" and localMonth("&$D$12&") ="&$E$5&" and LocalDay("&$D$12&")="&$F$5&" and Barix("&$D$12&",reference:=StartOfDay)="&A16&"", "Bar", "", "Close","5","0","",,,"False","T","EveryTick") -> 1299.7 | Q16: -0.003603189206 | R16: =RTD("cqg.rtd",,"StudyData", "Close("&$D$12&") when LocalYear("&$D$12&")="&$D$6&" and localMonth("&$D$12&") ="&$E$6&" and LocalDay("&$D$12&")="&$F$6&" and Barix("&$D$12&",reference:=StartOfDay)="&A16&"", "Bar", "", "Close","5","0","",,,"False","T","EveryTick") -> 1302.4 | S16: -0.0008438818565 | T16: =RTD("cqg.rtd",,"StudyData", "Close("&$D$12&") when LocalYear("&$D$12&")="&$D$7&" and localMonth("&$D$12&") ="&$E$7&" and LocalDay("&$D$12&")="&$F$7&" and Barix("&$D$12&",reference:=StartOfDay)="&A16&"", "Bar", "", "Close","5","0","",,,"False","T","EveryTick") -> 1302.7 | U16: 0.00107584723 | V16: =RTD("cqg.rtd",,"StudyData", "Close("&$D$12&") when LocalYear("&$D$12&")="&$D$8&" and localMonth("&$D$12&") ="&$E$8&" and LocalDay("&$D$12&")="&$F$8&" and Barix("&$D$12&",reference:=StartOfDay)="&A16&"", "Bar", "", "Close","5","0","",,,"False","T","EveryTick") -> 1305.3 | W16: 0.003613716746 | X16: =RTD("cqg.rtd",,"StudyData", "Close("&$D$12&") when LocalYear("&$D$12&")="&$D$9&" and localMonth("&$D$12&") ="&$E$9&" and LocalDay("&$D$12&")="&$F$9&" and Barix("&$D$12&",reference:=StartOfDay)="&A16&"", "Bar", "", "Close","5","0","",,,"False","T","EveryTick") -> 1302.4 | Y16: 0.001537988311 | Z16: =RTD("cqg.rtd",,"StudyData", "Close("&$D$12&") when LocalYear("&$D$12&")="&$D$10&" and localMonth("&$D$12&") ="&$E$10&" and LocalDay("&$D$12&")="&$F$10&" and Barix("&$D$12&",reference:=StartOfDay)="&A16&"", "Bar", "", "Close","5","0","",,,"False","T","EveryTick") -> 1297.1 | AA16: 0.0009259973763
A17: 184 | B17: 08:20:00 | D17: =IF(D16>=1,0,IF(LEN(D16)-2=1,2,LEN(D16)-2)) -> 2 | F17: =VLOOKUP(D17,D18:E25,2,FALSE) -> #.00 | G17: 2018-06-12 | H17: =RTD("cqg.rtd",,"StudyData", "Close("&$D$12&") when LocalYear("&$D$12&")="&$D$1&" and localMonth("&$D$12&") ="&$E$1&" and LocalDay("&$D$12&")="&$F$1&" and Barix("&$D$12&",reference:=StartOfDay)="&A17&"", "Bar", "", "Close","5","0","",,,"False","T","EveryTick") -> 1283.3 | I17: 0.001014040562 | J17: =RTD("cqg.rtd",,"StudyData", "Close("&$D$12&") when LocalYear("&$D$12&")="&$D$2&" and localMonth("&$D$12&") ="&$E$2&" and LocalDay("&$D$12&")="&$F$2&" and Barix("&$D$12&",reference:=StartOfDay)="&A17&"", "Bar", "", "Close","5","0","",,,"False","T","EveryTick") -> 1291.3 | K17: -0.0111800291 | L17: =RTD("cqg.rtd",,"StudyData", "Close("&$D$12&") when LocalYear("&$D$12&")="&$D$3&" and localMonth("&$D$12&") ="&$E$3&" and LocalDay("&$D$12&")="&$F$3&" and Barix("&$D$12&",reference:=StartOfDay)="&A17&"", "Bar", "", "Close","5","0","",,,"False","T","EveryTick") -> 1307.9 | M17: 0.003837593062 | N17: =RTD("cqg.rtd",,"StudyData", "Close("&$D$12&") when LocalYear("&$D$12&")="&$D$4&" and localMonth("&$D$12&") ="&$E$4&" and LocalDay("&$D$12&")="&$F$4&" and Barix("&$D$12&",reference:=StartOfDay)="&A17&"", "Bar", "", "Close","5","0","",,,"False","T","EveryTick") -> 1300.6 | O17: 0.0007694675285 | P17: =RTD("cqg.rtd",,"StudyData", "Close("&$D$12&") when LocalYear("&$D$12&")="&$D$5&" and localMonth("&$D$12&") ="&$E$5&" and LocalDay("&$D$12&")="&$F$5&" and Barix("&$D$12&",reference:=StartOfDay)="&A17&"", "Bar", "", "Close","5","0","",,,"False","T","EveryTick") -> 1301.3 | Q17: -0.002376571604 | R17: =RTD("cqg.rtd",,"StudyData", "Close("&$D$12&") when LocalYear("&$D$12&")="&$D$6&" and localMonth("&$D$12&") ="&$E$6&" and LocalDay("&$D$12&")="&$F$6&" and Barix("&$D$12&",reference:=StartOfDay)="&A17&"", "Bar", "", "Close","5","0","",,,"False","T","EveryTick") -> 1303.5 | S17: 0 | T17: =RTD("cqg.rtd",,"StudyData", "Close("&$D$12&") when LocalYear("&$D$12&")="&$D$7&" and localMonth("&$D$12&") ="&$E$7&" and LocalDay("&$D$12&")="&$F$7&" and Barix("&$D$12&",reference:=StartOfDay)="&A17&"", "Bar", "", "Close","5","0","",,,"False","T","EveryTick") -> 1302.8 | U17: 0.00115269346 | V17: =RTD("cqg.rtd",,"StudyData", "Close("&$D$12&") when LocalYear("&$D$12&")="&$D$8&" and localMonth("&$D$12&") ="&$E$8&" and LocalDay("&$D$12&")="&$F$8&" and Barix("&$D$12&",reference:=StartOfDay)="&A17&"", "Bar", "", "Close","5","0","",,,"False","T","EveryTick") -> 1303.7 | W17: 0.002383515301 | X17: =RTD("cqg.rtd",,"StudyData", "Close("&$D$12&") when LocalYear("&$D$12&")="&$D$9&" and localMonth("&$D$12&") ="&$E$9&" and LocalDay("&$D$12&")="&$F$9&" and Barix("&$D$12&",reference:=StartOfDay)="&A17&"", "Bar", "", "Close","5","0","",,,"False","T","EveryTick") -> 1302.9 | Y17: 0.001922485389 | Z17: =RTD("cqg.rtd",,"StudyData", "Close("&$D$12&") when LocalYear("&$D$12&")="&$D$10&" and localMonth("&$D$12&") ="&$E$10&" and LocalDay("&$D$12&")="&$F$10&" and Barix("&$D$12&",reference:=StartOfDay)="&A17&"", "Bar", "", "Close","5","0","",,,"False","T","EveryTick") -> 1297.2 | AA17: 0.001003163824
A18: 185 | B18: 08:25:00 | D18: 0 | E18: # | G18: 2018-06-11 | H18: =RTD("cqg.rtd",,"StudyData", "Close("&$D$12&") when LocalYear("&$D$12&")="&$D$1&" and localMonth("&$D$12&") ="&$E$1&" and LocalDay("&$D$12&")="&$F$1&" and Barix("&$D$12&",reference:=StartOfDay)="&A18&"", "Bar", "", "Close","5","0","",,,"False","T","EveryTick") -> 1283.4 | I18: 0.001092043682 | J18: =RTD("cqg.rtd",,"StudyData", "Close("&$D$12&") when LocalYear("&$D$12&")="&$D$2&" and localMonth("&$D$12&") ="&$E$2&" and LocalDay("&$D$12&")="&$F$2&" and Barix("&$D$12&",reference:=StartOfDay)="&A18&"", "Bar", "", "Close","5","0","",,,"False","T","EveryTick") -> 1292.4 | K18: -0.01033769814 | L18: =RTD("cqg.rtd",,"StudyData", "Close("&$D$12&") when LocalYear("&$D$12&")="&$D$3&" and localMonth("&$D$12&") ="&$E$3&" and LocalDay("&$D$12&")="&$F$3&" and Barix("&$D$12&",reference:=StartOfDay)="&A18&"", "Bar", "", "Close","5","0","",,,"False","T","EveryTick") -> 1308.4 | M18: 0.004221352368 | N18: =RTD("cqg.rtd",,"StudyData", "Close("&$D$12&") when LocalYear("&$D$12&")="&$D$4&" and localMonth("&$D$12&") ="&$E$4&" and LocalDay("&$D$12&")="&$F$4&" and Barix("&$D$12&",reference:=StartOfDay)="&A18&"", "Bar", "", "Close","5","0","",,,"False","T","EveryTick") -> 1300.1 | O18: 0.0003847337642 | P18: =RTD("cqg.rtd",,"StudyData", "Close("&$D$12&") when LocalYear("&$D$12&")="&$D$5&" and localMonth("&$D$12&") ="&$E$5&" and LocalDay("&$D$12&")="&$F$5&" and Barix("&$D$12&",reference:=StartOfDay)="&A18&"", "Bar", "", "Close","5","0","",,,"False","T","EveryTick") -> 1301.3 | Q18: -0.002376571604 | R18: =RTD("cqg.rtd",,"StudyData", "Close("&$D$12&") when LocalYear("&$D$12&")="&$D$6&" and localMonth("&$D$12&") ="&$E$6&" and LocalDay("&$D$12&")="&$F$6&" and Barix("&$D$12&",reference:=StartOfDay)="&A18&"", "Bar", "", "Close","5","0","",,,"False","T","EveryTick") -> 1303.4 | S18: -7.671653241e-05 | T18: =RTD("cqg.rtd",,"StudyData", "Close("&$D$12&") when LocalYear("&$D$12&")="&$D$7&" and localMonth("&$D$12&") ="&$E$7&" and LocalDay("&$D$12&")="&$F$7&" and Barix("&$D$12&",reference:=StartOfDay)="&A18&"", "Bar", "", "Close","5","0","",,,"False","T","EveryTick") -> 1303.1 | U18: 0.001383232152 | V18: =RTD("cqg.rtd",,"StudyData", "Close("&$D$12&") when LocalYear("&$D$12&")="&$D$8&" and localMonth("&$D$12&") ="&$E$8&" and LocalDay("&$D$12&")="&$F$8&" and Barix("&$D$12&",reference:=StartOfDay)="&A18&"", "Bar", "", "Close","5","0","",,,"False","T","EveryTick") -> 1302 | W18: 0.001076426265 | X18: =RTD("cqg.rtd",,"StudyData", "Close("&$D$12&") when LocalYear("&$D$12&")="&$D$9&" and localMonth("&$D$12&") ="&$E$9&" and LocalDay("&$D$12&")="&$F$9&" and Barix("&$D$12&",reference:=StartOfDay)="&A18&"", "Bar", "", "Close","5","0","",,,"False","T","EveryTick") -> 1303.1 | Y18: 0.00207628422 | Z18: =RTD("cqg.rtd",,"StudyData", "Close("&$D$12&") when LocalYear("&$D$12&")="&$D$10&" and localMonth("&$D$12&") ="&$E$10&" and LocalDay("&$D$12&")="&$F$10&" and Barix("&$D$12&",reference:=StartOfDay)="&A18&"", "Bar", "", "Close","5","0","",,,"False","T","EveryTick") -> 1297.5 | AA18: 0.001234663168
A19: 186 | B19: 08:30:00 | D19: 1 | E19: #.0 | G19: 2018-06-08 | H19: =RTD("cqg.rtd",,"StudyData", "Close("&$D$12&") when LocalYear("&$D$12&")="&$D$1&" and localMonth("&$D$12&") ="&$E$1&" and LocalDay("&$D$12&")="&$F$1&" and Barix("&$D$12&",reference:=StartOfDay)="&A19&"", "Bar", "", "Close","5","0","",,,"False","T","EveryTick") -> 1282.4 | I19: 0.0003120124805 | J19: =RTD("cqg.rtd",,"StudyData", "Close("&$D$12&") when LocalYear("&$D$12&")="&$D$2&" and localMonth("&$D$12&") ="&$E$2&" and LocalDay("&$D$12&")="&$F$2&" and Barix("&$D$12&",reference:=StartOfDay)="&A19&"", "Bar", "", "Close","5","0","",,,"False","T","EveryTick") -> 1290.5 | K19: -0.01179263343 | L19: =RTD("cqg.rtd",,"StudyData", "Close("&$D$12&") when LocalYear("&$D$12&")="&$D$3&" and localMonth("&$D$12&") ="&$E$3&" and LocalDay("&$D$12&")="&$F$3&" and Barix("&$D$12&",reference:=StartOfDay)="&A19&"", "Bar", "", "Close","5","0","",,,"False","T","EveryTick") -> 1308 | M19: 0.003914344923 | N19: =RTD("cqg.rtd",,"StudyData", "Close("&$D$12&") when LocalYear("&$D$12&")="&$D$4&" and localMonth("&$D$12&") ="&$E$4&" and LocalDay("&$D$12&")="&$F$4&" and Barix("&$D$12&",reference:=StartOfDay)="&A19&"", "Bar", "", "Close","5","0","",,,"False","T","EveryTick") -> 1299.9 | O19: 0.0002308402585 | P19: =RTD("cqg.rtd",,"StudyData", "Close("&$D$12&") when LocalYear("&$D$12&")="&$D$5&" and localMonth("&$D$12&") ="&$E$5&" and LocalDay("&$D$12&")="&$F$5&" and Barix("&$D$12&",reference:=StartOfDay)="&A19&"", "Bar", "", "Close","5","0","",,,"False","T","EveryTick") -> 1301.6 | Q19: -0.002146580803 | R19: =RTD("cqg.rtd",,"StudyData", "Close("&$D$12&") when LocalYear("&$D$12&")="&$D$6&" and localMonth("&$D$12&") ="&$E$6&" and LocalDay("&$D$12&")="&$F$6&" and Barix("&$D$12&",reference:=StartOfDay)="&A19&"", "Bar", "", "Close","5","0","",,,"False","T","EveryTick") -> 1304 | S19: 0.0003835826621 | T19: =RTD("cqg.rtd",,"StudyData", "Close("&$D$12&") when LocalYear("&$D$12&")="&$D$7&" and localMonth("&$D$12&") ="&$E$7&" and LocalDay("&$D$12&")="&$F$7&" and Barix("&$D$12&",reference:=StartOfDay)="&A19&"", "Bar", "", "Close","5","0","",,,"False","T","EveryTick") -> 1303.2 | U19: 0.001460078383 | V19: =RTD("cqg.rtd",,"StudyData", "Close("&$D$12&") when LocalYear("&$D$12&")="&$D$8&" and localMonth("&$D$12&") ="&$E$8&" and LocalDay("&$D$12&")="&$F$8&" and Barix("&$D$12&",reference:=StartOfDay)="&A19&"", "Bar", "", "Close","5","0","",,,"False","T","EveryTick") -> 1302.6 | W19: 0.001537751807 | X19: =RTD("cqg.rtd",,"StudyData", "Close("&$D$12&") when LocalYear("&$D$12&")="&$D$9&" and localMonth("&$D$12&") ="&$E$9&" and LocalDay("&$D$12&")="&$F$9&" and Barix("&$D$12&",reference:=StartOfDay)="&A19&"", "Bar", "", "Close","5","0","",,,"False","T","EveryTick") -> 1303.4 | Y19: 0.002306982467 | Z19: =RTD("cqg.rtd",,"StudyData", "Close("&$D$12&") when LocalYear("&$D$12&")="&$D$10&" and localMonth("&$D$12&") ="&$E$10&" and LocalDay("&$D$12&")="&$F$10&" and Barix("&$D$12&",reference:=StartOfDay)="&A19&"", "Bar", "", "Close","5","0","",,,"False","T","EveryTick") -> 1296.7 | AA19: 0.0006173315842
A20: 187 | B20: 08:35:00 | D20: 2 | E20: #.00 | G20: 2018-06-07 | H20: =RTD("cqg.rtd",,"StudyData", "Close("&$D$12&") when LocalYear("&$D$12&")="&$D$1&" and localMonth("&$D$12&") ="&$E$1&" and LocalDay("&$D$12&")="&$F$1&" and Barix("&$D$12&",reference:=StartOfDay)="&A20&"", "Bar", "", "Close","5","0","",,,"False","T","EveryTick") -> 1282.4 | I20: 0.0003120124805 | J20: =RTD("cqg.rtd",,"StudyData", "Close("&$D$12&") when LocalYear("&$D$12&")="&$D$2&" and localMonth("&$D$12&") ="&$E$2&" and LocalDay("&$D$12&")="&$F$2&" and Barix("&$D$12&",reference:=StartOfDay)="&A20&"", "Bar", "", "Close","5","0","",,,"False","T","EveryTick") -> 1288.9 | K20: -0.0130178421 | L20: =RTD("cqg.rtd",,"StudyData", "Close("&$D$12&") when LocalYear("&$D$12&")="&$D$3&" and localMonth("&$D$12&") ="&$E$3&" and LocalDay("&$D$12&")="&$F$3&" and Barix("&$D$12&",reference:=StartOfDay)="&A20&"", "Bar", "", "Close","5","0","",,,"False","T","EveryTick") -> 1308.1 | M20: 0.003991096784 | N20: =RTD("cqg.rtd",,"StudyData", "Close("&$D$12&") when LocalYear("&$D$12&")="&$D$4&" and localMonth("&$D$12&") ="&$E$4&" and LocalDay("&$D$12&")="&$F$4&" and Barix("&$D$12&",reference:=StartOfDay)="&A20&"", "Bar", "", "Close","5","0","",,,"False","T","EveryTick") -> 1299.8 | O20: 0.0001538935057 | P20: =RTD("cqg.rtd",,"StudyData", "Close("&$D$12&") when LocalYear("&$D$12&")="&$D$5&" and localMonth("&$D$12&") ="&$E$5&" and LocalDay("&$D$12&")="&$F$5&" and Barix("&$D$12&",reference:=StartOfDay)="&A20&"", "Bar", "", "Close","5","0","",,,"False","T","EveryTick") -> 1302.1 | Q20: -0.001763262803 | R20: =RTD("cqg.rtd",,"StudyData", "Close("&$D$12&") when LocalYear("&$D$12&")="&$D$6&" and localMonth("&$D$12&") ="&$E$6&" and LocalDay("&$D$12&")="&$F$6&" and Barix("&$D$12&",reference:=StartOfDay)="&A20&"", "Bar", "", "Close","5","0","",,,"False","T","EveryTick") -> 1304.2 | S20: 0.0005370157269 | T20: =RTD("cqg.rtd",,"StudyData", "Close("&$D$12&") when LocalYear("&$D$12&")="&$D$7&" and localMonth("&$D$12&") ="&$E$7&" and LocalDay("&$D$12&")="&$F$7&" and Barix("&$D$12&",reference:=StartOfDay)="&A20&"", "Bar", "", "Close","5","0","",,,"False","T","EveryTick") -> 1303 | U20: 0.001306385922 | V20: =RTD("cqg.rtd",,"StudyData", "Close("&$D$12&") when LocalYear("&$D$12&")="&$D$8&" and localMonth("&$D$12&") ="&$E$8&" and LocalDay("&$D$12&")="&$F$8&" and Barix("&$D$12&",reference:=StartOfDay)="&A20&"", "Bar", "", "Close","5","0","",,,"False","T","EveryTick") -> 1302.4 | W20: 0.001383976626 | X20: =RTD("cqg.rtd",,"StudyData", "Close("&$D$12&") when LocalYear("&$D$12&")="&$D$9&" and localMonth("&$D$12&") ="&$E$9&" and LocalDay("&$D$12&")="&$F$9&" and Barix("&$D$12&",reference:=StartOfDay)="&A20&"", "Bar", "", "Close","5","0","",,,"False","T","EveryTick") -> 1303.5 | Y20: 0.002383881882 | Z20: =RTD("cqg.rtd",,"StudyData", "Close("&$D$12&") when LocalYear("&$D$12&")="&$D$10&" and localMonth("&$D$12&") ="&$E$10&" and LocalDay("&$D$12&")="&$F$10&" and Barix("&$D$12&",reference:=StartOfDay)="&A20&"", "Bar", "", "Close","5","0","",,,"False","T","EveryTick") -> 1296.5 | AA20: 0.0004629986882
A21: 188 | B21: 08:40:00 | D21: 3 | E21: #.000 | G21: 2018-06-06 | H21: =RTD("cqg.rtd",,"StudyData", "Close("&$D$12&") when LocalYear("&$D$12&")="&$D$1&" and localMonth("&$D$12&") ="&$E$1&" and LocalDay("&$D$12&")="&$F$1&" and Barix("&$D$12&",reference:=StartOfDay)="&A21&"", "Bar", "", "Close","5","0","",,,"False","T","EveryTick") -> 1282.8 | I21: 0.000624024961 | J21: =RTD("cqg.rtd",,"StudyData", "Close("&$D$12&") when LocalYear("&$D$12&")="&$D$2&" and localMonth("&$D$12&") ="&$E$2&" and LocalDay("&$D$12&")="&$F$2&" and Barix("&$D$12&",reference:=StartOfDay)="&A21&"", "Bar", "", "Close","5","0","",,,"False","T","EveryTick") -> 1287.9 | K21: -0.01378359752 | L21: =RTD("cqg.rtd",,"StudyData", "Close("&$D$12&") when LocalYear("&$D$12&")="&$D$3&" and localMonth("&$D$12&") ="&$E$3&" and LocalDay("&$D$12&")="&$F$3&" and Barix("&$D$12&",reference:=StartOfDay)="&A21&"", "Bar", "", "Close","5","0","",,,"False","T","EveryTick") -> 1307.7 | M21: 0.003684089339 | N21: =RTD("cqg.rtd",,"StudyData", "Close("&$D$12&") when LocalYear("&$D$12&")="&$D$4&" and localMonth("&$D$12&") ="&$E$4&" and LocalDay("&$D$12&")="&$F$4&" and Barix("&$D$12&",reference:=StartOfDay)="&A21&"", "Bar", "", "Close","5","0","",,,"False","T","EveryTick") -> 1300.1 | O21: 0.0003847337642 | P21: =RTD("cqg.rtd",,"StudyData", "Close("&$D$12&") when LocalYear("&$D$12&")="&$D$5&" and localMonth("&$D$12&") ="&$E$5&" and LocalDay("&$D$12&")="&$F$5&" and Barix("&$D$12&",reference:=StartOfDay)="&A21&"", "Bar", "", "Close","5","0","",,,"False","T","EveryTick") -> 1301.8 | Q21: -0.001993253603 | R21: =RTD("cqg.rtd",,"StudyData", "Close("&$D$12&") when LocalYear("&$D$12&")="&$D$6&" and localMonth("&$D$12&") ="&$E$6&" and LocalDay("&$D$12&")="&$F$6&" and Barix("&$D$12&",reference:=StartOfDay)="&A21&"", "Bar", "", "Close","5","0","",,,"False","T","EveryTick") -> 1304.5 | S21: 0.0007671653241 | T21: =RTD("cqg.rtd",,"StudyData", "Close("&$D$12&") when LocalYear("&$D$12&")="&$D$7&" and localMonth("&$D$12&") ="&$E$7&" and LocalDay("&$D$12&")="&$F$7&" and Barix("&$D$12&",reference:=StartOfDay)="&A21&"", "Bar", "", "Close","5","0","",,,"False","T","EveryTick") -> 1303 | U21: 0.001306385922 | V21: =RTD("cqg.rtd",,"StudyData", "Close("&$D$12&") when LocalYear("&$D$12&")="&$D$8&" and localMonth("&$D$12&") ="&$E$8&" and LocalDay("&$D$12&")="&$F$8&" and Barix("&$D$12&",reference:=StartOfDay)="&A21&"", "Bar", "", "Close","5","0","",,,"False","T","EveryTick") -> 1301.9 | W21: 0.0009995386745 | X21: =RTD("cqg.rtd",,"StudyData", "Close("&$D$12&") when LocalYear("&$D$12&")="&$D$9&" and localMonth("&$D$12&") ="&$E$9&" and LocalDay("&$D$12&")="&$F$9&" and Barix("&$D$12&",reference:=StartOfDay)="&A21&"", "Bar", "", "Close","5","0","",,,"False","T","EveryTick") -> 1302.7 | Y21: 0.001768686558 | Z21: =RTD("cqg.rtd",,"StudyData", "Close("&$D$12&") when LocalYear("&$D$12&")="&$D$10&" and localMonth("&$D$12&") ="&$E$10&" and LocalDay("&$D$12&")="&$F$10&" and Barix("&$D$12&",reference:=StartOfDay)="&A21&"", "Bar", "", "Close","5","0","",,,"False","T","EveryTick") -> 1297 | AA21: 0.0008488309283
A22: 189 | B22: 08:45:00 | D22: 4 | E22: #.0000 | G22: 2018-06-05 | H22: =RTD("cqg.rtd",,"StudyData", "Close("&$D$12&") when LocalYear("&$D$12&")="&$D$1&" and localMonth("&$D$12&") ="&$E$1&" and LocalDay("&$D$12&")="&$F$1&" and Barix("&$D$12&",reference:=StartOfDay)="&A22&"", "Bar", "", "Close","5","0","",,,"False","T","EveryTick") -> 1282.8 | I22: 0.000624024961 | J22: =RTD("cqg.rtd",,"StudyData", "Close("&$D$12&") when LocalYear("&$D$12&")="&$D$2&" and localMonth("&$D$12&") ="&$E$2&" and LocalDay("&$D$12&")="&$F$2&" and Barix("&$D$12&",reference:=StartOfDay)="&A22&"", "Bar", "", "Close","5","0","",,,"False","T","EveryTick") -> 1288.5 | K22: -0.01332414427 | L22: =RTD("cqg.rtd",,"StudyData", "Close("&$D$12&") when LocalYear("&$D$12&")="&$D$3&" and localMonth("&$D$12&") ="&$E$3&" and LocalDay("&$D$12&")="&$F$3&" and Barix("&$D$12&",reference:=StartOfDay)="&A22&"", "Bar", "", "Close","5","0","",,,"False","T","EveryTick") -> 1307.3 | M22: 0.003377081894 | N22: =RTD("cqg.rtd",,"StudyData", "Close("&$D$12&") when LocalYear("&$D$12&")="&$D$4&" and localMonth("&$D$12&") ="&$E$4&" and LocalDay("&$D$12&")="&$F$4&" and Barix("&$D$12&",reference:=StartOfDay)="&A22&"", "Bar", "", "Close","5","0","",,,"False","T","EveryTick") -> 1300.3 | O22: 0.0005386272699 | P22: =RTD("cqg.rtd",,"StudyData", "Close("&$D$12&") when LocalYear("&$D$12&")="&$D$5&" and localMonth("&$D$12&") ="&$E$5&" and LocalDay("&$D$12&")="&$F$5&" and Barix("&$D$12&",reference:=StartOfDay)="&A22&"", "Bar", "", "Close","5","0","",,,"False","T","EveryTick") -> 1301.4 | Q22: -0.002299908004 | R22: =RTD("cqg.rtd",,"StudyData", "Close("&$D$12&") when LocalYear("&$D$12&")="&$D$6&" and localMonth("&$D$12&") ="&$E$6&" and LocalDay("&$D$12&")="&$F$6&" and Barix("&$D$12&",reference:=StartOfDay)="&A22&"", "Bar", "", "Close","5","0","",,,"False","T","EveryTick") -> 1304.5 | S22: 0.0007671653241 | T22: =RTD("cqg.rtd",,"StudyData", "Close("&$D$12&") when LocalYear("&$D$12&")="&$D$7&" and localMonth("&$D$12&") ="&$E$7&" and LocalDay("&$D$12&")="&$F$7&" and Barix("&$D$12&",reference:=StartOfDay)="&A22&"", "Bar", "", "Close","5","0","",,,"False","T","EveryTick") -> 1303.1 | U22: 0.001383232152 | V22: =RTD("cqg.rtd",,"StudyData", "Close("&$D$12&") when LocalYear("&$D$12&")="&$D$8&" and localMonth("&$D$12&") ="&$E$8&" and LocalDay("&$D$12&")="&$F$8&" and Barix("&$D$12&",reference:=StartOfDay)="&A22&"", "Bar", "", "Close","5","0","",,,"False","T","EveryTick") -> 1300 | W22: -0.0004613255421 | X22: =RTD("cqg.rtd",,"StudyData", "Close("&$D$12&") when LocalYear("&$D$12&")="&$D$9&" and localMonth("&$D$12&") ="&$E$9&" and LocalDay("&$D$12&")="&$F$9&" and Barix("&$D$12&",reference:=StartOfDay)="&A22&"", "Bar", "", "Close","5","0","",,,"False","T","EveryTick") -> 1303.8 | Y22: 0.002614580129 | Z22: =RTD("cqg.rtd",,"StudyData", "Close("&$D$12&") when LocalYear("&$D$12&")="&$D$10&" and localMonth("&$D$12&") ="&$E$10&" and LocalDay("&$D$12&")="&$F$10&" and Barix("&$D$12&",reference:=StartOfDay)="&A22&"", "Bar", "", "Close","5","0","",,,"False","T","EveryTick") -> 1295.5 | AA22: -0.0003086657921
A23: 190 | B23: 08:50:00 | D23: 5 | E23: #.00000 | H23: =RTD("cqg.rtd",,"StudyData", "Close("&$D$12&") when LocalYear("&$D$12&")="&$D$1&" and localMonth("&$D$12&") ="&$E$1&" and LocalDay("&$D$12&")="&$F$1&" and Barix("&$D$12&",reference:=StartOfDay)="&A23&"", "Bar", "", "Close","5","0","",,,"False","T","EveryTick") -> 1282.8 | I23: 0.000624024961 | J23: =RTD("cqg.rtd",,"StudyData", "Close("&$D$12&") when LocalYear("&$D$12&")="&$D$2&" and localMonth("&$D$12&") ="&$E$2&" and LocalDay("&$D$12&")="&$F$2&" and Barix("&$D$12&",reference:=StartOfDay)="&A23&"", "Bar", "", "Close","5","0","",,,"False","T","EveryTick") -> 1287.6 | K23: -0.01401332414 | L23: =RTD("cqg.rtd",,"StudyData", "Close("&$D$12&") when LocalYear("&$D$12&")="&$D$3&" and localMonth("&$D$12&") ="&$E$3&" and LocalDay("&$D$12&")="&$F$3&" and Barix("&$D$12&",reference:=StartOfDay)="&A23&"", "Bar", "", "Close","5","0","",,,"False","T","EveryTick") -> 1307.4 | M23: 0.003453833755 | N23: =RTD("cqg.rtd",,"StudyData", "Close("&$D$12&") when LocalYear("&$D$12&")="&$D$4&" and localMonth("&$D$12&") ="&$E$4&" and LocalDay("&$D$12&")="&$F$4&" and Barix("&$D$12&",reference:=StartOfDay)="&A23&"", "Bar", "", "Close","5","0","",,,"False","T","EveryTick") -> 1300.2 | O23: 0.0004616805171 | P23: =RTD("cqg.rtd",,"StudyData", "Close("&$D$12&") when LocalYear("&$D$12&")="&$D$5&" and localMonth("&$D$12&") ="&$E$5&" and LocalDay("&$D$12&")="&$F$5&" and Barix("&$D$12&",reference:=StartOfDay)="&A23&"", "Bar", "", "Close","5","0","",,,"False","T","EveryTick") -> 1301.7 | Q23: -0.002069917203 | R23: =RTD("cqg.rtd",,"StudyData", "Close("&$D$12&") when LocalYear("&$D$12&")="&$D$6&" and localMonth("&$D$12&") ="&$E$6&" and LocalDay("&$D$12&")="&$F$6&" and Barix("&$D$12&",reference:=StartOfDay)="&A23&"", "Bar", "", "Close","5","0","",,,"False","T","EveryTick") -> 1303.8 | S23: 0.0002301495972 | T23: =RTD("cqg.rtd",,"StudyData", "Close("&$D$12&") when LocalYear("&$D$12&")="&$D$7&" and localMonth("&$D$12&") ="&$E$7&" and LocalDay("&$D$12&")="&$F$7&" and Barix("&$D$12&",reference:=StartOfDay)="&A23&"", "Bar", "", "Close","5","0","",,,"False","T","EveryTick") -> 1302.8 | U23: 0.00115269346 | V23: =RTD("cqg.rtd",,"StudyData", "Close("&$D$12&") when LocalYear("&$D$12&")="&$D$8&" and localMonth("&$D$12&") ="&$E$8&" and LocalDay("&$D$12&")="&$F$8&" and Barix("&$D$12&",reference:=StartOfDay)="&A23&"", "Bar", "", "Close","5","0","",,,"False","T","EveryTick") -> 1300.4 | W23: -0.0001537751807 | X23: =RTD("cqg.rtd",,"StudyData", "Close("&$D$12&") when LocalYear("&$D$12&")="&$D$9&" and localMonth("&$D$12&") ="&$E$9&" and LocalDay("&$D$12&")="&$F$9&" and Barix("&$D$12&",reference:=StartOfDay)="&A23&"", "Bar", "", "Close","5","0","",,,"False","T","EveryTick") -> 1304.9 | Y23: 0.0034604737 | Z23: =RTD("cqg.rtd",,"StudyData", "Close("&$D$12&") when LocalYear("&$D$12&")="&$D$10&" and localMonth("&$D$12&") ="&$E$10&" and LocalDay("&$D$12&")="&$F$10&" and Barix("&$D$12&",reference:=StartOfDay)="&A23&"", "Bar", "", "Close","5","0","",,,"False","T","EveryTick") -> 1295.9 | AA23: 0 | AE23: 190
A24: 191 | B24: 08:55:00 | D24: 6 | E24: #.000000 | H24: =RTD("cqg.rtd",,"StudyData", "Close("&$D$12&") when LocalYear("&$D$12&")="&$D$1&" and localMonth("&$D$12&") ="&$E$1&" and LocalDay("&$D$12&")="&$F$1&" and Barix("&$D$12&",reference:=StartOfDay)="&A24&"", "Bar", "", "Close","5","0","",,,"False","T","EveryTick") ->  | J24: =RTD("cqg.rtd",,"StudyData", "Close("&$D$12&") when LocalYear("&$D$12&")="&$D$2&" and localMonth("&$D$12&") ="&$E$2&" and LocalDay("&$D$12&")="&$F$2&" and Barix("&$D$12&",reference:=StartOfDay)="&A24&"", "Bar", "", "Close","5","0","",,,"False","T","EveryTick") -> 1286.4 | K24: -0.01493223065 | L24: =RTD("cqg.rtd",,"StudyData", "Close("&$D$12&") when LocalYear("&$D$12&")="&$D$3&" and localMonth("&$D$12&") ="&$E$3&" and LocalDay("&$D$12&")="&$F$3&" and Barix("&$D$12&",reference:=StartOfDay)="&A24&"", "Bar", "", "Close","5","0","",,,"False","T","EveryTick") -> 1307 | M24: 0.003146826311 | N24: =RTD("cqg.rtd",,"StudyData", "Close("&$D$12&") when LocalYear("&$D$12&")="&$D$4&" and localMonth("&$D$12&") ="&$E$4&" and LocalDay("&$D$12&")="&$F$4&" and Barix("&$D$12&",reference:=StartOfDay)="&A24&"", "Bar", "", "Close","5","0","",,,"False","T","EveryTick") -> 1299.6 | O24: 0 | P24: =RTD("cqg.rtd",,"StudyData", "Close("&$D$12&") when LocalYear("&$D$12&")="&$D$5&" and localMonth("&$D$12&") ="&$E$5&" and LocalDay("&$D$12&")="&$F$5&" and Barix("&$D$12&",reference:=StartOfDay)="&A24&"", "Bar", "", "Close","5","0","",,,"False","T","EveryTick") -> 1302.4 | Q24: -0.001533272002 | R24: =RTD("cqg.rtd",,"StudyData", "Close("&$D$12&") when LocalYear("&$D$12&")="&$D$6&" and localMonth("&$D$12&") ="&$E$6&" and LocalDay("&$D$12&")="&$F$6&" and Barix("&$D$12&",reference:=StartOfDay)="&A24&"", "Bar", "", "Close","5","0","",,,"False","T","EveryTick") -> 1304.1 | S24: 0.0004602991945 | T24: =RTD("cqg.rtd",,"StudyData", "Close("&$D$12&") when LocalYear("&$D$12&")="&$D$7&" and localMonth("&$D$12&") ="&$E$7&" and LocalDay("&$D$12&")="&$F$7&" and Barix("&$D$12&",reference:=StartOfDay)="&A24&"", "Bar", "", "Close","5","0","",,,"False","T","EveryTick") -> 1302.7 | U24: 0.00107584723 | V24: =RTD("cqg.rtd",,"StudyData", "Close("&$D$12&") when LocalYear("&$D$12&")="&$D$8&" and localMonth("&$D$12&") ="&$E$8&" and LocalDay("&$D$12&")="&$F$8&" and Barix("&$D$12&",reference:=StartOfDay)="&A24&"", "Bar", "", "Close","5","0","",,,"False","T","EveryTick") -> 1300.4 | W24: -0.0001537751807 | X24: =RTD("cqg.rtd",,"StudyData", "Close("&$D$12&") when LocalYear("&$D$12&")="&$D$9&" and localMonth("&$D$12&") ="&$E$9&" and LocalDay("&$D$12&")="&$F$9&" and Barix("&$D$12&",reference:=StartOfDay)="&A24&"", "Bar", "", "Close","5","0","",,,"False","T","EveryTick") -> 1304.9 | Y24: 0.0034604737 | Z24: =RTD("cqg.rtd",,"StudyData", "Close("&$D$12&") when LocalYear("&$D$12&")="&$D$10&" and localMonth("&$D$12&") ="&$E$10&" and LocalDay("&$D$12&")="&$F$10&" and Barix("&$D$12&",reference:=StartOfDay)="&A24&"", "Bar", "", "Close","5","0","",,,"False","T","EveryTick") -> 1296.3 | AA24: 0.0003086657921
A25: 192 | B25: 09:00:00 | D25: 7 | E25: #.0000000 | H25: =RTD("cqg.rtd",,"StudyData", "Close("&$D$12&") when LocalYear("&$D$12&")="&$D$1&" and localMonth("&$D$12&") ="&$E$1&" and LocalDay("&$D$12&")="&$F$1&" and Barix("&$D$12&",reference:=StartOfDay)="&A25&"", "Bar", "", "Close","5","0","",,,"False","T","EveryTick") ->  | J25: =RTD("cqg.rtd",,"StudyData", "Close("&$D$12&") when LocalYear("&$D$12&")="&$D$2&" and localMonth("&$D$12&") ="&$E$2&" and LocalDay("&$D$12&")="&$F$2&" and Barix("&$D$12&",reference:=StartOfDay)="&A25&"", "Bar", "", "Close","5","0","",,,"False","T","EveryTick") -> 1287.8 | K25: -0.01386017306 | L25: =RTD("cqg.rtd",,"StudyData", "Close("&$D$12&") when LocalYear("&$D$12&")="&$D$3&" and localMonth("&$D$12&") ="&$E$3&" and LocalDay("&$D$12&")="&$F$3&" and Barix("&$D$12&",reference:=StartOfDay)="&A25&"", "Bar", "", "Close","5","0","",,,"False","T","EveryTick") -> 1306.7 | M25: 0.002916570727 | N25: =RTD("cqg.rtd",,"StudyData", "Close("&$D$12&") when LocalYear("&$D$12&")="&$D$4&" and localMonth("&$D$12&") ="&$E$4&" and LocalDay("&$D$12&")="&$F$4&" and Barix("&$D$12&",reference:=StartOfDay)="&A25&"", "Bar", "", "Close","5","0","",,,"False","T","EveryTick") -> 1300.4 | O25: 0.0006155740228 | P25: =RTD("cqg.rtd",,"StudyData", "Close("&$D$12&") when LocalYear("&$D$12&")="&$D$5&" and localMonth("&$D$12&") ="&$E$5&" and LocalDay("&$D$12&")="&$F$5&" and Barix("&$D$12&",reference:=StartOfDay)="&A25&"", "Bar", "", "Close","5","0","",,,"False","T","EveryTick") -> 1302.6 | Q25: -0.001379944802 | R25: =RTD("cqg.rtd",,"StudyData", "Close("&$D$12&") when LocalYear("&$D$12&")="&$D$6&" and localMonth("&$D$12&") ="&$E$6&" and LocalDay("&$D$12&")="&$F$6&" and Barix("&$D$12&",reference:=StartOfDay)="&A25&"", "Bar", "", "Close","5","0","",,,"False","T","EveryTick") -> 1303.9 | S25: 0.0003068661297 | T25: =RTD("cqg.rtd",,"StudyData", "Close("&$D$12&") when LocalYear("&$D$12&")="&$D$7&" and localMonth("&$D$12&") ="&$E$7&" and LocalDay("&$D$12&")="&$F$7&" and Barix("&$D$12&",reference:=StartOfDay)="&A25&"", "Bar", "", "Close","5","0","",,,"False","T","EveryTick") -> 1303.4 | U25: 0.001613770845 | V25: =RTD("cqg.rtd",,"StudyData", "Close("&$D$12&") when LocalYear("&$D$12&")="&$D$8&" and localMonth("&$D$12&") ="&$E$8&" and LocalDay("&$D$12&")="&$F$8&" and Barix("&$D$12&",reference:=StartOfDay)="&A25&"", "Bar", "", "Close","5","0","",,,"False","T","EveryTick") -> 1301.7 | W25: 0.0008457634938 | X25: =RTD("cqg.rtd",,"StudyData", "Close("&$D$12&") when LocalYear("&$D$12&")="&$D$9&" and localMonth("&$D$12&") ="&$E$9&" and LocalDay("&$D$12&")="&$F$9&" and Barix("&$D$12&",reference:=StartOfDay)="&A25&"", "Bar", "", "Close","5","0","",,,"False","T","EveryTick") -> 1305.4 | Y25: 0.003844970778 | Z25: =RTD("cqg.rtd",,"StudyData", "Close("&$D$12&") when LocalYear("&$D$12&")="&$D$10&" and localMonth("&$D$12&") ="&$E$10&" and LocalDay("&$D$12&")="&$F$10&" and Barix("&$D$12&",reference:=StartOfDay)="&A25&"", "Bar", "", "Close","5","0","",,,"False","T","EveryTick") -> 1294.7 | AA25: -0.0009259973763
A26: 193 | B26: 09:05:00 | C26: =IF(WEEKDAY(TODAY())=7,TODAY()-1,IF(WEEKDAY(TODAY())=1,TODAY()-2,TODAY())) -> 2018-06-18 | D26: =YEAR(C26) -> 2018 | E26: =MONTH(C26) -> 6 | F26: =DAY(C26) -> 18 | H26: =RTD("cqg.rtd",,"StudyData", "Close("&$D$12&") when LocalYear("&$D$12&")="&$D$1&" and localMonth("&$D$12&") ="&$E$1&" and LocalDay("&$D$12&")="&$F$1&" and Barix("&$D$12&",reference:=StartOfDay)="&A26&"", "Bar", "", "Close","5","0","",,,"False","T","EveryTick") ->  | J26: =RTD("cqg.rtd",,"StudyData", "Close("&$D$12&") when LocalYear("&$D$12&")="&$D$2&" and localMonth("&$D$12&") ="&$E$2&" and LocalDay("&$D$12&")="&$F$2&" and Barix("&$D$12&",reference:=StartOfDay)="&A26&"", "Bar", "", "Close","5","0","",,,"False","T","EveryTick") -> 1288 | K26: -0.01370702198 | L26: =RTD("cqg.rtd",,"StudyData", "Close("&$D$12&") when LocalYear("&$D$12&")="&$D$3&" and localMonth("&$D$12&") ="&$E$3&" and LocalDay("&$D$12&")="&$F$3&" and Barix("&$D$12&",reference:=StartOfDay)="&A26&"", "Bar", "", "Close","5","0","",,,"False","T","EveryTick") -> 1305.6 | M26: 0.002072300253 | N26: =RTD("cqg.rtd",,"StudyData", "Close("&$D$12&") when LocalYear("&$D$12&")="&$D$4&" and localMonth("&$D$12&") ="&$E$4&" and LocalDay("&$D$12&")="&$F$4&" and Barix("&$D$12&",reference:=StartOfDay)="&A26&"", "Bar", "", "Close","5","0","",,,"False","T","EveryTick") -> 1299.8 | O26: 0.0001538935057 | P26: =RTD("cqg.rtd",,"StudyData", "Close("&$D$12&") when LocalYear("&$D$12&")="&$D$5&" and localMonth("&$D$12&") ="&$E$5&" and LocalDay("&$D$12&")="&$F$5&" and Barix("&$D$12&",reference:=StartOfDay)="&A26&"", "Bar", "", "Close","5","0","",,,"False","T","EveryTick") -> 1302.3 | Q26: -0.001609935603 | R26: =RTD("cqg.rtd",,"StudyData", "Close("&$D$12&") when LocalYear("&$D$12&")="&$D$6&" and localMonth("&$D$12&") ="&$E$6&" and LocalDay("&$D$12&")="&$F$6&" and Barix("&$D$12&",reference:=StartOfDay)="&A26&"", "Bar", "", "Close","5","0","",,,"False","T","EveryTick") -> 1303.3 | S26: -0.0001534330648 | T26: =RTD("cqg.rtd",,"StudyData", "Close("&$D$12&") when LocalYear("&$D$12&")="&$D$7&" and localMonth("&$D$12&") ="&$E$7&" and LocalDay("&$D$12&")="&$F$7&" and Barix("&$D$12&",reference:=StartOfDay)="&A26&"", "Bar", "", "Close","5","0","",,,"False","T","EveryTick") -> 1303 | U26: 0.001306385922 | V26: =RTD("cqg.rtd",,"StudyData", "Close("&$D$12&") when LocalYear("&$D$12&")="&$D$8&" and localMonth("&$D$12&") ="&$E$8&" and LocalDay("&$D$12&")="&$F$8&" and Barix("&$D$12&",reference:=StartOfDay)="&A26&"", "Bar", "", "Close","5","0","",,,"False","T","EveryTick") -> 1301.1 | W26: 0.0003844379517 | X26: =RTD("cqg.rtd",,"StudyData", "Close("&$D$12&") when LocalYear("&$D$12&")="&$D$9&" and localMonth("&$D$12&") ="&$E$9&" and LocalDay("&$D$12&")="&$F$9&" and Barix("&$D$12&",reference:=StartOfDay)="&A26&"", "Bar", "", "Close","5","0","",,,"False","T","EveryTick") -> 1305.3 | Y26: 0.003768071363 | Z26: =RTD("cqg.rtd",,"StudyData", "Close("&$D$12&") when LocalYear("&$D$12&")="&$D$10&" and localMonth("&$D$12&") ="&$E$10&" and LocalDay("&$D$12&")="&$F$10&" and Barix("&$D$12&",reference:=StartOfDay)="&A26&"", "Bar", "", "Close","5","0","",,,"False","T","EveryTick") -> 1295.4 | AA26: -0.0003858322401
A27: 194 | B27: 09:10:00 | C27: =WORKDAY(C26,-1) -> 2018-06-15 | D27: =YEAR(C27) -> 2018 | E27: =MONTH(C27) -> 6 | F27: =DAY(C27) -> 15 | G27: =IF(RTD("cqg.rtd",,"StudyData", "Close("&$D$12&") when LocalYear("&$D$12&")="&D27&" and localMonth("&$D$12&") ="&E27&" and LocalDay("&$D$12&")="&F27&" and Barix("&$D$12&",reference:=StartOfDay)=275", "Bar", "", "Close","5","0","",,,"False","T","EveryTick")="",2,1) -> 1 | H27: =RTD("cqg.rtd",,"StudyData", "Close("&$D$12&") when LocalYear("&$D$12&")="&$D$1&" and localMonth("&$D$12&") ="&$E$1&" and LocalDay("&$D$12&")="&$F$1&" and Barix("&$D$12&",reference:=StartOfDay)="&A27&"", "Bar", "", "Close","5","0","",,,"False","T","EveryTick") ->  | J27: =RTD("cqg.rtd",,"StudyData", "Close("&$D$12&") when LocalYear("&$D$12&")="&$D$2&" and localMonth("&$D$12&") ="&$E$2&" and LocalDay("&$D$12&")="&$F$2&" and Barix("&$D$12&",reference:=StartOfDay)="&A27&"", "Bar", "", "Close","5","0","",,,"False","T","EveryTick") -> 1287.3 | K27: -0.01424305077 | L27: =RTD("cqg.rtd",,"StudyData", "Close("&$D$12&") when LocalYear("&$D$12&")="&$D$3&" and localMonth("&$D$12&") ="&$E$3&" and LocalDay("&$D$12&")="&$F$3&" and Barix("&$D$12&",reference:=StartOfDay)="&A27&"", "Bar", "", "Close","5","0","",,,"False","T","EveryTick") -> 1305.4 | M27: 0.001918796531 | N27: =RTD("cqg.rtd",,"StudyData", "Close("&$D$12&") when LocalYear("&$D$12&")="&$D$4&" and localMonth("&$D$12&") ="&$E$4&" and LocalDay("&$D$12&")="&$F$4&" and Barix("&$D$12&",reference:=StartOfDay)="&A27&"", "Bar", "", "Close","5","0","",,,"False","T","EveryTick") -> 1300.2 | O27: 0.0004616805171 | P27: =RTD("cqg.rtd",,"StudyData", "Close("&$D$12&") when LocalYear("&$D$12&")="&$D$5&" and localMonth("&$D$12&") ="&$E$5&" and LocalDay("&$D$12&")="&$F$5&" and Barix("&$D$12&",reference:=StartOfDay)="&A27&"", "Bar", "", "Close","5","0","",,,"False","T","EveryTick") -> 1302.5 | Q27: -0.001456608402 | R27: =RTD("cqg.rtd",,"StudyData", "Close("&$D$12&") when LocalYear("&$D$12&")="&$D$6&" and localMonth("&$D$12&") ="&$E$6&" and LocalDay("&$D$12&")="&$F$6&" and Barix("&$D$12&",reference:=StartOfDay)="&A27&"", "Bar", "", "Close","5","0","",,,"False","T","EveryTick") -> 1302.6 | S27: -0.0006904487917 | T27: =RTD("cqg.rtd",,"StudyData", "Close("&$D$12&") when LocalYear("&$D$12&")="&$D$7&" and localMonth("&$D$12&") ="&$E$7&" and LocalDay("&$D$12&")="&$F$7&" and Barix("&$D$12&",reference:=StartOfDay)="&A27&"", "Bar", "", "Close","5","0","",,,"False","T","EveryTick") -> 1303 | U27: 0.001306385922 | V27: =RTD("cqg.rtd",,"StudyData", "Close("&$D$12&") when LocalYear("&$D$12&")="&$D$8&" and localMonth("&$D$12&") ="&$E$8&" and LocalDay("&$D$12&")="&$F$8&" and Barix("&$D$12&",reference:=StartOfDay)="&A27&"", "Bar", "", "Close","5","0","",,,"False","T","EveryTick") -> 1301.3 | W27: 0.0005382131324 | X27: =RTD("cqg.rtd",,"StudyData", "Close("&$D$12&") when LocalYear("&$D$12&")="&$D$9&" and localMonth("&$D$12&") ="&$E$9&" and LocalDay("&$D$12&")="&$F$9&" and Barix("&$D$12&",reference:=StartOfDay)="&A27&"", "Bar", "", "Close","5","0","",,,"False","T","EveryTick") -> 1304.7 | Y27: 0.003306674869 | Z27: =RTD("cqg.rtd",,"StudyData", "Close("&$D$12&") when LocalYear("&$D$12&")="&$D$10&" and localMonth("&$D$12&") ="&$E$10&" and LocalDay("&$D$12&")="&$F$10&" and Barix("&$D$12&",reference:=StartOfDay)="&A27&"", "Bar", "", "Close","5","0","",,,"False","T","EveryTick") -> 1295.5 | AA27: -0.0003086657921
A28: 195 | B28: 09:15:00 | C28: =WORKDAY(C27,-1) -> 2018-06-14 | D28: 2018 | E28: 6 | F28: 14 | G28: =IF(RTD("cqg.rtd",,"StudyData", "Close("&$D$12&") when LocalYear("&$D$12&")="&D28&" and localMonth("&$D$12&") ="&E28&" and LocalDay("&$D$12&")="&F28&" and Barix("&$D$12&",reference:=StartOfDay)=275", "Bar", "", "Close","5","0","",,,"False","T","EveryTick")="",2,1) -> 1 | H28: =RTD("cqg.rtd",,"StudyData", "Close("&$D$12&") when LocalYear("&$D$12&")="&$D$1&" and localMonth("&$D$12&") ="&$E$1&" and LocalDay("&$D$12&")="&$F$1&" and Barix("&$D$12&",reference:=StartOfDay)="&A28&"", "Bar", "", "Close","5","0","",,,"False","T","EveryTick") ->  | J28: =RTD("cqg.rtd",,"StudyData", "Close("&$D$12&") when LocalYear("&$D$12&")="&$D$2&" and localMonth("&$D$12&") ="&$E$2&" and LocalDay("&$D$12&")="&$F$2&" and Barix("&$D$12&",reference:=StartOfDay)="&A28&"", "Bar", "", "Close","5","0","",,,"False","T","EveryTick") -> 1286.3 | K28: -0.01500880619 | L28: =RTD("cqg.rtd",,"StudyData", "Close("&$D$12&") when LocalYear("&$D$12&")="&$D$3&" and localMonth("&$D$12&") ="&$E$3&" and LocalDay("&$D$12&")="&$F$3&" and Barix("&$D$12&",reference:=StartOfDay)="&A28&"", "Bar", "", "Close","5","0","",,,"False","T","EveryTick") -> 1306.6 | M28: 0.002839818866 | N28: =RTD("cqg.rtd",,"StudyData", "Close("&$D$12&") when LocalYear("&$D$12&")="&$D$4&" and localMonth("&$D$12&") ="&$E$4&" and LocalDay("&$D$12&")="&$F$4&" and Barix("&$D$12&",reference:=StartOfDay)="&A28&"", "Bar", "", "Close","5","0","",,,"False","T","EveryTick") -> 1299.9 | O28: 0.0002308402585 | P28: =RTD("cqg.rtd",,"StudyData", "Close("&$D$12&") when LocalYear("&$D$12&")="&$D$5&" and localMonth("&$D$12&") ="&$E$5&" and LocalDay("&$D$12&")="&$F$5&" and Barix("&$D$12&",reference:=StartOfDay)="&A28&"", "Bar", "", "Close","5","0","",,,"False","T","EveryTick") -> 1302.5 | Q28: -0.001456608402 | R28: =RTD("cqg.rtd",,"StudyData", "Close("&$D$12&") when LocalYear("&$D$12&")="&$D$6&" and localMonth("&$D$12&") ="&$E$6&" and LocalDay("&$D$12&")="&$F$6&" and Barix("&$D$12&",reference:=StartOfDay)="&A28&"", "Bar", "", "Close","5","0","",,,"False","T","EveryTick") -> 1303.6 | S28: 7.671653241e-05 | T28: =RTD("cqg.rtd",,"StudyData", "Close("&$D$12&") when LocalYear("&$D$12&")="&$D$7&" and localMonth("&$D$12&") ="&$E$7&" and LocalDay("&$D$12&")="&$F$7&" and Barix("&$D$12&",reference:=StartOfDay)="&A28&"", "Bar", "", "Close","5","0","",,,"False","T","EveryTick") -> 1303.4 | U28: 0.001613770845 | V28: =RTD("cqg.rtd",,"StudyData", "Close("&$D$12&") when LocalYear("&$D$12&")="&$D$8&" and localMonth("&$D$12&") ="&$E$8&" and LocalDay("&$D$12&")="&$F$8&" and Barix("&$D$12&",reference:=StartOfDay)="&A28&"", "Bar", "", "Close","5","0","",,,"False","T","EveryTick") -> 1301.3 | W28: 0.0005382131324 | X28: =RTD("cqg.rtd",,"StudyData", "Close("&$D$12&") when LocalYear("&$D$12&")="&$D$9&" and localMonth("&$D$12&") ="&$E$9&" and LocalDay("&$D$12&")="&$F$9&" and Barix("&$D$12&",reference:=StartOfDay)="&A28&"", "Bar", "", "Close","5","0","",,,"False","T","EveryTick") -> 1305.1 | Y28: 0.003614272532 | Z28: =RTD("cqg.rtd",,"StudyData", "Close("&$D$12&") when LocalYear("&$D$12&")="&$D$10&" and localMonth("&$D$12&") ="&$E$10&" and LocalDay("&$D$12&")="&$F$10&" and Barix("&$D$12&",reference:=StartOfDay)="&A28&"", "Bar", "", "Close","5","0","",,,"False","T","EveryTick") -> 1296 | AA28: 7.716644803e-05
A29: 196 | B29: 09:20:00 | C29: 2018-06-13 | D29: 2018 | E29: 6 | F29: 13 | G29: =IF(RTD("cqg.rtd",,"StudyData", "Close("&$D$12&") when LocalYear("&$D$12&")="&D29&" and localMonth("&$D$12&") ="&E29&" and LocalDay("&$D$12&")="&F29&" and Barix("&$D$12&",reference:=StartOfDay)=275", "Bar", "", "Close","5","0","",,,"False","T","EveryTick")="",2,1) -> 1 | H29: =RTD("cqg.rtd",,"StudyData", "Close("&$D$12&") when LocalYear("&$D$12&")="&$D$1&" and localMonth("&$D$12&") ="&$E$1&" and LocalDay("&$D$12&")="&$F$1&" and Barix("&$D$12&",reference:=StartOfDay)="&A29&"", "Bar", "", "Close","5","0","",,,"False","T","EveryTick") ->  | J29: =RTD("cqg.rtd",,"StudyData", "Close("&$D$12&") when LocalYear("&$D$12&")="&$D$2&" and localMonth("&$D$12&") ="&$E$2&" and LocalDay("&$D$12&")="&$F$2&" and Barix("&$D$12&",reference:=StartOfDay)="&A29&"", "Bar", "", "Close","5","0","",,,"False","T","EveryTick") -> 1286.8 | K29: -0.01462592848 | L29: =RTD("cqg.rtd",,"StudyData", "Close("&$D$12&") when LocalYear("&$D$12&")="&$D$3&" and localMonth("&$D$12&") ="&$E$3&" and LocalDay("&$D$12&")="&$F$3&" and Barix("&$D$12&",reference:=StartOfDay)="&A29&"", "Bar", "", "Close","5","0","",,,"False","T","EveryTick") -> 1306.6 | M29: 0.002839818866 | N29: =RTD("cqg.rtd",,"StudyData", "Close("&$D$12&") when LocalYear("&$D$12&")="&$D$4&" and localMonth("&$D$12&") ="&$E$4&" and LocalDay("&$D$12&")="&$F$4&" and Barix("&$D$12&",reference:=StartOfDay)="&A29&"", "Bar", "", "Close","5","0","",,,"False","T","EveryTick") -> 1300.4 | O29: 0.0006155740228 | P29: =RTD("cqg.rtd",,"StudyData", "Close("&$D$12&") when LocalYear("&$D$12&")="&$D$5&" and localMonth("&$D$12&") ="&$E$5&" and LocalDay("&$D$12&")="&$F$5&" and Barix("&$D$12&",reference:=StartOfDay)="&A29&"", "Bar", "", "Close","5","0","",,,"False","T","EveryTick") -> 1302.1 | Q29: -0.001763262803 | R29: =RTD("cqg.rtd",,"StudyData", "Close("&$D$12&") when LocalYear("&$D$12&")="&$D$6&" and localMonth("&$D$12&") ="&$E$6&" and LocalDay("&$D$12&")="&$F$6&" and Barix("&$D$12&",reference:=StartOfDay)="&A29&"", "Bar", "", "Close","5","0","",,,"False","T","EveryTick") -> 1303.8 | S29: 0.0002301495972 | T29: =RTD("cqg.rtd",,"StudyData", "Close("&$D$12&") when LocalYear("&$D$12&")="&$D$7&" and localMonth("&$D$12&") ="&$E$7&" and LocalDay("&$D$12&")="&$F$7&" and Barix("&$D$12&",reference:=StartOfDay)="&A29&"", "Bar", "", "Close","5","0","",,,"False","T","EveryTick") -> 1303.1 | U29: 0.001383232152 | V29: =RTD("cqg.rtd",,"StudyData", "Close("&$D$12&") when LocalYear("&$D$12&")="&$D$8&" and localMonth("&$D$12&") ="&$E$8&" and LocalDay("&$D$12&")="&$F$8&" and Barix("&$D$12&",reference:=StartOfDay)="&A29&"", "Bar", "", "Close","5","0","",,,"False","T","EveryTick") -> 1301.8 | W29: 0.0009226510841 | X29: =RTD("cqg.rtd",,"StudyData", "Close("&$D$12&") when LocalYear("&$D$12&")="&$D$9&" and localMonth("&$D$12&") ="&$E$9&" and LocalDay("&$D$12&")="&$F$9&" and Barix("&$D$12&",reference:=StartOfDay)="&A29&"", "Bar", "", "Close","5","0","",,,"False","T","EveryTick") -> 1304.5 | Y29: 0.003152876038 | Z29: =RTD("cqg.rtd",,"StudyData", "Close("&$D$12&") when LocalYear("&$D$12&")="&$D$10&" and localMonth("&$D$12&") ="&$E$10&" and LocalDay("&$D$12&")="&$F$10&" and Barix("&$D$12&",reference:=StartOfDay)="&A29&"", "Bar", "", "Close","5","0","",,,"False","T","EveryTick") -> 1296.9 | AA29: 0.0007716644803
A30: 197 | B30: 09:25:00 | C30: 2018-06-12 | D30: 2018 | E30: 6 | F30: 12 | G30: =IF(RTD("cqg.rtd",,"StudyData", "Close("&$D$12&") when LocalYear("&$D$12&")="&D30&" and localMonth("&$D$12&") ="&E30&" and LocalDay("&$D$12&")="&F30&" and Barix("&$D$12&",reference:=StartOfDay)=275", "Bar", "", "Close","5","0","",,,"False","T","EveryTick")="",2,1) -> 1 | H30: =RTD("cqg.rtd",,"StudyData", "Close("&$D$12&") when LocalYear("&$D$12&")="&$D$1&" and localMonth("&$D$12&") ="&$E$1&" and LocalDay("&$D$12&")="&$F$1&" and Barix("&$D$12&",reference:=StartOfDay)="&A30&"", "Bar", "", "Close","5","0","",,,"False","T","EveryTick") ->  | J30: =RTD("cqg.rtd",,"StudyData", "Close("&$D$12&") when LocalYear("&$D$12&")="&$D$2&" and localMonth("&$D$12&") ="&$E$2&" and LocalDay("&$D$12&")="&$F$2&" and Barix("&$D$12&",reference:=StartOfDay)="&A30&"", "Bar", "", "Close","5","0","",,,"False","T","EveryTick") -> 1286.6 | K30: -0.01477907956 | L30: =RTD("cqg.rtd",,"StudyData", "Close("&$D$12&") when LocalYear("&$D$12&")="&$D$3&" and localMonth("&$D$12&") ="&$E$3&" and LocalDay("&$D$12&")="&$F$3&" and Barix("&$D$12&",reference:=StartOfDay)="&A30&"", "Bar", "", "Close","5","0","",,,"False","T","EveryTick") -> 1306.5 | M30: 0.002763067004 | N30: =RTD("cqg.rtd",,"StudyData", "Close("&$D$12&") when LocalYear("&$D$12&")="&$D$4&" and localMonth("&$D$12&") ="&$E$4&" and LocalDay("&$D$12&")="&$F$4&" and Barix("&$D$12&",reference:=StartOfDay)="&A30&"", "Bar", "", "Close","5","0","",,,"False","T","EveryTick") -> 1300.1 | O30: 0.0003847337642 | P30: =RTD("cqg.rtd",,"StudyData", "Close("&$D$12&") when LocalYear("&$D$12&")="&$D$5&" and localMonth("&$D$12&") ="&$E$5&" and LocalDay("&$D$12&")="&$F$5&" and Barix("&$D$12&",reference:=StartOfDay)="&A30&"", "Bar", "", "Close","5","0","",,,"False","T","EveryTick") -> 1301.7 | Q30: -0.002069917203 | R30: =RTD("cqg.rtd",,"StudyData", "Close("&$D$12&") when LocalYear("&$D$12&")="&$D$6&" and localMonth("&$D$12&") ="&$E$6&" and LocalDay("&$D$12&")="&$F$6&" and Barix("&$D$12&",reference:=StartOfDay)="&A30&"", "Bar", "", "Close","5","0","",,,"False","T","EveryTick") -> 1303.8 | S30: 0.0002301495972 | T30: =RTD("cqg.rtd",,"StudyData", "Close("&$D$12&") when LocalYear("&$D$12&")="&$D$7&" and localMonth("&$D$12&") ="&$E$7&" and LocalDay("&$D$12&")="&$F$7&" and Barix("&$D$12&",reference:=StartOfDay)="&A30&"", "Bar", "", "Close","5","0","",,,"False","T","EveryTick") -> 1303.2 | U30: 0.001460078383 | V30: =RTD("cqg.rtd",,"StudyData", "Close("&$D$12&") when LocalYear("&$D$12&")="&$D$8&" and localMonth("&$D$12&") ="&$E$8&" and LocalDay("&$D$12&")="&$F$8&" and Barix("&$D$12&",reference:=StartOfDay)="&A30&"", "Bar", "", "Close","5","0","",,,"False","T","EveryTick") -> 1302 | W30: 0.001076426265 | X30: =RTD("cqg.rtd",,"StudyData", "Close("&$D$12&") when LocalYear("&$D$12&")="&$D$9&" and localMonth("&$D$12&") ="&$E$9&" and LocalDay("&$D$12&")="&$F$9&" and Barix("&$D$12&",reference:=StartOfDay)="&A30&"", "Bar", "", "Close","5","0","",,,"False","T","EveryTick") -> 1304 | Y30: 0.00276837896 | Z30: =RTD("cqg.rtd",,"StudyData", "Close("&$D$12&") when LocalYear("&$D$12&")="&$D$10&" and localMonth("&$D$12&") ="&$E$10&" and LocalDay("&$D$12&")="&$F$10&" and Barix("&$D$12&",reference:=StartOfDay)="&A30&"", "Bar", "", "Close","5","0","",,,"False","T","EveryTick") -> 1296.6 | AA30: 0.0005401651362
A31: 198 | B31: 09:30:00 | C31: 2018-06-11 | D31: 2018 | E31: 6 | F31: 11 | G31: =IF(RTD("cqg.rtd",,"StudyData", "Close("&$D$12&") when LocalYear("&$D$12&")="&D31&" and localMonth("&$D$12&") ="&E31&" and LocalDay("&$D$12&")="&F31&" and Barix("&$D$12&",reference:=StartOfDay)=275", "Bar", "", "Close","5","0","",,,"False","T","EveryTick")="",2,1) -> 1 | H31: =RTD("cqg.rtd",,"StudyData", "Close("&$D$12&") when LocalYear("&$D$12&")="&$D$1&" and localMonth("&$D$12&") ="&$E$1&" and LocalDay("&$D$12&")="&$F$1&" and Barix("&$D$12&",reference:=StartOfDay)="&A31&"", "Bar", "", "Close","5","0","",,,"False","T","EveryTick") ->  | J31: =RTD("cqg.rtd",,"StudyData", "Close("&$D$12&") when LocalYear("&$D$12&")="&$D$2&" and localMonth("&$D$12&") ="&$E$2&" and LocalDay("&$D$12&")="&$F$2&" and Barix("&$D$12&",reference:=StartOfDay)="&A31&"", "Bar", "", "Close","5","0","",,,"False","T","EveryTick") -> 1284.4 | K31: -0.01646374148 | L31: =RTD("cqg.rtd",,"StudyData", "Close("&$D$12&") when LocalYear("&$D$12&")="&$D$3&" and localMonth("&$D$12&") ="&$E$3&" and LocalDay("&$D$12&")="&$F$3&" and Barix("&$D$12&",reference:=StartOfDay)="&A31&"", "Bar", "", "Close","5","0","",,,"False","T","EveryTick") -> 1307.7 | M31: 0.003684089339 | N31: =RTD("cqg.rtd",,"StudyData", "Close("&$D$12&") when LocalYear("&$D$12&")="&$D$4&" and localMonth("&$D$12&") ="&$E$4&" and LocalDay("&$D$12&")="&$F$4&" and Barix("&$D$12&",reference:=StartOfDay)="&A31&"", "Bar", "", "Close","5","0","",,,"False","T","EveryTick") -> 1300.7 | O31: 0.0008464142813 | P31: =RTD("cqg.rtd",,"StudyData", "Close("&$D$12&") when LocalYear("&$D$12&")="&$D$5&" and localMonth("&$D$12&") ="&$E$5&" and LocalDay("&$D$12&")="&$F$5&" and Barix("&$D$12&",reference:=StartOfDay)="&A31&"", "Bar", "", "Close","5","0","",,,"False","T","EveryTick") -> 1302.2 | Q31: -0.001686599203 | R31: =RTD("cqg.rtd",,"StudyData", "Close("&$D$12&") when LocalYear("&$D$12&")="&$D$6&" and localMonth("&$D$12&") ="&$E$6&" and LocalDay("&$D$12&")="&$F$6&" and Barix("&$D$12&",reference:=StartOfDay)="&A31&"", "Bar", "", "Close","5","0","",,,"False","T","EveryTick") -> 1303.6 | S31: 7.671653241e-05 | T31: =RTD("cqg.rtd",,"StudyData", "Close("&$D$12&") when LocalYear("&$D$12&")="&$D$7&" and localMonth("&$D$12&") ="&$E$7&" and LocalDay("&$D$12&")="&$F$7&" and Barix("&$D$12&",reference:=StartOfDay)="&A31&"", "Bar", "", "Close","5","0","",,,"False","T","EveryTick") -> 1303.2 | U31: 0.001460078383 | V31: =RTD("cqg.rtd",,"StudyData", "Close("&$D$12&") when LocalYear("&$D$12&")="&$D$8&" and localMonth("&$D$12&") ="&$E$8&" and LocalDay("&$D$12&")="&$F$8&" and Barix("&$D$12&",reference:=StartOfDay)="&A31&"", "Bar", "", "Close","5","0","",,,"False","T","EveryTick") -> 1302.4 | W31: 0.001383976626 | X31: =RTD("cqg.rtd",,"StudyData", "Close("&$D$12&") when LocalYear("&$D$12&")="&$D$9&" and localMonth("&$D$12&") ="&$E$9&" and LocalDay("&$D$12&")="&$F$9&" and Barix("&$D$12&",reference:=StartOfDay)="&A31&"", "Bar", "", "Close","5","0","",,,"False","T","EveryTick") -> 1303.7 | Y31: 0.002537680714 | Z31: =RTD("cqg.rtd",,"StudyData", "Close("&$D$12&") when LocalYear("&$D$12&")="&$D$10&" and localMonth("&$D$12&") ="&$E$10&" and LocalDay("&$D$12&")="&$F$10&" and Barix("&$D$12&",reference:=StartOfDay)="&A31&"", "Bar", "", "Close","5","0","",,,"False","T","EveryTick") -> 1297.4 | AA31: 0.00115749672
A32: 199 | B32: 09:35:00 | C32: 2018-06-08 | D32: 2018 | E32: 6 | F32: 8 | G32: =IF(RTD("cqg.rtd",,"StudyData", "Close("&$D$12&") when LocalYear("&$D$12&")="&D32&" and localMonth("&$D$12&") ="&E32&" and LocalDay("&$D$12&")="&F32&" and Barix("&$D$12&",reference:=StartOfDay)=275", "Bar", "", "Close","5","0","",,,"False","T","EveryTick")="",2,1) -> 1 | H32: =RTD("cqg.rtd",,"StudyData", "Close("&$D$12&") when LocalYear("&$D$12&")="&$D$1&" and localMonth("&$D$12&") ="&$E$1&" and LocalDay("&$D$12&")="&$F$1&" and Barix("&$D$12&",reference:=StartOfDay)="&A32&"", "Bar", "", "Close","5","0","",,,"False","T","EveryTick") ->  | J32: =RTD("cqg.rtd",,"StudyData", "Close("&$D$12&") when LocalYear("&$D$12&")="&$D$2&" and localMonth("&$D$12&") ="&$E$2&" and LocalDay("&$D$12&")="&$F$2&" and Barix("&$D$12&",reference:=StartOfDay)="&A32&"", "Bar", "", "Close","5","0","",,,"False","T","EveryTick") -> 1283.8 | K32: -0.01692319473 | L32: =RTD("cqg.rtd",,"StudyData", "Close("&$D$12&") when LocalYear("&$D$12&")="&$D$3&" and localMonth("&$D$12&") ="&$E$3&" and LocalDay("&$D$12&")="&$F$3&" and Barix("&$D$12&",reference:=StartOfDay)="&A32&"", "Bar", "", "Close","5","0","",,,"False","T","EveryTick") -> 1308.3 | M32: 0.004144600507 | N32: =RTD("cqg.rtd",,"StudyData", "Close("&$D$12&") when LocalYear("&$D$12&")="&$D$4&" and localMonth("&$D$12&") ="&$E$4&" and LocalDay("&$D$12&")="&$F$4&" and Barix("&$D$12&",reference:=StartOfDay)="&A32&"", "Bar", "", "Close","5","0","",,,"False","T","EveryTick") -> 1300.5 | O32: 0.0006925207756 | P32: =RTD("cqg.rtd",,"StudyData", "Close("&$D$12&") when LocalYear("&$D$12&")="&$D$5&" and localMonth("&$D$12&") ="&$E$5&" and LocalDay("&$D$12&")="&$F$5&" and Barix("&$D$12&",reference:=StartOfDay)="&A32&"", "Bar", "", "Close","5","0","",,,"False","T","EveryTick") -> 1302.6 | Q32: -0.001379944802 | R32: =RTD("cqg.rtd",,"StudyData", "Close("&$D$12&") when LocalYear("&$D$12&")="&$D$6&" and localMonth("&$D$12&") ="&$E$6&" and LocalDay("&$D$12&")="&$F$6&" and Barix("&$D$12&",reference:=StartOfDay)="&A32&"", "Bar", "", "Close","5","0","",,,"False","T","EveryTick") -> 1303.5 | S32: 0 | T32: =RTD("cqg.rtd",,"StudyData", "Close("&$D$12&") when LocalYear("&$D$12&")="&$D$7&" and localMonth("&$D$12&") ="&$E$7&" and LocalDay("&$D$12&")="&$F$7&" and Barix("&$D$12&",reference:=StartOfDay)="&A32&"", "Bar", "", "Close","5","0","",,,"False","T","EveryTick") -> 1302.9 | U32: 0.001229539691 | V32: =RTD("cqg.rtd",,"StudyData", "Close("&$D$12&") when LocalYear("&$D$12&")="&$D$8&" and localMonth("&$D$12&") ="&$E$8&" and LocalDay("&$D$12&")="&$F$8&" and Barix("&$D$12&",reference:=StartOfDay)="&A32&"", "Bar", "", "Close","5","0","",,,"False","T","EveryTick") -> 1302.2 | W32: 0.001230201445 | X32: =RTD("cqg.rtd",,"StudyData", "Close("&$D$12&") when LocalYear("&$D$12&")="&$D$9&" and localMonth("&$D$12&") ="&$E$9&" and LocalDay("&$D$12&")="&$F$9&" and Barix("&$D$12&",reference:=StartOfDay)="&A32&"", "Bar", "", "Close","5","0","",,,"False","T","EveryTick") -> 1303.6 | Y32: 0.002460781298 | Z32: =RTD("cqg.rtd",,"StudyData", "Close("&$D$12&") when LocalYear("&$D$12&")="&$D$10&" and localMonth("&$D$12&") ="&$E$10&" and LocalDay("&$D$12&")="&$F$10&" and Barix("&$D$12&",reference:=StartOfDay)="&A32&"", "Bar", "", "Close","5","0","",,,"False","T","EveryTick") -> 1297.2 | AA32: 0.001003163824
A33: 200 | B33: 09:40:00 | C33: 2018-06-07 | D33: 2018 | E33: 6 | F33: 7 | G33: =IF(RTD("cqg.rtd",,"StudyData", "Close("&$D$12&") when LocalYear("&$D$12&")="&D33&" and localMonth("&$D$12&") ="&E33&" and LocalDay("&$D$12&")="&F33&" and Barix("&$D$12&",reference:=StartOfDay)=275", "Bar", "", "Close","5","0","",,,"False","T","EveryTick")="",2,1) -> 1 | H33: =RTD("cqg.rtd",,"StudyData", "Close("&$D$12&") when LocalYear("&$D$12&")="&$D$1&" and localMonth("&$D$12&") ="&$E$1&" and LocalDay("&$D$12&")="&$F$1&" and Barix("&$D$12&",reference:=StartOfDay)="&A33&"", "Bar", "", "Close","5","0","",,,"False","T","EveryTick") ->  | J33: =RTD("cqg.rtd",,"StudyData", "Close("&$D$12&") when LocalYear("&$D$12&")="&$D$2&" and localMonth("&$D$12&") ="&$E$2&" and LocalDay("&$D$12&")="&$F$2&" and Barix("&$D$12&",reference:=StartOfDay)="&A33&"", "Bar", "", "Close","5","0","",,,"False","T","EveryTick") -> 1281.8 | K33: -0.01845470557 | L33: =RTD("cqg.rtd",,"StudyData", "Close("&$D$12&") when LocalYear("&$D$12&")="&$D$3&" and localMonth("&$D$12&") ="&$E$3&" and LocalDay("&$D$12&")="&$F$3&" and Barix("&$D$12&",reference:=StartOfDay)="&A33&"", "Bar", "", "Close","5","0","",,,"False","T","EveryTick") -> 1307.9 | M33: 0.003837593062 | N33: =RTD("cqg.rtd",,"StudyData", "Close("&$D$12&") when LocalYear("&$D$12&")="&$D$4&" and localMonth("&$D$12&") ="&$E$4&" and LocalDay("&$D$12&")="&$F$4&" and Barix("&$D$12&",reference:=StartOfDay)="&A33&"", "Bar", "", "Close","5","0","",,,"False","T","EveryTick") -> 1300.7 | O33: 0.0008464142813 | P33: =RTD("cqg.rtd",,"StudyData", "Close("&$D$12&") when LocalYear("&$D$12&")="&$D$5&" and localMonth("&$D$12&") ="&$E$5&" and LocalDay("&$D$12&")="&$F$5&" and Barix("&$D$12&",reference:=StartOfDay)="&A33&"", "Bar", "", "Close","5","0","",,,"False","T","EveryTick") -> 1302.7 | Q33: -0.001303281202 | R33: =RTD("cqg.rtd",,"StudyData", "Close("&$D$12&") when LocalYear("&$D$12&")="&$D$6&" and localMonth("&$D$12&") ="&$E$6&" and LocalDay("&$D$12&")="&$F$6&" and Barix("&$D$12&",reference:=StartOfDay)="&A33&"", "Bar", "", "Close","5","0","",,,"False","T","EveryTick") -> 1303.8 | S33: 0.0002301495972 | T33: =RTD("cqg.rtd",,"StudyData", "Close("&$D$12&") when LocalYear("&$D$12&")="&$D$7&" and localMonth("&$D$12&") ="&$E$7&" and LocalDay("&$D$12&")="&$F$7&" and Barix("&$D$12&",reference:=StartOfDay)="&A33&"", "Bar", "", "Close","5","0","",,,"False","T","EveryTick") -> 1302.3 | U33: 0.0007684623069 | V33: =RTD("cqg.rtd",,"StudyData", "Close("&$D$12&") when LocalYear("&$D$12&")="&$D$8&" and localMonth("&$D$12&") ="&$E$8&" and LocalDay("&$D$12&")="&$F$8&" and Barix("&$D$12&",reference:=StartOfDay)="&A33&"", "Bar", "", "Close","5","0","",,,"False","T","EveryTick") -> 1301.7 | W33: 0.0008457634938 | X33: =RTD("cqg.rtd",,"StudyData", "Close("&$D$12&") when LocalYear("&$D$12&")="&$D$9&" and localMonth("&$D$12&") ="&$E$9&" and LocalDay("&$D$12&")="&$F$9&" and Barix("&$D$12&",reference:=StartOfDay)="&A33&"", "Bar", "", "Close","5","0","",,,"False","T","EveryTick") -> 1303.9 | Y33: 0.002691479545 | Z33: =RTD("cqg.rtd",,"StudyData", "Close("&$D$12&") when LocalYear("&$D$12&")="&$D$10&" and localMonth("&$D$12&") ="&$E$10&" and LocalDay("&$D$12&")="&$F$10&" and Barix("&$D$12&",reference:=StartOfDay)="&A33&"", "Bar", "", "Close","5","0","",,,"False","T","EveryTick") -> 1297.3 | AA33: 0.001080330272
A34: 201 | B34: 09:45:00 | C34: 2018-06-06 | D34: 2018 | E34: 6 | F34: 6 | G34: =IF(RTD("cqg.rtd",,"StudyData", "Close("&$D$12&") when LocalYear("&$D$12&")="&D34&" and localMonth("&$D$12&") ="&E34&" and LocalDay("&$D$12&")="&F34&" and Barix("&$D$12&",reference:=StartOfDay)=275", "Bar", "", "Close","5","0","",,,"False","T","EveryTick")="",2,1) -> 1 | H34: =RTD("cqg.rtd",,"StudyData", "Close("&$D$12&") when LocalYear("&$D$12&")="&$D$1&" and localMonth("&$D$12&") ="&$E$1&" and LocalDay("&$D$12&")="&$F$1&" and Barix("&$D$12&",reference:=StartOfDay)="&A34&"", "Bar", "", "Close","5","0","",,,"False","T","EveryTick") ->  | J34: =RTD("cqg.rtd",,"StudyData", "Close("&$D$12&") when LocalYear("&$D$12&")="&$D$2&" and localMonth("&$D$12&") ="&$E$2&" and LocalDay("&$D$12&")="&$F$2&" and Barix("&$D$12&",reference:=StartOfDay)="&A34&"", "Bar", "", "Close","5","0","",,,"False","T","EveryTick") -> 1283.4 | K34: -0.0172294969 | L34: =RTD("cqg.rtd",,"StudyData", "Close("&$D$12&") when LocalYear("&$D$12&")="&$D$3&" and localMonth("&$D$12&") ="&$E$3&" and LocalDay("&$D$12&")="&$F$3&" and Barix("&$D$12&",reference:=StartOfDay)="&A34&"", "Bar", "", "Close","5","0","",,,"False","T","EveryTick") -> 1309 | M34: 0.004681863535 | N34: =RTD("cqg.rtd",,"StudyData", "Close("&$D$12&") when LocalYear("&$D$12&")="&$D$4&" and localMonth("&$D$12&") ="&$E$4&" and LocalDay("&$D$12&")="&$F$4&" and Barix("&$D$12&",reference:=StartOfDay)="&A34&"", "Bar", "", "Close","5","0","",,,"False","T","EveryTick") -> 1300.1 | O34: 0.0003847337642 | P34: =RTD("cqg.rtd",,"StudyData", "Close("&$D$12&") when LocalYear("&$D$12&")="&$D$5&" and localMonth("&$D$12&") ="&$E$5&" and LocalDay("&$D$12&")="&$F$5&" and Barix("&$D$12&",reference:=StartOfDay)="&A34&"", "Bar", "", "Close","5","0","",,,"False","T","EveryTick") -> 1303.2 | Q34: -0.0009199632015 | R34: =RTD("cqg.rtd",,"StudyData", "Close("&$D$12&") when LocalYear("&$D$12&")="&$D$6&" and localMonth("&$D$12&") ="&$E$6&" and LocalDay("&$D$12&")="&$F$6&" and Barix("&$D$12&",reference:=StartOfDay)="&A34&"", "Bar", "", "Close","5","0","",,,"False","T","EveryTick") -> 1304.4 | S34: 0.0006904487917 | T34: =RTD("cqg.rtd",,"StudyData", "Close("&$D$12&") when LocalYear("&$D$12&")="&$D$7&" and localMonth("&$D$12&") ="&$E$7&" and LocalDay("&$D$12&")="&$F$7&" and Barix("&$D$12&",reference:=StartOfDay)="&A34&"", "Bar", "", "Close","5","0","",,,"False","T","EveryTick") -> 1302.3 | U34: 0.0007684623069 | V34: =RTD("cqg.rtd",,"StudyData", "Close("&$D$12&") when LocalYear("&$D$12&")="&$D$8&" and localMonth("&$D$12&") ="&$E$8&" and LocalDay("&$D$12&")="&$F$8&" and Barix("&$D$12&",reference:=StartOfDay)="&A34&"", "Bar", "", "Close","5","0","",,,"False","T","EveryTick") -> 1301.9 | W34: 0.0009995386745 | X34: =RTD("cqg.rtd",,"StudyData", "Close("&$D$12&") when LocalYear("&$D$12&")="&$D$9&" and localMonth("&$D$12&") ="&$E$9&" and LocalDay("&$D$12&")="&$F$9&" and Barix("&$D$12&",reference:=StartOfDay)="&A34&"", "Bar", "", "Close","5","0","",,,"False","T","EveryTick") -> 1304 | Y34: 0.00276837896 | Z34: =RTD("cqg.rtd",,"StudyData", "Close("&$D$12&") when LocalYear("&$D$12&")="&$D$10&" and localMonth("&$D$12&") ="&$E$10&" and LocalDay("&$D$12&")="&$F$10&" and Barix("&$D$12&",reference:=StartOfDay)="&A34&"", "Bar", "", "Close","5","0","",,,"False","T","EveryTick") -> 1297.5 | AA34: 0.001234663168
A35: 202 | B35: 09:50:00 | C35: 2018-06-05 | D35: 2018 | E35: 6 | F35: 5 | G35: =IF(RTD("cqg.rtd",,"StudyData", "Close("&$D$12&") when LocalYear("&$D$12&")="&D35&" and localMonth("&$D$12&") ="&E35&" and LocalDay("&$D$12&")="&F35&" and Barix("&$D$12&",reference:=StartOfDay)=275", "Bar", "", "Close","5","0","",,,"False","T","EveryTick")="",2,1) -> 1 | H35: =RTD("cqg.rtd",,"StudyData", "Close("&$D$12&") when LocalYear("&$D$12&")="&$D$1&" and localMonth("&$D$12&") ="&$E$1&" and LocalDay("&$D$12&")="&$F$1&" and Barix("&$D$12&",reference:=StartOfDay)="&A35&"", "Bar", "", "Close","5","0","",,,"False","T","EveryTick") ->  | J35: =RTD("cqg.rtd",,"StudyData", "Close("&$D$12&") when LocalYear("&$D$12&")="&$D$2&" and localMonth("&$D$12&") ="&$E$2&" and LocalDay("&$D$12&")="&$F$2&" and Barix("&$D$12&",reference:=StartOfDay)="&A35&"", "Bar", "", "Close","5","0","",,,"False","T","EveryTick") -> 1283.7 | K35: -0.01699977027 | L35: =RTD("cqg.rtd",,"StudyData", "Close("&$D$12&") when LocalYear("&$D$12&")="&$D$3&" and localMonth("&$D$12&") ="&$E$3&" and LocalDay("&$D$12&")="&$F$3&" and Barix("&$D$12&",reference:=StartOfDay)="&A35&"", "Bar", "", "Close","5","0","",,,"False","T","EveryTick") -> 1309.8 | M35: 0.005295878425 | N35: =RTD("cqg.rtd",,"StudyData", "Close("&$D$12&") when LocalYear("&$D$12&")="&$D$4&" and localMonth("&$D$12&") ="&$E$4&" and LocalDay("&$D$12&")="&$F$4&" and Barix("&$D$12&",reference:=StartOfDay)="&A35&"", "Bar", "", "Close","5","0","",,,"False","T","EveryTick") -> 1300.4 | O35: 0.0006155740228 | P35: =RTD("cqg.rtd",,"StudyData", "Close("&$D$12&") when LocalYear("&$D$12&")="&$D$5&" and localMonth("&$D$12&") ="&$E$5&" and LocalDay("&$D$12&")="&$F$5&" and Barix("&$D$12&",reference:=StartOfDay)="&A35&"", "Bar", "", "Close","5","0","",,,"False","T","EveryTick") -> 1303.3 | Q35: -0.0008432996013 | R35: =RTD("cqg.rtd",,"StudyData", "Close("&$D$12&") when LocalYear("&$D$12&")="&$D$6&" and localMonth("&$D$12&") ="&$E$6&" and LocalDay("&$D$12&")="&$F$6&" and Barix("&$D$12&",reference:=StartOfDay)="&A35&"", "Bar", "", "Close","5","0","",,,"False","T","EveryTick") -> 1305.2 | S35: 0.001304181051 | T35: =RTD("cqg.rtd",,"StudyData", "Close("&$D$12&") when LocalYear("&$D$12&")="&$D$7&" and localMonth("&$D$12&") ="&$E$7&" and LocalDay("&$D$12&")="&$F$7&" and Barix("&$D$12&",reference:=StartOfDay)="&A35&"", "Bar", "", "Close","5","0","",,,"False","T","EveryTick") -> 1302.5 | U35: 0.0009221547683 | V35: =RTD("cqg.rtd",,"StudyData", "Close("&$D$12&") when LocalYear("&$D$12&")="&$D$8&" and localMonth("&$D$12&") ="&$E$8&" and LocalDay("&$D$12&")="&$F$8&" and Barix("&$D$12&",reference:=StartOfDay)="&A35&"", "Bar", "", "Close","5","0","",,,"False","T","EveryTick") -> 1301.4 | W35: 0.0006151007227 | X35: =RTD("cqg.rtd",,"StudyData", "Close("&$D$12&") when LocalYear("&$D$12&")="&$D$9&" and localMonth("&$D$12&") ="&$E$9&" and LocalDay("&$D$12&")="&$F$9&" and Barix("&$D$12&",reference:=StartOfDay)="&A35&"", "Bar", "", "Close","5","0","",,,"False","T","EveryTick") -> 1303.4 | Y35: 0.002306982467 | Z35: =RTD("cqg.rtd",,"StudyData", "Close("&$D$12&") when LocalYear("&$D$12&")="&$D$10&" and localMonth("&$D$12&") ="&$E$10&" and LocalDay("&$D$12&")="&$F$10&" and Barix("&$D$12&",reference:=StartOfDay)="&A35&"", "Bar", "", "Close","5","0","",,,"False","T","EveryTick") -> 1297.5 | AA35: 0.001234663168
A36: 203 | B36: 09:55:00 | C36: 2018-06-04 | D36: 2018 | E36: 6 | F36: 4 | G36: =IF(RTD("cqg.rtd",,"StudyData", "Close("&$D$12&") when LocalYear("&$D$12&")="&D36&" and localMonth("&$D$12&") ="&E36&" and LocalDay("&$D$12&")="&F36&" and Barix("&$D$12&",reference:=StartOfDay)=275", "Bar", "", "Close","5","0","",,,"False","T","EveryTick")="",2,1) -> 1 | H36: =RTD("cqg.rtd",,"StudyData", "Close("&$D$12&") when LocalYear("&$D$12&")="&$D$1&" and localMonth("&$D$12&") ="&$E$1&" and LocalDay("&$D$12&")="&$F$1&" and Barix("&$D$12&",reference:=StartOfDay)="&A36&"", "Bar", "", "Close","5","0","",,,"False","T","EveryTick") ->  | J36: =RTD("cqg.rtd",,"StudyData", "Close("&$D$12&") when LocalYear("&$D$12&")="&$D$2&" and localMonth("&$D$12&") ="&$E$2&" and LocalDay("&$D$12&")="&$F$2&" and Barix("&$D$12&",reference:=StartOfDay)="&A36&"", "Bar", "", "Close","5","0","",,,"False","T","EveryTick") -> 1283.3 | K36: -0.01730607244 | L36: =RTD("cqg.rtd",,"StudyData", "Close("&$D$12&") when LocalYear("&$D$12&")="&$D$3&" and localMonth("&$D$12&") ="&$E$3&" and LocalDay("&$D$12&")="&$F$3&" and Barix("&$D$12&",reference:=StartOfDay)="&A36&"", "Bar", "", "Close","5","0","",,,"False","T","EveryTick") -> 1310.6 | M36: 0.005909893315 | N36: =RTD("cqg.rtd",,"StudyData", "Close("&$D$12&") when LocalYear("&$D$12&")="&$D$4&" and localMonth("&$D$12&") ="&$E$4&" and LocalDay("&$D$12&")="&$F$4&" and Barix("&$D$12&",reference:=StartOfDay)="&A36&"", "Bar", "", "Close","5","0","",,,"False","T","EveryTick") -> 1300.4 | O36: 0.0006155740228 | P36: =RTD("cqg.rtd",,"StudyData", "Close("&$D$12&") when LocalYear("&$D$12&")="&$D$5&" and localMonth("&$D$12&") ="&$E$5&" and LocalDay("&$D$12&")="&$F$5&" and Barix("&$D$12&",reference:=StartOfDay)="&A36&"", "Bar", "", "Close","5","0","",,,"False","T","EveryTick") -> 1303.3 | Q36: -0.0008432996013 | R36: =RTD("cqg.rtd",,"StudyData", "Close("&$D$12&") when LocalYear("&$D$12&")="&$D$6&" and localMonth("&$D$12&") ="&$E$6&" and LocalDay("&$D$12&")="&$F$6&" and Barix("&$D$12&",reference:=StartOfDay)="&A36&"", "Bar", "", "Close","5","0","",,,"False","T","EveryTick") -> 1305 | S36: 0.001150747986 | T36: =RTD("cqg.rtd",,"StudyData", "Close("&$D$12&") when LocalYear("&$D$12&")="&$D$7&" and localMonth("&$D$12&") ="&$E$7&" and LocalDay("&$D$12&")="&$F$7&" and Barix("&$D$12&",reference:=StartOfDay)="&A36&"", "Bar", "", "Close","5","0","",,,"False","T","EveryTick") -> 1302.9 | U36: 0.001229539691 | V36: =RTD("cqg.rtd",,"StudyData", "Close("&$D$12&") when LocalYear("&$D$12&")="&$D$8&" and localMonth("&$D$12&") ="&$E$8&" and LocalDay("&$D$12&")="&$F$8&" and Barix("&$D$12&",reference:=StartOfDay)="&A36&"", "Bar", "", "Close","5","0","",,,"False","T","EveryTick") -> 1301.9 | W36: 0.0009995386745 | X36: =RTD("cqg.rtd",,"StudyData", "Close("&$D$12&") when LocalYear("&$D$12&")="&$D$9&" and localMonth("&$D$12&") ="&$E$9&" and LocalDay("&$D$12&")="&$F$9&" and Barix("&$D$12&",reference:=StartOfDay)="&A36&"", "Bar", "", "Close","5","0","",,,"False","T","EveryTick") -> 1303.6 | Y36: 0.002460781298 | Z36: =RTD("cqg.rtd",,"StudyData", "Close("&$D$12&") when LocalYear("&$D$12&")="&$D$10&" and localMonth("&$D$12&") ="&$E$10&" and LocalDay("&$D$12&")="&$F$10&" and Barix("&$D$12&",reference:=StartOfDay)="&A36&"", "Bar", "", "Close","5","0","",,,"False","T","EveryTick") -> 1297.8 | AA36: 0.001466162513
A37: 204 | B37: 10:00:00 | H37: =RTD("cqg.rtd",,"StudyData", "Close("&$D$12&") when LocalYear("&$D$12&")="&$D$1&" and localMonth("&$D$12&") ="&$E$1&" and LocalDay("&$D$12&")="&$F$1&" and Barix("&$D$12&",reference:=StartOfDay)="&A37&"", "Bar", "", "Close","5","0","",,,"False","T","EveryTick") ->  | J37: =RTD("cqg.rtd",,"StudyData", "Close("&$D$12&") when LocalYear("&$D$12&")="&$D$2&" and localMonth("&$D$12&") ="&$E$2&" and LocalDay("&$D$12&")="&$F$2&" and Barix("&$D$12&",reference:=StartOfDay)="&A37&"", "Bar", "", "Close","5","0","",,,"False","T","EveryTick") -> 1282.5 | K37: -0.01791867677 | L37: =RTD("cqg.rtd",,"StudyData", "Close("&$D$12&") when LocalYear("&$D$12&")="&$D$3&" and localMonth("&$D$12&") ="&$E$3&" and LocalDay("&$D$12&")="&$F$3&" and Barix("&$D$12&",reference:=StartOfDay)="&A37&"", "Bar", "", "Close","5","0","",,,"False","T","EveryTick") -> 1309.5 | M37: 0.005065622841 | N37: =RTD("cqg.rtd",,"StudyData", "Close("&$D$12&") when LocalYear("&$D$12&")="&$D$4&" and localMonth("&$D$12&") ="&$E$4&" and LocalDay("&$D$12&")="&$F$4&" and Barix("&$D$12&",reference:=StartOfDay)="&A37&"", "Bar", "", "Close","5","0","",,,"False","T","EveryTick") -> 1300.9 | O37: 0.001000307787 | P37: =RTD("cqg.rtd",,"StudyData", "Close("&$D$12&") when LocalYear("&$D$12&")="&$D$5&" and localMonth("&$D$12&") ="&$E$5&" and LocalDay("&$D$12&")="&$F$5&" and Barix("&$D$12&",reference:=StartOfDay)="&A37&"", "Bar", "", "Close","5","0","",,,"False","T","EveryTick") -> 1302.9 | Q37: -0.001149954002 | R37: =RTD("cqg.rtd",,"StudyData", "Close("&$D$12&") when LocalYear("&$D$12&")="&$D$6&" and localMonth("&$D$12&") ="&$E$6&" and LocalDay("&$D$12&")="&$F$6&" and Barix("&$D$12&",reference:=StartOfDay)="&A37&"", "Bar", "", "Close","5","0","",,,"False","T","EveryTick") -> 1304.9 | S37: 0.001074031454 | T37: =RTD("cqg.rtd",,"StudyData", "Close("&$D$12&") when LocalYear("&$D$12&")="&$D$7&" and localMonth("&$D$12&") ="&$E$7&" and LocalDay("&$D$12&")="&$F$7&" and Barix("&$D$12&",reference:=StartOfDay)="&A37&"", "Bar", "", "Close","5","0","",,,"False","T","EveryTick") -> 1302.8 | U37: 0.00115269346 | V37: =RTD("cqg.rtd",,"StudyData", "Close("&$D$12&") when LocalYear("&$D$12&")="&$D$8&" and localMonth("&$D$12&") ="&$E$8&" and LocalDay("&$D$12&")="&$F$8&" and Barix("&$D$12&",reference:=StartOfDay)="&A37&"", "Bar", "", "Close","5","0","",,,"False","T","EveryTick") -> 1301.9 | W37: 0.0009995386745 | X37: =RTD("cqg.rtd",,"StudyData", "Close("&$D$12&") when LocalYear("&$D$12&")="&$D$9&" and localMonth("&$D$12&") ="&$E$9&" and LocalDay("&$D$12&")="&$F$9&" and Barix("&$D$12&",reference:=StartOfDay)="&A37&"", "Bar", "", "Close","5","0","",,,"False","T","EveryTick") -> 1303.8 | Y37: 0.002614580129 | Z37: =RTD("cqg.rtd",,"StudyData", "Close("&$D$12&") when LocalYear("&$D$12&")="&$D$10&" and localMonth("&$D$12&") ="&$E$10&" and LocalDay("&$D$12&")="&$F$10&" and Barix("&$D$12&",reference:=StartOfDay)="&A37&"", "Bar", "", "Close","5","0","",,,"False","T","EveryTick") -> 1297.9 | AA37: 0.001543328961
A38: 205 | B38: 10:05:00 | C38: -40 | D38: =RTD("cqg.rtd",,"StudyData", $D$12, "Tick", "FlatTicks=0", "Tick","D",C38,"") -> 1283 | F38: GCE | H38: =RTD("cqg.rtd",,"StudyData", "Close("&$D$12&") when LocalYear("&$D$12&")="&$D$1&" and localMonth("&$D$12&") ="&$E$1&" and LocalDay("&$D$12&")="&$F$1&" and Barix("&$D$12&",reference:=StartOfDay)="&A38&"", "Bar", "", "Close","5","0","",,,"False","T","EveryTick") ->  | J38: =RTD("cqg.rtd",,"StudyData", "Close("&$D$12&") when LocalYear("&$D$12&")="&$D$2&" and localMonth("&$D$12&") ="&$E$2&" and LocalDay("&$D$12&")="&$F$2&" and Barix("&$D$12&",reference:=StartOfDay)="&A38&"", "Bar", "", "Close","5","0","",,,"False","T","EveryTick") -> 1284.4 | K38: -0.01646374148 | L38: =RTD("cqg.rtd",,"StudyData", "Close("&$D$12&") when LocalYear("&$D$12&")="&$D$3&" and localMonth("&$D$12&") ="&$E$3&" and LocalDay("&$D$12&")="&$F$3&" and Barix("&$D$12&",reference:=StartOfDay)="&A38&"", "Bar", "", "Close","5","0","",,,"False","T","EveryTick") -> 1309 | M38: 0.004681863535 | N38: =RTD("cqg.rtd",,"StudyData", "Close("&$D$12&") when LocalYear("&$D$12&")="&$D$4&" and localMonth("&$D$12&") ="&$E$4&" and LocalDay("&$D$12&")="&$F$4&" and Barix("&$D$12&",reference:=StartOfDay)="&A38&"", "Bar", "", "Close","5","0","",,,"False","T","EveryTick") -> 1300.8 | O38: 0.0009233610342 | P38: =RTD("cqg.rtd",,"StudyData", "Close("&$D$12&") when LocalYear("&$D$12&")="&$D$5&" and localMonth("&$D$12&") ="&$E$5&" and LocalDay("&$D$12&")="&$F$5&" and Barix("&$D$12&",reference:=StartOfDay)="&A38&"", "Bar", "", "Close","5","0","",,,"False","T","EveryTick") -> 1302.3 | Q38: -0.001609935603 | R38: =RTD("cqg.rtd",,"StudyData", "Close("&$D$12&") when LocalYear("&$D$12&")="&$D$6&" and localMonth("&$D$12&") ="&$E$6&" and LocalDay("&$D$12&")="&$F$6&" and Barix("&$D$12&",reference:=StartOfDay)="&A38&"", "Bar", "", "Close","5","0","",,,"False","T","EveryTick") -> 1305.1 | S38: 0.001227464519 | T38: =RTD("cqg.rtd",,"StudyData", "Close("&$D$12&") when LocalYear("&$D$12&")="&$D$7&" and localMonth("&$D$12&") ="&$E$7&" and LocalDay("&$D$12&")="&$F$7&" and Barix("&$D$12&",reference:=StartOfDay)="&A38&"", "Bar", "", "Close","5","0","",,,"False","T","EveryTick") -> 1302.2 | U38: 0.0006916160762 | V38: =RTD("cqg.rtd",,"StudyData", "Close("&$D$12&") when LocalYear("&$D$12&")="&$D$8&" and localMonth("&$D$12&") ="&$E$8&" and LocalDay("&$D$12&")="&$F$8&" and Barix("&$D$12&",reference:=StartOfDay)="&A38&"", "Bar", "", "Close","5","0","",,,"False","T","EveryTick") -> 1302.2 | W38: 0.001230201445 | X38: =RTD("cqg.rtd",,"StudyData", "Close("&$D$12&") when LocalYear("&$D$12&")="&$D$9&" and localMonth("&$D$12&") ="&$E$9&" and LocalDay("&$D$12&")="&$F$9&" and Barix("&$D$12&",reference:=StartOfDay)="&A38&"", "Bar", "", "Close","5","0","",,,"False","T","EveryTick") -> 1304 | Y38: 0.00276837896 | Z38: =RTD("cqg.rtd",,"StudyData", "Close("&$D$12&") when LocalYear("&$D$12&")="&$D$10&" and localMonth("&$D$12&") ="&$E$10&" and LocalDay("&$D$12&")="&$F$10&" and Barix("&$D$12&",reference:=StartOfDay)="&A38&"", "Bar", "", "Close","5","0","",,,"False","T","EveryTick") -> 1298.7 | AA38: 0.002160660545
A39: 206 | B39: 10:10:00 | C39: =C38+1 -> -39 | D39: =RTD("cqg.rtd",,"StudyData", $D$12, "Tick", "FlatTicks=0", "Tick","D",C39,"") -> 1283.1 | F39: SIE | H39: =RTD("cqg.rtd",,"StudyData", "Close("&$D$12&") when LocalYear("&$D$12&")="&$D$1&" and localMonth("&$D$12&") ="&$E$1&" and LocalDay("&$D$12&")="&$F$1&" and Barix("&$D$12&",reference:=StartOfDay)="&A39&"", "Bar", "", "Close","5","0","",,,"False","T","EveryTick") ->  | J39: =RTD("cqg.rtd",,"StudyData", "Close("&$D$12&") when LocalYear("&$D$12&")="&$D$2&" and localMonth("&$D$12&") ="&$E$2&" and LocalDay("&$D$12&")="&$F$2&" and Barix("&$D$12&",reference:=StartOfDay)="&A39&"", "Bar", "", "Close","5","0","",,,"False","T","EveryTick") -> 1283.7 | K39: -0.01699977027 | L39: =RTD("cqg.rtd",,"StudyData", "Close("&$D$12&") when LocalYear("&$D$12&")="&$D$3&" and localMonth("&$D$12&") ="&$E$3&" and LocalDay("&$D$12&")="&$F$3&" and Barix("&$D$12&",reference:=StartOfDay)="&A39&"", "Bar", "", "Close","5","0","",,,"False","T","EveryTick") -> 1309.1 | M39: 0.004758615396 | N39: =RTD("cqg.rtd",,"StudyData", "Close("&$D$12&") when LocalYear("&$D$12&")="&$D$4&" and localMonth("&$D$12&") ="&$E$4&" and LocalDay("&$D$12&")="&$F$4&" and Barix("&$D$12&",reference:=StartOfDay)="&A39&"", "Bar", "", "Close","5","0","",,,"False","T","EveryTick") -> 1301.7 | O39: 0.00161588181 | P39: =RTD("cqg.rtd",,"StudyData", "Close("&$D$12&") when LocalYear("&$D$12&")="&$D$5&" and localMonth("&$D$12&") ="&$E$5&" and LocalDay("&$D$12&")="&$F$5&" and Barix("&$D$12&",reference:=StartOfDay)="&A39&"", "Bar", "", "Close","5","0","",,,"False","T","EveryTick") -> 1302.8 | Q39: -0.001226617602 | R39: =RTD("cqg.rtd",,"StudyData", "Close("&$D$12&") when LocalYear("&$D$12&")="&$D$6&" and localMonth("&$D$12&") ="&$E$6&" and LocalDay("&$D$12&")="&$F$6&" and Barix("&$D$12&",reference:=StartOfDay)="&A39&"", "Bar", "", "Close","5","0","",,,"False","T","EveryTick") -> 1305 | S39: 0.001150747986 | T39: =RTD("cqg.rtd",,"StudyData", "Close("&$D$12&") when LocalYear("&$D$12&")="&$D$7&" and localMonth("&$D$12&") ="&$E$7&" and LocalDay("&$D$12&")="&$F$7&" and Barix("&$D$12&",reference:=StartOfDay)="&A39&"", "Bar", "", "Close","5","0","",,,"False","T","EveryTick") -> 1302 | U39: 0.0005379236148 | V39: =RTD("cqg.rtd",,"StudyData", "Close("&$D$12&") when LocalYear("&$D$12&")="&$D$8&" and localMonth("&$D$12&") ="&$E$8&" and LocalDay("&$D$12&")="&$F$8&" and Barix("&$D$12&",reference:=StartOfDay)="&A39&"", "Bar", "", "Close","5","0","",,,"False","T","EveryTick") -> 1302 | W39: 0.001076426265 | X39: =RTD("cqg.rtd",,"StudyData", "Close("&$D$12&") when LocalYear("&$D$12&")="&$D$9&" and localMonth("&$D$12&") ="&$E$9&" and LocalDay("&$D$12&")="&$F$9&" and Barix("&$D$12&",reference:=StartOfDay)="&A39&"", "Bar", "", "Close","5","0","",,,"False","T","EveryTick") -> 1303.6 | Y39: 0.002460781298 | Z39: =RTD("cqg.rtd",,"StudyData", "Close("&$D$12&") when LocalYear("&$D$12&")="&$D$10&" and localMonth("&$D$12&") ="&$E$10&" and LocalDay("&$D$12&")="&$F$10&" and Barix("&$D$12&",reference:=StartOfDay)="&A39&"", "Bar", "", "Close","5","0","",,,"False","T","EveryTick") -> 1299.3 | AA39: 0.002623659233
A40: 207 | B40: 10:15:00 | C40: =C39+1 -> -38 | D40: =RTD("cqg.rtd",,"StudyData", $D$12, "Tick", "FlatTicks=0", "Tick","D",C40,"") -> 1283 | F40: PLE | H40: =RTD("cqg.rtd",,"StudyData", "Close("&$D$12&") when LocalYear("&$D$12&")="&$D$1&" and localMonth("&$D$12&") ="&$E$1&" and LocalDay("&$D$12&")="&$F$1&" and Barix("&$D$12&",reference:=StartOfDay)="&A40&"", "Bar", "", "Close","5","0","",,,"False","T","EveryTick") ->  | J40: =RTD("cqg.rtd",,"StudyData", "Close("&$D$12&") when LocalYear("&$D$12&")="&$D$2&" and localMonth("&$D$12&") ="&$E$2&" and LocalDay("&$D$12&")="&$F$2&" and Barix("&$D$12&",reference:=StartOfDay)="&A40&"", "Bar", "", "Close","5","0","",,,"False","T","EveryTick") -> 1283.2 | K40: -0.01738264798 | L40: =RTD("cqg.rtd",,"StudyData", "Close("&$D$12&") when LocalYear("&$D$12&")="&$D$3&" and localMonth("&$D$12&") ="&$E$3&" and LocalDay("&$D$12&")="&$F$3&" and Barix("&$D$12&",reference:=StartOfDay)="&A40&"", "Bar", "", "Close","5","0","",,,"False","T","EveryTick") -> 1308.6 | M40: 0.00437485609 | N40: =RTD("cqg.rtd",,"StudyData", "Close("&$D$12&") when LocalYear("&$D$12&")="&$D$4&" and localMonth("&$D$12&") ="&$E$4&" and LocalDay("&$D$12&")="&$F$4&" and Barix("&$D$12&",reference:=StartOfDay)="&A40&"", "Bar", "", "Close","5","0","",,,"False","T","EveryTick") -> 1301.5 | O40: 0.001461988304 | P40: =RTD("cqg.rtd",,"StudyData", "Close("&$D$12&") when LocalYear("&$D$12&")="&$D$5&" and localMonth("&$D$12&") ="&$E$5&" and LocalDay("&$D$12&")="&$F$5&" and Barix("&$D$12&",reference:=StartOfDay)="&A40&"", "Bar", "", "Close","5","0","",,,"False","T","EveryTick") -> 1302.9 | Q40: -0.001149954002 | R40: =RTD("cqg.rtd",,"StudyData", "Close("&$D$12&") when LocalYear("&$D$12&")="&$D$6&" and localMonth("&$D$12&") ="&$E$6&" and LocalDay("&$D$12&")="&$F$6&" and Barix("&$D$12&",reference:=StartOfDay)="&A40&"", "Bar", "", "Close","5","0","",,,"False","T","EveryTick") -> 1306.1 | S40: 0.001994629843 | T40: =RTD("cqg.rtd",,"StudyData", "Close("&$D$12&") when LocalYear("&$D$12&")="&$D$7&" and localMonth("&$D$12&") ="&$E$7&" and LocalDay("&$D$12&")="&$F$7&" and Barix("&$D$12&",reference:=StartOfDay)="&A40&"", "Bar", "", "Close","5","0","",,,"False","T","EveryTick") -> 1302.1 | U40: 0.0006147698455 | V40: =RTD("cqg.rtd",,"StudyData", "Close("&$D$12&") when LocalYear("&$D$12&")="&$D$8&" and localMonth("&$D$12&") ="&$E$8&" and LocalDay("&$D$12&")="&$F$8&" and Barix("&$D$12&",reference:=StartOfDay)="&A40&"", "Bar", "", "Close","5","0","",,,"False","T","EveryTick") -> 1301.9 | W40: 0.0009995386745 | X40: =RTD("cqg.rtd",,"StudyData", "Close("&$D$12&") when LocalYear("&$D$12&")="&$D$9&" and localMonth("&$D$12&") ="&$E$9&" and LocalDay("&$D$12&")="&$F$9&" and Barix("&$D$12&",reference:=StartOfDay)="&A40&"", "Bar", "", "Close","5","0","",,,"False","T","EveryTick") -> 1303.6 | Y40: 0.002460781298 | Z40: =RTD("cqg.rtd",,"StudyData", "Close("&$D$12&") when LocalYear("&$D$12&")="&$D$10&" and localMonth("&$D$12&") ="&$E$10&" and LocalDay("&$D$12&")="&$F$10&" and Barix("&$D$12&",reference:=StartOfDay)="&A40&"", "Bar", "", "Close","5","0","",,,"False","T","EveryTick") -> 1299.4 | AA40: 0.002700825681
A41: 208 | B41: 10:20:00 | C41: -37 | D41: =RTD("cqg.rtd",,"StudyData", $D$12, "Tick", "FlatTicks=0", "Tick","D",C41,"") -> 1283.1 | F41: PAE | H41: =RTD("cqg.rtd",,"StudyData", "Close("&$D$12&") when LocalYear("&$D$12&")="&$D$1&" and localMonth("&$D$12&") ="&$E$1&" and LocalDay("&$D$12&")="&$F$1&" and Barix("&$D$12&",reference:=StartOfDay)="&A41&"", "Bar", "", "Close","5","0","",,,"False","T","EveryTick") ->  | J41: =RTD("cqg.rtd",,"StudyData", "Close("&$D$12&") when LocalYear("&$D$12&")="&$D$2&" and localMonth("&$D$12&") ="&$E$2&" and LocalDay("&$D$12&")="&$F$2&" and Barix("&$D$12&",reference:=StartOfDay)="&A41&"", "Bar", "", "Close","5","0","",,,"False","T","EveryTick") -> 1282.5 | K41: -0.01791867677 | L41: =RTD("cqg.rtd",,"StudyData", "Close("&$D$12&") when LocalYear("&$D$12&")="&$D$3&" and localMonth("&$D$12&") ="&$E$3&" and LocalDay("&$D$12&")="&$F$3&" and Barix("&$D$12&",reference:=StartOfDay)="&A41&"", "Bar", "", "Close","5","0","",,,"False","T","EveryTick") -> 1308.7 | M41: 0.004451607951 | N41: =RTD("cqg.rtd",,"StudyData", "Close("&$D$12&") when LocalYear("&$D$12&")="&$D$4&" and localMonth("&$D$12&") ="&$E$4&" and LocalDay("&$D$12&")="&$F$4&" and Barix("&$D$12&",reference:=StartOfDay)="&A41&"", "Bar", "", "Close","5","0","",,,"False","T","EveryTick") -> 1301.8 | O41: 0.001692828563 | P41: =RTD("cqg.rtd",,"StudyData", "Close("&$D$12&") when LocalYear("&$D$12&")="&$D$5&" and localMonth("&$D$12&") ="&$E$5&" and LocalDay("&$D$12&")="&$F$5&" and Barix("&$D$12&",reference:=StartOfDay)="&A41&"", "Bar", "", "Close","5","0","",,,"False","T","EveryTick") -> 1302.3 | Q41: -0.001609935603 | R41: =RTD("cqg.rtd",,"StudyData", "Close("&$D$12&") when LocalYear("&$D$12&")="&$D$6&" and localMonth("&$D$12&") ="&$E$6&" and LocalDay("&$D$12&")="&$F$6&" and Barix("&$D$12&",reference:=StartOfDay)="&A41&"", "Bar", "", "Close","5","0","",,,"False","T","EveryTick") -> 1306.2 | S41: 0.002071346375 | T41: =RTD("cqg.rtd",,"StudyData", "Close("&$D$12&") when LocalYear("&$D$12&")="&$D$7&" and localMonth("&$D$12&") ="&$E$7&" and LocalDay("&$D$12&")="&$F$7&" and Barix("&$D$12&",reference:=StartOfDay)="&A41&"", "Bar", "", "Close","5","0","",,,"False","T","EveryTick") -> 1301.5 | U41: 0.0001536924614 | V41: =RTD("cqg.rtd",,"StudyData", "Close("&$D$12&") when LocalYear("&$D$12&")="&$D$8&" and localMonth("&$D$12&") ="&$E$8&" and LocalDay("&$D$12&")="&$F$8&" and Barix("&$D$12&",reference:=StartOfDay)="&A41&"", "Bar", "", "Close","5","0","",,,"False","T","EveryTick") -> 1302 | W41: 0.001076426265 | X41: =RTD("cqg.rtd",,"StudyData", "Close("&$D$12&") when LocalYear("&$D$12&")="&$D$9&" and localMonth("&$D$12&") ="&$E$9&" and LocalDay("&$D$12&")="&$F$9&" and Barix("&$D$12&",reference:=StartOfDay)="&A41&"", "Bar", "", "Close","5","0","",,,"False","T","EveryTick") -> 1303.8 | Y41: 0.002614580129 | Z41: =RTD("cqg.rtd",,"StudyData", "Close("&$D$12&") when LocalYear("&$D$12&")="&$D$10&" and localMonth("&$D$12&") ="&$E$10&" and LocalDay("&$D$12&")="&$F$10&" and Barix("&$D$12&",reference:=StartOfDay)="&A41&"", "Bar", "", "Close","5","0","",,,"False","T","EveryTick") -> 1299.1 | AA41: 0.002469326337
A42: 209 | B42: 10:25:00 | C42: -36 | D42: =RTD("cqg.rtd",,"StudyData", $D$12, "Tick", "FlatTicks=0", "Tick","D",C42,"") -> 1283 | F42: CPE | H42: =RTD("cqg.rtd",,"StudyData", "Close("&$D$12&") when LocalYear("&$D$12&")="&$D$1&" and localMonth("&$D$12&") ="&$E$1&" and LocalDay("&$D$12&")="&$F$1&" and Barix("&$D$12&",reference:=StartOfDay)="&A42&"", "Bar", "", "Close","5","0","",,,"False","T","EveryTick") ->  | J42: =RTD("cqg.rtd",,"StudyData", "Close("&$D$12&") when LocalYear("&$D$12&")="&$D$2&" and localMonth("&$D$12&") ="&$E$2&" and LocalDay("&$D$12&")="&$F$2&" and Barix("&$D$12&",reference:=StartOfDay)="&A42&"", "Bar", "", "Close","5","0","",,,"False","T","EveryTick") -> 1283.1 | K42: -0.01745922352 | L42: =RTD("cqg.rtd",,"StudyData", "Close("&$D$12&") when LocalYear("&$D$12&")="&$D$3&" and localMonth("&$D$12&") ="&$E$3&" and LocalDay("&$D$12&")="&$F$3&" and Barix("&$D$12&",reference:=StartOfDay)="&A42&"", "Bar", "", "Close","5","0","",,,"False","T","EveryTick") -> 1309.6 | M42: 0.005142374703 | N42: =RTD("cqg.rtd",,"StudyData", "Close("&$D$12&") when LocalYear("&$D$12&")="&$D$4&" and localMonth("&$D$12&") ="&$E$4&" and LocalDay("&$D$12&")="&$F$4&" and Barix("&$D$12&",reference:=StartOfDay)="&A42&"", "Bar", "", "Close","5","0","",,,"False","T","EveryTick") -> 1302 | O42: 0.001846722068 | P42: =RTD("cqg.rtd",,"StudyData", "Close("&$D$12&") when LocalYear("&$D$12&")="&$D$5&" and localMonth("&$D$12&") ="&$E$5&" and LocalDay("&$D$12&")="&$F$5&" and Barix("&$D$12&",reference:=StartOfDay)="&A42&"", "Bar", "", "Close","5","0","",,,"False","T","EveryTick") -> 1302.6 | Q42: -0.001379944802 | R42: =RTD("cqg.rtd",,"StudyData", "Close("&$D$12&") when LocalYear("&$D$12&")="&$D$6&" and localMonth("&$D$12&") ="&$E$6&" and LocalDay("&$D$12&")="&$F$6&" and Barix("&$D$12&",reference:=StartOfDay)="&A42&"", "Bar", "", "Close","5","0","",,,"False","T","EveryTick") -> 1305.7 | S42: 0.001687763713 | T42: =RTD("cqg.rtd",,"StudyData", "Close("&$D$12&") when LocalYear("&$D$12&")="&$D$7&" and localMonth("&$D$12&") ="&$E$7&" and LocalDay("&$D$12&")="&$F$7&" and Barix("&$D$12&",reference:=StartOfDay)="&A42&"", "Bar", "", "Close","5","0","",,,"False","T","EveryTick") -> 1301.9 | U42: 0.0004610773842 | V42: =RTD("cqg.rtd",,"StudyData", "Close("&$D$12&") when LocalYear("&$D$12&")="&$D$8&" and localMonth("&$D$12&") ="&$E$8&" and LocalDay("&$D$12&")="&$F$8&" and Barix("&$D$12&",reference:=StartOfDay)="&A42&"", "Bar", "", "Close","5","0","",,,"False","T","EveryTick") -> 1302.3 | W42: 0.001307089036 | X42: =RTD("cqg.rtd",,"StudyData", "Close("&$D$12&") when LocalYear("&$D$12&")="&$D$9&" and localMonth("&$D$12&") ="&$E$9&" and LocalDay("&$D$12&")="&$F$9&" and Barix("&$D$12&",reference:=StartOfDay)="&A42&"", "Bar", "", "Close","5","0","",,,"False","T","EveryTick") -> 1303.8 | Y42: 0.002614580129 | Z42: =RTD("cqg.rtd",,"StudyData", "Close("&$D$12&") when LocalYear("&$D$12&")="&$D$10&" and localMonth("&$D$12&") ="&$E$10&" and LocalDay("&$D$12&")="&$F$10&" and Barix("&$D$12&",reference:=StartOfDay)="&A42&"", "Bar", "", "Close","5","0","",,,"False","T","EveryTick") -> 1299.7 | AA42: 0.002932325025
A43: 210 | B43: 10:30:00 | C43: -35 | D43: =RTD("cqg.rtd",,"StudyData", $D$12, "Tick", "FlatTicks=0", "Tick","D",C43,"") -> 1282.9 | H43: =RTD("cqg.rtd",,"StudyData", "Close("&$D$12&") when LocalYear("&$D$12&")="&$D$1&" and localMonth("&$D$12&") ="&$E$1&" and LocalDay("&$D$12&")="&$F$1&" and Barix("&$D$12&",reference:=StartOfDay)="&A43&"", "Bar", "", "Close","5","0","",,,"False","T","EveryTick") ->  | J43: =RTD("cqg.rtd",,"StudyData", "Close("&$D$12&") when LocalYear("&$D$12&")="&$D$2&" and localMonth("&$D$12&") ="&$E$2&" and LocalDay("&$D$12&")="&$F$2&" and Barix("&$D$12&",reference:=StartOfDay)="&A43&"", "Bar", "", "Close","5","0","",,,"False","T","EveryTick") -> 1282.3 | K43: -0.01807182786 | L43: =RTD("cqg.rtd",,"StudyData", "Close("&$D$12&") when LocalYear("&$D$12&")="&$D$3&" and localMonth("&$D$12&") ="&$E$3&" and LocalDay("&$D$12&")="&$F$3&" and Barix("&$D$12&",reference:=StartOfDay)="&A43&"", "Bar", "", "Close","5","0","",,,"False","T","EveryTick") -> 1308.8 | M43: 0.004528359813 | N43: =RTD("cqg.rtd",,"StudyData", "Close("&$D$12&") when LocalYear("&$D$12&")="&$D$4&" and localMonth("&$D$12&") ="&$E$4&" and LocalDay("&$D$12&")="&$F$4&" and Barix("&$D$12&",reference:=StartOfDay)="&A43&"", "Bar", "", "Close","5","0","",,,"False","T","EveryTick") -> 1302.2 | O43: 0.002000615574 | P43: =RTD("cqg.rtd",,"StudyData", "Close("&$D$12&") when LocalYear("&$D$12&")="&$D$5&" and localMonth("&$D$12&") ="&$E$5&" and LocalDay("&$D$12&")="&$F$5&" and Barix("&$D$12&",reference:=StartOfDay)="&A43&"", "Bar", "", "Close","5","0","",,,"False","T","EveryTick") -> 1302.4 | Q43: -0.001533272002 | R43: =RTD("cqg.rtd",,"StudyData", "Close("&$D$12&") when LocalYear("&$D$12&")="&$D$6&" and localMonth("&$D$12&") ="&$E$6&" and LocalDay("&$D$12&")="&$F$6&" and Barix("&$D$12&",reference:=StartOfDay)="&A43&"", "Bar", "", "Close","5","0","",,,"False","T","EveryTick") -> 1305.6 | S43: 0.001611047181 | T43: =RTD("cqg.rtd",,"StudyData", "Close("&$D$12&") when LocalYear("&$D$12&")="&$D$7&" and localMonth("&$D$12&") ="&$E$7&" and LocalDay("&$D$12&")="&$F$7&" and Barix("&$D$12&",reference:=StartOfDay)="&A43&"", "Bar", "", "Close","5","0","",,,"False","T","EveryTick") -> 1302.4 | U43: 0.0008453085376 | V43: =RTD("cqg.rtd",,"StudyData", "Close("&$D$12&") when LocalYear("&$D$12&")="&$D$8&" and localMonth("&$D$12&") ="&$E$8&" and LocalDay("&$D$12&")="&$F$8&" and Barix("&$D$12&",reference:=StartOfDay)="&A43&"", "Bar", "", "Close","5","0","",,,"False","T","EveryTick") -> 1302.5 | W43: 0.001460864217 | X43: =RTD("cqg.rtd",,"StudyData", "Close("&$D$12&") when LocalYear("&$D$12&")="&$D$9&" and localMonth("&$D$12&") ="&$E$9&" and LocalDay("&$D$12&")="&$F$9&" and Barix("&$D$12&",reference:=StartOfDay)="&A43&"", "Bar", "", "Close","5","0","",,,"False","T","EveryTick") -> 1303.9 | Y43: 0.002691479545 | Z43: =RTD("cqg.rtd",,"StudyData", "Close("&$D$12&") when LocalYear("&$D$12&")="&$D$10&" and localMonth("&$D$12&") ="&$E$10&" and LocalDay("&$D$12&")="&$F$10&" and Barix("&$D$12&",reference:=StartOfDay)="&A43&"", "Bar", "", "Close","5","0","",,,"False","T","EveryTick") -> 1300.4 | AA43: 0.003472490161
A44: 211 | B44: 10:35:00 | C44: -34 | D44: =RTD("cqg.rtd",,"StudyData", $D$12, "Tick", "FlatTicks=0", "Tick","D",C44,"") -> 1283 | H44: =RTD("cqg.rtd",,"StudyData", "Close("&$D$12&") when LocalYear("&$D$12&")="&$D$1&" and localMonth("&$D$12&") ="&$E$1&" and LocalDay("&$D$12&")="&$F$1&" and Barix("&$D$12&",reference:=StartOfDay)="&A44&"", "Bar", "", "Close","5","0","",,,"False","T","EveryTick") ->  | J44: =RTD("cqg.rtd",,"StudyData", "Close("&$D$12&") when LocalYear("&$D$12&")="&$D$2&" and localMonth("&$D$12&") ="&$E$2&" and LocalDay("&$D$12&")="&$F$2&" and Barix("&$D$12&",reference:=StartOfDay)="&A44&"", "Bar", "", "Close","5","0","",,,"False","T","EveryTick") -> 1281.4 | K44: -0.01876100773 | L44: =RTD("cqg.rtd",,"StudyData", "Close("&$D$12&") when LocalYear("&$D$12&")="&$D$3&" and localMonth("&$D$12&") ="&$E$3&" and LocalDay("&$D$12&")="&$F$3&" and Barix("&$D$12&",reference:=StartOfDay)="&A44&"", "Bar", "", "Close","5","0","",,,"False","T","EveryTick") -> 1308.5 | M44: 0.004298104229 | N44: =RTD("cqg.rtd",,"StudyData", "Close("&$D$12&") when LocalYear("&$D$12&")="&$D$4&" and localMonth("&$D$12&") ="&$E$4&" and LocalDay("&$D$12&")="&$F$4&" and Barix("&$D$12&",reference:=StartOfDay)="&A44&"", "Bar", "", "Close","5","0","",,,"False","T","EveryTick") -> 1302.1 | O44: 0.001923668821 | P44: =RTD("cqg.rtd",,"StudyData", "Close("&$D$12&") when LocalYear("&$D$12&")="&$D$5&" and localMonth("&$D$12&") ="&$E$5&" and LocalDay("&$D$12&")="&$F$5&" and Barix("&$D$12&",reference:=StartOfDay)="&A44&"", "Bar", "", "Close","5","0","",,,"False","T","EveryTick") -> 1302.4 | Q44: -0.001533272002 | R44: =RTD("cqg.rtd",,"StudyData", "Close("&$D$12&") when LocalYear("&$D$12&")="&$D$6&" and localMonth("&$D$12&") ="&$E$6&" and LocalDay("&$D$12&")="&$F$6&" and Barix("&$D$12&",reference:=StartOfDay)="&A44&"", "Bar", "", "Close","5","0","",,,"False","T","EveryTick") -> 1305.8 | S44: 0.001764480245 | T44: =RTD("cqg.rtd",,"StudyData", "Close("&$D$12&") when LocalYear("&$D$12&")="&$D$7&" and localMonth("&$D$12&") ="&$E$7&" and LocalDay("&$D$12&")="&$F$7&" and Barix("&$D$12&",reference:=StartOfDay)="&A44&"", "Bar", "", "Close","5","0","",,,"False","T","EveryTick") -> 1302.4 | U44: 0.0008453085376 | V44: =RTD("cqg.rtd",,"StudyData", "Close("&$D$12&") when LocalYear("&$D$12&")="&$D$8&" and localMonth("&$D$12&") ="&$E$8&" and LocalDay("&$D$12&")="&$F$8&" and Barix("&$D$12&",reference:=StartOfDay)="&A44&"", "Bar", "", "Close","5","0","",,,"False","T","EveryTick") -> 1302.3 | W44: 0.001307089036 | X44: =RTD("cqg.rtd",,"StudyData", "Close("&$D$12&") when LocalYear("&$D$12&")="&$D$9&" and localMonth("&$D$12&") ="&$E$9&" and LocalDay("&$D$12&")="&$F$9&" and Barix("&$D$12&",reference:=StartOfDay)="&A44&"", "Bar", "", "Close","5","0","",,,"False","T","EveryTick") -> 1304.1 | Y44: 0.002845278376 | Z44: =RTD("cqg.rtd",,"StudyData", "Close("&$D$12&") when LocalYear("&$D$12&")="&$D$10&" and localMonth("&$D$12&") ="&$E$10&" and LocalDay("&$D$12&")="&$F$10&" and Barix("&$D$12&",reference:=StartOfDay)="&A44&"", "Bar", "", "Close","5","0","",,,"False","T","EveryTick") -> 1300.9 | AA44: 0.003858322401
A45: 212 | B45: 10:40:00 | C45: -33 | D45: =RTD("cqg.rtd",,"StudyData", $D$12, "Tick", "FlatTicks=0", "Tick","D",C45,"") -> 1282.9 | H45: =RTD("cqg.rtd",,"StudyData", "Close("&$D$12&") when LocalYear("&$D$12&")="&$D$1&" and localMonth("&$D$12&") ="&$E$1&" and LocalDay("&$D$12&")="&$F$1&" and Barix("&$D$12&",reference:=StartOfDay)="&A45&"", "Bar", "", "Close","5","0","",,,"False","T","EveryTick") ->  | J45: =RTD("cqg.rtd",,"StudyData", "Close("&$D$12&") when LocalYear("&$D$12&")="&$D$2&" and localMonth("&$D$12&") ="&$E$2&" and LocalDay("&$D$12&")="&$F$2&" and Barix("&$D$12&",reference:=StartOfDay)="&A45&"", "Bar", "", "Close","5","0","",,,"False","T","EveryTick") -> 1281.4 | K45: -0.01876100773 | L45: =RTD("cqg.rtd",,"StudyData", "Close("&$D$12&") when LocalYear("&$D$12&")="&$D$3&" and localMonth("&$D$12&") ="&$E$3&" and LocalDay("&$D$12&")="&$F$3&" and Barix("&$D$12&",reference:=StartOfDay)="&A45&"", "Bar", "", "Close","5","0","",,,"False","T","EveryTick") -> 1308.5 | M45: 0.004298104229 | N45: =RTD("cqg.rtd",,"StudyData", "Close("&$D$12&") when LocalYear("&$D$12&")="&$D$4&" and localMonth("&$D$12&") ="&$E$4&" and LocalDay("&$D$12&")="&$F$4&" and Barix("&$D$12&",reference:=StartOfDay)="&A45&"", "Bar", "", "Close","5","0","",,,"False","T","EveryTick") -> 1301.9 | O45: 0.001769775315 | P45: =RTD("cqg.rtd",,"StudyData", "Close("&$D$12&") when LocalYear("&$D$12&")="&$D$5&" and localMonth("&$D$12&") ="&$E$5&" and LocalDay("&$D$12&")="&$F$5&" and Barix("&$D$12&",reference:=StartOfDay)="&A45&"", "Bar", "", "Close","5","0","",,,"False","T","EveryTick") -> 1302.3 | Q45: -0.001609935603 | R45: =RTD("cqg.rtd",,"StudyData", "Close("&$D$12&") when LocalYear("&$D$12&")="&$D$6&" and localMonth("&$D$12&") ="&$E$6&" and LocalDay("&$D$12&")="&$F$6&" and Barix("&$D$12&",reference:=StartOfDay)="&A45&"", "Bar", "", "Close","5","0","",,,"False","T","EveryTick") -> 1305.7 | S45: 0.001687763713 | T45: =RTD("cqg.rtd",,"StudyData", "Close("&$D$12&") when LocalYear("&$D$12&")="&$D$7&" and localMonth("&$D$12&") ="&$E$7&" and LocalDay("&$D$12&")="&$F$7&" and Barix("&$D$12&",reference:=StartOfDay)="&A45&"", "Bar", "", "Close","5","0","",,,"False","T","EveryTick") -> 1302.7 | U45: 0.00107584723 | V45: =RTD("cqg.rtd",,"StudyData", "Close("&$D$12&") when LocalYear("&$D$12&")="&$D$8&" and localMonth("&$D$12&") ="&$E$8&" and LocalDay("&$D$12&")="&$F$8&" and Barix("&$D$12&",reference:=StartOfDay)="&A45&"", "Bar", "", "Close","5","0","",,,"False","T","EveryTick") -> 1302.5 | W45: 0.001460864217 | X45: =RTD("cqg.rtd",,"StudyData", "Close("&$D$12&") when LocalYear("&$D$12&")="&$D$9&" and localMonth("&$D$12&") ="&$E$9&" and LocalDay("&$D$12&")="&$F$9&" and Barix("&$D$12&",reference:=StartOfDay)="&A45&"", "Bar", "", "Close","5","0","",,,"False","T","EveryTick") -> 1304.1 | Y45: 0.002845278376 | Z45: =RTD("cqg.rtd",,"StudyData", "Close("&$D$12&") when LocalYear("&$D$12&")="&$D$10&" and localMonth("&$D$12&") ="&$E$10&" and LocalDay("&$D$12&")="&$F$10&" and Barix("&$D$12&",reference:=StartOfDay)="&A45&"", "Bar", "", "Close","5","0","",,,"False","T","EveryTick") -> 1301.6 | AA45: 0.004398487538
A46: 213 | B46: 10:45:00 | C46: -32 | D46: =RTD("cqg.rtd",,"StudyData", $D$12, "Tick", "FlatTicks=0", "Tick","D",C46,"") -> 1282.8 | H46: =RTD("cqg.rtd",,"StudyData", "Close("&$D$12&") when LocalYear("&$D$12&")="&$D$1&" and localMonth("&$D$12&") ="&$E$1&" and LocalDay("&$D$12&")="&$F$1&" and Barix("&$D$12&",reference:=StartOfDay)="&A46&"", "Bar", "", "Close","5","0","",,,"False","T","EveryTick") ->  | J46: =RTD("cqg.rtd",,"StudyData", "Close("&$D$12&") when LocalYear("&$D$12&")="&$D$2&" and localMonth("&$D$12&") ="&$E$2&" and LocalDay("&$D$12&")="&$F$2&" and Barix("&$D$12&",reference:=StartOfDay)="&A46&"", "Bar", "", "Close","5","0","",,,"False","T","EveryTick") -> 1280.9 | K46: -0.01914388544 | L46: =RTD("cqg.rtd",,"StudyData", "Close("&$D$12&") when LocalYear("&$D$12&")="&$D$3&" and localMonth("&$D$12&") ="&$E$3&" and LocalDay("&$D$12&")="&$F$3&" and Barix("&$D$12&",reference:=StartOfDay)="&A46&"", "Bar", "", "Close","5","0","",,,"False","T","EveryTick") -> 1308.1 | M46: 0.003991096784 | N46: =RTD("cqg.rtd",,"StudyData", "Close("&$D$12&") when LocalYear("&$D$12&")="&$D$4&" and localMonth("&$D$12&") ="&$E$4&" and LocalDay("&$D$12&")="&$F$4&" and Barix("&$D$12&",reference:=StartOfDay)="&A46&"", "Bar", "", "Close","5","0","",,,"False","T","EveryTick") -> 1301.9 | O46: 0.001769775315 | P46: =RTD("cqg.rtd",,"StudyData", "Close("&$D$12&") when LocalYear("&$D$12&")="&$D$5&" and localMonth("&$D$12&") ="&$E$5&" and LocalDay("&$D$12&")="&$F$5&" and Barix("&$D$12&",reference:=StartOfDay)="&A46&"", "Bar", "", "Close","5","0","",,,"False","T","EveryTick") -> 1301.9 | Q46: -0.001916590003 | R46: =RTD("cqg.rtd",,"StudyData", "Close("&$D$12&") when LocalYear("&$D$12&")="&$D$6&" and localMonth("&$D$12&") ="&$E$6&" and LocalDay("&$D$12&")="&$F$6&" and Barix("&$D$12&",reference:=StartOfDay)="&A46&"", "Bar", "", "Close","5","0","",,,"False","T","EveryTick") -> 1305.4 | S46: 0.001457614116 | T46: =RTD("cqg.rtd",,"StudyData", "Close("&$D$12&") when LocalYear("&$D$12&")="&$D$7&" and localMonth("&$D$12&") ="&$E$7&" and LocalDay("&$D$12&")="&$F$7&" and Barix("&$D$12&",reference:=StartOfDay)="&A46&"", "Bar", "", "Close","5","0","",,,"False","T","EveryTick") -> 1302.7 | U46: 0.00107584723 | V46: =RTD("cqg.rtd",,"StudyData", "Close("&$D$12&") when LocalYear("&$D$12&")="&$D$8&" and localMonth("&$D$12&") ="&$E$8&" and LocalDay("&$D$12&")="&$F$8&" and Barix("&$D$12&",reference:=StartOfDay)="&A46&"", "Bar", "", "Close","5","0","",,,"False","T","EveryTick") -> 1302.2 | W46: 0.001230201445 | X46: =RTD("cqg.rtd",,"StudyData", "Close("&$D$12&") when LocalYear("&$D$12&")="&$D$9&" and localMonth("&$D$12&") ="&$E$9&" and LocalDay("&$D$12&")="&$F$9&" and Barix("&$D$12&",reference:=StartOfDay)="&A46&"", "Bar", "", "Close","5","0","",,,"False","T","EveryTick") -> 1304.7 | Y46: 0.003306674869 | Z46: =RTD("cqg.rtd",,"StudyData", "Close("&$D$12&") when LocalYear("&$D$12&")="&$D$10&" and localMonth("&$D$12&") ="&$E$10&" and LocalDay("&$D$12&")="&$F$10&" and Barix("&$D$12&",reference:=StartOfDay)="&A46&"", "Bar", "", "Close","5","0","",,,"False","T","EveryTick") -> 1300.9 | AA46: 0.003858322401
A47: 214 | B47: 10:50:00 | C47: -31 | D47: =RTD("cqg.rtd",,"StudyData", $D$12, "Tick", "FlatTicks=0", "Tick","D",C47,"") -> 1282.7 | H47: =RTD("cqg.rtd",,"StudyData", "Close("&$D$12&") when LocalYear("&$D$12&")="&$D$1&" and localMonth("&$D$12&") ="&$E$1&" and LocalDay("&$D$12&")="&$F$1&" and Barix("&$D$12&",reference:=StartOfDay)="&A47&"", "Bar", "", "Close","5","0","",,,"False","T","EveryTick") ->  | J47: =RTD("cqg.rtd",,"StudyData", "Close("&$D$12&") when LocalYear("&$D$12&")="&$D$2&" and localMonth("&$D$12&") ="&$E$2&" and LocalDay("&$D$12&")="&$F$2&" and Barix("&$D$12&",reference:=StartOfDay)="&A47&"", "Bar", "", "Close","5","0","",,,"False","T","EveryTick") -> 1281 | K47: -0.0190673099 | L47: =RTD("cqg.rtd",,"StudyData", "Close("&$D$12&") when LocalYear("&$D$12&")="&$D$3&" and localMonth("&$D$12&") ="&$E$3&" and LocalDay("&$D$12&")="&$F$3&" and Barix("&$D$12&",reference:=StartOfDay)="&A47&"", "Bar", "", "Close","5","0","",,,"False","T","EveryTick") -> 1308 | M47: 0.003914344923 | N47: =RTD("cqg.rtd",,"StudyData", "Close("&$D$12&") when LocalYear("&$D$12&")="&$D$4&" and localMonth("&$D$12&") ="&$E$4&" and LocalDay("&$D$12&")="&$F$4&" and Barix("&$D$12&",reference:=StartOfDay)="&A47&"", "Bar", "", "Close","5","0","",,,"False","T","EveryTick") -> 1301.6 | O47: 0.001538935057 | P47: =RTD("cqg.rtd",,"StudyData", "Close("&$D$12&") when LocalYear("&$D$12&")="&$D$5&" and localMonth("&$D$12&") ="&$E$5&" and LocalDay("&$D$12&")="&$F$5&" and Barix("&$D$12&",reference:=StartOfDay)="&A47&"", "Bar", "", "Close","5","0","",,,"False","T","EveryTick") -> 1302 | Q47: -0.001839926403 | R47: =RTD("cqg.rtd",,"StudyData", "Close("&$D$12&") when LocalYear("&$D$12&")="&$D$6&" and localMonth("&$D$12&") ="&$E$6&" and LocalDay("&$D$12&")="&$F$6&" and Barix("&$D$12&",reference:=StartOfDay)="&A47&"", "Bar", "", "Close","5","0","",,,"False","T","EveryTick") -> 1305.2 | S47: 0.001304181051 | T47: =RTD("cqg.rtd",,"StudyData", "Close("&$D$12&") when LocalYear("&$D$12&")="&$D$7&" and localMonth("&$D$12&") ="&$E$7&" and LocalDay("&$D$12&")="&$F$7&" and Barix("&$D$12&",reference:=StartOfDay)="&A47&"", "Bar", "", "Close","5","0","",,,"False","T","EveryTick") -> 1302.7 | U47: 0.00107584723 | V47: =RTD("cqg.rtd",,"StudyData", "Close("&$D$12&") when LocalYear("&$D$12&")="&$D$8&" and localMonth("&$D$12&") ="&$E$8&" and LocalDay("&$D$12&")="&$F$8&" and Barix("&$D$12&",reference:=StartOfDay)="&A47&"", "Bar", "", "Close","5","0","",,,"False","T","EveryTick") -> 1302.6 | W47: 0.001537751807 | X47: =RTD("cqg.rtd",,"StudyData", "Close("&$D$12&") when LocalYear("&$D$12&")="&$D$9&" and localMonth("&$D$12&") ="&$E$9&" and LocalDay("&$D$12&")="&$F$9&" and Barix("&$D$12&",reference:=StartOfDay)="&A47&"", "Bar", "", "Close","5","0","",,,"False","T","EveryTick") -> 1304.3 | Y47: 0.002999077207 | Z47: =RTD("cqg.rtd",,"StudyData", "Close("&$D$12&") when LocalYear("&$D$12&")="&$D$10&" and localMonth("&$D$12&") ="&$E$10&" and LocalDay("&$D$12&")="&$F$10&" and Barix("&$D$12&",reference:=StartOfDay)="&A47&"", "Bar", "", "Close","5","0","",,,"False","T","EveryTick") -> 1300.5 | AA47: 0.003549656609
A48: 215 | B48: 10:55:00 | C48: -30 | D48: =RTD("cqg.rtd",,"StudyData", $D$12, "Tick", "FlatTicks=0", "Tick","D",C48,"") -> 1282.8 | H48: =RTD("cqg.rtd",,"StudyData", "Close("&$D$12&") when LocalYear("&$D$12&")="&$D$1&" and localMonth("&$D$12&") ="&$E$1&" and LocalDay("&$D$12&")="&$F$1&" and Barix("&$D$12&",reference:=StartOfDay)="&A48&"", "Bar", "", "Close","5","0","",,,"False","T","EveryTick") ->  | J48: =RTD("cqg.rtd",,"StudyData", "Close("&$D$12&") when LocalYear("&$D$12&")="&$D$2&" and localMonth("&$D$12&") ="&$E$2&" and LocalDay("&$D$12&")="&$F$2&" and Barix("&$D$12&",reference:=StartOfDay)="&A48&"", "Bar", "", "Close","5","0","",,,"False","T","EveryTick") -> 1280.5 | K48: -0.01945018761 | L48: =RTD("cqg.rtd",,"StudyData", "Close("&$D$12&") when LocalYear("&$D$12&")="&$D$3&" and localMonth("&$D$12&") ="&$E$3&" and LocalDay("&$D$12&")="&$F$3&" and Barix("&$D$12&",reference:=StartOfDay)="&A48&"", "Bar", "", "Close","5","0","",,,"False","T","EveryTick") -> 1308 | M48: 0.003914344923 | N48: =RTD("cqg.rtd",,"StudyData", "Close("&$D$12&") when LocalYear("&$D$12&")="&$D$4&" and localMonth("&$D$12&") ="&$E$4&" and LocalDay("&$D$12&")="&$F$4&" and Barix("&$D$12&",reference:=StartOfDay)="&A48&"", "Bar", "", "Close","5","0","",,,"False","T","EveryTick") -> 1301.5 | O48: 0.001461988304 | P48: =RTD("cqg.rtd",,"StudyData", "Close("&$D$12&") when LocalYear("&$D$12&")="&$D$5&" and localMonth("&$D$12&") ="&$E$5&" and LocalDay("&$D$12&")="&$F$5&" and Barix("&$D$12&",reference:=StartOfDay)="&A48&"", "Bar", "", "Close","5","0","",,,"False","T","EveryTick") -> 1301.8 | Q48: -0.001993253603 | R48: =RTD("cqg.rtd",,"StudyData", "Close("&$D$12&") when LocalYear("&$D$12&")="&$D$6&" and localMonth("&$D$12&") ="&$E$6&" and LocalDay("&$D$12&")="&$F$6&" and Barix("&$D$12&",reference:=StartOfDay)="&A48&"", "Bar", "", "Close","5","0","",,,"False","T","EveryTick") -> 1305.5 | S48: 0.001534330648 | T48: =RTD("cqg.rtd",,"StudyData", "Close("&$D$12&") when LocalYear("&$D$12&")="&$D$7&" and localMonth("&$D$12&") ="&$E$7&" and LocalDay("&$D$12&")="&$F$7&" and Barix("&$D$12&",reference:=StartOfDay)="&A48&"", "Bar", "", "Close","5","0","",,,"False","T","EveryTick") -> 1303 | U48: 0.001306385922 | V48: =RTD("cqg.rtd",,"StudyData", "Close("&$D$12&") when LocalYear("&$D$12&")="&$D$8&" and localMonth("&$D$12&") ="&$E$8&" and LocalDay("&$D$12&")="&$F$8&" and Barix("&$D$12&",reference:=StartOfDay)="&A48&"", "Bar", "", "Close","5","0","",,,"False","T","EveryTick") -> 1302.2 | W48: 0.001230201445 | X48: =RTD("cqg.rtd",,"StudyData", "Close("&$D$12&") when LocalYear("&$D$12&")="&$D$9&" and localMonth("&$D$12&") ="&$E$9&" and LocalDay("&$D$12&")="&$F$9&" and Barix("&$D$12&",reference:=StartOfDay)="&A48&"", "Bar", "", "Close","5","0","",,,"False","T","EveryTick") -> 1304.2 | Y48: 0.002922177791 | Z48: =RTD("cqg.rtd",,"StudyData", "Close("&$D$12&") when LocalYear("&$D$12&")="&$D$10&" and localMonth("&$D$12&") ="&$E$10&" and LocalDay("&$D$12&")="&$F$10&" and Barix("&$D$12&",reference:=StartOfDay)="&A48&"", "Bar", "", "Close","5","0","",,,"False","T","EveryTick") -> 1301.2 | AA48: 0.004089821746
A49: 216 | B49: 11:00:00 | C49: -29 | D49: =RTD("cqg.rtd",,"StudyData", $D$12, "Tick", "FlatTicks=0", "Tick","D",C49,"") -> 1282.7 | H49: =RTD("cqg.rtd",,"StudyData", "Close("&$D$12&") when LocalYear("&$D$12&")="&$D$1&" and localMonth("&$D$12&") ="&$E$1&" and LocalDay("&$D$12&")="&$F$1&" and Barix("&$D$12&",reference:=StartOfDay)="&A49&"", "Bar", "", "Close","5","0","",,,"False","T","EveryTick") ->  | J49: =RTD("cqg.rtd",,"StudyData", "Close("&$D$12&") when LocalYear("&$D$12&")="&$D$2&" and localMonth("&$D$12&") ="&$E$2&" and LocalDay("&$D$12&")="&$F$2&" and Barix("&$D$12&",reference:=StartOfDay)="&A49&"", "Bar", "", "Close","5","0","",,,"False","T","EveryTick") -> 1281.1 | K49: -0.01899073436 | L49: =RTD("cqg.rtd",,"StudyData", "Close("&$D$12&") when LocalYear("&$D$12&")="&$D$3&" and localMonth("&$D$12&") ="&$E$3&" and LocalDay("&$D$12&")="&$F$3&" and Barix("&$D$12&",reference:=StartOfDay)="&A49&"", "Bar", "", "Close","5","0","",,,"False","T","EveryTick") -> 1308.2 | M49: 0.004067848645 | N49: =RTD("cqg.rtd",,"StudyData", "Close("&$D$12&") when LocalYear("&$D$12&")="&$D$4&" and localMonth("&$D$12&") ="&$E$4&" and LocalDay("&$D$12&")="&$F$4&" and Barix("&$D$12&",reference:=StartOfDay)="&A49&"", "Bar", "", "Close","5","0","",,,"False","T","EveryTick") -> 1301.7 | O49: 0.00161588181 | P49: =RTD("cqg.rtd",,"StudyData", "Close("&$D$12&") when LocalYear("&$D$12&")="&$D$5&" and localMonth("&$D$12&") ="&$E$5&" and LocalDay("&$D$12&")="&$F$5&" and Barix("&$D$12&",reference:=StartOfDay)="&A49&"", "Bar", "", "Close","5","0","",,,"False","T","EveryTick") -> 1301.3 | Q49: -0.002376571604 | R49: =RTD("cqg.rtd",,"StudyData", "Close("&$D$12&") when LocalYear("&$D$12&")="&$D$6&" and localMonth("&$D$12&") ="&$E$6&" and LocalDay("&$D$12&")="&$F$6&" and Barix("&$D$12&",reference:=StartOfDay)="&A49&"", "Bar", "", "Close","5","0","",,,"False","T","EveryTick") -> 1305.5 | S49: 0.001534330648 | T49: =RTD("cqg.rtd",,"StudyData", "Close("&$D$12&") when LocalYear("&$D$12&")="&$D$7&" and localMonth("&$D$12&") ="&$E$7&" and LocalDay("&$D$12&")="&$F$7&" and Barix("&$D$12&",reference:=StartOfDay)="&A49&"", "Bar", "", "Close","5","0","",,,"False","T","EveryTick") -> 1302.9 | U49: 0.001229539691 | V49: =RTD("cqg.rtd",,"StudyData", "Close("&$D$12&") when LocalYear("&$D$12&")="&$D$8&" and localMonth("&$D$12&") ="&$E$8&" and LocalDay("&$D$12&")="&$F$8&" and Barix("&$D$12&",reference:=StartOfDay)="&A49&"", "Bar", "", "Close","5","0","",,,"False","T","EveryTick") -> 1301.7 | W49: 0.0008457634938 | X49: =RTD("cqg.rtd",,"StudyData", "Close("&$D$12&") when LocalYear("&$D$12&")="&$D$9&" and localMonth("&$D$12&") ="&$E$9&" and LocalDay("&$D$12&")="&$F$9&" and Barix("&$D$12&",reference:=StartOfDay)="&A49&"", "Bar", "", "Close","5","0","",,,"False","T","EveryTick") -> 1304 | Y49: 0.00276837896 | Z49: =RTD("cqg.rtd",,"StudyData", "Close("&$D$12&") when LocalYear("&$D$12&")="&$D$10&" and localMonth("&$D$12&") ="&$E$10&" and LocalDay("&$D$12&")="&$F$10&" and Barix("&$D$12&",reference:=StartOfDay)="&A49&"", "Bar", "", "Close","5","0","",,,"False","T","EveryTick") -> 1300.8 | AA49: 0.003781155953
A50: 217 | B50: 11:05:00 | C50: -28 | D50: =RTD("cqg.rtd",,"StudyData", $D$12, "Tick", "FlatTicks=0", "Tick","D",C50,"") -> 1282.8 | H50: =RTD("cqg.rtd",,"StudyData", "Close("&$D$12&") when LocalYear("&$D$12&")="&$D$1&" and localMonth("&$D$12&") ="&$E$1&" and LocalDay("&$D$12&")="&$F$1&" and Barix("&$D$12&",reference:=StartOfDay)="&A50&"", "Bar", "", "Close","5","0","",,,"False","T","EveryTick") ->  | J50: =RTD("cqg.rtd",,"StudyData", "Close("&$D$12&") when LocalYear("&$D$12&")="&$D$2&" and localMonth("&$D$12&") ="&$E$2&" and LocalDay("&$D$12&")="&$F$2&" and Barix("&$D$12&",reference:=StartOfDay)="&A50&"", "Bar", "", "Close","5","0","",,,"False","T","EveryTick") -> 1281.1 | K50: -0.01899073436 | L50: =RTD("cqg.rtd",,"StudyData", "Close("&$D$12&") when LocalYear("&$D$12&")="&$D$3&" and localMonth("&$D$12&") ="&$E$3&" and LocalDay("&$D$12&")="&$F$3&" and Barix("&$D$12&",reference:=StartOfDay)="&A50&"", "Bar", "", "Close","5","0","",,,"False","T","EveryTick") -> 1307.3 | M50: 0.003377081894 | N50: =RTD("cqg.rtd",,"StudyData", "Close("&$D$12&") when LocalYear("&$D$12&")="&$D$4&" and localMonth("&$D$12&") ="&$E$4&" and LocalDay("&$D$12&")="&$F$4&" and Barix("&$D$12&",reference:=StartOfDay)="&A50&"", "Bar", "", "Close","5","0","",,,"False","T","EveryTick") -> 1301.8 | O50: 0.001692828563 | P50: =RTD("cqg.rtd",,"StudyData", "Close("&$D$12&") when LocalYear("&$D$12&")="&$D$5&" and localMonth("&$D$12&") ="&$E$5&" and LocalDay("&$D$12&")="&$F$5&" and Barix("&$D$12&",reference:=StartOfDay)="&A50&"", "Bar", "", "Close","5","0","",,,"False","T","EveryTick") -> 1301.7 | Q50: -0.002069917203 | R50: =RTD("cqg.rtd",,"StudyData", "Close("&$D$12&") when LocalYear("&$D$12&")="&$D$6&" and localMonth("&$D$12&") ="&$E$6&" and LocalDay("&$D$12&")="&$F$6&" and Barix("&$D$12&",reference:=StartOfDay)="&A50&"", "Bar", "", "Close","5","0","",,,"False","T","EveryTick") -> 1305 | S50: 0.001150747986 | T50: =RTD("cqg.rtd",,"StudyData", "Close("&$D$12&") when LocalYear("&$D$12&")="&$D$7&" and localMonth("&$D$12&") ="&$E$7&" and LocalDay("&$D$12&")="&$F$7&" and Barix("&$D$12&",reference:=StartOfDay)="&A50&"", "Bar", "", "Close","5","0","",,,"False","T","EveryTick") -> 1303 | U50: 0.001306385922 | V50: =RTD("cqg.rtd",,"StudyData", "Close("&$D$12&") when LocalYear("&$D$12&")="&$D$8&" and localMonth("&$D$12&") ="&$E$8&" and LocalDay("&$D$12&")="&$F$8&" and Barix("&$D$12&",reference:=StartOfDay)="&A50&"", "Bar", "", "Close","5","0","",,,"False","T","EveryTick") -> 1301.7 | W50: 0.0008457634938 | X50: =RTD("cqg.rtd",,"StudyData", "Close("&$D$12&") when LocalYear("&$D$12&")="&$D$9&" and localMonth("&$D$12&") ="&$E$9&" and LocalDay("&$D$12&")="&$F$9&" and Barix("&$D$12&",reference:=StartOfDay)="&A50&"", "Bar", "", "Close","5","0","",,,"False","T","EveryTick") -> 1303.6 | Y50: 0.002460781298 | Z50: =RTD("cqg.rtd",,"StudyData", "Close("&$D$12&") when LocalYear("&$D$12&")="&$D$10&" and localMonth("&$D$12&") ="&$E$10&" and LocalDay("&$D$12&")="&$F$10&" and Barix("&$D$12&",reference:=StartOfDay)="&A50&"", "Bar", "", "Close","5","0","",,,"False","T","EveryTick") -> 1300.2 | AA50: 0.003318157265
A51: 218 | B51: 11:10:00 | C51: -27 | D51: =RTD("cqg.rtd",,"StudyData", $D$12, "Tick", "FlatTicks=0", "Tick","D",C51,"") -> 1282.7 | H51: =RTD("cqg.rtd",,"StudyData", "Close("&$D$12&") when LocalYear("&$D$12&")="&$D$1&" and localMonth("&$D$12&") ="&$E$1&" and LocalDay("&$D$12&")="&$F$1&" and Barix("&$D$12&",reference:=StartOfDay)="&A51&"", "Bar", "", "Close","5","0","",,,"False","T","EveryTick") ->  | J51: =RTD("cqg.rtd",,"StudyData", "Close("&$D$12&") when LocalYear("&$D$12&")="&$D$2&" and localMonth("&$D$12&") ="&$E$2&" and LocalDay("&$D$12&")="&$F$2&" and Barix("&$D$12&",reference:=StartOfDay)="&A51&"", "Bar", "", "Close","5","0","",,,"False","T","EveryTick") -> 1278.8 | K51: -0.02075197182 | L51: =RTD("cqg.rtd",,"StudyData", "Close("&$D$12&") when LocalYear("&$D$12&")="&$D$3&" and localMonth("&$D$12&") ="&$E$3&" and LocalDay("&$D$12&")="&$F$3&" and Barix("&$D$12&",reference:=StartOfDay)="&A51&"", "Bar", "", "Close","5","0","",,,"False","T","EveryTick") -> 1307.4 | M51: 0.003453833755 | N51: =RTD("cqg.rtd",,"StudyData", "Close("&$D$12&") when LocalYear("&$D$12&")="&$D$4&" and localMonth("&$D$12&") ="&$E$4&" and LocalDay("&$D$12&")="&$F$4&" and Barix("&$D$12&",reference:=StartOfDay)="&A51&"", "Bar", "", "Close","5","0","",,,"False","T","EveryTick") -> 1301.7 | O51: 0.00161588181 | P51: =RTD("cqg.rtd",,"StudyData", "Close("&$D$12&") when LocalYear("&$D$12&")="&$D$5&" and localMonth("&$D$12&") ="&$E$5&" and LocalDay("&$D$12&")="&$F$5&" and Barix("&$D$12&",reference:=StartOfDay)="&A51&"", "Bar", "", "Close","5","0","",,,"False","T","EveryTick") -> 1301.7 | Q51: -0.002069917203 | R51: =RTD("cqg.rtd",,"StudyData", "Close("&$D$12&") when LocalYear("&$D$12&")="&$D$6&" and localMonth("&$D$12&") ="&$E$6&" and LocalDay("&$D$12&")="&$F$6&" and Barix("&$D$12&",reference:=StartOfDay)="&A51&"", "Bar", "", "Close","5","0","",,,"False","T","EveryTick") -> 1305 | S51: 0.001150747986 | T51: =RTD("cqg.rtd",,"StudyData", "Close("&$D$12&") when LocalYear("&$D$12&")="&$D$7&" and localMonth("&$D$12&") ="&$E$7&" and LocalDay("&$D$12&")="&$F$7&" and Barix("&$D$12&",reference:=StartOfDay)="&A51&"", "Bar", "", "Close","5","0","",,,"False","T","EveryTick") -> 1302.9 | U51: 0.001229539691 | V51: =RTD("cqg.rtd",,"StudyData", "Close("&$D$12&") when LocalYear("&$D$12&")="&$D$8&" and localMonth("&$D$12&") ="&$E$8&" and LocalDay("&$D$12&")="&$F$8&" and Barix("&$D$12&",reference:=StartOfDay)="&A51&"", "Bar", "", "Close","5","0","",,,"False","T","EveryTick") -> 1301.6 | W51: 0.0007688759034 | X51: =RTD("cqg.rtd",,"StudyData", "Close("&$D$12&") when LocalYear("&$D$12&")="&$D$9&" and localMonth("&$D$12&") ="&$E$9&" and LocalDay("&$D$12&")="&$F$9&" and Barix("&$D$12&",reference:=StartOfDay)="&A51&"", "Bar", "", "Close","5","0","",,,"False","T","EveryTick") -> 1303.8 | Y51: 0.002614580129 | Z51: =RTD("cqg.rtd",,"StudyData", "Close("&$D$12&") when LocalYear("&$D$12&")="&$D$10&" and localMonth("&$D$12&") ="&$E$10&" and LocalDay("&$D$12&")="&$F$10&" and Barix("&$D$12&",reference:=StartOfDay)="&A51&"", "Bar", "", "Close","5","0","",,,"False","T","EveryTick") -> 1300.7 | AA51: 0.003703989505
A52: 219 | B52: 11:15:00 | C52: -26 | D52: =RTD("cqg.rtd",,"StudyData", $D$12, "Tick", "FlatTicks=0", "Tick","D",C52,"") -> 1282.6 | H52: =RTD("cqg.rtd",,"StudyData", "Close("&$D$12&") when LocalYear("&$D$12&")="&$D$1&" and localMonth("&$D$12&") ="&$E$1&" and LocalDay("&$D$12&")="&$F$1&" and Barix("&$D$12&",reference:=StartOfDay)="&A52&"", "Bar", "", "Close","5","0","",,,"False","T","EveryTick") ->  | J52: =RTD("cqg.rtd",,"StudyData", "Close("&$D$12&") when LocalYear("&$D$12&")="&$D$2&" and localMonth("&$D$12&") ="&$E$2&" and LocalDay("&$D$12&")="&$F$2&" and Barix("&$D$12&",reference:=StartOfDay)="&A52&"", "Bar", "", "Close","5","0","",,,"False","T","EveryTick") -> 1280.8 | K52: -0.01922046098 | L52: =RTD("cqg.rtd",,"StudyData", "Close("&$D$12&") when LocalYear("&$D$12&")="&$D$3&" and localMonth("&$D$12&") ="&$E$3&" and LocalDay("&$D$12&")="&$F$3&" and Barix("&$D$12&",reference:=StartOfDay)="&A52&"", "Bar", "", "Close","5","0","",,,"False","T","EveryTick") -> 1307.5 | M52: 0.003530585617 | N52: =RTD("cqg.rtd",,"StudyData", "Close("&$D$12&") when LocalYear("&$D$12&")="&$D$4&" and localMonth("&$D$12&") ="&$E$4&" and LocalDay("&$D$12&")="&$F$4&" and Barix("&$D$12&",reference:=StartOfDay)="&A52&"", "Bar", "", "Close","5","0","",,,"False","T","EveryTick") -> 1302 | O52: 0.001846722068 | P52: =RTD("cqg.rtd",,"StudyData", "Close("&$D$12&") when LocalYear("&$D$12&")="&$D$5&" and localMonth("&$D$12&") ="&$E$5&" and LocalDay("&$D$12&")="&$F$5&" and Barix("&$D$12&",reference:=StartOfDay)="&A52&"", "Bar", "", "Close","5","0","",,,"False","T","EveryTick") -> 1301.3 | Q52: -0.002376571604 | R52: =RTD("cqg.rtd",,"StudyData", "Close("&$D$12&") when LocalYear("&$D$12&")="&$D$6&" and localMonth("&$D$12&") ="&$E$6&" and LocalDay("&$D$12&")="&$F$6&" and Barix("&$D$12&",reference:=StartOfDay)="&A52&"", "Bar", "", "Close","5","0","",,,"False","T","EveryTick") -> 1304.7 | S52: 0.000920598389 | T52: =RTD("cqg.rtd",,"StudyData", "Close("&$D$12&") when LocalYear("&$D$12&")="&$D$7&" and localMonth("&$D$12&") ="&$E$7&" and LocalDay("&$D$12&")="&$F$7&" and Barix("&$D$12&",reference:=StartOfDay)="&A52&"", "Bar", "", "Close","5","0","",,,"False","T","EveryTick") -> 1303 | U52: 0.001306385922 | V52: =RTD("cqg.rtd",,"StudyData", "Close("&$D$12&") when LocalYear("&$D$12&")="&$D$8&" and localMonth("&$D$12&") ="&$E$8&" and LocalDay("&$D$12&")="&$F$8&" and Barix("&$D$12&",reference:=StartOfDay)="&A52&"", "Bar", "", "Close","5","0","",,,"False","T","EveryTick") -> 1301.7 | W52: 0.0008457634938 | X52: =RTD("cqg.rtd",,"StudyData", "Close("&$D$12&") when LocalYear("&$D$12&")="&$D$9&" and localMonth("&$D$12&") ="&$E$9&" and LocalDay("&$D$12&")="&$F$9&" and Barix("&$D$12&",reference:=StartOfDay)="&A52&"", "Bar", "", "Close","5","0","",,,"False","T","EveryTick") -> 1303.6 | Y52: 0.002460781298 | Z52: =RTD("cqg.rtd",,"StudyData", "Close("&$D$12&") when LocalYear("&$D$12&")="&$D$10&" and localMonth("&$D$12&") ="&$E$10&" and LocalDay("&$D$12&")="&$F$10&" and Barix("&$D$12&",reference:=StartOfDay)="&A52&"", "Bar", "", "Close","5","0","",,,"False","T","EveryTick") -> 1301.4 | AA52: 0.004244154642
A53: 220 | B53: 11:20:00 | C53: -25 | D53: =RTD("cqg.rtd",,"StudyData", $D$12, "Tick", "FlatTicks=0", "Tick","D",C53,"") -> 1282.7 | H53: =RTD("cqg.rtd",,"StudyData", "Close("&$D$12&") when LocalYear("&$D$12&")="&$D$1&" and localMonth("&$D$12&") ="&$E$1&" and LocalDay("&$D$12&")="&$F$1&" and Barix("&$D$12&",reference:=StartOfDay)="&A53&"", "Bar", "", "Close","5","0","",,,"False","T","EveryTick") ->  | J53: =RTD("cqg.rtd",,"StudyData", "Close("&$D$12&") when LocalYear("&$D$12&")="&$D$2&" and localMonth("&$D$12&") ="&$E$2&" and LocalDay("&$D$12&")="&$F$2&" and Barix("&$D$12&",reference:=StartOfDay)="&A53&"", "Bar", "", "Close","5","0","",,,"False","T","EveryTick") -> 1280.5 | K53: -0.01945018761 | L53: =RTD("cqg.rtd",,"StudyData", "Close("&$D$12&") when LocalYear("&$D$12&")="&$D$3&" and localMonth("&$D$12&") ="&$E$3&" and LocalDay("&$D$12&")="&$F$3&" and Barix("&$D$12&",reference:=StartOfDay)="&A53&"", "Bar", "", "Close","5","0","",,,"False","T","EveryTick") -> 1307.6 | M53: 0.003607337478 | N53: =RTD("cqg.rtd",,"StudyData", "Close("&$D$12&") when LocalYear("&$D$12&")="&$D$4&" and localMonth("&$D$12&") ="&$E$4&" and LocalDay("&$D$12&")="&$F$4&" and Barix("&$D$12&",reference:=StartOfDay)="&A53&"", "Bar", "", "Close","5","0","",,,"False","T","EveryTick") -> 1302.2 | O53: 0.002000615574 | P53: =RTD("cqg.rtd",,"StudyData", "Close("&$D$12&") when LocalYear("&$D$12&")="&$D$5&" and localMonth("&$D$12&") ="&$E$5&" and LocalDay("&$D$12&")="&$F$5&" and Barix("&$D$12&",reference:=StartOfDay)="&A53&"", "Bar", "", "Close","5","0","",,,"False","T","EveryTick") -> 1301.2 | Q53: -0.002453235204 | R53: =RTD("cqg.rtd",,"StudyData", "Close("&$D$12&") when LocalYear("&$D$12&")="&$D$6&" and localMonth("&$D$12&") ="&$E$6&" and LocalDay("&$D$12&")="&$F$6&" and Barix("&$D$12&",reference:=StartOfDay)="&A53&"", "Bar", "", "Close","5","0","",,,"False","T","EveryTick") -> 1304.7 | S53: 0.000920598389 | T53: =RTD("cqg.rtd",,"StudyData", "Close("&$D$12&") when LocalYear("&$D$12&")="&$D$7&" and localMonth("&$D$12&") ="&$E$7&" and LocalDay("&$D$12&")="&$F$7&" and Barix("&$D$12&",reference:=StartOfDay)="&A53&"", "Bar", "", "Close","5","0","",,,"False","T","EveryTick") -> 1303 | U53: 0.001306385922 | V53: =RTD("cqg.rtd",,"StudyData", "Close("&$D$12&") when LocalYear("&$D$12&")="&$D$8&" and localMonth("&$D$12&") ="&$E$8&" and LocalDay("&$D$12&")="&$F$8&" and Barix("&$D$12&",reference:=StartOfDay)="&A53&"", "Bar", "", "Close","5","0","",,,"False","T","EveryTick") -> 1301.4 | W53: 0.0006151007227 | X53: =RTD("cqg.rtd",,"StudyData", "Close("&$D$12&") when LocalYear("&$D$12&")="&$D$9&" and localMonth("&$D$12&") ="&$E$9&" and LocalDay("&$D$12&")="&$F$9&" and Barix("&$D$12&",reference:=StartOfDay)="&A53&"", "Bar", "", "Close","5","0","",,,"False","T","EveryTick") -> 1303.6 | Y53: 0.002460781298 | Z53: =RTD("cqg.rtd",,"StudyData", "Close("&$D$12&") when LocalYear("&$D$12&")="&$D$10&" and localMonth("&$D$12&") ="&$E$10&" and LocalDay("&$D$12&")="&$F$10&" and Barix("&$D$12&",reference:=StartOfDay)="&A53&"", "Bar", "", "Close","5","0","",,,"False","T","EveryTick") -> 1303.4 | AA53: 0.005787483602
A54: 221 | B54: 11:25:00 | C54: -24 | D54: =RTD("cqg.rtd",,"StudyData", $D$12, "Tick", "FlatTicks=0", "Tick","D",C54,"") -> 1282.6 | H54: =RTD("cqg.rtd",,"StudyData", "Close("&$D$12&") when LocalYear("&$D$12&")="&$D$1&" and localMonth("&$D$12&") ="&$E$1&" and LocalDay("&$D$12&")="&$F$1&" and Barix("&$D$12&",reference:=StartOfDay)="&A54&"", "Bar", "", "Close","5","0","",,,"False","T","EveryTick") ->  | J54: =RTD("cqg.rtd",,"StudyData", "Close("&$D$12&") when LocalYear("&$D$12&")="&$D$2&" and localMonth("&$D$12&") ="&$E$2&" and LocalDay("&$D$12&")="&$F$2&" and Barix("&$D$12&",reference:=StartOfDay)="&A54&"", "Bar", "", "Close","5","0","",,,"False","T","EveryTick") -> 1281 | K54: -0.0190673099 | L54: =RTD("cqg.rtd",,"StudyData", "Close("&$D$12&") when LocalYear("&$D$12&")="&$D$3&" and localMonth("&$D$12&") ="&$E$3&" and LocalDay("&$D$12&")="&$F$3&" and Barix("&$D$12&",reference:=StartOfDay)="&A54&"", "Bar", "", "Close","5","0","",,,"False","T","EveryTick") -> 1307.3 | M54: 0.003377081894 | N54: =RTD("cqg.rtd",,"StudyData", "Close("&$D$12&") when LocalYear("&$D$12&")="&$D$4&" and localMonth("&$D$12&") ="&$E$4&" and LocalDay("&$D$12&")="&$F$4&" and Barix("&$D$12&",reference:=StartOfDay)="&A54&"", "Bar", "", "Close","5","0","",,,"False","T","EveryTick") -> 1302 | O54: 0.001846722068 | P54: =RTD("cqg.rtd",,"StudyData", "Close("&$D$12&") when LocalYear("&$D$12&")="&$D$5&" and localMonth("&$D$12&") ="&$E$5&" and LocalDay("&$D$12&")="&$F$5&" and Barix("&$D$12&",reference:=StartOfDay)="&A54&"", "Bar", "", "Close","5","0","",,,"False","T","EveryTick") -> 1300.9 | Q54: -0.002683226004 | R54: =RTD("cqg.rtd",,"StudyData", "Close("&$D$12&") when LocalYear("&$D$12&")="&$D$6&" and localMonth("&$D$12&") ="&$E$6&" and LocalDay("&$D$12&")="&$F$6&" and Barix("&$D$12&",reference:=StartOfDay)="&A54&"", "Bar", "", "Close","5","0","",,,"False","T","EveryTick") -> 1304.5 | S54: 0.0007671653241 | T54: =RTD("cqg.rtd",,"StudyData", "Close("&$D$12&") when LocalYear("&$D$12&")="&$D$7&" and localMonth("&$D$12&") ="&$E$7&" and LocalDay("&$D$12&")="&$F$7&" and Barix("&$D$12&",reference:=StartOfDay)="&A54&"", "Bar", "", "Close","5","0","",,,"False","T","EveryTick") -> 1302.5 | U54: 0.0009221547683 | V54: =RTD("cqg.rtd",,"StudyData", "Close("&$D$12&") when LocalYear("&$D$12&")="&$D$8&" and localMonth("&$D$12&") ="&$E$8&" and LocalDay("&$D$12&")="&$F$8&" and Barix("&$D$12&",reference:=StartOfDay)="&A54&"", "Bar", "", "Close","5","0","",,,"False","T","EveryTick") -> 1301.4 | W54: 0.0006151007227 | X54: =RTD("cqg.rtd",,"StudyData", "Close("&$D$12&") when LocalYear("&$D$12&")="&$D$9&" and localMonth("&$D$12&") ="&$E$9&" and LocalDay("&$D$12&")="&$F$9&" and Barix("&$D$12&",reference:=StartOfDay)="&A54&"", "Bar", "", "Close","5","0","",,,"False","T","EveryTick") -> 1303.5 | Y54: 0.002383881882 | Z54: =RTD("cqg.rtd",,"StudyData", "Close("&$D$12&") when LocalYear("&$D$12&")="&$D$10&" and localMonth("&$D$12&") ="&$E$10&" and LocalDay("&$D$12&")="&$F$10&" and Barix("&$D$12&",reference:=StartOfDay)="&A54&"", "Bar", "", "Close","5","0","",,,"False","T","EveryTick") -> 1304.5 | AA54: 0.00663631453
A55: 222 | B55: 11:30:00 | C55: -23 | D55: =RTD("cqg.rtd",,"StudyData", $D$12, "Tick", "FlatTicks=0", "Tick","D",C55,"") -> 1282.7 | H55: =RTD("cqg.rtd",,"StudyData", "Close("&$D$12&") when LocalYear("&$D$12&")="&$D$1&" and localMonth("&$D$12&") ="&$E$1&" and LocalDay("&$D$12&")="&$F$1&" and Barix("&$D$12&",reference:=StartOfDay)="&A55&"", "Bar", "", "Close","5","0","",,,"False","T","EveryTick") ->  | J55: =RTD("cqg.rtd",,"StudyData", "Close("&$D$12&") when LocalYear("&$D$12&")="&$D$2&" and localMonth("&$D$12&") ="&$E$2&" and LocalDay("&$D$12&")="&$F$2&" and Barix("&$D$12&",reference:=StartOfDay)="&A55&"", "Bar", "", "Close","5","0","",,,"False","T","EveryTick") -> 1280.4 | K55: -0.01952676315 | L55: =RTD("cqg.rtd",,"StudyData", "Close("&$D$12&") when LocalYear("&$D$12&")="&$D$3&" and localMonth("&$D$12&") ="&$E$3&" and LocalDay("&$D$12&")="&$F$3&" and Barix("&$D$12&",reference:=StartOfDay)="&A55&"", "Bar", "", "Close","5","0","",,,"False","T","EveryTick") -> 1307.3 | M55: 0.003377081894 | N55: =RTD("cqg.rtd",,"StudyData", "Close("&$D$12&") when LocalYear("&$D$12&")="&$D$4&" and localMonth("&$D$12&") ="&$E$4&" and LocalDay("&$D$12&")="&$F$4&" and Barix("&$D$12&",reference:=StartOfDay)="&A55&"", "Bar", "", "Close","5","0","",,,"False","T","EveryTick") -> 1302.3 | O55: 0.002077562327 | P55: =RTD("cqg.rtd",,"StudyData", "Close("&$D$12&") when LocalYear("&$D$12&")="&$D$5&" and localMonth("&$D$12&") ="&$E$5&" and LocalDay("&$D$12&")="&$F$5&" and Barix("&$D$12&",reference:=StartOfDay)="&A55&"", "Bar", "", "Close","5","0","",,,"False","T","EveryTick") -> 1300.8 | Q55: -0.002759889604 | R55: =RTD("cqg.rtd",,"StudyData", "Close("&$D$12&") when LocalYear("&$D$12&")="&$D$6&" and localMonth("&$D$12&") ="&$E$6&" and LocalDay("&$D$12&")="&$F$6&" and Barix("&$D$12&",reference:=StartOfDay)="&A55&"", "Bar", "", "Close","5","0","",,,"False","T","EveryTick") -> 1304.7 | S55: 0.000920598389 | T55: =RTD("cqg.rtd",,"StudyData", "Close("&$D$12&") when LocalYear("&$D$12&")="&$D$7&" and localMonth("&$D$12&") ="&$E$7&" and LocalDay("&$D$12&")="&$F$7&" and Barix("&$D$12&",reference:=StartOfDay)="&A55&"", "Bar", "", "Close","5","0","",,,"False","T","EveryTick") -> 1302.4 | U55: 0.0008453085376 | V55: =RTD("cqg.rtd",,"StudyData", "Close("&$D$12&") when LocalYear("&$D$12&")="&$D$8&" and localMonth("&$D$12&") ="&$E$8&" and LocalDay("&$D$12&")="&$F$8&" and Barix("&$D$12&",reference:=StartOfDay)="&A55&"", "Bar", "", "Close","5","0","",,,"False","T","EveryTick") -> 1301.9 | W55: 0.0009995386745 | X55: =RTD("cqg.rtd",,"StudyData", "Close("&$D$12&") when LocalYear("&$D$12&")="&$D$9&" and localMonth("&$D$12&") ="&$E$9&" and LocalDay("&$D$12&")="&$F$9&" and Barix("&$D$12&",reference:=StartOfDay)="&A55&"", "Bar", "", "Close","5","0","",,,"False","T","EveryTick") -> 1303.4 | Y55: 0.002306982467 | Z55: =RTD("cqg.rtd",,"StudyData", "Close("&$D$12&") when LocalYear("&$D$12&")="&$D$10&" and localMonth("&$D$12&") ="&$E$10&" and LocalDay("&$D$12&")="&$F$10&" and Barix("&$D$12&",reference:=StartOfDay)="&A55&"", "Bar", "", "Close","5","0","",,,"False","T","EveryTick") -> 1303.9 | AA55: 0.006173315842
A56: 223 | B56: 11:35:00 | C56: -22 | D56: =RTD("cqg.rtd",,"StudyData", $D$12, "Tick", "FlatTicks=0", "Tick","D",C56,"") -> 1282.6 | H56: =RTD("cqg.rtd",,"StudyData", "Close("&$D$12&") when LocalYear("&$D$12&")="&$D$1&" and localMonth("&$D$12&") ="&$E$1&" and LocalDay("&$D$12&")="&$F$1&" and Barix("&$D$12&",reference:=StartOfDay)="&A56&"", "Bar", "", "Close","5","0","",,,"False","T","EveryTick") ->  | J56: =RTD("cqg.rtd",,"StudyData", "Close("&$D$12&") when LocalYear("&$D$12&")="&$D$2&" and localMonth("&$D$12&") ="&$E$2&" and LocalDay("&$D$12&")="&$F$2&" and Barix("&$D$12&",reference:=StartOfDay)="&A56&"", "Bar", "", "Close","5","0","",,,"False","T","EveryTick") -> 1281.2 | K56: -0.01891415882 | L56: =RTD("cqg.rtd",,"StudyData", "Close("&$D$12&") when LocalYear("&$D$12&")="&$D$3&" and localMonth("&$D$12&") ="&$E$3&" and LocalDay("&$D$12&")="&$F$3&" and Barix("&$D$12&",reference:=StartOfDay)="&A56&"", "Bar", "", "Close","5","0","",,,"False","T","EveryTick") -> 1307.3 | M56: 0.003377081894 | N56: =RTD("cqg.rtd",,"StudyData", "Close("&$D$12&") when LocalYear("&$D$12&")="&$D$4&" and localMonth("&$D$12&") ="&$E$4&" and LocalDay("&$D$12&")="&$F$4&" and Barix("&$D$12&",reference:=StartOfDay)="&A56&"", "Bar", "", "Close","5","0","",,,"False","T","EveryTick") -> 1302.3 | O56: 0.002077562327 | P56: =RTD("cqg.rtd",,"StudyData", "Close("&$D$12&") when LocalYear("&$D$12&")="&$D$5&" and localMonth("&$D$12&") ="&$E$5&" and LocalDay("&$D$12&")="&$F$5&" and Barix("&$D$12&",reference:=StartOfDay)="&A56&"", "Bar", "", "Close","5","0","",,,"False","T","EveryTick") -> 1301.1 | Q56: -0.002529898804 | R56: =RTD("cqg.rtd",,"StudyData", "Close("&$D$12&") when LocalYear("&$D$12&")="&$D$6&" and localMonth("&$D$12&") ="&$E$6&" and LocalDay("&$D$12&")="&$F$6&" and Barix("&$D$12&",reference:=StartOfDay)="&A56&"", "Bar", "", "Close","5","0","",,,"False","T","EveryTick") -> 1304.7 | S56: 0.000920598389 | T56: =RTD("cqg.rtd",,"StudyData", "Close("&$D$12&") when LocalYear("&$D$12&")="&$D$7&" and localMonth("&$D$12&") ="&$E$7&" and LocalDay("&$D$12&")="&$F$7&" and Barix("&$D$12&",reference:=StartOfDay)="&A56&"", "Bar", "", "Close","5","0","",,,"False","T","EveryTick") -> 1302.4 | U56: 0.0008453085376 | V56: =RTD("cqg.rtd",,"StudyData", "Close("&$D$12&") when LocalYear("&$D$12&")="&$D$8&" and localMonth("&$D$12&") ="&$E$8&" and LocalDay("&$D$12&")="&$F$8&" and Barix("&$D$12&",reference:=StartOfDay)="&A56&"", "Bar", "", "Close","5","0","",,,"False","T","EveryTick") -> 1301.7 | W56: 0.0008457634938 | X56: =RTD("cqg.rtd",,"StudyData", "Close("&$D$12&") when LocalYear("&$D$12&")="&$D$9&" and localMonth("&$D$12&") ="&$E$9&" and LocalDay("&$D$12&")="&$F$9&" and Barix("&$D$12&",reference:=StartOfDay)="&A56&"", "Bar", "", "Close","5","0","",,,"False","T","EveryTick") -> 1303.6 | Y56: 0.002460781298 | Z56: =RTD("cqg.rtd",,"StudyData", "Close("&$D$12&") when LocalYear("&$D$12&")="&$D$10&" and localMonth("&$D$12&") ="&$E$10&" and LocalDay("&$D$12&")="&$F$10&" and Barix("&$D$12&",reference:=StartOfDay)="&A56&"", "Bar", "", "Close","5","0","",,,"False","T","EveryTick") -> 1302.8 | AA56: 0.005324484914
A57: 224 | B57: 11:40:00 | C57: -21 | D57: =RTD("cqg.rtd",,"StudyData", $D$12, "Tick", "FlatTicks=0", "Tick","D",C57,"") -> 1282.7 | H57: =RTD("cqg.rtd",,"StudyData", "Close("&$D$12&") when LocalYear("&$D$12&")="&$D$1&" and localMonth("&$D$12&") ="&$E$1&" and LocalDay("&$D$12&")="&$F$1&" and Barix("&$D$12&",reference:=StartOfDay)="&A57&"", "Bar", "", "Close","5","0","",,,"False","T","EveryTick") ->  | J57: =RTD("cqg.rtd",,"StudyData", "Close("&$D$12&") when LocalYear("&$D$12&")="&$D$2&" and localMonth("&$D$12&") ="&$E$2&" and LocalDay("&$D$12&")="&$F$2&" and Barix("&$D$12&",reference:=StartOfDay)="&A57&"", "Bar", "", "Close","5","0","",,,"False","T","EveryTick") -> 1280.4 | K57: -0.01952676315 | L57: =RTD("cqg.rtd",,"StudyData", "Close("&$D$12&") when LocalYear("&$D$12&")="&$D$3&" and localMonth("&$D$12&") ="&$E$3&" and LocalDay("&$D$12&")="&$F$3&" and Barix("&$D$12&",reference:=StartOfDay)="&A57&"", "Bar", "", "Close","5","0","",,,"False","T","EveryTick") -> 1307.3 | M57: 0.003377081894 | N57: =RTD("cqg.rtd",,"StudyData", "Close("&$D$12&") when LocalYear("&$D$12&")="&$D$4&" and localMonth("&$D$12&") ="&$E$4&" and LocalDay("&$D$12&")="&$F$4&" and Barix("&$D$12&",reference:=StartOfDay)="&A57&"", "Bar", "", "Close","5","0","",,,"False","T","EveryTick") -> 1302 | O57: 0.001846722068 | P57: =RTD("cqg.rtd",,"StudyData", "Close("&$D$12&") when LocalYear("&$D$12&")="&$D$5&" and localMonth("&$D$12&") ="&$E$5&" and LocalDay("&$D$12&")="&$F$5&" and Barix("&$D$12&",reference:=StartOfDay)="&A57&"", "Bar", "", "Close","5","0","",,,"False","T","EveryTick") -> 1301 | Q57: -0.002606562404 | R57: =RTD("cqg.rtd",,"StudyData", "Close("&$D$12&") when LocalYear("&$D$12&")="&$D$6&" and localMonth("&$D$12&") ="&$E$6&" and LocalDay("&$D$12&")="&$F$6&" and Barix("&$D$12&",reference:=StartOfDay)="&A57&"", "Bar", "", "Close","5","0","",,,"False","T","EveryTick") -> 1304.4 | S57: 0.0006904487917 | T57: =RTD("cqg.rtd",,"StudyData", "Close("&$D$12&") when LocalYear("&$D$12&")="&$D$7&" and localMonth("&$D$12&") ="&$E$7&" and LocalDay("&$D$12&")="&$F$7&" and Barix("&$D$12&",reference:=StartOfDay)="&A57&"", "Bar", "", "Close","5","0","",,,"False","T","EveryTick") -> 1302.3 | U57: 0.0007684623069 | V57: =RTD("cqg.rtd",,"StudyData", "Close("&$D$12&") when LocalYear("&$D$12&")="&$D$8&" and localMonth("&$D$12&") ="&$E$8&" and LocalDay("&$D$12&")="&$F$8&" and Barix("&$D$12&",reference:=StartOfDay)="&A57&"", "Bar", "", "Close","5","0","",,,"False","T","EveryTick") -> 1301.5 | W57: 0.0006919883131 | X57: =RTD("cqg.rtd",,"StudyData", "Close("&$D$12&") when LocalYear("&$D$12&")="&$D$9&" and localMonth("&$D$12&") ="&$E$9&" and LocalDay("&$D$12&")="&$F$9&" and Barix("&$D$12&",reference:=StartOfDay)="&A57&"", "Bar", "", "Close","5","0","",,,"False","T","EveryTick") -> 1303.8 | Y57: 0.002614580129 | Z57: =RTD("cqg.rtd",,"StudyData", "Close("&$D$12&") when LocalYear("&$D$12&")="&$D$10&" and localMonth("&$D$12&") ="&$E$10&" and LocalDay("&$D$12&")="&$F$10&" and Barix("&$D$12&",reference:=StartOfDay)="&A57&"", "Bar", "", "Close","5","0","",,,"False","T","EveryTick") -> 1302.8 | AA57: 0.005324484914
A58: 225 | B58: 11:45:00 | C58: -20 | D58: =RTD("cqg.rtd",,"StudyData", $D$12, "Tick", "FlatTicks=0", "Tick","D",C58,"") -> 1282.6 | H58: =RTD("cqg.rtd",,"StudyData", "Close("&$D$12&") when LocalYear("&$D$12&")="&$D$1&" and localMonth("&$D$12&") ="&$E$1&" and LocalDay("&$D$12&")="&$F$1&" and Barix("&$D$12&",reference:=StartOfDay)="&A58&"", "Bar", "", "Close","5","0","",,,"False","T","EveryTick") ->  | J58: =RTD("cqg.rtd",,"StudyData", "Close("&$D$12&") when LocalYear("&$D$12&")="&$D$2&" and localMonth("&$D$12&") ="&$E$2&" and LocalDay("&$D$12&")="&$F$2&" and Barix("&$D$12&",reference:=StartOfDay)="&A58&"", "Bar", "", "Close","5","0","",,,"False","T","EveryTick") -> 1280.3 | K58: -0.01960333869 | L58: =RTD("cqg.rtd",,"StudyData", "Close("&$D$12&") when LocalYear("&$D$12&")="&$D$3&" and localMonth("&$D$12&") ="&$E$3&" and LocalDay("&$D$12&")="&$F$3&" and Barix("&$D$12&",reference:=StartOfDay)="&A58&"", "Bar", "", "Close","5","0","",,,"False","T","EveryTick") -> 1307.6 | M58: 0.003607337478 | N58: =RTD("cqg.rtd",,"StudyData", "Close("&$D$12&") when LocalYear("&$D$12&")="&$D$4&" and localMonth("&$D$12&") ="&$E$4&" and LocalDay("&$D$12&")="&$F$4&" and Barix("&$D$12&",reference:=StartOfDay)="&A58&"", "Bar", "", "Close","5","0","",,,"False","T","EveryTick") -> 1301.7 | O58: 0.00161588181 | P58: =RTD("cqg.rtd",,"StudyData", "Close("&$D$12&") when LocalYear("&$D$12&")="&$D$5&" and localMonth("&$D$12&") ="&$E$5&" and LocalDay("&$D$12&")="&$F$5&" and Barix("&$D$12&",reference:=StartOfDay)="&A58&"", "Bar", "", "Close","5","0","",,,"False","T","EveryTick") -> 1300.8 | Q58: -0.002759889604 | R58: =RTD("cqg.rtd",,"StudyData", "Close("&$D$12&") when LocalYear("&$D$12&")="&$D$6&" and localMonth("&$D$12&") ="&$E$6&" and LocalDay("&$D$12&")="&$F$6&" and Barix("&$D$12&",reference:=StartOfDay)="&A58&"", "Bar", "", "Close","5","0","",,,"False","T","EveryTick") -> 1304.6 | S58: 0.0008438818565 | T58: =RTD("cqg.rtd",,"StudyData", "Close("&$D$12&") when LocalYear("&$D$12&")="&$D$7&" and localMonth("&$D$12&") ="&$E$7&" and LocalDay("&$D$12&")="&$F$7&" and Barix("&$D$12&",reference:=StartOfDay)="&A58&"", "Bar", "", "Close","5","0","",,,"False","T","EveryTick") -> 1302.5 | U58: 0.0009221547683 | V58: =RTD("cqg.rtd",,"StudyData", "Close("&$D$12&") when LocalYear("&$D$12&")="&$D$8&" and localMonth("&$D$12&") ="&$E$8&" and LocalDay("&$D$12&")="&$F$8&" and Barix("&$D$12&",reference:=StartOfDay)="&A58&"", "Bar", "", "Close","5","0","",,,"False","T","EveryTick") -> 1302 | W58: 0.001076426265 | X58: =RTD("cqg.rtd",,"StudyData", "Close("&$D$12&") when LocalYear("&$D$12&")="&$D$9&" and localMonth("&$D$12&") ="&$E$9&" and LocalDay("&$D$12&")="&$F$9&" and Barix("&$D$12&",reference:=StartOfDay)="&A58&"", "Bar", "", "Close","5","0","",,,"False","T","EveryTick") -> 1303.9 | Y58: 0.002691479545 | Z58: =RTD("cqg.rtd",,"StudyData", "Close("&$D$12&") when LocalYear("&$D$12&")="&$D$10&" and localMonth("&$D$12&") ="&$E$10&" and LocalDay("&$D$12&")="&$F$10&" and Barix("&$D$12&",reference:=StartOfDay)="&A58&"", "Bar", "", "Close","5","0","",,,"False","T","EveryTick") -> 1302.4 | AA58: 0.005015819122
A59: 226 | B59: 11:50:00 | C59: =C58+1 -> -19 | D59: =RTD("cqg.rtd",,"StudyData", $D$12, "Tick", "FlatTicks=0", "Tick","D",C59,"") -> 1282.7 | H59: =RTD("cqg.rtd",,"StudyData", "Close("&$D$12&") when LocalYear("&$D$12&")="&$D$1&" and localMonth("&$D$12&") ="&$E$1&" and LocalDay("&$D$12&")="&$F$1&" and Barix("&$D$12&",reference:=StartOfDay)="&A59&"", "Bar", "", "Close","5","0","",,,"False","T","EveryTick") ->  | J59: =RTD("cqg.rtd",,"StudyData", "Close("&$D$12&") when LocalYear("&$D$12&")="&$D$2&" and localMonth("&$D$12&") ="&$E$2&" and LocalDay("&$D$12&")="&$F$2&" and Barix("&$D$12&",reference:=StartOfDay)="&A59&"", "Bar", "", "Close","5","0","",,,"False","T","EveryTick") -> 1279.9 | K59: -0.01990964086 | L59: =RTD("cqg.rtd",,"StudyData", "Close("&$D$12&") when LocalYear("&$D$12&")="&$D$3&" and localMonth("&$D$12&") ="&$E$3&" and LocalDay("&$D$12&")="&$F$3&" and Barix("&$D$12&",reference:=StartOfDay)="&A59&"", "Bar", "", "Close","5","0","",,,"False","T","EveryTick") -> 1308 | M59: 0.003914344923 | N59: =RTD("cqg.rtd",,"StudyData", "Close("&$D$12&") when LocalYear("&$D$12&")="&$D$4&" and localMonth("&$D$12&") ="&$E$4&" and LocalDay("&$D$12&")="&$F$4&" and Barix("&$D$12&",reference:=StartOfDay)="&A59&"", "Bar", "", "Close","5","0","",,,"False","T","EveryTick") -> 1301.8 | O59: 0.001692828563 | P59: =RTD("cqg.rtd",,"StudyData", "Close("&$D$12&") when LocalYear("&$D$12&")="&$D$5&" and localMonth("&$D$12&") ="&$E$5&" and LocalDay("&$D$12&")="&$F$5&" and Barix("&$D$12&",reference:=StartOfDay)="&A59&"", "Bar", "", "Close","5","0","",,,"False","T","EveryTick") -> 1300.7 | Q59: -0.002836553205 | R59: =RTD("cqg.rtd",,"StudyData", "Close("&$D$12&") when LocalYear("&$D$12&")="&$D$6&" and localMonth("&$D$12&") ="&$E$6&" and LocalDay("&$D$12&")="&$F$6&" and Barix("&$D$12&",reference:=StartOfDay)="&A59&"", "Bar", "", "Close","5","0","",,,"False","T","EveryTick") -> 1304.5 | S59: 0.0007671653241 | T59: =RTD("cqg.rtd",,"StudyData", "Close("&$D$12&") when LocalYear("&$D$12&")="&$D$7&" and localMonth("&$D$12&") ="&$E$7&" and LocalDay("&$D$12&")="&$F$7&" and Barix("&$D$12&",reference:=StartOfDay)="&A59&"", "Bar", "", "Close","5","0","",,,"False","T","EveryTick") -> 1302.5 | U59: 0.0009221547683 | V59: =RTD("cqg.rtd",,"StudyData", "Close("&$D$12&") when LocalYear("&$D$12&")="&$D$8&" and localMonth("&$D$12&") ="&$E$8&" and LocalDay("&$D$12&")="&$F$8&" and Barix("&$D$12&",reference:=StartOfDay)="&A59&"", "Bar", "", "Close","5","0","",,,"False","T","EveryTick") -> 1301.9 | W59: 0.0009995386745 | X59: =RTD("cqg.rtd",,"StudyData", "Close("&$D$12&") when LocalYear("&$D$12&")="&$D$9&" and localMonth("&$D$12&") ="&$E$9&" and LocalDay("&$D$12&")="&$F$9&" and Barix("&$D$12&",reference:=StartOfDay)="&A59&"", "Bar", "", "Close","5","0","",,,"False","T","EveryTick") -> 1303.3 | Y59: 0.002230083051 | Z59: =RTD("cqg.rtd",,"StudyData", "Close("&$D$12&") when LocalYear("&$D$12&")="&$D$10&" and localMonth("&$D$12&") ="&$E$10&" and LocalDay("&$D$12&")="&$F$10&" and Barix("&$D$12&",reference:=StartOfDay)="&A59&"", "Bar", "", "Close","5","0","",,,"False","T","EveryTick") -> 1302.9 | AA59: 0.005401651362
A60: 227 | B60: 11:55:00 | C60: =C59+1 -> -18 | D60: =RTD("cqg.rtd",,"StudyData", $D$12, "Tick", "FlatTicks=0", "Tick","D",C60,"") -> 1282.6 | H60: =RTD("cqg.rtd",,"StudyData", "Close("&$D$12&") when LocalYear("&$D$12&")="&$D$1&" and localMonth("&$D$12&") ="&$E$1&" and LocalDay("&$D$12&")="&$F$1&" and Barix("&$D$12&",reference:=StartOfDay)="&A60&"", "Bar", "", "Close","5","0","",,,"False","T","EveryTick") ->  | J60: =RTD("cqg.rtd",,"StudyData", "Close("&$D$12&") when LocalYear("&$D$12&")="&$D$2&" and localMonth("&$D$12&") ="&$E$2&" and LocalDay("&$D$12&")="&$F$2&" and Barix("&$D$12&",reference:=StartOfDay)="&A60&"", "Bar", "", "Close","5","0","",,,"False","T","EveryTick") -> 1279.1 | K60: -0.02052224519 | L60: =RTD("cqg.rtd",,"StudyData", "Close("&$D$12&") when LocalYear("&$D$12&")="&$D$3&" and localMonth("&$D$12&") ="&$E$3&" and LocalDay("&$D$12&")="&$F$3&" and Barix("&$D$12&",reference:=StartOfDay)="&A60&"", "Bar", "", "Close","5","0","",,,"False","T","EveryTick") -> 1307.6 | M60: 0.003607337478 | N60: =RTD("cqg.rtd",,"StudyData", "Close("&$D$12&") when LocalYear("&$D$12&")="&$D$4&" and localMonth("&$D$12&") ="&$E$4&" and LocalDay("&$D$12&")="&$F$4&" and Barix("&$D$12&",reference:=StartOfDay)="&A60&"", "Bar", "", "Close","5","0","",,,"False","T","EveryTick") -> 1301.9 | O60: 0.001769775315 | P60: =RTD("cqg.rtd",,"StudyData", "Close("&$D$12&") when LocalYear("&$D$12&")="&$D$5&" and localMonth("&$D$12&") ="&$E$5&" and LocalDay("&$D$12&")="&$F$5&" and Barix("&$D$12&",reference:=StartOfDay)="&A60&"", "Bar", "", "Close","5","0","",,,"False","T","EveryTick") -> 1300.4 | Q60: -0.003066544005 | R60: =RTD("cqg.rtd",,"StudyData", "Close("&$D$12&") when LocalYear("&$D$12&")="&$D$6&" and localMonth("&$D$12&") ="&$E$6&" and LocalDay("&$D$12&")="&$F$6&" and Barix("&$D$12&",reference:=StartOfDay)="&A60&"", "Bar", "", "Close","5","0","",,,"False","T","EveryTick") -> 1304.4 | S60: 0.0006904487917 | T60: =RTD("cqg.rtd",,"StudyData", "Close("&$D$12&") when LocalYear("&$D$12&")="&$D$7&" and localMonth("&$D$12&") ="&$E$7&" and LocalDay("&$D$12&")="&$F$7&" and Barix("&$D$12&",reference:=StartOfDay)="&A60&"", "Bar", "", "Close","5","0","",,,"False","T","EveryTick") -> 1302.2 | U60: 0.0006916160762 | V60: =RTD("cqg.rtd",,"StudyData", "Close("&$D$12&") when LocalYear("&$D$12&")="&$D$8&" and localMonth("&$D$12&") ="&$E$8&" and LocalDay("&$D$12&")="&$F$8&" and Barix("&$D$12&",reference:=StartOfDay)="&A60&"", "Bar", "", "Close","5","0","",,,"False","T","EveryTick") -> 1301.7 | W60: 0.0008457634938 | X60: =RTD("cqg.rtd",,"StudyData", "Close("&$D$12&") when LocalYear("&$D$12&")="&$D$9&" and localMonth("&$D$12&") ="&$E$9&" and LocalDay("&$D$12&")="&$F$9&" and Barix("&$D$12&",reference:=StartOfDay)="&A60&"", "Bar", "", "Close","5","0","",,,"False","T","EveryTick") -> 1301.8 | Y60: 0.001076591818 | Z60: =RTD("cqg.rtd",,"StudyData", "Close("&$D$12&") when LocalYear("&$D$12&")="&$D$10&" and localMonth("&$D$12&") ="&$E$10&" and LocalDay("&$D$12&")="&$F$10&" and Barix("&$D$12&",reference:=StartOfDay)="&A60&"", "Bar", "", "Close","5","0","",,,"False","T","EveryTick") -> 1302.7 | AA60: 0.005247318466
A61: 228 | B61: 12:00:00 | C61: -17 | D61: =RTD("cqg.rtd",,"StudyData", $D$12, "Tick", "FlatTicks=0", "Tick","D",C61,"") -> 1282.7 | H61: =RTD("cqg.rtd",,"StudyData", "Close("&$D$12&") when LocalYear("&$D$12&")="&$D$1&" and localMonth("&$D$12&") ="&$E$1&" and LocalDay("&$D$12&")="&$F$1&" and Barix("&$D$12&",reference:=StartOfDay)="&A61&"", "Bar", "", "Close","5","0","",,,"False","T","EveryTick") ->  | J61: =RTD("cqg.rtd",,"StudyData", "Close("&$D$12&") when LocalYear("&$D$12&")="&$D$2&" and localMonth("&$D$12&") ="&$E$2&" and LocalDay("&$D$12&")="&$F$2&" and Barix("&$D$12&",reference:=StartOfDay)="&A61&"", "Bar", "", "Close","5","0","",,,"False","T","EveryTick") -> 1279.7 | K61: -0.02006279194 | L61: =RTD("cqg.rtd",,"StudyData", "Close("&$D$12&") when LocalYear("&$D$12&")="&$D$3&" and localMonth("&$D$12&") ="&$E$3&" and LocalDay("&$D$12&")="&$F$3&" and Barix("&$D$12&",reference:=StartOfDay)="&A61&"", "Bar", "", "Close","5","0","",,,"False","T","EveryTick") -> 1307 | M61: 0.003146826311 | N61: =RTD("cqg.rtd",,"StudyData", "Close("&$D$12&") when LocalYear("&$D$12&")="&$D$4&" and localMonth("&$D$12&") ="&$E$4&" and LocalDay("&$D$12&")="&$F$4&" and Barix("&$D$12&",reference:=StartOfDay)="&A61&"", "Bar", "", "Close","5","0","",,,"False","T","EveryTick") -> 1302.1 | O61: 0.001923668821 | P61: =RTD("cqg.rtd",,"StudyData", "Close("&$D$12&") when LocalYear("&$D$12&")="&$D$5&" and localMonth("&$D$12&") ="&$E$5&" and LocalDay("&$D$12&")="&$F$5&" and Barix("&$D$12&",reference:=StartOfDay)="&A61&"", "Bar", "", "Close","5","0","",,,"False","T","EveryTick") -> 1300.4 | Q61: -0.003066544005 | R61: =RTD("cqg.rtd",,"StudyData", "Close("&$D$12&") when LocalYear("&$D$12&")="&$D$6&" and localMonth("&$D$12&") ="&$E$6&" and LocalDay("&$D$12&")="&$F$6&" and Barix("&$D$12&",reference:=StartOfDay)="&A61&"", "Bar", "", "Close","5","0","",,,"False","T","EveryTick") -> 1304.7 | S61: 0.000920598389 | T61: =RTD("cqg.rtd",,"StudyData", "Close("&$D$12&") when LocalYear("&$D$12&")="&$D$7&" and localMonth("&$D$12&") ="&$E$7&" and LocalDay("&$D$12&")="&$F$7&" and Barix("&$D$12&",reference:=StartOfDay)="&A61&"", "Bar", "", "Close","5","0","",,,"False","T","EveryTick") -> 1302.6 | U61: 0.000999000999 | V61: =RTD("cqg.rtd",,"StudyData", "Close("&$D$12&") when LocalYear("&$D$12&")="&$D$8&" and localMonth("&$D$12&") ="&$E$8&" and LocalDay("&$D$12&")="&$F$8&" and Barix("&$D$12&",reference:=StartOfDay)="&A61&"", "Bar", "", "Close","5","0","",,,"False","T","EveryTick") -> 1302.1 | W61: 0.001153313855 | X61: =RTD("cqg.rtd",,"StudyData", "Close("&$D$12&") when LocalYear("&$D$12&")="&$D$9&" and localMonth("&$D$12&") ="&$E$9&" and LocalDay("&$D$12&")="&$F$9&" and Barix("&$D$12&",reference:=StartOfDay)="&A61&"", "Bar", "", "Close","5","0","",,,"False","T","EveryTick") -> 1302 | Y61: 0.001230390649 | Z61: =RTD("cqg.rtd",,"StudyData", "Close("&$D$12&") when LocalYear("&$D$12&")="&$D$10&" and localMonth("&$D$12&") ="&$E$10&" and LocalDay("&$D$12&")="&$F$10&" and Barix("&$D$12&",reference:=StartOfDay)="&A61&"", "Bar", "", "Close","5","0","",,,"False","T","EveryTick") -> 1303 | AA61: 0.00547881781
A62: 229 | B62: 12:05:00 | C62: -16 | D62: =RTD("cqg.rtd",,"StudyData", $D$12, "Tick", "FlatTicks=0", "Tick","D",C62,"") -> 1282.8 | H62: =RTD("cqg.rtd",,"StudyData", "Close("&$D$12&") when LocalYear("&$D$12&")="&$D$1&" and localMonth("&$D$12&") ="&$E$1&" and LocalDay("&$D$12&")="&$F$1&" and Barix("&$D$12&",reference:=StartOfDay)="&A62&"", "Bar", "", "Close","5","0","",,,"False","T","EveryTick") ->  | J62: =RTD("cqg.rtd",,"StudyData", "Close("&$D$12&") when LocalYear("&$D$12&")="&$D$2&" and localMonth("&$D$12&") ="&$E$2&" and LocalDay("&$D$12&")="&$F$2&" and Barix("&$D$12&",reference:=StartOfDay)="&A62&"", "Bar", "", "Close","5","0","",,,"False","T","EveryTick") -> 1280.4 | K62: -0.01952676315 | L62: =RTD("cqg.rtd",,"StudyData", "Close("&$D$12&") when LocalYear("&$D$12&")="&$D$3&" and localMonth("&$D$12&") ="&$E$3&" and LocalDay("&$D$12&")="&$F$3&" and Barix("&$D$12&",reference:=StartOfDay)="&A62&"", "Bar", "", "Close","5","0","",,,"False","T","EveryTick") -> 1307.1 | M62: 0.003223578172 | N62: =RTD("cqg.rtd",,"StudyData", "Close("&$D$12&") when LocalYear("&$D$12&")="&$D$4&" and localMonth("&$D$12&") ="&$E$4&" and LocalDay("&$D$12&")="&$F$4&" and Barix("&$D$12&",reference:=StartOfDay)="&A62&"", "Bar", "", "Close","5","0","",,,"False","T","EveryTick") -> 1301.6 | O62: 0.001538935057 | P62: =RTD("cqg.rtd",,"StudyData", "Close("&$D$12&") when LocalYear("&$D$12&")="&$D$5&" and localMonth("&$D$12&") ="&$E$5&" and LocalDay("&$D$12&")="&$F$5&" and Barix("&$D$12&",reference:=StartOfDay)="&A62&"", "Bar", "", "Close","5","0","",,,"False","T","EveryTick") -> 1300.2 | Q62: -0.003219871205 | R62: =RTD("cqg.rtd",,"StudyData", "Close("&$D$12&") when LocalYear("&$D$12&")="&$D$6&" and localMonth("&$D$12&") ="&$E$6&" and LocalDay("&$D$12&")="&$F$6&" and Barix("&$D$12&",reference:=StartOfDay)="&A62&"", "Bar", "", "Close","5","0","",,,"False","T","EveryTick") -> 1304.7 | S62: 0.000920598389 | T62: =RTD("cqg.rtd",,"StudyData", "Close("&$D$12&") when LocalYear("&$D$12&")="&$D$7&" and localMonth("&$D$12&") ="&$E$7&" and LocalDay("&$D$12&")="&$F$7&" and Barix("&$D$12&",reference:=StartOfDay)="&A62&"", "Bar", "", "Close","5","0","",,,"False","T","EveryTick") -> 1302.6 | U62: 0.000999000999 | V62: =RTD("cqg.rtd",,"StudyData", "Close("&$D$12&") when LocalYear("&$D$12&")="&$D$8&" and localMonth("&$D$12&") ="&$E$8&" and LocalDay("&$D$12&")="&$F$8&" and Barix("&$D$12&",reference:=StartOfDay)="&A62&"", "Bar", "", "Close","5","0","",,,"False","T","EveryTick") -> 1302 | W62: 0.001076426265 | X62: =RTD("cqg.rtd",,"StudyData", "Close("&$D$12&") when LocalYear("&$D$12&")="&$D$9&" and localMonth("&$D$12&") ="&$E$9&" and LocalDay("&$D$12&")="&$F$9&" and Barix("&$D$12&",reference:=StartOfDay)="&A62&"", "Bar", "", "Close","5","0","",,,"False","T","EveryTick") -> 1302.2 | Y62: 0.00138418948 | Z62: =RTD("cqg.rtd",,"StudyData", "Close("&$D$12&") when LocalYear("&$D$12&")="&$D$10&" and localMonth("&$D$12&") ="&$E$10&" and LocalDay("&$D$12&")="&$F$10&" and Barix("&$D$12&",reference:=StartOfDay)="&A62&"", "Bar", "", "Close","5","0","",,,"False","T","EveryTick") -> 1303.1 | AA62: 0.005555984258
A63: 230 | B63: 12:10:00 | C63: -15 | D63: =RTD("cqg.rtd",,"StudyData", $D$12, "Tick", "FlatTicks=0", "Tick","D",C63,"") -> 1282.7 | H63: =RTD("cqg.rtd",,"StudyData", "Close("&$D$12&") when LocalYear("&$D$12&")="&$D$1&" and localMonth("&$D$12&") ="&$E$1&" and LocalDay("&$D$12&")="&$F$1&" and Barix("&$D$12&",reference:=StartOfDay)="&A63&"", "Bar", "", "Close","5","0","",,,"False","T","EveryTick") ->  | J63: =RTD("cqg.rtd",,"StudyData", "Close("&$D$12&") when LocalYear("&$D$12&")="&$D$2&" and localMonth("&$D$12&") ="&$E$2&" and LocalDay("&$D$12&")="&$F$2&" and Barix("&$D$12&",reference:=StartOfDay)="&A63&"", "Bar", "", "Close","5","0","",,,"False","T","EveryTick") -> 1280.1 | K63: -0.01975648978 | L63: =RTD("cqg.rtd",,"StudyData", "Close("&$D$12&") when LocalYear("&$D$12&")="&$D$3&" and localMonth("&$D$12&") ="&$E$3&" and LocalDay("&$D$12&")="&$F$3&" and Barix("&$D$12&",reference:=StartOfDay)="&A63&"", "Bar", "", "Close","5","0","",,,"False","T","EveryTick") -> 1307.2 | M63: 0.003300330033 | N63: =RTD("cqg.rtd",,"StudyData", "Close("&$D$12&") when LocalYear("&$D$12&")="&$D$4&" and localMonth("&$D$12&") ="&$E$4&" and LocalDay("&$D$12&")="&$F$4&" and Barix("&$D$12&",reference:=StartOfDay)="&A63&"", "Bar", "", "Close","5","0","",,,"False","T","EveryTick") -> 1301.9 | O63: 0.001769775315 | P63: =RTD("cqg.rtd",,"StudyData", "Close("&$D$12&") when LocalYear("&$D$12&")="&$D$5&" and localMonth("&$D$12&") ="&$E$5&" and LocalDay("&$D$12&")="&$F$5&" and Barix("&$D$12&",reference:=StartOfDay)="&A63&"", "Bar", "", "Close","5","0","",,,"False","T","EveryTick") -> 1298.7 | Q63: -0.004369825207 | R63: =RTD("cqg.rtd",,"StudyData", "Close("&$D$12&") when LocalYear("&$D$12&")="&$D$6&" and localMonth("&$D$12&") ="&$E$6&" and LocalDay("&$D$12&")="&$F$6&" and Barix("&$D$12&",reference:=StartOfDay)="&A63&"", "Bar", "", "Close","5","0","",,,"False","T","EveryTick") -> 1304.7 | S63: 0.000920598389 | T63: =RTD("cqg.rtd",,"StudyData", "Close("&$D$12&") when LocalYear("&$D$12&")="&$D$7&" and localMonth("&$D$12&") ="&$E$7&" and LocalDay("&$D$12&")="&$F$7&" and Barix("&$D$12&",reference:=StartOfDay)="&A63&"", "Bar", "", "Close","5","0","",,,"False","T","EveryTick") -> 1302.5 | U63: 0.0009221547683 | V63: =RTD("cqg.rtd",,"StudyData", "Close("&$D$12&") when LocalYear("&$D$12&")="&$D$8&" and localMonth("&$D$12&") ="&$E$8&" and LocalDay("&$D$12&")="&$F$8&" and Barix("&$D$12&",reference:=StartOfDay)="&A63&"", "Bar", "", "Close","5","0","",,,"False","T","EveryTick") -> 1302.8 | W63: 0.001691526988 | X63: =RTD("cqg.rtd",,"StudyData", "Close("&$D$12&") when LocalYear("&$D$12&")="&$D$9&" and localMonth("&$D$12&") ="&$E$9&" and LocalDay("&$D$12&")="&$F$9&" and Barix("&$D$12&",reference:=StartOfDay)="&A63&"", "Bar", "", "Close","5","0","",,,"False","T","EveryTick") -> 1301.9 | Y63: 0.001153491233 | Z63: =RTD("cqg.rtd",,"StudyData", "Close("&$D$12&") when LocalYear("&$D$12&")="&$D$10&" and localMonth("&$D$12&") ="&$E$10&" and LocalDay("&$D$12&")="&$F$10&" and Barix("&$D$12&",reference:=StartOfDay)="&A63&"", "Bar", "", "Close","5","0","",,,"False","T","EveryTick") -> 1303.2 | AA63: 0.005633150706
A64: 231 | B64: 12:15:00 | C64: -14 | D64: =RTD("cqg.rtd",,"StudyData", $D$12, "Tick", "FlatTicks=0", "Tick","D",C64,"") -> 1282.8 | H64: =RTD("cqg.rtd",,"StudyData", "Close("&$D$12&") when LocalYear("&$D$12&")="&$D$1&" and localMonth("&$D$12&") ="&$E$1&" and LocalDay("&$D$12&")="&$F$1&" and Barix("&$D$12&",reference:=StartOfDay)="&A64&"", "Bar", "", "Close","5","0","",,,"False","T","EveryTick") ->  | J64: =RTD("cqg.rtd",,"StudyData", "Close("&$D$12&") when LocalYear("&$D$12&")="&$D$2&" and localMonth("&$D$12&") ="&$E$2&" and LocalDay("&$D$12&")="&$F$2&" and Barix("&$D$12&",reference:=StartOfDay)="&A64&"", "Bar", "", "Close","5","0","",,,"False","T","EveryTick") -> 1279.4 | K64: -0.02029251857 | L64: =RTD("cqg.rtd",,"StudyData", "Close("&$D$12&") when LocalYear("&$D$12&")="&$D$3&" and localMonth("&$D$12&") ="&$E$3&" and LocalDay("&$D$12&")="&$F$3&" and Barix("&$D$12&",reference:=StartOfDay)="&A64&"", "Bar", "", "Close","5","0","",,,"False","T","EveryTick") -> 1307.3 | M64: 0.003377081894 | N64: =RTD("cqg.rtd",,"StudyData", "Close("&$D$12&") when LocalYear("&$D$12&")="&$D$4&" and localMonth("&$D$12&") ="&$E$4&" and LocalDay("&$D$12&")="&$F$4&" and Barix("&$D$12&",reference:=StartOfDay)="&A64&"", "Bar", "", "Close","5","0","",,,"False","T","EveryTick") -> 1301.9 | O64: 0.001769775315 | P64: =RTD("cqg.rtd",,"StudyData", "Close("&$D$12&") when LocalYear("&$D$12&")="&$D$5&" and localMonth("&$D$12&") ="&$E$5&" and LocalDay("&$D$12&")="&$F$5&" and Barix("&$D$12&",reference:=StartOfDay)="&A64&"", "Bar", "", "Close","5","0","",,,"False","T","EveryTick") -> 1298.4 | Q64: -0.004599816007 | R64: =RTD("cqg.rtd",,"StudyData", "Close("&$D$12&") when LocalYear("&$D$12&")="&$D$6&" and localMonth("&$D$12&") ="&$E$6&" and LocalDay("&$D$12&")="&$F$6&" and Barix("&$D$12&",reference:=StartOfDay)="&A64&"", "Bar", "", "Close","5","0","",,,"False","T","EveryTick") -> 1303.9 | S64: 0.0003068661297 | T64: =RTD("cqg.rtd",,"StudyData", "Close("&$D$12&") when LocalYear("&$D$12&")="&$D$7&" and localMonth("&$D$12&") ="&$E$7&" and LocalDay("&$D$12&")="&$F$7&" and Barix("&$D$12&",reference:=StartOfDay)="&A64&"", "Bar", "", "Close","5","0","",,,"False","T","EveryTick") -> 1302.6 | U64: 0.000999000999 | V64: =RTD("cqg.rtd",,"StudyData", "Close("&$D$12&") when LocalYear("&$D$12&")="&$D$8&" and localMonth("&$D$12&") ="&$E$8&" and LocalDay("&$D$12&")="&$F$8&" and Barix("&$D$12&",reference:=StartOfDay)="&A64&"", "Bar", "", "Close","5","0","",,,"False","T","EveryTick") -> 1303.2 | W64: 0.001999077349 | X64: =RTD("cqg.rtd",,"StudyData", "Close("&$D$12&") when LocalYear("&$D$12&")="&$D$9&" and localMonth("&$D$12&") ="&$E$9&" and LocalDay("&$D$12&")="&$F$9&" and Barix("&$D$12&",reference:=StartOfDay)="&A64&"", "Bar", "", "Close","5","0","",,,"False","T","EveryTick") -> 1302 | Y64: 0.001230390649 | Z64: =RTD("cqg.rtd",,"StudyData", "Close("&$D$12&") when LocalYear("&$D$12&")="&$D$10&" and localMonth("&$D$12&") ="&$E$10&" and LocalDay("&$D$12&")="&$F$10&" and Barix("&$D$12&",reference:=StartOfDay)="&A64&"", "Bar", "", "Close","5","0","",,,"False","T","EveryTick") -> 1302.5 | AA64: 0.00509298557
A65: 232 | B65: 12:20:00 | C65: -13 | D65: =RTD("cqg.rtd",,"StudyData", $D$12, "Tick", "FlatTicks=0", "Tick","D",C65,"") -> 1282.7 | H65: =RTD("cqg.rtd",,"StudyData", "Close("&$D$12&") when LocalYear("&$D$12&")="&$D$1&" and localMonth("&$D$12&") ="&$E$1&" and LocalDay("&$D$12&")="&$F$1&" and Barix("&$D$12&",reference:=StartOfDay)="&A65&"", "Bar", "", "Close","5","0","",,,"False","T","EveryTick") ->  | J65: =RTD("cqg.rtd",,"StudyData", "Close("&$D$12&") when LocalYear("&$D$12&")="&$D$2&" and localMonth("&$D$12&") ="&$E$2&" and LocalDay("&$D$12&")="&$F$2&" and Barix("&$D$12&",reference:=StartOfDay)="&A65&"", "Bar", "", "Close","5","0","",,,"False","T","EveryTick") -> 1278.8 | K65: -0.02075197182 | L65: =RTD("cqg.rtd",,"StudyData", "Close("&$D$12&") when LocalYear("&$D$12&")="&$D$3&" and localMonth("&$D$12&") ="&$E$3&" and LocalDay("&$D$12&")="&$F$3&" and Barix("&$D$12&",reference:=StartOfDay)="&A65&"", "Bar", "", "Close","5","0","",,,"False","T","EveryTick") -> 1308.1 | M65: 0.003991096784 | N65: =RTD("cqg.rtd",,"StudyData", "Close("&$D$12&") when LocalYear("&$D$12&")="&$D$4&" and localMonth("&$D$12&") ="&$E$4&" and LocalDay("&$D$12&")="&$F$4&" and Barix("&$D$12&",reference:=StartOfDay)="&A65&"", "Bar", "", "Close","5","0","",,,"False","T","EveryTick") -> 1301.7 | O65: 0.00161588181 | P65: =RTD("cqg.rtd",,"StudyData", "Close("&$D$12&") when LocalYear("&$D$12&")="&$D$5&" and localMonth("&$D$12&") ="&$E$5&" and LocalDay("&$D$12&")="&$F$5&" and Barix("&$D$12&",reference:=StartOfDay)="&A65&"", "Bar", "", "Close","5","0","",,,"False","T","EveryTick") -> 1299.6 | Q65: -0.003679852806 | R65: =RTD("cqg.rtd",,"StudyData", "Close("&$D$12&") when LocalYear("&$D$12&")="&$D$6&" and localMonth("&$D$12&") ="&$E$6&" and LocalDay("&$D$12&")="&$F$6&" and Barix("&$D$12&",reference:=StartOfDay)="&A65&"", "Bar", "", "Close","5","0","",,,"False","T","EveryTick") -> 1303.7 | S65: 0.0001534330648 | T65: =RTD("cqg.rtd",,"StudyData", "Close("&$D$12&") when LocalYear("&$D$12&")="&$D$7&" and localMonth("&$D$12&") ="&$E$7&" and LocalDay("&$D$12&")="&$F$7&" and Barix("&$D$12&",reference:=StartOfDay)="&A65&"", "Bar", "", "Close","5","0","",,,"False","T","EveryTick") -> 1302.5 | U65: 0.0009221547683 | V65: =RTD("cqg.rtd",,"StudyData", "Close("&$D$12&") when LocalYear("&$D$12&")="&$D$8&" and localMonth("&$D$12&") ="&$E$8&" and LocalDay("&$D$12&")="&$F$8&" and Barix("&$D$12&",reference:=StartOfDay)="&A65&"", "Bar", "", "Close","5","0","",,,"False","T","EveryTick") -> 1302.7 | W65: 0.001614639397 | X65: =RTD("cqg.rtd",,"StudyData", "Close("&$D$12&") when LocalYear("&$D$12&")="&$D$9&" and localMonth("&$D$12&") ="&$E$9&" and LocalDay("&$D$12&")="&$F$9&" and Barix("&$D$12&",reference:=StartOfDay)="&A65&"", "Bar", "", "Close","5","0","",,,"False","T","EveryTick") -> 1301.4 | Y65: 0.0007689941556 | Z65: =RTD("cqg.rtd",,"StudyData", "Close("&$D$12&") when LocalYear("&$D$12&")="&$D$10&" and localMonth("&$D$12&") ="&$E$10&" and LocalDay("&$D$12&")="&$F$10&" and Barix("&$D$12&",reference:=StartOfDay)="&A65&"", "Bar", "", "Close","5","0","",,,"False","T","EveryTick") -> 1303.1 | AA65: 0.005555984258
A66: 233 | B66: 12:25:00 | C66: -12 | D66: =RTD("cqg.rtd",,"StudyData", $D$12, "Tick", "FlatTicks=0", "Tick","D",C66,"") -> 1282.8 | H66: =RTD("cqg.rtd",,"StudyData", "Close("&$D$12&") when LocalYear("&$D$12&")="&$D$1&" and localMonth("&$D$12&") ="&$E$1&" and LocalDay("&$D$12&")="&$F$1&" and Barix("&$D$12&",reference:=StartOfDay)="&A66&"", "Bar", "", "Close","5","0","",,,"False","T","EveryTick") ->  | J66: =RTD("cqg.rtd",,"StudyData", "Close("&$D$12&") when LocalYear("&$D$12&")="&$D$2&" and localMonth("&$D$12&") ="&$E$2&" and LocalDay("&$D$12&")="&$F$2&" and Barix("&$D$12&",reference:=StartOfDay)="&A66&"", "Bar", "", "Close","5","0","",,,"False","T","EveryTick") -> 1278.5 | K66: =IFERROR((J66-$G$3)/$G$3,NA()) -> -0.02098169845 | L66: =RTD("cqg.rtd",,"StudyData", "Close("&$D$12&") when LocalYear("&$D$12&")="&$D$3&" and localMonth("&$D$12&") ="&$E$3&" and LocalDay("&$D$12&")="&$F$3&" and Barix("&$D$12&",reference:=StartOfDay)="&A66&"", "Bar", "", "Close","5","0","",,,"False","T","EveryTick") -> 1308.3 | M66: =IFERROR((L66-$G$4)/$G$4,NA()) -> 0.004144600507 | N66: =RTD("cqg.rtd",,"StudyData", "Close("&$D$12&") when LocalYear("&$D$12&")="&$D$4&" and localMonth("&$D$12&") ="&$E$4&" and LocalDay("&$D$12&")="&$F$4&" and Barix("&$D$12&",reference:=StartOfDay)="&A66&"", "Bar", "", "Close","5","0","",,,"False","T","EveryTick") -> 1301.3 | O66: =IFERROR((N66-$G$5)/$G$5,NA()) -> 0.001308094798 | P66: =RTD("cqg.rtd",,"StudyData", "Close("&$D$12&") when LocalYear("&$D$12&")="&$D$5&" and localMonth("&$D$12&") ="&$E$5&" and LocalDay("&$D$12&")="&$F$5&" and Barix("&$D$12&",reference:=StartOfDay)="&A66&"", "Bar", "", "Close","5","0","",,,"False","T","EveryTick") -> 1299.4 | Q66: =IFERROR((P66-$G$6)/$G$6,NA()) -> -0.003833180006 | R66: =RTD("cqg.rtd",,"StudyData", "Close("&$D$12&") when LocalYear("&$D$12&")="&$D$6&" and localMonth("&$D$12&") ="&$E$6&" and LocalDay("&$D$12&")="&$F$6&" and Barix("&$D$12&",reference:=StartOfDay)="&A66&"", "Bar", "", "Close","5","0","",,,"False","T","EveryTick") -> 1303.2 | S66: =IFERROR((R66-$G$7)/$G$7,NA()) -> -0.0002301495972 | T66: =RTD("cqg.rtd",,"StudyData", "Close("&$D$12&") when LocalYear("&$D$12&")="&$D$7&" and localMonth("&$D$12&") ="&$E$7&" and LocalDay("&$D$12&")="&$F$7&" and Barix("&$D$12&",reference:=StartOfDay)="&A66&"", "Bar", "", "Close","5","0","",,,"False","T","EveryTick") -> 1302.7 | U66: =IFERROR((T66-$G$8)/$G$8,NA()) -> 0.00107584723 | V66: =RTD("cqg.rtd",,"StudyData", "Close("&$D$12&") when LocalYear("&$D$12&")="&$D$8&" and localMonth("&$D$12&") ="&$E$8&" and LocalDay("&$D$12&")="&$F$8&" and Barix("&$D$12&",reference:=StartOfDay)="&A66&"", "Bar", "", "Close","5","0","",,,"False","T","EveryTick") -> 1303 | W66: =IFERROR((V66-$G$9)/$G$9,NA()) -> 0.001845302168 | X66: =RTD("cqg.rtd",,"StudyData", "Close("&$D$12&") when LocalYear("&$D$12&")="&$D$9&" and localMonth("&$D$12&") ="&$E$9&" and LocalDay("&$D$12&")="&$F$9&" and Barix("&$D$12&",reference:=StartOfDay)="&A66&"", "Bar", "", "Close","5","0","",,,"False","T","EveryTick") -> 1301.4 | Y66: =IFERROR((X66-$G$10)/$G$10,NA()) -> 0.0007689941556 | Z66: =RTD("cqg.rtd",,"StudyData", "Close("&$D$12&") when LocalYear("&$D$12&")="&$D$10&" and localMonth("&$D$12&") ="&$E$10&" and LocalDay("&$D$12&")="&$F$10&" and Barix("&$D$12&",reference:=StartOfDay)="&A66&"", "Bar", "", "Close","5","0","",,,"False","T","EveryTick") -> 1302.2 | AA66: =IFERROR((Z66-$G$11)/$G$11,NA()) -> 0.004861486226
A67: =A66+1 -> 234 | B67: =B66+0.00347222222222227 -> 12:30:00 | C67: -11 | D67: =RTD("cqg.rtd",,"StudyData", $D$12, "Tick", "FlatTicks=0", "Tick","D",C67,"") -> 1282.7 | H67: =RTD("cqg.rtd",,"StudyData", "Close("&$D$12&") when LocalYear("&$D$12&")="&$D$1&" and localMonth("&$D$12&") ="&$E$1&" and LocalDay("&$D$12&")="&$F$1&" and Barix("&$D$12&",reference:=StartOfDay)="&A67&"", "Bar", "", "Close","5","0","",,,"False","T","EveryTick") ->  | I67: =IFERROR((H67-$G$2)/$G$2,NA()) ->  | J67: =RTD("cqg.rtd",,"StudyData", "Close("&$D$12&") when LocalYear("&$D$12&")="&$D$2&" and localMonth("&$D$12&") ="&$E$2&" and LocalDay("&$D$12&")="&$F$2&" and Barix("&$D$12&",reference:=StartOfDay)="&A67&"", "Bar", "", "Close","5","0","",,,"False","T","EveryTick") -> 1280.4 | K67: -0.01952676315 | L67: =RTD("cqg.rtd",,"StudyData", "Close("&$D$12&") when LocalYear("&$D$12&")="&$D$3&" and localMonth("&$D$12&") ="&$E$3&" and LocalDay("&$D$12&")="&$F$3&" and Barix("&$D$12&",reference:=StartOfDay)="&A67&"", "Bar", "", "Close","5","0","",,,"False","T","EveryTick") -> 1306.9 | M67: 0.003070074449 | N67: =RTD("cqg.rtd",,"StudyData", "Close("&$D$12&") when LocalYear("&$D$12&")="&$D$4&" and localMonth("&$D$12&") ="&$E$4&" and LocalDay("&$D$12&")="&$F$4&" and Barix("&$D$12&",reference:=StartOfDay)="&A67&"", "Bar", "", "Close","5","0","",,,"False","T","EveryTick") -> 1301.2 | O67: 0.001231148046 | P67: =RTD("cqg.rtd",,"StudyData", "Close("&$D$12&") when LocalYear("&$D$12&")="&$D$5&" and localMonth("&$D$12&") ="&$E$5&" and LocalDay("&$D$12&")="&$F$5&" and Barix("&$D$12&",reference:=StartOfDay)="&A67&"", "Bar", "", "Close","5","0","",,,"False","T","EveryTick") -> 1299.2 | Q67: -0.003986507206 | R67: =RTD("cqg.rtd",,"StudyData", "Close("&$D$12&") when LocalYear("&$D$12&")="&$D$6&" and localMonth("&$D$12&") ="&$E$6&" and LocalDay("&$D$12&")="&$F$6&" and Barix("&$D$12&",reference:=StartOfDay)="&A67&"", "Bar", "", "Close","5","0","",,,"False","T","EveryTick") -> 1303.5 | S67: 0 | T67: =RTD("cqg.rtd",,"StudyData", "Close("&$D$12&") when LocalYear("&$D$12&")="&$D$7&" and localMonth("&$D$12&") ="&$E$7&" and LocalDay("&$D$12&")="&$F$7&" and Barix("&$D$12&",reference:=StartOfDay)="&A67&"", "Bar", "", "Close","5","0","",,,"False","T","EveryTick") -> 1302.6 | U67: 0.000999000999 | V67: =RTD("cqg.rtd",,"StudyData", "Close("&$D$12&") when LocalYear("&$D$12&")="&$D$8&" and localMonth("&$D$12&") ="&$E$8&" and LocalDay("&$D$12&")="&$F$8&" and Barix("&$D$12&",reference:=StartOfDay)="&A67&"", "Bar", "", "Close","5","0","",,,"False","T","EveryTick") -> 1303.8 | W67: 0.002460402891 | X67: =RTD("cqg.rtd",,"StudyData", "Close("&$D$12&") when LocalYear("&$D$12&")="&$D$9&" and localMonth("&$D$12&") ="&$E$9&" and LocalDay("&$D$12&")="&$F$9&" and Barix("&$D$12&",reference:=StartOfDay)="&A67&"", "Bar", "", "Close","5","0","",,,"False","T","EveryTick") -> 1301.2 | Y67: 0.0006151953245 | Z67: =RTD("cqg.rtd",,"StudyData", "Close("&$D$12&") when LocalYear("&$D$12&")="&$D$10&" and localMonth("&$D$12&") ="&$E$10&" and LocalDay("&$D$12&")="&$F$10&" and Barix("&$D$12&",reference:=StartOfDay)="&A67&"", "Bar", "", "Close","5","0","",,,"False","T","EveryTick") -> 1302.6 | AA67: 0.005170152018 | AE67: =IF(AND(H66<>"",H67<>"",H68=""),A67,"") -> 
A68: 235 | B68: 12:35:00 | C68: -10 | D68: =RTD("cqg.rtd",,"StudyData", $D$12, "Tick", "FlatTicks=0", "Tick","D",C68,"") -> 1282.8 | H68: =RTD("cqg.rtd",,"StudyData", "Close("&$D$12&") when LocalYear("&$D$12&")="&$D$1&" and localMonth("&$D$12&") ="&$E$1&" and LocalDay("&$D$12&")="&$F$1&" and Barix("&$D$12&",reference:=StartOfDay)="&A68&"", "Bar", "", "Close","5","0","",,,"False","T","EveryTick") ->  | J68: =RTD("cqg.rtd",,"StudyData", "Close("&$D$12&") when LocalYear("&$D$12&")="&$D$2&" and localMonth("&$D$12&") ="&$E$2&" and LocalDay("&$D$12&")="&$F$2&" and Barix("&$D$12&",reference:=StartOfDay)="&A68&"", "Bar", "", "Close","5","0","",,,"False","T","EveryTick") -> 1280.7 | K68: -0.01929703653 | L68: =RTD("cqg.rtd",,"StudyData", "Close("&$D$12&") when LocalYear("&$D$12&")="&$D$3&" and localMonth("&$D$12&") ="&$E$3&" and LocalDay("&$D$12&")="&$F$3&" and Barix("&$D$12&",reference:=StartOfDay)="&A68&"", "Bar", "", "Close","5","0","",,,"False","T","EveryTick") -> 1306.2 | M68: 0.002532811421 | N68: =RTD("cqg.rtd",,"StudyData", "Close("&$D$12&") when LocalYear("&$D$12&")="&$D$4&" and localMonth("&$D$12&") ="&$E$4&" and LocalDay("&$D$12&")="&$F$4&" and Barix("&$D$12&",reference:=StartOfDay)="&A68&"", "Bar", "", "Close","5","0","",,,"False","T","EveryTick") -> 1301.4 | O68: 0.001385041551 | P68: =RTD("cqg.rtd",,"StudyData", "Close("&$D$12&") when LocalYear("&$D$12&")="&$D$5&" and localMonth("&$D$12&") ="&$E$5&" and LocalDay("&$D$12&")="&$F$5&" and Barix("&$D$12&",reference:=StartOfDay)="&A68&"", "Bar", "", "Close","5","0","",,,"False","T","EveryTick") -> 1299.7 | Q68: -0.003603189206 | R68: =RTD("cqg.rtd",,"StudyData", "Close("&$D$12&") when LocalYear("&$D$12&")="&$D$6&" and localMonth("&$D$12&") ="&$E$6&" and LocalDay("&$D$12&")="&$F$6&" and Barix("&$D$12&",reference:=StartOfDay)="&A68&"", "Bar", "", "Close","5","0","",,,"False","T","EveryTick") -> 1303.8 | S68: 0.0002301495972 | T68: =RTD("cqg.rtd",,"StudyData", "Close("&$D$12&") when LocalYear("&$D$12&")="&$D$7&" and localMonth("&$D$12&") ="&$E$7&" and LocalDay("&$D$12&")="&$F$7&" and Barix("&$D$12&",reference:=StartOfDay)="&A68&"", "Bar", "", "Close","5","0","",,,"False","T","EveryTick") -> 1302.6 | U68: 0.000999000999 | V68: =RTD("cqg.rtd",,"StudyData", "Close("&$D$12&") when LocalYear("&$D$12&")="&$D$8&" and localMonth("&$D$12&") ="&$E$8&" and LocalDay("&$D$12&")="&$F$8&" and Barix("&$D$12&",reference:=StartOfDay)="&A68&"", "Bar", "", "Close","5","0","",,,"False","T","EveryTick") -> 1302.3 | W68: 0.001307089036 | X68: =RTD("cqg.rtd",,"StudyData", "Close("&$D$12&") when LocalYear("&$D$12&")="&$D$9&" and localMonth("&$D$12&") ="&$E$9&" and LocalDay("&$D$12&")="&$F$9&" and Barix("&$D$12&",reference:=StartOfDay)="&A68&"", "Bar", "", "Close","5","0","",,,"False","T","EveryTick") -> 1300.9 | Y68: 0.0003844970778 | Z68: =RTD("cqg.rtd",,"StudyData", "Close("&$D$12&") when LocalYear("&$D$12&")="&$D$10&" and localMonth("&$D$12&") ="&$E$10&" and LocalDay("&$D$12&")="&$F$10&" and Barix("&$D$12&",reference:=StartOfDay)="&A68&"", "Bar", "", "Close","5","0","",,,"False","T","EveryTick") -> 1302.5 | AA68: 0.00509298557
A69: 236 | B69: 12:40:00 | C69: =C68+1 -> -9 | D69: =RTD("cqg.rtd",,"StudyData", $D$12, "Tick", "FlatTicks=0", "Tick","D",C69,"") -> 1282.9 | H69: =RTD("cqg.rtd",,"StudyData", "Close("&$D$12&") when LocalYear("&$D$12&")="&$D$1&" and localMonth("&$D$12&") ="&$E$1&" and LocalDay("&$D$12&")="&$F$1&" and Barix("&$D$12&",reference:=StartOfDay)="&A69&"", "Bar", "", "Close","5","0","",,,"False","T","EveryTick") ->  | J69: =RTD("cqg.rtd",,"StudyData", "Close("&$D$12&") when LocalYear("&$D$12&")="&$D$2&" and localMonth("&$D$12&") ="&$E$2&" and LocalDay("&$D$12&")="&$F$2&" and Barix("&$D$12&",reference:=StartOfDay)="&A69&"", "Bar", "", "Close","5","0","",,,"False","T","EveryTick") -> 1280.9 | K69: -0.01914388544 | L69: =RTD("cqg.rtd",,"StudyData", "Close("&$D$12&") when LocalYear("&$D$12&")="&$D$3&" and localMonth("&$D$12&") ="&$E$3&" and LocalDay("&$D$12&")="&$F$3&" and Barix("&$D$12&",reference:=StartOfDay)="&A69&"", "Bar", "", "Close","5","0","",,,"False","T","EveryTick") -> 1306.6 | M69: 0.002839818866 | N69: =RTD("cqg.rtd",,"StudyData", "Close("&$D$12&") when LocalYear("&$D$12&")="&$D$4&" and localMonth("&$D$12&") ="&$E$4&" and LocalDay("&$D$12&")="&$F$4&" and Barix("&$D$12&",reference:=StartOfDay)="&A69&"", "Bar", "", "Close","5","0","",,,"False","T","EveryTick") -> 1301.3 | O69: 0.001308094798 | P69: =RTD("cqg.rtd",,"StudyData", "Close("&$D$12&") when LocalYear("&$D$12&")="&$D$5&" and localMonth("&$D$12&") ="&$E$5&" and LocalDay("&$D$12&")="&$F$5&" and Barix("&$D$12&",reference:=StartOfDay)="&A69&"", "Bar", "", "Close","5","0","",,,"False","T","EveryTick") -> 1299.4 | Q69: -0.003833180006 | R69: =RTD("cqg.rtd",,"StudyData", "Close("&$D$12&") when LocalYear("&$D$12&")="&$D$6&" and localMonth("&$D$12&") ="&$E$6&" and LocalDay("&$D$12&")="&$F$6&" and Barix("&$D$12&",reference:=StartOfDay)="&A69&"", "Bar", "", "Close","5","0","",,,"False","T","EveryTick") -> 1303.9 | S69: 0.0003068661297 | T69: =RTD("cqg.rtd",,"StudyData", "Close("&$D$12&") when LocalYear("&$D$12&")="&$D$7&" and localMonth("&$D$12&") ="&$E$7&" and LocalDay("&$D$12&")="&$F$7&" and Barix("&$D$12&",reference:=StartOfDay)="&A69&"", "Bar", "", "Close","5","0","",,,"False","T","EveryTick") -> 1302.8 | U69: 0.00115269346 | V69: =RTD("cqg.rtd",,"StudyData", "Close("&$D$12&") when LocalYear("&$D$12&")="&$D$8&" and localMonth("&$D$12&") ="&$E$8&" and LocalDay("&$D$12&")="&$F$8&" and Barix("&$D$12&",reference:=StartOfDay)="&A69&"", "Bar", "", "Close","5","0","",,,"False","T","EveryTick") -> 1300.8 | W69: 0.0001537751807 | X69: =RTD("cqg.rtd",,"StudyData", "Close("&$D$12&") when LocalYear("&$D$12&")="&$D$9&" and localMonth("&$D$12&") ="&$E$9&" and LocalDay("&$D$12&")="&$F$9&" and Barix("&$D$12&",reference:=StartOfDay)="&A69&"", "Bar", "", "Close","5","0","",,,"False","T","EveryTick") -> 1300.3 | Y69: -7.689941556e-05 | Z69: =RTD("cqg.rtd",,"StudyData", "Close("&$D$12&") when LocalYear("&$D$12&")="&$D$10&" and localMonth("&$D$12&") ="&$E$10&" and LocalDay("&$D$12&")="&$F$10&" and Barix("&$D$12&",reference:=StartOfDay)="&A69&"", "Bar", "", "Close","5","0","",,,"False","T","EveryTick") -> 1303 | AA69: 0.00547881781
A70: 237 | B70: 12:45:00 | C70: -8 | D70: =RTD("cqg.rtd",,"StudyData", $D$12, "Tick", "FlatTicks=0", "Tick","D",C70,"") -> 1282.8 | H70: =RTD("cqg.rtd",,"StudyData", "Close("&$D$12&") when LocalYear("&$D$12&")="&$D$1&" and localMonth("&$D$12&") ="&$E$1&" and LocalDay("&$D$12&")="&$F$1&" and Barix("&$D$12&",reference:=StartOfDay)="&A70&"", "Bar", "", "Close","5","0","",,,"False","T","EveryTick") ->  | J70: =RTD("cqg.rtd",,"StudyData", "Close("&$D$12&") when LocalYear("&$D$12&")="&$D$2&" and localMonth("&$D$12&") ="&$E$2&" and LocalDay("&$D$12&")="&$F$2&" and Barix("&$D$12&",reference:=StartOfDay)="&A70&"", "Bar", "", "Close","5","0","",,,"False","T","EveryTick") -> 1280.8 | K70: -0.01922046098 | L70: =RTD("cqg.rtd",,"StudyData", "Close("&$D$12&") when LocalYear("&$D$12&")="&$D$3&" and localMonth("&$D$12&") ="&$E$3&" and LocalDay("&$D$12&")="&$F$3&" and Barix("&$D$12&",reference:=StartOfDay)="&A70&"", "Bar", "", "Close","5","0","",,,"False","T","EveryTick") -> 1306.3 | M70: 0.002609563282 | N70: =RTD("cqg.rtd",,"StudyData", "Close("&$D$12&") when LocalYear("&$D$12&")="&$D$4&" and localMonth("&$D$12&") ="&$E$4&" and LocalDay("&$D$12&")="&$F$4&" and Barix("&$D$12&",reference:=StartOfDay)="&A70&"", "Bar", "", "Close","5","0","",,,"False","T","EveryTick") -> 1301.5 | O70: 0.001461988304 | P70: =RTD("cqg.rtd",,"StudyData", "Close("&$D$12&") when LocalYear("&$D$12&")="&$D$5&" and localMonth("&$D$12&") ="&$E$5&" and LocalDay("&$D$12&")="&$F$5&" and Barix("&$D$12&",reference:=StartOfDay)="&A70&"", "Bar", "", "Close","5","0","",,,"False","T","EveryTick") -> 1300.1 | Q70: -0.003296534805 | R70: =RTD("cqg.rtd",,"StudyData", "Close("&$D$12&") when LocalYear("&$D$12&")="&$D$6&" and localMonth("&$D$12&") ="&$E$6&" and LocalDay("&$D$12&")="&$F$6&" and Barix("&$D$12&",reference:=StartOfDay)="&A70&"", "Bar", "", "Close","5","0","",,,"False","T","EveryTick") -> 1303.6 | S70: 7.671653241e-05 | T70: =RTD("cqg.rtd",,"StudyData", "Close("&$D$12&") when LocalYear("&$D$12&")="&$D$7&" and localMonth("&$D$12&") ="&$E$7&" and LocalDay("&$D$12&")="&$F$7&" and Barix("&$D$12&",reference:=StartOfDay)="&A70&"", "Bar", "", "Close","5","0","",,,"False","T","EveryTick") -> 1302.9 | U70: 0.001229539691 | V70: =RTD("cqg.rtd",,"StudyData", "Close("&$D$12&") when LocalYear("&$D$12&")="&$D$8&" and localMonth("&$D$12&") ="&$E$8&" and LocalDay("&$D$12&")="&$F$8&" and Barix("&$D$12&",reference:=StartOfDay)="&A70&"", "Bar", "", "Close","5","0","",,,"False","T","EveryTick") -> 1301.4 | W70: 0.0006151007227 | X70: =RTD("cqg.rtd",,"StudyData", "Close("&$D$12&") when LocalYear("&$D$12&")="&$D$9&" and localMonth("&$D$12&") ="&$E$9&" and LocalDay("&$D$12&")="&$F$9&" and Barix("&$D$12&",reference:=StartOfDay)="&A70&"", "Bar", "", "Close","5","0","",,,"False","T","EveryTick") -> 1300.2 | Y70: -0.0001537988311 | Z70: =RTD("cqg.rtd",,"StudyData", "Close("&$D$12&") when LocalYear("&$D$12&")="&$D$10&" and localMonth("&$D$12&") ="&$E$10&" and LocalDay("&$D$12&")="&$F$10&" and Barix("&$D$12&",reference:=StartOfDay)="&A70&"", "Bar", "", "Close","5","0","",,,"False","T","EveryTick") -> 1303.3 | AA70: 0.005710317154
A71: 238 | B71: 12:50:00 | C71: -7 | D71: =RTD("cqg.rtd",,"StudyData", $D$12, "Tick", "FlatTicks=0", "Tick","D",C71,"") -> 1282.9 | H71: =RTD("cqg.rtd",,"StudyData", "Close("&$D$12&") when LocalYear("&$D$12&")="&$D$1&" and localMonth("&$D$12&") ="&$E$1&" and LocalDay("&$D$12&")="&$F$1&" and Barix("&$D$12&",reference:=StartOfDay)="&A71&"", "Bar", "", "Close","5","0","",,,"False","T","EveryTick") ->  | J71: =RTD("cqg.rtd",,"StudyData", "Close("&$D$12&") when LocalYear("&$D$12&")="&$D$2&" and localMonth("&$D$12&") ="&$E$2&" and LocalDay("&$D$12&")="&$F$2&" and Barix("&$D$12&",reference:=StartOfDay)="&A71&"", "Bar", "", "Close","5","0","",,,"False","T","EveryTick") -> 1280.9 | K71: -0.01914388544 | L71: =RTD("cqg.rtd",,"StudyData", "Close("&$D$12&") when LocalYear("&$D$12&")="&$D$3&" and localMonth("&$D$12&") ="&$E$3&" and LocalDay("&$D$12&")="&$F$3&" and Barix("&$D$12&",reference:=StartOfDay)="&A71&"", "Bar", "", "Close","5","0","",,,"False","T","EveryTick") -> 1306.3 | M71: 0.002609563282 | N71: =RTD("cqg.rtd",,"StudyData", "Close("&$D$12&") when LocalYear("&$D$12&")="&$D$4&" and localMonth("&$D$12&") ="&$E$4&" and LocalDay("&$D$12&")="&$F$4&" and Barix("&$D$12&",reference:=StartOfDay)="&A71&"", "Bar", "", "Close","5","0","",,,"False","T","EveryTick") -> 1301.8 | O71: 0.001692828563 | P71: =RTD("cqg.rtd",,"StudyData", "Close("&$D$12&") when LocalYear("&$D$12&")="&$D$5&" and localMonth("&$D$12&") ="&$E$5&" and LocalDay("&$D$12&")="&$F$5&" and Barix("&$D$12&",reference:=StartOfDay)="&A71&"", "Bar", "", "Close","5","0","",,,"False","T","EveryTick") -> 1300.2 | Q71: -0.003219871205 | R71: =RTD("cqg.rtd",,"StudyData", "Close("&$D$12&") when LocalYear("&$D$12&")="&$D$6&" and localMonth("&$D$12&") ="&$E$6&" and LocalDay("&$D$12&")="&$F$6&" and Barix("&$D$12&",reference:=StartOfDay)="&A71&"", "Bar", "", "Close","5","0","",,,"False","T","EveryTick") -> 1303.6 | S71: 7.671653241e-05 | T71: =RTD("cqg.rtd",,"StudyData", "Close("&$D$12&") when LocalYear("&$D$12&")="&$D$7&" and localMonth("&$D$12&") ="&$E$7&" and LocalDay("&$D$12&")="&$F$7&" and Barix("&$D$12&",reference:=StartOfDay)="&A71&"", "Bar", "", "Close","5","0","",,,"False","T","EveryTick") -> 1302.7 | U71: 0.00107584723 | V71: =RTD("cqg.rtd",,"StudyData", "Close("&$D$12&") when LocalYear("&$D$12&")="&$D$8&" and localMonth("&$D$12&") ="&$E$8&" and LocalDay("&$D$12&")="&$F$8&" and Barix("&$D$12&",reference:=StartOfDay)="&A71&"", "Bar", "", "Close","5","0","",,,"False","T","EveryTick") -> 1301.7 | W71: 0.0008457634938 | X71: =RTD("cqg.rtd",,"StudyData", "Close("&$D$12&") when LocalYear("&$D$12&")="&$D$9&" and localMonth("&$D$12&") ="&$E$9&" and LocalDay("&$D$12&")="&$F$9&" and Barix("&$D$12&",reference:=StartOfDay)="&A71&"", "Bar", "", "Close","5","0","",,,"False","T","EveryTick") -> 1299.9 | Y71: -0.0003844970778 | Z71: =RTD("cqg.rtd",,"StudyData", "Close("&$D$12&") when LocalYear("&$D$12&")="&$D$10&" and localMonth("&$D$12&") ="&$E$10&" and LocalDay("&$D$12&")="&$F$10&" and Barix("&$D$12&",reference:=StartOfDay)="&A71&"", "Bar", "", "Close","5","0","",,,"False","T","EveryTick") -> 1302.7 | AA71: 0.005247318466
A72: 239 | B72: 12:55:00 | C72: -6 | D72: =RTD("cqg.rtd",,"StudyData", $D$12, "Tick", "FlatTicks=0", "Tick","D",C72,"") -> 1283 | H72: =RTD("cqg.rtd",,"StudyData", "Close("&$D$12&") when LocalYear("&$D$12&")="&$D$1&" and localMonth("&$D$12&") ="&$E$1&" and LocalDay("&$D$12&")="&$F$1&" and Barix("&$D$12&",reference:=StartOfDay)="&A72&"", "Bar", "", "Close","5","0","",,,"False","T","EveryTick") ->  | J72: =RTD("cqg.rtd",,"StudyData", "Close("&$D$12&") when LocalYear("&$D$12&")="&$D$2&" and localMonth("&$D$12&") ="&$E$2&" and LocalDay("&$D$12&")="&$F$2&" and Barix("&$D$12&",reference:=StartOfDay)="&A72&"", "Bar", "", "Close","5","0","",,,"False","T","EveryTick") -> 1281.4 | K72: -0.01876100773 | L72: =RTD("cqg.rtd",,"StudyData", "Close("&$D$12&") when LocalYear("&$D$12&")="&$D$3&" and localMonth("&$D$12&") ="&$E$3&" and LocalDay("&$D$12&")="&$F$3&" and Barix("&$D$12&",reference:=StartOfDay)="&A72&"", "Bar", "", "Close","5","0","",,,"False","T","EveryTick") -> 1306.4 | M72: 0.002686315143 | N72: =RTD("cqg.rtd",,"StudyData", "Close("&$D$12&") when LocalYear("&$D$12&")="&$D$4&" and localMonth("&$D$12&") ="&$E$4&" and LocalDay("&$D$12&")="&$F$4&" and Barix("&$D$12&",reference:=StartOfDay)="&A72&"", "Bar", "", "Close","5","0","",,,"False","T","EveryTick") -> 1301.6 | O72: 0.001538935057 | P72: =RTD("cqg.rtd",,"StudyData", "Close("&$D$12&") when LocalYear("&$D$12&")="&$D$5&" and localMonth("&$D$12&") ="&$E$5&" and LocalDay("&$D$12&")="&$F$5&" and Barix("&$D$12&",reference:=StartOfDay)="&A72&"", "Bar", "", "Close","5","0","",,,"False","T","EveryTick") -> 1299.8 | Q72: -0.003526525606 | R72: =RTD("cqg.rtd",,"StudyData", "Close("&$D$12&") when LocalYear("&$D$12&")="&$D$6&" and localMonth("&$D$12&") ="&$E$6&" and LocalDay("&$D$12&")="&$F$6&" and Barix("&$D$12&",reference:=StartOfDay)="&A72&"", "Bar", "", "Close","5","0","",,,"False","T","EveryTick") -> 1303.5 | S72: 0 | T72: =RTD("cqg.rtd",,"StudyData", "Close("&$D$12&") when LocalYear("&$D$12&")="&$D$7&" and localMonth("&$D$12&") ="&$E$7&" and LocalDay("&$D$12&")="&$F$7&" and Barix("&$D$12&",reference:=StartOfDay)="&A72&"", "Bar", "", "Close","5","0","",,,"False","T","EveryTick") -> 1302.8 | U72: 0.00115269346 | V72: =RTD("cqg.rtd",,"StudyData", "Close("&$D$12&") when LocalYear("&$D$12&")="&$D$8&" and localMonth("&$D$12&") ="&$E$8&" and LocalDay("&$D$12&")="&$F$8&" and Barix("&$D$12&",reference:=StartOfDay)="&A72&"", "Bar", "", "Close","5","0","",,,"False","T","EveryTick") -> 1301.7 | W72: 0.0008457634938 | X72: =RTD("cqg.rtd",,"StudyData", "Close("&$D$12&") when LocalYear("&$D$12&")="&$D$9&" and localMonth("&$D$12&") ="&$E$9&" and LocalDay("&$D$12&")="&$F$9&" and Barix("&$D$12&",reference:=StartOfDay)="&A72&"", "Bar", "", "Close","5","0","",,,"False","T","EveryTick") -> 1299.4 | Y72: -0.0007689941556 | Z72: =RTD("cqg.rtd",,"StudyData", "Close("&$D$12&") when LocalYear("&$D$12&")="&$D$10&" and localMonth("&$D$12&") ="&$E$10&" and LocalDay("&$D$12&")="&$F$10&" and Barix("&$D$12&",reference:=StartOfDay)="&A72&"", "Bar", "", "Close","5","0","",,,"False","T","EveryTick") -> 1303.5 | AA72: 0.00586465005
A73: 240 | B73: 13:00:00 | C73: -5 | D73: =RTD("cqg.rtd",,"StudyData", $D$12, "Tick", "FlatTicks=0", "Tick","D",C73,"") -> 1282.9 | H73: =RTD("cqg.rtd",,"StudyData", "Close("&$D$12&") when LocalYear("&$D$12&")="&$D$1&" and localMonth("&$D$12&") ="&$E$1&" and LocalDay("&$D$12&")="&$F$1&" and Barix("&$D$12&",reference:=StartOfDay)="&A73&"", "Bar", "", "Close","5","0","",,,"False","T","EveryTick") ->  | J73: =RTD("cqg.rtd",,"StudyData", "Close("&$D$12&") when LocalYear("&$D$12&")="&$D$2&" and localMonth("&$D$12&") ="&$E$2&" and LocalDay("&$D$12&")="&$F$2&" and Barix("&$D$12&",reference:=StartOfDay)="&A73&"", "Bar", "", "Close","5","0","",,,"False","T","EveryTick") -> 1281.3 | K73: -0.01883758328 | L73: =RTD("cqg.rtd",,"StudyData", "Close("&$D$12&") when LocalYear("&$D$12&")="&$D$3&" and localMonth("&$D$12&") ="&$E$3&" and LocalDay("&$D$12&")="&$F$3&" and Barix("&$D$12&",reference:=StartOfDay)="&A73&"", "Bar", "", "Close","5","0","",,,"False","T","EveryTick") -> 1305.4 | M73: 0.001918796531 | N73: =RTD("cqg.rtd",,"StudyData", "Close("&$D$12&") when LocalYear("&$D$12&")="&$D$4&" and localMonth("&$D$12&") ="&$E$4&" and LocalDay("&$D$12&")="&$F$4&" and Barix("&$D$12&",reference:=StartOfDay)="&A73&"", "Bar", "", "Close","5","0","",,,"False","T","EveryTick") -> 1298.7 | O73: -0.0006925207756 | P73: =RTD("cqg.rtd",,"StudyData", "Close("&$D$12&") when LocalYear("&$D$12&")="&$D$5&" and localMonth("&$D$12&") ="&$E$5&" and LocalDay("&$D$12&")="&$F$5&" and Barix("&$D$12&",reference:=StartOfDay)="&A73&"", "Bar", "", "Close","5","0","",,,"False","T","EveryTick") -> 1299.5 | Q73: -0.003756516406 | R73: =RTD("cqg.rtd",,"StudyData", "Close("&$D$12&") when LocalYear("&$D$12&")="&$D$6&" and localMonth("&$D$12&") ="&$E$6&" and LocalDay("&$D$12&")="&$F$6&" and Barix("&$D$12&",reference:=StartOfDay)="&A73&"", "Bar", "", "Close","5","0","",,,"False","T","EveryTick") -> 1303.4 | S73: -7.671653241e-05 | T73: =RTD("cqg.rtd",,"StudyData", "Close("&$D$12&") when LocalYear("&$D$12&")="&$D$7&" and localMonth("&$D$12&") ="&$E$7&" and LocalDay("&$D$12&")="&$F$7&" and Barix("&$D$12&",reference:=StartOfDay)="&A73&"", "Bar", "", "Close","5","0","",,,"False","T","EveryTick") -> 1303.1 | U73: 0.001383232152 | V73: =RTD("cqg.rtd",,"StudyData", "Close("&$D$12&") when LocalYear("&$D$12&")="&$D$8&" and localMonth("&$D$12&") ="&$E$8&" and LocalDay("&$D$12&")="&$F$8&" and Barix("&$D$12&",reference:=StartOfDay)="&A73&"", "Bar", "", "Close","5","0","",,,"False","T","EveryTick") -> 1301.3 | W73: 0.0005382131324 | X73: =RTD("cqg.rtd",,"StudyData", "Close("&$D$12&") when LocalYear("&$D$12&")="&$D$9&" and localMonth("&$D$12&") ="&$E$9&" and LocalDay("&$D$12&")="&$F$9&" and Barix("&$D$12&",reference:=StartOfDay)="&A73&"", "Bar", "", "Close","5","0","",,,"False","T","EveryTick") -> 1299.4 | Y73: -0.0007689941556 | Z73: =RTD("cqg.rtd",,"StudyData", "Close("&$D$12&") when LocalYear("&$D$12&")="&$D$10&" and localMonth("&$D$12&") ="&$E$10&" and LocalDay("&$D$12&")="&$F$10&" and Barix("&$D$12&",reference:=StartOfDay)="&A73&"", "Bar", "", "Close","5","0","",,,"False","T","EveryTick") -> 1303.2 | AA73: 0.005633150706
A74: 241 | B74: 13:05:00 | C74: -4 | D74: =RTD("cqg.rtd",,"StudyData", $D$12, "Tick", "FlatTicks=0", "Tick","D",C74,"") -> 1283 | H74: =RTD("cqg.rtd",,"StudyData", "Close("&$D$12&") when LocalYear("&$D$12&")="&$D$1&" and localMonth("&$D$12&") ="&$E$1&" and LocalDay("&$D$12&")="&$F$1&" and Barix("&$D$12&",reference:=StartOfDay)="&A74&"", "Bar", "", "Close","5","0","",,,"False","T","EveryTick") ->  | J74: =RTD("cqg.rtd",,"StudyData", "Close("&$D$12&") when LocalYear("&$D$12&")="&$D$2&" and localMonth("&$D$12&") ="&$E$2&" and LocalDay("&$D$12&")="&$F$2&" and Barix("&$D$12&",reference:=StartOfDay)="&A74&"", "Bar", "", "Close","5","0","",,,"False","T","EveryTick") -> 1281.4 | K74: -0.01876100773 | L74: =RTD("cqg.rtd",,"StudyData", "Close("&$D$12&") when LocalYear("&$D$12&")="&$D$3&" and localMonth("&$D$12&") ="&$E$3&" and LocalDay("&$D$12&")="&$F$3&" and Barix("&$D$12&",reference:=StartOfDay)="&A74&"", "Bar", "", "Close","5","0","",,,"False","T","EveryTick") -> 1305.9 | M74: 0.002302555837 | N74: =RTD("cqg.rtd",,"StudyData", "Close("&$D$12&") when LocalYear("&$D$12&")="&$D$4&" and localMonth("&$D$12&") ="&$E$4&" and LocalDay("&$D$12&")="&$F$4&" and Barix("&$D$12&",reference:=StartOfDay)="&A74&"", "Bar", "", "Close","5","0","",,,"False","T","EveryTick") -> 1298 | O74: -0.001231148046 | P74: =RTD("cqg.rtd",,"StudyData", "Close("&$D$12&") when LocalYear("&$D$12&")="&$D$5&" and localMonth("&$D$12&") ="&$E$5&" and LocalDay("&$D$12&")="&$F$5&" and Barix("&$D$12&",reference:=StartOfDay)="&A74&"", "Bar", "", "Close","5","0","",,,"False","T","EveryTick") -> 1299.4 | Q74: -0.003833180006 | R74: =RTD("cqg.rtd",,"StudyData", "Close("&$D$12&") when LocalYear("&$D$12&")="&$D$6&" and localMonth("&$D$12&") ="&$E$6&" and LocalDay("&$D$12&")="&$F$6&" and Barix("&$D$12&",reference:=StartOfDay)="&A74&"", "Bar", "", "Close","5","0","",,,"False","T","EveryTick") -> 1303.8 | S74: 0.0002301495972 | T74: =RTD("cqg.rtd",,"StudyData", "Close("&$D$12&") when LocalYear("&$D$12&")="&$D$7&" and localMonth("&$D$12&") ="&$E$7&" and LocalDay("&$D$12&")="&$F$7&" and Barix("&$D$12&",reference:=StartOfDay)="&A74&"", "Bar", "", "Close","5","0","",,,"False","T","EveryTick") -> 1303.1 | U74: 0.001383232152 | V74: =RTD("cqg.rtd",,"StudyData", "Close("&$D$12&") when LocalYear("&$D$12&")="&$D$8&" and localMonth("&$D$12&") ="&$E$8&" and LocalDay("&$D$12&")="&$F$8&" and Barix("&$D$12&",reference:=StartOfDay)="&A74&"", "Bar", "", "Close","5","0","",,,"False","T","EveryTick") -> 1301.4 | W74: 0.0006151007227 | X74: =RTD("cqg.rtd",,"StudyData", "Close("&$D$12&") when LocalYear("&$D$12&")="&$D$9&" and localMonth("&$D$12&") ="&$E$9&" and LocalDay("&$D$12&")="&$F$9&" and Barix("&$D$12&",reference:=StartOfDay)="&A74&"", "Bar", "", "Close","5","0","",,,"False","T","EveryTick") -> 1299.9 | Y74: -0.0003844970778 | Z74: =RTD("cqg.rtd",,"StudyData", "Close("&$D$12&") when LocalYear("&$D$12&")="&$D$10&" and localMonth("&$D$12&") ="&$E$10&" and LocalDay("&$D$12&")="&$F$10&" and Barix("&$D$12&",reference:=StartOfDay)="&A74&"", "Bar", "", "Close","5","0","",,,"False","T","EveryTick") -> 1302.8 | AA74: 0.005324484914
A75: 242 | B75: 13:10:00 | C75: -3 | D75: =RTD("cqg.rtd",,"StudyData", $D$12, "Tick", "FlatTicks=0", "Tick","D",C75,"") -> 1282.9 | H75: =RTD("cqg.rtd",,"StudyData", "Close("&$D$12&") when LocalYear("&$D$12&")="&$D$1&" and localMonth("&$D$12&") ="&$E$1&" and LocalDay("&$D$12&")="&$F$1&" and Barix("&$D$12&",reference:=StartOfDay)="&A75&"", "Bar", "", "Close","5","0","",,,"False","T","EveryTick") ->  | J75: =RTD("cqg.rtd",,"StudyData", "Close("&$D$12&") when LocalYear("&$D$12&")="&$D$2&" and localMonth("&$D$12&") ="&$E$2&" and LocalDay("&$D$12&")="&$F$2&" and Barix("&$D$12&",reference:=StartOfDay)="&A75&"", "Bar", "", "Close","5","0","",,,"False","T","EveryTick") -> 1281.5 | K75: -0.01868443219 | L75: =RTD("cqg.rtd",,"StudyData", "Close("&$D$12&") when LocalYear("&$D$12&")="&$D$3&" and localMonth("&$D$12&") ="&$E$3&" and LocalDay("&$D$12&")="&$F$3&" and Barix("&$D$12&",reference:=StartOfDay)="&A75&"", "Bar", "", "Close","5","0","",,,"False","T","EveryTick") -> 1306.4 | M75: 0.002686315143 | N75: =RTD("cqg.rtd",,"StudyData", "Close("&$D$12&") when LocalYear("&$D$12&")="&$D$4&" and localMonth("&$D$12&") ="&$E$4&" and LocalDay("&$D$12&")="&$F$4&" and Barix("&$D$12&",reference:=StartOfDay)="&A75&"", "Bar", "", "Close","5","0","",,,"False","T","EveryTick") -> 1298.5 | O75: -0.0008464142813 | P75: =RTD("cqg.rtd",,"StudyData", "Close("&$D$12&") when LocalYear("&$D$12&")="&$D$5&" and localMonth("&$D$12&") ="&$E$5&" and LocalDay("&$D$12&")="&$F$5&" and Barix("&$D$12&",reference:=StartOfDay)="&A75&"", "Bar", "", "Close","5","0","",,,"False","T","EveryTick") -> 1299.1 | Q75: -0.004063170807 | R75: =RTD("cqg.rtd",,"StudyData", "Close("&$D$12&") when LocalYear("&$D$12&")="&$D$6&" and localMonth("&$D$12&") ="&$E$6&" and LocalDay("&$D$12&")="&$F$6&" and Barix("&$D$12&",reference:=StartOfDay)="&A75&"", "Bar", "", "Close","5","0","",,,"False","T","EveryTick") -> 1303.7 | S75: 0.0001534330648 | T75: =RTD("cqg.rtd",,"StudyData", "Close("&$D$12&") when LocalYear("&$D$12&")="&$D$7&" and localMonth("&$D$12&") ="&$E$7&" and LocalDay("&$D$12&")="&$F$7&" and Barix("&$D$12&",reference:=StartOfDay)="&A75&"", "Bar", "", "Close","5","0","",,,"False","T","EveryTick") -> 1303.1 | U75: 0.001383232152 | V75: =RTD("cqg.rtd",,"StudyData", "Close("&$D$12&") when LocalYear("&$D$12&")="&$D$8&" and localMonth("&$D$12&") ="&$E$8&" and LocalDay("&$D$12&")="&$F$8&" and Barix("&$D$12&",reference:=StartOfDay)="&A75&"", "Bar", "", "Close","5","0","",,,"False","T","EveryTick") -> 1301.3 | W75: 0.0005382131324 | X75: =RTD("cqg.rtd",,"StudyData", "Close("&$D$12&") when LocalYear("&$D$12&")="&$D$9&" and localMonth("&$D$12&") ="&$E$9&" and LocalDay("&$D$12&")="&$F$9&" and Barix("&$D$12&",reference:=StartOfDay)="&A75&"", "Bar", "", "Close","5","0","",,,"False","T","EveryTick") -> 1299.9 | Y75: -0.0003844970778 | Z75: =RTD("cqg.rtd",,"StudyData", "Close("&$D$12&") when LocalYear("&$D$12&")="&$D$10&" and localMonth("&$D$12&") ="&$E$10&" and LocalDay("&$D$12&")="&$F$10&" and Barix("&$D$12&",reference:=StartOfDay)="&A75&"", "Bar", "", "Close","5","0","",,,"False","T","EveryTick") -> 1302.6 | AA75: 0.005170152018
A76: 243 | B76: 13:15:00 | C76: -2 | D76: =RTD("cqg.rtd",,"StudyData", $D$12, "Tick", "FlatTicks=0", "Tick","D",C76,"") -> 1283 | H76: =RTD("cqg.rtd",,"StudyData", "Close("&$D$12&") when LocalYear("&$D$12&")="&$D$1&" and localMonth("&$D$12&") ="&$E$1&" and LocalDay("&$D$12&")="&$F$1&" and Barix("&$D$12&",reference:=StartOfDay)="&A76&"", "Bar", "", "Close","5","0","",,,"False","T","EveryTick") ->  | J76: =RTD("cqg.rtd",,"StudyData", "Close("&$D$12&") when LocalYear("&$D$12&")="&$D$2&" and localMonth("&$D$12&") ="&$E$2&" and LocalDay("&$D$12&")="&$F$2&" and Barix("&$D$12&",reference:=StartOfDay)="&A76&"", "Bar", "", "Close","5","0","",,,"False","T","EveryTick") -> 1282 | K76: -0.01830155448 | L76: =RTD("cqg.rtd",,"StudyData", "Close("&$D$12&") when LocalYear("&$D$12&")="&$D$3&" and localMonth("&$D$12&") ="&$E$3&" and LocalDay("&$D$12&")="&$F$3&" and Barix("&$D$12&",reference:=StartOfDay)="&A76&"", "Bar", "", "Close","5","0","",,,"False","T","EveryTick") -> 1305.9 | M76: 0.002302555837 | N76: =RTD("cqg.rtd",,"StudyData", "Close("&$D$12&") when LocalYear("&$D$12&")="&$D$4&" and localMonth("&$D$12&") ="&$E$4&" and LocalDay("&$D$12&")="&$F$4&" and Barix("&$D$12&",reference:=StartOfDay)="&A76&"", "Bar", "", "Close","5","0","",,,"False","T","EveryTick") -> 1298.4 | O76: -0.0009233610342 | P76: =RTD("cqg.rtd",,"StudyData", "Close("&$D$12&") when LocalYear("&$D$12&")="&$D$5&" and localMonth("&$D$12&") ="&$E$5&" and LocalDay("&$D$12&")="&$F$5&" and Barix("&$D$12&",reference:=StartOfDay)="&A76&"", "Bar", "", "Close","5","0","",,,"False","T","EveryTick") -> 1299.5 | Q76: -0.003756516406 | R76: =RTD("cqg.rtd",,"StudyData", "Close("&$D$12&") when LocalYear("&$D$12&")="&$D$6&" and localMonth("&$D$12&") ="&$E$6&" and LocalDay("&$D$12&")="&$F$6&" and Barix("&$D$12&",reference:=StartOfDay)="&A76&"", "Bar", "", "Close","5","0","",,,"False","T","EveryTick") -> 1303.9 | S76: 0.0003068661297 | T76: =RTD("cqg.rtd",,"StudyData", "Close("&$D$12&") when LocalYear("&$D$12&")="&$D$7&" and localMonth("&$D$12&") ="&$E$7&" and LocalDay("&$D$12&")="&$F$7&" and Barix("&$D$12&",reference:=StartOfDay)="&A76&"", "Bar", "", "Close","5","0","",,,"False","T","EveryTick") -> 1303.1 | U76: 0.001383232152 | V76: =RTD("cqg.rtd",,"StudyData", "Close("&$D$12&") when LocalYear("&$D$12&")="&$D$8&" and localMonth("&$D$12&") ="&$E$8&" and LocalDay("&$D$12&")="&$F$8&" and Barix("&$D$12&",reference:=StartOfDay)="&A76&"", "Bar", "", "Close","5","0","",,,"False","T","EveryTick") -> 1301 | W76: 0.0003075503614 | X76: =RTD("cqg.rtd",,"StudyData", "Close("&$D$12&") when LocalYear("&$D$12&")="&$D$9&" and localMonth("&$D$12&") ="&$E$9&" and LocalDay("&$D$12&")="&$F$9&" and Barix("&$D$12&",reference:=StartOfDay)="&A76&"", "Bar", "", "Close","5","0","",,,"False","T","EveryTick") -> 1300.1 | Y76: -0.0002306982467 | Z76: =RTD("cqg.rtd",,"StudyData", "Close("&$D$12&") when LocalYear("&$D$12&")="&$D$10&" and localMonth("&$D$12&") ="&$E$10&" and LocalDay("&$D$12&")="&$F$10&" and Barix("&$D$12&",reference:=StartOfDay)="&A76&"", "Bar", "", "Close","5","0","",,,"False","T","EveryTick") -> 1302.4 | AA76: 0.005015819122
A77: 244 | B77: 13:20:00 | C77: -1 | D77: =RTD("cqg.rtd",,"StudyData", $D$12, "Tick", "FlatTicks=0", "Tick","D",C77,"") -> 1282.9 | H77: =RTD("cqg.rtd",,"StudyData", "Close("&$D$12&") when LocalYear("&$D$12&")="&$D$1&" and localMonth("&$D$12&") ="&$E$1&" and LocalDay("&$D$12&")="&$F$1&" and Barix("&$D$12&",reference:=StartOfDay)="&A77&"", "Bar", "", "Close","5","0","",,,"False","T","EveryTick") ->  | J77: =RTD("cqg.rtd",,"StudyData", "Close("&$D$12&") when LocalYear("&$D$12&")="&$D$2&" and localMonth("&$D$12&") ="&$E$2&" and LocalDay("&$D$12&")="&$F$2&" and Barix("&$D$12&",reference:=StartOfDay)="&A77&"", "Bar", "", "Close","5","0","",,,"False","T","EveryTick") -> 1281.7 | K77: -0.01853128111 | L77: =RTD("cqg.rtd",,"StudyData", "Close("&$D$12&") when LocalYear("&$D$12&")="&$D$3&" and localMonth("&$D$12&") ="&$E$3&" and LocalDay("&$D$12&")="&$F$3&" and Barix("&$D$12&",reference:=StartOfDay)="&A77&"", "Bar", "", "Close","5","0","",,,"False","T","EveryTick") -> 1306.4 | M77: 0.002686315143 | N77: =RTD("cqg.rtd",,"StudyData", "Close("&$D$12&") when LocalYear("&$D$12&")="&$D$4&" and localMonth("&$D$12&") ="&$E$4&" and LocalDay("&$D$12&")="&$F$4&" and Barix("&$D$12&",reference:=StartOfDay)="&A77&"", "Bar", "", "Close","5","0","",,,"False","T","EveryTick") -> 1298.6 | O77: -0.0007694675285 | P77: =RTD("cqg.rtd",,"StudyData", "Close("&$D$12&") when LocalYear("&$D$12&")="&$D$5&" and localMonth("&$D$12&") ="&$E$5&" and LocalDay("&$D$12&")="&$F$5&" and Barix("&$D$12&",reference:=StartOfDay)="&A77&"", "Bar", "", "Close","5","0","",,,"False","T","EveryTick") -> 1298.8 | Q77: -0.004293161607 | R77: =RTD("cqg.rtd",,"StudyData", "Close("&$D$12&") when LocalYear("&$D$12&")="&$D$6&" and localMonth("&$D$12&") ="&$E$6&" and LocalDay("&$D$12&")="&$F$6&" and Barix("&$D$12&",reference:=StartOfDay)="&A77&"", "Bar", "", "Close","5","0","",,,"False","T","EveryTick") -> 1303.8 | S77: 0.0002301495972 | T77: =RTD("cqg.rtd",,"StudyData", "Close("&$D$12&") when LocalYear("&$D$12&")="&$D$7&" and localMonth("&$D$12&") ="&$E$7&" and LocalDay("&$D$12&")="&$F$7&" and Barix("&$D$12&",reference:=StartOfDay)="&A77&"", "Bar", "", "Close","5","0","",,,"False","T","EveryTick") -> 1303 | U77: 0.001306385922 | V77: =RTD("cqg.rtd",,"StudyData", "Close("&$D$12&") when LocalYear("&$D$12&")="&$D$8&" and localMonth("&$D$12&") ="&$E$8&" and LocalDay("&$D$12&")="&$F$8&" and Barix("&$D$12&",reference:=StartOfDay)="&A77&"", "Bar", "", "Close","5","0","",,,"False","T","EveryTick") -> 1301.3 | W77: 0.0005382131324 | X77: =RTD("cqg.rtd",,"StudyData", "Close("&$D$12&") when LocalYear("&$D$12&")="&$D$9&" and localMonth("&$D$12&") ="&$E$9&" and LocalDay("&$D$12&")="&$F$9&" and Barix("&$D$12&",reference:=StartOfDay)="&A77&"", "Bar", "", "Close","5","0","",,,"False","T","EveryTick") -> 1300.1 | Y77: -0.0002306982467 | Z77: =RTD("cqg.rtd",,"StudyData", "Close("&$D$12&") when LocalYear("&$D$12&")="&$D$10&" and localMonth("&$D$12&") ="&$E$10&" and LocalDay("&$D$12&")="&$F$10&" and Barix("&$D$12&",reference:=StartOfDay)="&A77&"", "Bar", "", "Close","5","0","",,,"False","T","EveryTick") -> 1302.4 | AA77: 0.005015819122
A78: 245 | B78: 13:25:00 | C78: =C77+1 -> 0 | D78: =RTD("cqg.rtd",,"StudyData", $D$12, "Tick", "FlatTicks=0", "Tick","D",C78,"") -> 1282.8 | H78: =RTD("cqg.rtd",,"StudyData", "Close("&$D$12&") when LocalYear("&$D$12&")="&$D$1&" and localMonth("&$D$12&") ="&$E$1&" and LocalDay("&$D$12&")="&$F$1&" and Barix("&$D$12&",reference:=StartOfDay)="&A78&"", "Bar", "", "Close","5","0","",,,"False","T","EveryTick") ->  | J78: =RTD("cqg.rtd",,"StudyData", "Close("&$D$12&") when LocalYear("&$D$12&")="&$D$2&" and localMonth("&$D$12&") ="&$E$2&" and LocalDay("&$D$12&")="&$F$2&" and Barix("&$D$12&",reference:=StartOfDay)="&A78&"", "Bar", "", "Close","5","0","",,,"False","T","EveryTick") -> 1281.4 | K78: -0.01876100773 | L78: =RTD("cqg.rtd",,"StudyData", "Close("&$D$12&") when LocalYear("&$D$12&")="&$D$3&" and localMonth("&$D$12&") ="&$E$3&" and LocalDay("&$D$12&")="&$F$3&" and Barix("&$D$12&",reference:=StartOfDay)="&A78&"", "Bar", "", "Close","5","0","",,,"False","T","EveryTick") -> 1306 | M78: 0.002379307698 | N78: =RTD("cqg.rtd",,"StudyData", "Close("&$D$12&") when LocalYear("&$D$12&")="&$D$4&" and localMonth("&$D$12&") ="&$E$4&" and LocalDay("&$D$12&")="&$F$4&" and Barix("&$D$12&",reference:=StartOfDay)="&A78&"", "Bar", "", "Close","5","0","",,,"False","T","EveryTick") -> 1297.2 | O78: -0.001846722068 | P78: =RTD("cqg.rtd",,"StudyData", "Close("&$D$12&") when LocalYear("&$D$12&")="&$D$5&" and localMonth("&$D$12&") ="&$E$5&" and LocalDay("&$D$12&")="&$F$5&" and Barix("&$D$12&",reference:=StartOfDay)="&A78&"", "Bar", "", "Close","5","0","",,,"False","T","EveryTick") -> 1299.1 | Q78: -0.004063170807 | R78: =RTD("cqg.rtd",,"StudyData", "Close("&$D$12&") when LocalYear("&$D$12&")="&$D$6&" and localMonth("&$D$12&") ="&$E$6&" and LocalDay("&$D$12&")="&$F$6&" and Barix("&$D$12&",reference:=StartOfDay)="&A78&"", "Bar", "", "Close","5","0","",,,"False","T","EveryTick") -> 1303.9 | S78: 0.0003068661297 | T78: =RTD("cqg.rtd",,"StudyData", "Close("&$D$12&") when LocalYear("&$D$12&")="&$D$7&" and localMonth("&$D$12&") ="&$E$7&" and LocalDay("&$D$12&")="&$F$7&" and Barix("&$D$12&",reference:=StartOfDay)="&A78&"", "Bar", "", "Close","5","0","",,,"False","T","EveryTick") -> 1302.9 | U78: 0.001229539691 | V78: =RTD("cqg.rtd",,"StudyData", "Close("&$D$12&") when LocalYear("&$D$12&")="&$D$8&" and localMonth("&$D$12&") ="&$E$8&" and LocalDay("&$D$12&")="&$F$8&" and Barix("&$D$12&",reference:=StartOfDay)="&A78&"", "Bar", "", "Close","5","0","",,,"False","T","EveryTick") -> 1301.7 | W78: 0.0008457634938 | X78: =RTD("cqg.rtd",,"StudyData", "Close("&$D$12&") when LocalYear("&$D$12&")="&$D$9&" and localMonth("&$D$12&") ="&$E$9&" and LocalDay("&$D$12&")="&$F$9&" and Barix("&$D$12&",reference:=StartOfDay)="&A78&"", "Bar", "", "Close","5","0","",,,"False","T","EveryTick") -> 1300.2 | Y78: -0.0001537988311 | Z78: =RTD("cqg.rtd",,"StudyData", "Close("&$D$12&") when LocalYear("&$D$12&")="&$D$10&" and localMonth("&$D$12&") ="&$E$10&" and LocalDay("&$D$12&")="&$F$10&" and Barix("&$D$12&",reference:=StartOfDay)="&A78&"", "Bar", "", "Close","5","0","",,,"False","T","EveryTick") -> 1302.1 | AA78: 0.004784319778
A79: 246 | B79: 13:30:00 | H79: =RTD("cqg.rtd",,"StudyData", "Close("&$D$12&") when LocalYear("&$D$12&")="&$D$1&" and localMonth("&$D$12&") ="&$E$1&" and LocalDay("&$D$12&")="&$F$1&" and Barix("&$D$12&",reference:=StartOfDay)="&A79&"", "Bar", "", "Close","5","0","",,,"False","T","EveryTick") ->  | J79: =RTD("cqg.rtd",,"StudyData", "Close("&$D$12&") when LocalYear("&$D$12&")="&$D$2&" and localMonth("&$D$12&") ="&$E$2&" and LocalDay("&$D$12&")="&$F$2&" and Barix("&$D$12&",reference:=StartOfDay)="&A79&"", "Bar", "", "Close","5","0","",,,"False","T","EveryTick") -> 1282.4 | K79: -0.01799525232 | L79: =RTD("cqg.rtd",,"StudyData", "Close("&$D$12&") when LocalYear("&$D$12&")="&$D$3&" and localMonth("&$D$12&") ="&$E$3&" and LocalDay("&$D$12&")="&$F$3&" and Barix("&$D$12&",reference:=StartOfDay)="&A79&"", "Bar", "", "Close","5","0","",,,"False","T","EveryTick") -> 1305.8 | M79: 0.002225803976 | N79: =RTD("cqg.rtd",,"StudyData", "Close("&$D$12&") when LocalYear("&$D$12&")="&$D$4&" and localMonth("&$D$12&") ="&$E$4&" and LocalDay("&$D$12&")="&$F$4&" and Barix("&$D$12&",reference:=StartOfDay)="&A79&"", "Bar", "", "Close","5","0","",,,"False","T","EveryTick") -> 1297 | O79: -0.002000615574 | P79: =RTD("cqg.rtd",,"StudyData", "Close("&$D$12&") when LocalYear("&$D$12&")="&$D$5&" and localMonth("&$D$12&") ="&$E$5&" and LocalDay("&$D$12&")="&$F$5&" and Barix("&$D$12&",reference:=StartOfDay)="&A79&"", "Bar", "", "Close","5","0","",,,"False","T","EveryTick") -> 1299 | Q79: -0.004139834407 | R79: =RTD("cqg.rtd",,"StudyData", "Close("&$D$12&") when LocalYear("&$D$12&")="&$D$6&" and localMonth("&$D$12&") ="&$E$6&" and LocalDay("&$D$12&")="&$F$6&" and Barix("&$D$12&",reference:=StartOfDay)="&A79&"", "Bar", "", "Close","5","0","",,,"False","T","EveryTick") -> 1303.6 | S79: 7.671653241e-05 | T79: =RTD("cqg.rtd",,"StudyData", "Close("&$D$12&") when LocalYear("&$D$12&")="&$D$7&" and localMonth("&$D$12&") ="&$E$7&" and LocalDay("&$D$12&")="&$F$7&" and Barix("&$D$12&",reference:=StartOfDay)="&A79&"", "Bar", "", "Close","5","0","",,,"False","T","EveryTick") -> 1302.8 | U79: 0.00115269346 | V79: =RTD("cqg.rtd",,"StudyData", "Close("&$D$12&") when LocalYear("&$D$12&")="&$D$8&" and localMonth("&$D$12&") ="&$E$8&" and LocalDay("&$D$12&")="&$F$8&" and Barix("&$D$12&",reference:=StartOfDay)="&A79&"", "Bar", "", "Close","5","0","",,,"False","T","EveryTick") -> 1301.8 | W79: 0.0009226510841 | X79: =RTD("cqg.rtd",,"StudyData", "Close("&$D$12&") when LocalYear("&$D$12&")="&$D$9&" and localMonth("&$D$12&") ="&$E$9&" and LocalDay("&$D$12&")="&$F$9&" and Barix("&$D$12&",reference:=StartOfDay)="&A79&"", "Bar", "", "Close","5","0","",,,"False","T","EveryTick") -> 1300.1 | Y79: -0.0002306982467 | Z79: =RTD("cqg.rtd",,"StudyData", "Close("&$D$12&") when LocalYear("&$D$12&")="&$D$10&" and localMonth("&$D$12&") ="&$E$10&" and LocalDay("&$D$12&")="&$F$10&" and Barix("&$D$12&",reference:=StartOfDay)="&A79&"", "Bar", "", "Close","5","0","",,,"False","T","EveryTick") -> 1302.2 | AA79: 0.004861486226
A80: 247 | B80: 13:35:00 | H80: =RTD("cqg.rtd",,"StudyData", "Close("&$D$12&") when LocalYear("&$D$12&")="&$D$1&" and localMonth("&$D$12&") ="&$E$1&" and LocalDay("&$D$12&")="&$F$1&" and Barix("&$D$12&",reference:=StartOfDay)="&A80&"", "Bar", "", "Close","5","0","",,,"False","T","EveryTick") ->  | J80: =RTD("cqg.rtd",,"StudyData", "Close("&$D$12&") when LocalYear("&$D$12&")="&$D$2&" and localMonth("&$D$12&") ="&$E$2&" and LocalDay("&$D$12&")="&$F$2&" and Barix("&$D$12&",reference:=StartOfDay)="&A80&"", "Bar", "", "Close","5","0","",,,"False","T","EveryTick") -> 1282.4 | K80: -0.01799525232 | L80: =RTD("cqg.rtd",,"StudyData", "Close("&$D$12&") when LocalYear("&$D$12&")="&$D$3&" and localMonth("&$D$12&") ="&$E$3&" and LocalDay("&$D$12&")="&$F$3&" and Barix("&$D$12&",reference:=StartOfDay)="&A80&"", "Bar", "", "Close","5","0","",,,"False","T","EveryTick") -> 1306.3 | M80: 0.002609563282 | N80: =RTD("cqg.rtd",,"StudyData", "Close("&$D$12&") when LocalYear("&$D$12&")="&$D$4&" and localMonth("&$D$12&") ="&$E$4&" and LocalDay("&$D$12&")="&$F$4&" and Barix("&$D$12&",reference:=StartOfDay)="&A80&"", "Bar", "", "Close","5","0","",,,"False","T","EveryTick") -> 1298.1 | O80: -0.001154201293 | P80: =RTD("cqg.rtd",,"StudyData", "Close("&$D$12&") when LocalYear("&$D$12&")="&$D$5&" and localMonth("&$D$12&") ="&$E$5&" and LocalDay("&$D$12&")="&$F$5&" and Barix("&$D$12&",reference:=StartOfDay)="&A80&"", "Bar", "", "Close","5","0","",,,"False","T","EveryTick") -> 1298.9 | Q80: -0.004216498007 | R80: =RTD("cqg.rtd",,"StudyData", "Close("&$D$12&") when LocalYear("&$D$12&")="&$D$6&" and localMonth("&$D$12&") ="&$E$6&" and LocalDay("&$D$12&")="&$F$6&" and Barix("&$D$12&",reference:=StartOfDay)="&A80&"", "Bar", "", "Close","5","0","",,,"False","T","EveryTick") -> 1303.8 | S80: 0.0002301495972 | T80: =RTD("cqg.rtd",,"StudyData", "Close("&$D$12&") when LocalYear("&$D$12&")="&$D$7&" and localMonth("&$D$12&") ="&$E$7&" and LocalDay("&$D$12&")="&$F$7&" and Barix("&$D$12&",reference:=StartOfDay)="&A80&"", "Bar", "", "Close","5","0","",,,"False","T","EveryTick") -> 1302.7 | U80: 0.00107584723 | V80: =RTD("cqg.rtd",,"StudyData", "Close("&$D$12&") when LocalYear("&$D$12&")="&$D$8&" and localMonth("&$D$12&") ="&$E$8&" and LocalDay("&$D$12&")="&$F$8&" and Barix("&$D$12&",reference:=StartOfDay)="&A80&"", "Bar", "", "Close","5","0","",,,"False","T","EveryTick") -> 1301.8 | W80: 0.0009226510841 | X80: =RTD("cqg.rtd",,"StudyData", "Close("&$D$12&") when LocalYear("&$D$12&")="&$D$9&" and localMonth("&$D$12&") ="&$E$9&" and LocalDay("&$D$12&")="&$F$9&" and Barix("&$D$12&",reference:=StartOfDay)="&A80&"", "Bar", "", "Close","5","0","",,,"False","T","EveryTick") -> 1300.3 | Y80: -7.689941556e-05 | Z80: =RTD("cqg.rtd",,"StudyData", "Close("&$D$12&") when LocalYear("&$D$12&")="&$D$10&" and localMonth("&$D$12&") ="&$E$10&" and LocalDay("&$D$12&")="&$F$10&" and Barix("&$D$12&",reference:=StartOfDay)="&A80&"", "Bar", "", "Close","5","0","",,,"False","T","EveryTick") -> 1302.1 | AA80: 0.004784319778
A81: 248 | B81: 13:40:00 | H81: =RTD("cqg.rtd",,"StudyData", "Close("&$D$12&") when LocalYear("&$D$12&")="&$D$1&" and localMonth("&$D$12&") ="&$E$1&" and LocalDay("&$D$12&")="&$F$1&" and Barix("&$D$12&",reference:=StartOfDay)="&A81&"", "Bar", "", "Close","5","0","",,,"False","T","EveryTick") ->  | J81: =RTD("cqg.rtd",,"StudyData", "Close("&$D$12&") when LocalYear("&$D$12&")="&$D$2&" and localMonth("&$D$12&") ="&$E$2&" and LocalDay("&$D$12&")="&$F$2&" and Barix("&$D$12&",reference:=StartOfDay)="&A81&"", "Bar", "", "Close","5","0","",,,"False","T","EveryTick") -> 1282.4 | K81: -0.01799525232 | L81: =RTD("cqg.rtd",,"StudyData", "Close("&$D$12&") when LocalYear("&$D$12&")="&$D$3&" and localMonth("&$D$12&") ="&$E$3&" and LocalDay("&$D$12&")="&$F$3&" and Barix("&$D$12&",reference:=StartOfDay)="&A81&"", "Bar", "", "Close","5","0","",,,"False","T","EveryTick") -> 1306.3 | M81: 0.002609563282 | N81: =RTD("cqg.rtd",,"StudyData", "Close("&$D$12&") when LocalYear("&$D$12&")="&$D$4&" and localMonth("&$D$12&") ="&$E$4&" and LocalDay("&$D$12&")="&$F$4&" and Barix("&$D$12&",reference:=StartOfDay)="&A81&"", "Bar", "", "Close","5","0","",,,"False","T","EveryTick") -> 1299.8 | O81: 0.0001538935057 | P81: =RTD("cqg.rtd",,"StudyData", "Close("&$D$12&") when LocalYear("&$D$12&")="&$D$5&" and localMonth("&$D$12&") ="&$E$5&" and LocalDay("&$D$12&")="&$F$5&" and Barix("&$D$12&",reference:=StartOfDay)="&A81&"", "Bar", "", "Close","5","0","",,,"False","T","EveryTick") -> 1299.1 | Q81: -0.004063170807 | R81: =RTD("cqg.rtd",,"StudyData", "Close("&$D$12&") when LocalYear("&$D$12&")="&$D$6&" and localMonth("&$D$12&") ="&$E$6&" and LocalDay("&$D$12&")="&$F$6&" and Barix("&$D$12&",reference:=StartOfDay)="&A81&"", "Bar", "", "Close","5","0","",,,"False","T","EveryTick") -> 1303.9 | S81: 0.0003068661297 | T81: =RTD("cqg.rtd",,"StudyData", "Close("&$D$12&") when LocalYear("&$D$12&")="&$D$7&" and localMonth("&$D$12&") ="&$E$7&" and LocalDay("&$D$12&")="&$F$7&" and Barix("&$D$12&",reference:=StartOfDay)="&A81&"", "Bar", "", "Close","5","0","",,,"False","T","EveryTick") -> 1302.9 | U81: 0.001229539691 | V81: =RTD("cqg.rtd",,"StudyData", "Close("&$D$12&") when LocalYear("&$D$12&")="&$D$8&" and localMonth("&$D$12&") ="&$E$8&" and LocalDay("&$D$12&")="&$F$8&" and Barix("&$D$12&",reference:=StartOfDay)="&A81&"", "Bar", "", "Close","5","0","",,,"False","T","EveryTick") -> 1301.9 | W81: 0.0009995386745 | X81: =RTD("cqg.rtd",,"StudyData", "Close("&$D$12&") when LocalYear("&$D$12&")="&$D$9&" and localMonth("&$D$12&") ="&$E$9&" and LocalDay("&$D$12&")="&$F$9&" and Barix("&$D$12&",reference:=StartOfDay)="&A81&"", "Bar", "", "Close","5","0","",,,"False","T","EveryTick") -> 1300.2 | Y81: -0.0001537988311 | Z81: =RTD("cqg.rtd",,"StudyData", "Close("&$D$12&") when LocalYear("&$D$12&")="&$D$10&" and localMonth("&$D$12&") ="&$E$10&" and LocalDay("&$D$12&")="&$F$10&" and Barix("&$D$12&",reference:=StartOfDay)="&A81&"", "Bar", "", "Close","5","0","",,,"False","T","EveryTick") -> 1302.2 | AA81: 0.004861486226
A82: 249 | B82: 13:45:00 | H82: =RTD("cqg.rtd",,"StudyData", "Close("&$D$12&") when LocalYear("&$D$12&")="&$D$1&" and localMonth("&$D$12&") ="&$E$1&" and LocalDay("&$D$12&")="&$F$1&" and Barix("&$D$12&",reference:=StartOfDay)="&A82&"", "Bar", "", "Close","5","0","",,,"False","T","EveryTick") ->  | I82: =IFERROR((H82-$G$2)/$G$2,NA()) ->  | J82: =RTD("cqg.rtd",,"StudyData", "Close("&$D$12&") when LocalYear("&$D$12&")="&$D$2&" and localMonth("&$D$12&") ="&$E$2&" and LocalDay("&$D$12&")="&$F$2&" and Barix("&$D$12&",reference:=StartOfDay)="&A82&"", "Bar", "", "Close","5","0","",,,"False","T","EveryTick") -> 1282 | K82: =IFERROR((J82-$G$3)/$G$3,NA()) -> -0.01830155448 | L82: =RTD("cqg.rtd",,"StudyData", "Close("&$D$12&") when LocalYear("&$D$12&")="&$D$3&" and localMonth("&$D$12&") ="&$E$3&" and LocalDay("&$D$12&")="&$F$3&" and Barix("&$D$12&",reference:=StartOfDay)="&A82&"", "Bar", "", "Close","5","0","",,,"False","T","EveryTick") -> 1306.4 | M82: =IFERROR((L82-$G$4)/$G$4,NA()) -> 0.002686315143 | N82: =RTD("cqg.rtd",,"StudyData", "Close("&$D$12&") when LocalYear("&$D$12&")="&$D$4&" and localMonth("&$D$12&") ="&$E$4&" and LocalDay("&$D$12&")="&$F$4&" and Barix("&$D$12&",reference:=StartOfDay)="&A82&"", "Bar", "", "Close","5","0","",,,"False","T","EveryTick") -> 1299.2 | O82: =IFERROR((N82-$G$5)/$G$5,NA()) -> -0.0003077870114 | P82: =RTD("cqg.rtd",,"StudyData", "Close("&$D$12&") when LocalYear("&$D$12&")="&$D$5&" and localMonth("&$D$12&") ="&$E$5&" and LocalDay("&$D$12&")="&$F$5&" and Barix("&$D$12&",reference:=StartOfDay)="&A82&"", "Bar", "", "Close","5","0","",,,"False","T","EveryTick") -> 1299.2 | Q82: =IFERROR((P82-$G$6)/$G$6,NA()) -> -0.003986507206 | R82: =RTD("cqg.rtd",,"StudyData", "Close("&$D$12&") when LocalYear("&$D$12&")="&$D$6&" and localMonth("&$D$12&") ="&$E$6&" and LocalDay("&$D$12&")="&$F$6&" and Barix("&$D$12&",reference:=StartOfDay)="&A82&"", "Bar", "", "Close","5","0","",,,"False","T","EveryTick") -> 1303.7 | S82: =IFERROR((R82-$G$7)/$G$7,NA()) -> 0.0001534330648 | T82: =RTD("cqg.rtd",,"StudyData", "Close("&$D$12&") when LocalYear("&$D$12&")="&$D$7&" and localMonth("&$D$12&") ="&$E$7&" and LocalDay("&$D$12&")="&$F$7&" and Barix("&$D$12&",reference:=StartOfDay)="&A82&"", "Bar", "", "Close","5","0","",,,"False","T","EveryTick") -> 1302.9 | U82: =IFERROR((T82-$G$8)/$G$8,NA()) -> 0.001229539691 | V82: =RTD("cqg.rtd",,"StudyData", "Close("&$D$12&") when LocalYear("&$D$12&")="&$D$8&" and localMonth("&$D$12&") ="&$E$8&" and LocalDay("&$D$12&")="&$F$8&" and Barix("&$D$12&",reference:=StartOfDay)="&A82&"", "Bar", "", "Close","5","0","",,,"False","T","EveryTick") -> 1301.4 | W82: =IFERROR((V82-$G$9)/$G$9,NA()) -> 0.0006151007227 | X82: =RTD("cqg.rtd",,"StudyData", "Close("&$D$12&") when LocalYear("&$D$12&")="&$D$9&" and localMonth("&$D$12&") ="&$E$9&" and LocalDay("&$D$12&")="&$F$9&" and Barix("&$D$12&",reference:=StartOfDay)="&A82&"", "Bar", "", "Close","5","0","",,,"False","T","EveryTick") -> 1300.5 | Y82: =IFERROR((X82-$G$10)/$G$10,NA()) -> 7.689941556e-05 | Z82: =RTD("cqg.rtd",,"StudyData", "Close("&$D$12&") when LocalYear("&$D$12&")="&$D$10&" and localMonth("&$D$12&") ="&$E$10&" and LocalDay("&$D$12&")="&$F$10&" and Barix("&$D$12&",reference:=StartOfDay)="&A82&"", "Bar", "", "Close","5","0","",,,"False","T","EveryTick") -> 1302.1 | AA82: =IFERROR((Z82-$G$11)/$G$11,NA()) -> 0.004784319778
A83: 250 | B83: 13:50:00 | H83: =RTD("cqg.rtd",,"StudyData", "Close("&$D$12&") when LocalYear("&$D$12&")="&$D$1&" and localMonth("&$D$12&") ="&$E$1&" and LocalDay("&$D$12&")="&$F$1&" and Barix("&$D$12&",reference:=StartOfDay)="&A83&"", "Bar", "", "Close","5","0","",,,"False","T","EveryTick") ->  | J83: =RTD("cqg.rtd",,"StudyData", "Close("&$D$12&") when LocalYear("&$D$12&")="&$D$2&" and localMonth("&$D$12&") ="&$E$2&" and LocalDay("&$D$12&")="&$F$2&" and Barix("&$D$12&",reference:=StartOfDay)="&A83&"", "Bar", "", "Close","5","0","",,,"False","T","EveryTick") -> 1282.6 | K83: -0.01784210123 | L83: =RTD("cqg.rtd",,"StudyData", "Close("&$D$12&") when LocalYear("&$D$12&")="&$D$3&" and localMonth("&$D$12&") ="&$E$3&" and LocalDay("&$D$12&")="&$F$3&" and Barix("&$D$12&",reference:=StartOfDay)="&A83&"", "Bar", "", "Close","5","0","",,,"False","T","EveryTick") -> 1306.7 | M83: 0.002916570727 | N83: =RTD("cqg.rtd",,"StudyData", "Close("&$D$12&") when LocalYear("&$D$12&")="&$D$4&" and localMonth("&$D$12&") ="&$E$4&" and LocalDay("&$D$12&")="&$F$4&" and Barix("&$D$12&",reference:=StartOfDay)="&A83&"", "Bar", "", "Close","5","0","",,,"False","T","EveryTick") -> 1299.6 | O83: 0 | P83: =RTD("cqg.rtd",,"StudyData", "Close("&$D$12&") when LocalYear("&$D$12&")="&$D$5&" and localMonth("&$D$12&") ="&$E$5&" and LocalDay("&$D$12&")="&$F$5&" and Barix("&$D$12&",reference:=StartOfDay)="&A83&"", "Bar", "", "Close","5","0","",,,"False","T","EveryTick") -> 1299.4 | Q83: -0.003833180006 | R83: =RTD("cqg.rtd",,"StudyData", "Close("&$D$12&") when LocalYear("&$D$12&")="&$D$6&" and localMonth("&$D$12&") ="&$E$6&" and LocalDay("&$D$12&")="&$F$6&" and Barix("&$D$12&",reference:=StartOfDay)="&A83&"", "Bar", "", "Close","5","0","",,,"False","T","EveryTick") -> 1303.9 | S83: 0.0003068661297 | T83: =RTD("cqg.rtd",,"StudyData", "Close("&$D$12&") when LocalYear("&$D$12&")="&$D$7&" and localMonth("&$D$12&") ="&$E$7&" and LocalDay("&$D$12&")="&$F$7&" and Barix("&$D$12&",reference:=StartOfDay)="&A83&"", "Bar", "", "Close","5","0","",,,"False","T","EveryTick") -> 1303 | U83: 0.001306385922 | V83: =RTD("cqg.rtd",,"StudyData", "Close("&$D$12&") when LocalYear("&$D$12&")="&$D$8&" and localMonth("&$D$12&") ="&$E$8&" and LocalDay("&$D$12&")="&$F$8&" and Barix("&$D$12&",reference:=StartOfDay)="&A83&"", "Bar", "", "Close","5","0","",,,"False","T","EveryTick") -> 1301.2 | W83: 0.0004613255421 | X83: =RTD("cqg.rtd",,"StudyData", "Close("&$D$12&") when LocalYear("&$D$12&")="&$D$9&" and localMonth("&$D$12&") ="&$E$9&" and LocalDay("&$D$12&")="&$F$9&" and Barix("&$D$12&",reference:=StartOfDay)="&A83&"", "Bar", "", "Close","5","0","",,,"False","T","EveryTick") -> 1300.4 | Y83: 0 | Z83: =RTD("cqg.rtd",,"StudyData", "Close("&$D$12&") when LocalYear("&$D$12&")="&$D$10&" and localMonth("&$D$12&") ="&$E$10&" and LocalDay("&$D$12&")="&$F$10&" and Barix("&$D$12&",reference:=StartOfDay)="&A83&"", "Bar", "", "Close","5","0","",,,"False","T","EveryTick") -> 1301.8 | AA83: 0.004552820434
A84: 251 | B84: 13:55:00 | H84: =RTD("cqg.rtd",,"StudyData", "Close("&$D$12&") when LocalYear("&$D$12&")="&$D$1&" and localMonth("&$D$12&") ="&$E$1&" and LocalDay("&$D$12&")="&$F$1&" and Barix("&$D$12&",reference:=StartOfDay)="&A84&"", "Bar", "", "Close","5","0","",,,"False","T","EveryTick") ->  | J84: =RTD("cqg.rtd",,"StudyData", "Close("&$D$12&") when LocalYear("&$D$12&")="&$D$2&" and localMonth("&$D$12&") ="&$E$2&" and LocalDay("&$D$12&")="&$F$2&" and Barix("&$D$12&",reference:=StartOfDay)="&A84&"", "Bar", "", "Close","5","0","",,,"False","T","EveryTick") -> 1282.3 | K84: -0.01807182786 | L84: =RTD("cqg.rtd",,"StudyData", "Close("&$D$12&") when LocalYear("&$D$12&")="&$D$3&" and localMonth("&$D$12&") ="&$E$3&" and LocalDay("&$D$12&")="&$F$3&" and Barix("&$D$12&",reference:=StartOfDay)="&A84&"", "Bar", "", "Close","5","0","",,,"False","T","EveryTick") -> 1306.5 | M84: 0.002763067004 | N84: =RTD("cqg.rtd",,"StudyData", "Close("&$D$12&") when LocalYear("&$D$12&")="&$D$4&" and localMonth("&$D$12&") ="&$E$4&" and LocalDay("&$D$12&")="&$F$4&" and Barix("&$D$12&",reference:=StartOfDay)="&A84&"", "Bar", "", "Close","5","0","",,,"False","T","EveryTick") -> 1303.2 | O84: 0.002770083102 | P84: =RTD("cqg.rtd",,"StudyData", "Close("&$D$12&") when LocalYear("&$D$12&")="&$D$5&" and localMonth("&$D$12&") ="&$E$5&" and LocalDay("&$D$12&")="&$F$5&" and Barix("&$D$12&",reference:=StartOfDay)="&A84&"", "Bar", "", "Close","5","0","",,,"False","T","EveryTick") -> 1299.2 | Q84: -0.003986507206 | R84: =RTD("cqg.rtd",,"StudyData", "Close("&$D$12&") when LocalYear("&$D$12&")="&$D$6&" and localMonth("&$D$12&") ="&$E$6&" and LocalDay("&$D$12&")="&$F$6&" and Barix("&$D$12&",reference:=StartOfDay)="&A84&"", "Bar", "", "Close","5","0","",,,"False","T","EveryTick") -> 1303.9 | S84: 0.0003068661297 | T84: =RTD("cqg.rtd",,"StudyData", "Close("&$D$12&") when LocalYear("&$D$12&")="&$D$7&" and localMonth("&$D$12&") ="&$E$7&" and LocalDay("&$D$12&")="&$F$7&" and Barix("&$D$12&",reference:=StartOfDay)="&A84&"", "Bar", "", "Close","5","0","",,,"False","T","EveryTick") -> 1303 | U84: 0.001306385922 | V84: =RTD("cqg.rtd",,"StudyData", "Close("&$D$12&") when LocalYear("&$D$12&")="&$D$8&" and localMonth("&$D$12&") ="&$E$8&" and LocalDay("&$D$12&")="&$F$8&" and Barix("&$D$12&",reference:=StartOfDay)="&A84&"", "Bar", "", "Close","5","0","",,,"False","T","EveryTick") -> 1301.2 | W84: 0.0004613255421 | X84: =RTD("cqg.rtd",,"StudyData", "Close("&$D$12&") when LocalYear("&$D$12&")="&$D$9&" and localMonth("&$D$12&") ="&$E$9&" and LocalDay("&$D$12&")="&$F$9&" and Barix("&$D$12&",reference:=StartOfDay)="&A84&"", "Bar", "", "Close","5","0","",,,"False","T","EveryTick") -> 1300.1 | Y84: -0.0002306982467 | Z84: =RTD("cqg.rtd",,"StudyData", "Close("&$D$12&") when LocalYear("&$D$12&")="&$D$10&" and localMonth("&$D$12&") ="&$E$10&" and LocalDay("&$D$12&")="&$F$10&" and Barix("&$D$12&",reference:=StartOfDay)="&A84&"", "Bar", "", "Close","5","0","",,,"False","T","EveryTick") -> 1301.5 | AA84: 0.00432132109
A85: 252 | B85: 14:00:00 | H85: =RTD("cqg.rtd",,"StudyData", "Close("&$D$12&") when LocalYear("&$D$12&")="&$D$1&" and localMonth("&$D$12&") ="&$E$1&" and LocalDay("&$D$12&")="&$F$1&" and Barix("&$D$12&",reference:=StartOfDay)="&A85&"", "Bar", "", "Close","5","0","",,,"False","T","EveryTick") ->  | J85: =RTD("cqg.rtd",,"StudyData", "Close("&$D$12&") when LocalYear("&$D$12&")="&$D$2&" and localMonth("&$D$12&") ="&$E$2&" and LocalDay("&$D$12&")="&$F$2&" and Barix("&$D$12&",reference:=StartOfDay)="&A85&"", "Bar", "", "Close","5","0","",,,"False","T","EveryTick") -> 1282.6 | K85: -0.01784210123 | L85: =RTD("cqg.rtd",,"StudyData", "Close("&$D$12&") when LocalYear("&$D$12&")="&$D$3&" and localMonth("&$D$12&") ="&$E$3&" and LocalDay("&$D$12&")="&$F$3&" and Barix("&$D$12&",reference:=StartOfDay)="&A85&"", "Bar", "", "Close","5","0","",,,"False","T","EveryTick") -> 1306.4 | M85: 0.002686315143 | N85: =RTD("cqg.rtd",,"StudyData", "Close("&$D$12&") when LocalYear("&$D$12&")="&$D$4&" and localMonth("&$D$12&") ="&$E$4&" and LocalDay("&$D$12&")="&$F$4&" and Barix("&$D$12&",reference:=StartOfDay)="&A85&"", "Bar", "", "Close","5","0","",,,"False","T","EveryTick") -> 1303.8 | O85: 0.00323176362 | P85: =RTD("cqg.rtd",,"StudyData", "Close("&$D$12&") when LocalYear("&$D$12&")="&$D$5&" and localMonth("&$D$12&") ="&$E$5&" and LocalDay("&$D$12&")="&$F$5&" and Barix("&$D$12&",reference:=StartOfDay)="&A85&"", "Bar", "", "Close","5","0","",,,"False","T","EveryTick") -> 1299 | Q85: -0.004139834407 | R85: =RTD("cqg.rtd",,"StudyData", "Close("&$D$12&") when LocalYear("&$D$12&")="&$D$6&" and localMonth("&$D$12&") ="&$E$6&" and LocalDay("&$D$12&")="&$F$6&" and Barix("&$D$12&",reference:=StartOfDay)="&A85&"", "Bar", "", "Close","5","0","",,,"False","T","EveryTick") -> 1303.8 | S85: 0.0002301495972 | T85: =RTD("cqg.rtd",,"StudyData", "Close("&$D$12&") when LocalYear("&$D$12&")="&$D$7&" and localMonth("&$D$12&") ="&$E$7&" and LocalDay("&$D$12&")="&$F$7&" and Barix("&$D$12&",reference:=StartOfDay)="&A85&"", "Bar", "", "Close","5","0","",,,"False","T","EveryTick") -> 1302.9 | U85: 0.001229539691 | V85: =RTD("cqg.rtd",,"StudyData", "Close("&$D$12&") when LocalYear("&$D$12&")="&$D$8&" and localMonth("&$D$12&") ="&$E$8&" and LocalDay("&$D$12&")="&$F$8&" and Barix("&$D$12&",reference:=StartOfDay)="&A85&"", "Bar", "", "Close","5","0","",,,"False","T","EveryTick") -> 1301.5 | W85: 0.0006919883131 | X85: =RTD("cqg.rtd",,"StudyData", "Close("&$D$12&") when LocalYear("&$D$12&")="&$D$9&" and localMonth("&$D$12&") ="&$E$9&" and LocalDay("&$D$12&")="&$F$9&" and Barix("&$D$12&",reference:=StartOfDay)="&A85&"", "Bar", "", "Close","5","0","",,,"False","T","EveryTick") -> 1299.5 | Y85: -0.0006920947401 | Z85: =RTD("cqg.rtd",,"StudyData", "Close("&$D$12&") when LocalYear("&$D$12&")="&$D$10&" and localMonth("&$D$12&") ="&$E$10&" and LocalDay("&$D$12&")="&$F$10&" and Barix("&$D$12&",reference:=StartOfDay)="&A85&"", "Bar", "", "Close","5","0","",,,"False","T","EveryTick") -> 1301.4 | AA85: 0.004244154642
A86: 253 | B86: 14:05:00 | H86: =RTD("cqg.rtd",,"StudyData", "Close("&$D$12&") when LocalYear("&$D$12&")="&$D$1&" and localMonth("&$D$12&") ="&$E$1&" and LocalDay("&$D$12&")="&$F$1&" and Barix("&$D$12&",reference:=StartOfDay)="&A86&"", "Bar", "", "Close","5","0","",,,"False","T","EveryTick") ->  | J86: =RTD("cqg.rtd",,"StudyData", "Close("&$D$12&") when LocalYear("&$D$12&")="&$D$2&" and localMonth("&$D$12&") ="&$E$2&" and LocalDay("&$D$12&")="&$F$2&" and Barix("&$D$12&",reference:=StartOfDay)="&A86&"", "Bar", "", "Close","5","0","",,,"False","T","EveryTick") -> 1282.1 | K86: -0.01822497894 | L86: =RTD("cqg.rtd",,"StudyData", "Close("&$D$12&") when LocalYear("&$D$12&")="&$D$3&" and localMonth("&$D$12&") ="&$E$3&" and LocalDay("&$D$12&")="&$F$3&" and Barix("&$D$12&",reference:=StartOfDay)="&A86&"", "Bar", "", "Close","5","0","",,,"False","T","EveryTick") -> 1307.1 | M86: 0.003223578172 | N86: =RTD("cqg.rtd",,"StudyData", "Close("&$D$12&") when LocalYear("&$D$12&")="&$D$4&" and localMonth("&$D$12&") ="&$E$4&" and LocalDay("&$D$12&")="&$F$4&" and Barix("&$D$12&",reference:=StartOfDay)="&A86&"", "Bar", "", "Close","5","0","",,,"False","T","EveryTick") -> 1302 | O86: 0.001846722068 | P86: =RTD("cqg.rtd",,"StudyData", "Close("&$D$12&") when LocalYear("&$D$12&")="&$D$5&" and localMonth("&$D$12&") ="&$E$5&" and LocalDay("&$D$12&")="&$F$5&" and Barix("&$D$12&",reference:=StartOfDay)="&A86&"", "Bar", "", "Close","5","0","",,,"False","T","EveryTick") -> 1299 | Q86: -0.004139834407 | R86: =RTD("cqg.rtd",,"StudyData", "Close("&$D$12&") when LocalYear("&$D$12&")="&$D$6&" and localMonth("&$D$12&") ="&$E$6&" and LocalDay("&$D$12&")="&$F$6&" and Barix("&$D$12&",reference:=StartOfDay)="&A86&"", "Bar", "", "Close","5","0","",,,"False","T","EveryTick") -> 1303.9 | S86: 0.0003068661297 | T86: =RTD("cqg.rtd",,"StudyData", "Close("&$D$12&") when LocalYear("&$D$12&")="&$D$7&" and localMonth("&$D$12&") ="&$E$7&" and LocalDay("&$D$12&")="&$F$7&" and Barix("&$D$12&",reference:=StartOfDay)="&A86&"", "Bar", "", "Close","5","0","",,,"False","T","EveryTick") -> 1303 | U86: 0.001306385922 | V86: =RTD("cqg.rtd",,"StudyData", "Close("&$D$12&") when LocalYear("&$D$12&")="&$D$8&" and localMonth("&$D$12&") ="&$E$8&" and LocalDay("&$D$12&")="&$F$8&" and Barix("&$D$12&",reference:=StartOfDay)="&A86&"", "Bar", "", "Close","5","0","",,,"False","T","EveryTick") -> 1301.5 | W86: 0.0006919883131 | X86: =RTD("cqg.rtd",,"StudyData", "Close("&$D$12&") when LocalYear("&$D$12&")="&$D$9&" and localMonth("&$D$12&") ="&$E$9&" and LocalDay("&$D$12&")="&$F$9&" and Barix("&$D$12&",reference:=StartOfDay)="&A86&"", "Bar", "", "Close","5","0","",,,"False","T","EveryTick") -> 1299.9 | Y86: -0.0003844970778 | Z86: =RTD("cqg.rtd",,"StudyData", "Close("&$D$12&") when LocalYear("&$D$12&")="&$D$10&" and localMonth("&$D$12&") ="&$E$10&" and LocalDay("&$D$12&")="&$F$10&" and Barix("&$D$12&",reference:=StartOfDay)="&A86&"", "Bar", "", "Close","5","0","",,,"False","T","EveryTick") -> 1301.7 | AA86: 0.004475653986
A87: 254 | B87: 14:10:00 | H87: =RTD("cqg.rtd",,"StudyData", "Close("&$D$12&") when LocalYear("&$D$12&")="&$D$1&" and localMonth("&$D$12&") ="&$E$1&" and LocalDay("&$D$12&")="&$F$1&" and Barix("&$D$12&",reference:=StartOfDay)="&A87&"", "Bar", "", "Close","5","0","",,,"False","T","EveryTick") ->  | J87: =RTD("cqg.rtd",,"StudyData", "Close("&$D$12&") when LocalYear("&$D$12&")="&$D$2&" and localMonth("&$D$12&") ="&$E$2&" and LocalDay("&$D$12&")="&$F$2&" and Barix("&$D$12&",reference:=StartOfDay)="&A87&"", "Bar", "", "Close","5","0","",,,"False","T","EveryTick") -> 1282.1 | K87: -0.01822497894 | L87: =RTD("cqg.rtd",,"StudyData", "Close("&$D$12&") when LocalYear("&$D$12&")="&$D$3&" and localMonth("&$D$12&") ="&$E$3&" and LocalDay("&$D$12&")="&$F$3&" and Barix("&$D$12&",reference:=StartOfDay)="&A87&"", "Bar", "", "Close","5","0","",,,"False","T","EveryTick") -> 1306.8 | M87: 0.002993322588 | N87: =RTD("cqg.rtd",,"StudyData", "Close("&$D$12&") when LocalYear("&$D$12&")="&$D$4&" and localMonth("&$D$12&") ="&$E$4&" and LocalDay("&$D$12&")="&$F$4&" and Barix("&$D$12&",reference:=StartOfDay)="&A87&"", "Bar", "", "Close","5","0","",,,"False","T","EveryTick") -> 1302.8 | O87: 0.002462296091 | P87: =RTD("cqg.rtd",,"StudyData", "Close("&$D$12&") when LocalYear("&$D$12&")="&$D$5&" and localMonth("&$D$12&") ="&$E$5&" and LocalDay("&$D$12&")="&$F$5&" and Barix("&$D$12&",reference:=StartOfDay)="&A87&"", "Bar", "", "Close","5","0","",,,"False","T","EveryTick") -> 1299.2 | Q87: -0.003986507206 | R87: =RTD("cqg.rtd",,"StudyData", "Close("&$D$12&") when LocalYear("&$D$12&")="&$D$6&" and localMonth("&$D$12&") ="&$E$6&" and LocalDay("&$D$12&")="&$F$6&" and Barix("&$D$12&",reference:=StartOfDay)="&A87&"", "Bar", "", "Close","5","0","",,,"False","T","EveryTick") -> 1304 | S87: 0.0003835826621 | T87: =RTD("cqg.rtd",,"StudyData", "Close("&$D$12&") when LocalYear("&$D$12&")="&$D$7&" and localMonth("&$D$12&") ="&$E$7&" and LocalDay("&$D$12&")="&$F$7&" and Barix("&$D$12&",reference:=StartOfDay)="&A87&"", "Bar", "", "Close","5","0","",,,"False","T","EveryTick") -> 1302.9 | U87: 0.001229539691 | V87: =RTD("cqg.rtd",,"StudyData", "Close("&$D$12&") when LocalYear("&$D$12&")="&$D$8&" and localMonth("&$D$12&") ="&$E$8&" and LocalDay("&$D$12&")="&$F$8&" and Barix("&$D$12&",reference:=StartOfDay)="&A87&"", "Bar", "", "Close","5","0","",,,"False","T","EveryTick") -> 1301.2 | W87: 0.0004613255421 | X87: =RTD("cqg.rtd",,"StudyData", "Close("&$D$12&") when LocalYear("&$D$12&")="&$D$9&" and localMonth("&$D$12&") ="&$E$9&" and LocalDay("&$D$12&")="&$F$9&" and Barix("&$D$12&",reference:=StartOfDay)="&A87&"", "Bar", "", "Close","5","0","",,,"False","T","EveryTick") -> 1299.9 | Y87: -0.0003844970778 | Z87: =RTD("cqg.rtd",,"StudyData", "Close("&$D$12&") when LocalYear("&$D$12&")="&$D$10&" and localMonth("&$D$12&") ="&$E$10&" and LocalDay("&$D$12&")="&$F$10&" and Barix("&$D$12&",reference:=StartOfDay)="&A87&"", "Bar", "", "Close","5","0","",,,"False","T","EveryTick") -> 1301.8 | AA87: 0.004552820434
A88: 255 | B88: 14:15:00 | H88: =RTD("cqg.rtd",,"StudyData", "Close("&$D$12&") when LocalYear("&$D$12&")="&$D$1&" and localMonth("&$D$12&") ="&$E$1&" and LocalDay("&$D$12&")="&$F$1&" and Barix("&$D$12&",reference:=StartOfDay)="&A88&"", "Bar", "", "Close","5","0","",,,"False","T","EveryTick") ->  | J88: =RTD("cqg.rtd",,"StudyData", "Close("&$D$12&") when LocalYear("&$D$12&")="&$D$2&" and localMonth("&$D$12&") ="&$E$2&" and LocalDay("&$D$12&")="&$F$2&" and Barix("&$D$12&",reference:=StartOfDay)="&A88&"", "Bar", "", "Close","5","0","",,,"False","T","EveryTick") -> 1282.3 | K88: -0.01807182786 | L88: =RTD("cqg.rtd",,"StudyData", "Close("&$D$12&") when LocalYear("&$D$12&")="&$D$3&" and localMonth("&$D$12&") ="&$E$3&" and LocalDay("&$D$12&")="&$F$3&" and Barix("&$D$12&",reference:=StartOfDay)="&A88&"", "Bar", "", "Close","5","0","",,,"False","T","EveryTick") -> 1307 | M88: 0.003146826311 | N88: =RTD("cqg.rtd",,"StudyData", "Close("&$D$12&") when LocalYear("&$D$12&")="&$D$4&" and localMonth("&$D$12&") ="&$E$4&" and LocalDay("&$D$12&")="&$F$4&" and Barix("&$D$12&",reference:=StartOfDay)="&A88&"", "Bar", "", "Close","5","0","",,,"False","T","EveryTick") -> 1302.9 | O88: 0.002539242844 | P88: =RTD("cqg.rtd",,"StudyData", "Close("&$D$12&") when LocalYear("&$D$12&")="&$D$5&" and localMonth("&$D$12&") ="&$E$5&" and LocalDay("&$D$12&")="&$F$5&" and Barix("&$D$12&",reference:=StartOfDay)="&A88&"", "Bar", "", "Close","5","0","",,,"False","T","EveryTick") -> 1299.3 | Q88: -0.003909843606 | R88: =RTD("cqg.rtd",,"StudyData", "Close("&$D$12&") when LocalYear("&$D$12&")="&$D$6&" and localMonth("&$D$12&") ="&$E$6&" and LocalDay("&$D$12&")="&$F$6&" and Barix("&$D$12&",reference:=StartOfDay)="&A88&"", "Bar", "", "Close","5","0","",,,"False","T","EveryTick") -> 1304.1 | S88: 0.0004602991945 | T88: =RTD("cqg.rtd",,"StudyData", "Close("&$D$12&") when LocalYear("&$D$12&")="&$D$7&" and localMonth("&$D$12&") ="&$E$7&" and LocalDay("&$D$12&")="&$F$7&" and Barix("&$D$12&",reference:=StartOfDay)="&A88&"", "Bar", "", "Close","5","0","",,,"False","T","EveryTick") -> 1303.1 | U88: 0.001383232152 | V88: =RTD("cqg.rtd",,"StudyData", "Close("&$D$12&") when LocalYear("&$D$12&")="&$D$8&" and localMonth("&$D$12&") ="&$E$8&" and LocalDay("&$D$12&")="&$F$8&" and Barix("&$D$12&",reference:=StartOfDay)="&A88&"", "Bar", "", "Close","5","0","",,,"False","T","EveryTick") -> 1301.4 | W88: 0.0006151007227 | X88: =RTD("cqg.rtd",,"StudyData", "Close("&$D$12&") when LocalYear("&$D$12&")="&$D$9&" and localMonth("&$D$12&") ="&$E$9&" and LocalDay("&$D$12&")="&$F$9&" and Barix("&$D$12&",reference:=StartOfDay)="&A88&"", "Bar", "", "Close","5","0","",,,"False","T","EveryTick") -> 1299.8 | Y88: -0.0004613964934 | Z88: =RTD("cqg.rtd",,"StudyData", "Close("&$D$12&") when LocalYear("&$D$12&")="&$D$10&" and localMonth("&$D$12&") ="&$E$10&" and LocalDay("&$D$12&")="&$F$10&" and Barix("&$D$12&",reference:=StartOfDay)="&A88&"", "Bar", "", "Close","5","0","",,,"False","T","EveryTick") -> 1301.8 | AA88: 0.004552820434
